Workbook

Sheet Instructions, Start Here
A2: Mental Health/Substance Use Disorder (MHSUD) Financial Requirement Parity Workbook for Plan Year (PY) 2025 Individual or Small Group Market Rate Filing
A3: Last Updated: 4/9/2024
A5: Purpose
A6: ● Issuers and plans must comply with the federal Mental Health Parity and Addiction Equity Act of 2008 (MHPAEA) and related regulations and guidance such as Chapter 284-43 WAC Subchapter K, Mental Health and Substance Use Disorder. For ease of reference highlighted excerpts of relevant citations are included at the bottom of this page. ● Financial requirements and treatment limitations applicable to mental health/substance use disorder (MHSUD) benefits cannot be more restrictive than those applicable to medical/surgical benefits. This workbook provides a framework to demonstrate compliance with these financial requirements. ● Populate this workbook in addition to the Word document that further certifies parity of Mental Health and Substance Use Disorder Financial Requirements.
A8: 'Summary' Worksheet
A9: ● Populate only one 'Summary' worksheet for each Excel file. Unless file size limitations dictate otherwise, only create one Excel file per filing. See specific instructions on the 'Summary' worksheet. ● Note that the [GENERATE TESTING TEMPLATES] macro button on the Summary worksheet creates one testing worksheet per plan, using the HIOS Plan ID field for the tab names.
A11: 'Data Information' Worksheet
A12: ● Populate only one 'Data Information' worksheet for each Excel file. See specific instructions on the 'Data Information' worksheet.
A14: 'Mapping Information' Worksheet
A15: ● Populate only one 'Mapping Information' worksheet for each Excel file. See specific instructions on the 'Mapping Information' worksheet.
A17: 'Template' Worksheet - One worksheet for each plan
A18: ● PARITY PASS/FAIL RESULTS, BY BENEFIT CLASSIFICATION
A19: ● Results By Benefit Classification: For each benefit classification, make a selection in the second column (labeled column "B"). Select "Yes" if all cost shares for medical/surgical services in the benefit classification are the same as those for MH/SUD services in the benefit classification; consider cost shares in terms of deductible, copay, coinsurance, and out-of-pocket maximum. Note: The remaining columns will auto-update based on entries here and elsewhere in the file.
A20: ---- IMPORTANT ---- Test results will appear in this table after all PART 1 and PART 2 entries are made in the worksheet. No Benefit Classification results should reflect "Fail" after all PART 1 and 2 entries have been made. If any result still reflects "Fail" after all entries have been made, please revisit PART 1 and 2 entries. Check that information was entered accurately and flows through as expected. If needed, edit the plan's medical/surgical and/or MHSUD service financial requirements to bring the results into compliance.
A21: ● Testing Options (located to the right of Results by Benefit Classification): ○ Out-of-network Tier? If out-of-network benefits apply, select "Yes;" if not, select "No." When "No," you can leave blank the corresponding out-of-network section(s) in the upcoming PARTS 1 and 2. ○ Outpatient Benefit Testing: Indicate whether outpatient parity will be demonstrated "All Combined" or with "Office Visits Separate." Select "All Combined" to use the single outpatient classification. Select "Office Visits Separate" to use the subclassifications described in WAC 284-43-7020(6), namely (i) Office visits (a.k.a. Outpatient - Office visits) and (ii) All other outpatient items and services (a.k.a. Outpatient - all other).
A22: ● PART 1 -- COST SHARES FOR MEDICAL/SURGICAL BENEFITS, BY BENEFIT CLASSIFICATION
A23: For each benefit classification/subclassification that requires testing (see table Results by Benefit Classification): List services and cost shares for covered medical/surgical benefits + other embedded non-MHSUD benefits like pediatric dental. Include every possible financial requirement type and level for each benefit classification/subclassification. Include preventive services and other services with no cost shares.
A24: ● Service Description: Briefly describe the service. Be consistent with what is in the 'Mapping Information' worksheet in this file, the Form filing, the Plans and Benefits Template (PBT) in the Binder filing, the Benefit Components's file, and other information in this rate filing.
A25: ● Cost-Share Description: Describe the member's cost-shares. Be consistent with what is in the Form filing, the Plans and Benefits Template (PBT) in the Binder filing, the Benefit Components's file, and other information in this rate filing.
A26: ● Plan Projected Allowed Amount: Enter a projected "allowed" dollar amount for each plan and listed service. Reminder: Dollar amounts should reflect what the plan "allows," before accounting for enrollee cost sharing and should be consistent with projections for the rate filing. The amounts should generally be specific to each plan. [WAC 284-43-7040(1)(c)]
A27: ● Deductible: Enter the deductible level that applies to each service. If not subject to deductible, enter "N/A". Every row in PART 1 should have a deductible value entered of "N/A" or greater than $0. In other words: The deductible should only be blank in extra data rows or if an entire benefit classification section is not used (e.g., when there are no out-of-network benefits).
A28: ● Copayment: Enter the copayment level that applies to each service. If not applicable, enter "N/A".
A29: ● Coinsurance: Enter the coinsurance level that applies to each service. If not applicable, enter "N/A".
A30: ● Out-of-Pocket Maximum (OOPM): Enter the OOPM level that applies to each service. If not applicable, enter "N/A".
A31: ● No Cost Share: Leave this column blank unless the member has no cost share for the service. If no cost share applies, enter "x" in this column and enter "N/A" for Deductible, Copayment, Coinsurance, and OOPM.
A32: ● PART 2 -- ANALYSIS OF MHSUD FINANCIAL REQUIREMENT PARITY, BY BENEFIT CLASSIFICATION
A33: Note: the remaining columns of the top table will auto-populate after entries are made throughout PARTS 1 and 2. For each benefit classification/subclassification that requires testing (see table Results by Benefit Classification): ● MHSUD Cost Shares in Plan Design: Indicate the plan design's MHSUD benefit financial requirements for each benefit classification/subclassification. If a particular type of financial requirement does not apply, enter "N/A".
A34: ● Step 1 Substantially All: This table will auto-populate from PARTS 1 and 2. Confirm details appear as expected. If not, revisit information entered elsewhere in PARTS 1 and 2.
A35: ● Step 2 Predominant Level: For each financial type that passed the Step 1 Substantially All test: Inputs are required in each section. Enter every unique amount (a.k.a. level), from smallest to largest, separately by financial requirement type (i.e., deductible, copayment, coinsurance, and OOPM). If a particular type of financial requirement does not apply, simply leave blank those value fields.
A36: If you need room to enter additional unique amounts for a particular type of financial requirement, you can insert rows. For example, to enter an additional deductible amount, insert a row above the "Total" row in the deductible table; to do so, click in the bottom-right white cell of the deductible section and click [Tab].
A37: The remaining fields will auto-populate using other information from PARTS 1 and 2. Confirm details flow through as expected. If not, revisit information entered elsewhere in PARTS 1 and 2.
A39: Sample of Relevant Requirements, Citations, and Definitions
A40: 1. Mental Health Parity and Addiction Equity Act of 2008 (MHPAEA) and Chapter 284-43 WAC Subchapter K, Mental Health and Substance Use Disorder: Financial requirements applicable to mental health/substance use disorder (MHSUD) benefits cannot be more restrictive than those applicable to medical/surgical benefits.
A41: 2. Financial requirements: [WAC 284-43-7010] Financial requirements are cost sharing measures such as deductibles, copayments, coinsurance, and out-of-pocket maximums but do not include aggregate lifetime or annual dollar limits.
A42: 3. See WAC 284-43-7010 for descriptions of "Medical/surgical benefits," "Mental health benefits," and "Substance use disorder benefits."
A43: 4. Substantially all: [WAC 284-43-7010] A type of financial requirement or quantitative treatment limitation is considered to apply to substantially all medical/surgical benefits in a classification of benefits if it applies to at least two-thirds of all medical/surgical benefits in that classification as determined by WAC 284-43-7040(2)(a).
A44: 5. Predominant level: [WAC 284-43-7010] If a type of financial requirement or quantitative treatment limitation applies to substantially all medical/surgical benefits in a classification, the predominant level is the level that applies to more than one-half of the medical/surgical benefits in that classification subject to the financial requirement or quantitative treatment limitation.
A45: 6. Data used in the calculations: [WAC 284-43-7040(1)(c)] The determination of the portion of medical/surgical benefits in a classification of benefits subject to a financial requirement or quantitative treatment limitation (or subject to any level of a financial requirement or quantitative treatment limitation) is based on the dollar amount of all plan payments for medical/surgical benefits in the classification expected to be paid under the plan for the plan year. See WAC 284-43-7040(1)(c) (i) and (ii) for additional details.
A46: 7. Classification of Benefits [WAC 284-43-7020]:
A47: a) Inpatient, in-network:
A48: Benefits furnished on an inpatient basis and within a network of providers established or recognized under a plan or health insurance coverage.
A49: b) Inpatient, out-of-network:
A50: Benefits furnished on an inpatient basis and outside any network of providers established or recognized under a plan or health insurance coverage; also includes inpatient benefits under a plan (or health insurance coverage) that has no network of providers.
A51: c) Outpatient, in-network:
A52: Benefits furnished on an outpatient basis and within a network of providers established or recognized under a plan or health insurance coverage. Note: outpatient can optionally be subclassified into "Office Visits" and "All Other Outpatient Items and Services."
A53: d) Outpatient, out-of-network:
A54: Benefits furnished on an outpatient basis and outside any network of providers established or recognized under a plan or health insurance coverage; also includes outpatient benefits under a plan (or health insurance coverage) that has no network of providers. Note: outpatient can optionally be subclassified into "Office Visits" and "All Other Outpatient Items and Services."
A55: e) Emergency care:
A56: Benefits for treatment of an emergency condition related to a mental health or substance use disorder. Such benefits must comply with the requirements for emergency medical services in RCW 48.43.093. Medically necessary detoxification must be covered as an emergency medical condition according to RCW 48.43.093, and may be provided in hospitals licensed under chapter 70.41 RCW. Medically necessary detoxification services must not require prenotification.
A57: f) Prescription drugs:
A58: Benefits for prescription drugs.

Sheet Summary
A1: MHSUD Financial Requirement Parity Testing -- Summary
A3: Issuer and Filing Information
B5: Issuer Name: | C5: <<Enter Issuer Name>>
B6: HIOS Issuer ID: | C6: <<Enter HIOS Issuer ID #####>>
B7: Market: | C7: Select Market
B8: Plan Year: | C8: 2025
B9: State Filing Tracking Number: | C9: <<Enter State Tracking ######>>
A11: Worksheet Instructions
B13: Step 1) In your Excel application, ensure macros are enabled and calculations are set to automatic.
B14: Step 2) Enter Plans. ● List HIOS Plan IDs and Plan Names in the first two columns of the table below. Include silver base and CSR plan variants. ● When a plan has multiple in-network tiers, load information for each tier. Enter each in-network tier here in this file as a separate "plan" record with the plan ID formatted as "12345WA0010001_INN-T1." This will create a separate worksheet for each in-network tier and allows for parity to be analyzed for each tier. ● Confirm all HIOS Plan IDs are included in the table-object and then remove any extra rows in the table. ● For ease of review, we request that plans in this file be in the same order as they are in the Benefit Components' file.
B15: Step 3) Click the button below to start the macro that generates the testing worksheets.
C17: Note: The macro creates a testing template for each Plan ID listed in the table below. It also links the IDs in the table to its worksheet.
B19: Step 4) Populate each testing worksheet with the corresponding plan's information.
C21: This format is used for cells that need user input
B23: Step 5) Prior to submitting this file as part of the rate filing, remove the "Example" sheet from the workbook.
B24: Step 6) After completing all plan testing worksheets, save a copy of the workbook in Excel and PDF formats and include both as part of your rate filing submission.
A26: Testing Summary
B28: HIOS Plan ID | C28: Plan Name | D28: Test Results | E28: Notes
B29: 12345WA0010001_INN-T1 | C29: Plan 1 | D29: =IFERROR(INDIRECT("'"&tbl_Summary[[#This Row],[HIOS Plan ID]]&"'!TestResult"),"Enter Plan ID in column 1") -> Enter Plan ID in column 1
B30: <<Enter HIOS Plan ID>> | C30: <<Enter Plan Name>> | D30: =IFERROR(INDIRECT("'"&tbl_Summary[[#This Row],[HIOS Plan ID]]&"'!TestResult"),"Enter Plan ID in column 1") -> Enter Plan ID in column 1
B31: <<Enter HIOS Plan ID>> | C31: <<Enter Plan Name>> | D31: =IFERROR(INDIRECT("'"&tbl_Summary[[#This Row],[HIOS Plan ID]]&"'!TestResult"),"Enter Plan ID in column 1") -> Enter Plan ID in column 1

Sheet Data Information
A1: MHSUD Financial Requirement Parity Testing
A2: Testing Data Information
A4: Instructions: Provide information about the data used to test parity.
A5: Item # | B5: Task
A6: 1 | B6: Identify the data source used to estimate allowed claims for the purpose of MHSUD financial requirement parity testing. This refers to the allowed amounts by service entered in Part 1 of each plan's testing worksheet.
B7: <<Enter your response here; you may add rows as needed to address this item>>
A9: 2 | B9: Identify the period (i.e., date range) represented in the data.
B10: <<Enter your response here; you may add rows as needed to address this item>>
A12: 3 | B12: Address the credibility of the data used in your MHSUD financial requirement parity testing.
B13: <<Enter your response here; you may add rows as needed to address this item>>
A15: 4 | B15: Identify whether the data is consistent with the data in your URRT. If not, explain why it is not consistent and why it is appropriate.
B16: <<Enter your response here; you may add rows as needed to address this item>>
A18: 5 | B18: If data other than WA plan data was used, what is the source, and why is it appropriate for MHSUD financial requirement parity testing purposes?
B19: <<Enter your response here; you may add rows as needed to address this item>>
A21: 6 | B21: If testing data is not consistent with URRT data, summarize material adjustments made to the data.
B22: <<Enter your response here; you may add rows as needed to address this item>>

Sheet Mapping Information
A1: MHSUD Financial Requirement Parity Testing
A2: Mapping Medical/Surgical Services to Benefit Classifications
A4: Instructions
A5: Purpose: Show how medical/surgical services map to benefit classifications used in PART 1 of the testing worksheets.
A7: Service Description column: List all services used to test parity. If additional rows are needed, add rows to the table. Enter descriptions exactly as they are entered in PART 1 of the testing worksheets.
A8: Mapped Benefit Classification column: Select the parity testing benefit classification assigned to each medical/surgical service: Inpatient, Outpatient - Office Visits*, Outpatient - All Other*, Emergency Care, or Prescription Drugs. *Note 1: If ALL plans test parity with the combined Outpatient classification, you may enter "Outpatient" instead of "Outpatient - Office Visits" and "Outpatient - All Other". *Note 2: If ANY plan tests parity using Outpatient subclassifications, choose either "Outpatient - Office Visits" or "Outpatient - All Other" for each outpatient medical/surgical service.
A9: Notes column: Explain any differences by plan.
A11: Mapping Table
A12: Service Description | B12: Mapped Benefit Classification | C12: Notes
A13: <<Enter service description>> | B13: <<select testing classification>>
A14: <<Enter service description>> | B14: <<select testing classification>>
A15: <<Enter service description>> | B15: <<select testing classification>>
A16: <<Enter service description>> | B16: <<select testing classification>>
A17: <<Enter service description>> | B17: <<select testing classification>>
A18: <<Enter service description>> | B18: <<select testing classification>>
A19: <<Enter service description>> | B19: <<select testing classification>>
A20: <<Enter service description>> | B20: <<select testing classification>>
A21: <<Enter service description>> | B21: <<select testing classification>>
A22: <<Enter service description>> | B22: <<select testing classification>>

Sheet Template
A1: MHSUD Financial Requirement (a.k.a. Cost Share) Parity Testing | K1: Workbook Info | T1: =T32 -> Benefit Classification | U1: =U32 -> (3) Outpatient, In-Network (OP INN) | AC1: =AC32 -> Benefit Classification | AD1: =AD32 -> (3a) Outpatient - Office Visits, In-Network (OP-OV INN) | AL1: =AL32 -> Benefit Classification | AM1: =AM32 -> (3b) Outpatient - All Other, In-Network (OP-AO INN) | AU1: =AU32 -> Benefit Classification | AV1: =AV32 -> (4) Outpatient, Out-of-Network (OP OON) | BD1: =BD32 -> Benefit Classification | BE1: =BE32 -> (4a) Outpatient - Office Visits, Out-of-Network (OP-OV OON) | BM1: =BM32 -> Benefit Classification | BN1: =BN32 -> (4b) Outpatient - All Other, Out-of-Network (OP-AO OON) | BV1: =BV32 -> Benefit Classification | BW1: =BW32 -> (5) Emergency Care, (ER ) | CE1: =CE32 -> Benefit Classification | CF1: =CF32 -> (6) Prescription Drugs, (RX )
B3: Issuer / Market: | C3: =IF(LEFT(IssuerName,2)="<<","<<Go back to 'Summary' tab and enter Issuer Name>>",IssuerName) -> <<Go back to 'Summary' tab and enter Issuer Name>> | K3: Link back to Summary Sheet
B4: Market: | C4: =IF(Market="Select Market","<<Go back to 'Summary' tab and select the market for this filing>>",Market) -> <<Go back to 'Summary' tab and select the market for this filing>> | K4: User Inputs Cell Format
B5: State Filing Tracking Number: | C5: =IF(LEFT(StateTracker,2)="<<","<<Go back to 'Summary' tab and enter state filing tracking number>>",StateTracker) -> <<Go back to 'Summary' tab and enter state filing tracking number>> | K5: See the Example worksheet for additional details.
A7: PLAN INFORMATION
B9: Plan Name: | K9: <<<<This will auto populate from summary sheet macro
B10: Plan ID: | K10: <<<<This will auto populate from summary sheet macro
B11: CSR Variant Description: | K11: <<<<If the plan is a CSR variant, identify it here. Otherwise, leave the field blank.
A12: PARITY PASS/FAIL RESULTS, BY BENEFIT CLASSIFICATION
B14: Overall Result: | C14: =IF(AND(E19="Pass",E20="Pass",E25="Pass",E26="Pass"),"Pass","Fail") -> Fail
B16: Results By Benefit Classification | K16: Testing Options
B17: A. Benefit Classification | C17: B. Do the MHSUD cost shares match all Medical/Surgical cost shares in the Benefit Classification? | D17: C. Test Required? | E17: D. Test Results | F17: E. By Network Tier | K17: Option | L17: Selection
F18: E1. In-Network | G18: E2. Out-of-Network
B19: Inpatient | C19: Select Input | D19: =IF(C19="Yes","No","Yes") -> Yes | E19: =IF(D19="No","Pass",IF(AND(F19="Pass",G19="Pass"),"Pass","Fail")) -> Fail | F19: =E58 -> Fail | G19: =IF(L19="No","Pass",N58) -> Pass | K19: Out-of-Network Tier? | L19: Select Input
B20: Outpatient | C20: Select Input | D20: =IF(C20="Yes","No","Yes") -> Yes | E20: =IF($D20="No","Pass",IF(AND($L$20="Office Visits Separate",E23="Pass",E24="Pass"),"Pass",IF(AND($L$20="All Combined",E21="Pass"),"Pass","Fail"))) -> Fail | F20: =IF($D20="No","Pass",IF(AND($L$20="Office Visits Separate",F23="Pass",F24="Pass"),"Pass",IF(AND($L$20="All Combined",F21="Pass"),"Pass","Fail"))) -> Fail | G20: =IF(L19="No","Pass",IF($D20="No","Pass",IF(AND($L$20="Office Visits Separate",G23="Pass",G24="Pass"),"Pass",IF(AND($L$20="All Combined",G21="Pass"),"Pass","Fail")))) -> Fail | K20: Outpatient Benefit Testing | L20: Select Input
B21: Outpatient - All Services Combined | C21: No | D21: =IF(L20="All Combined",IF(C21="No","Yes","No"),"No") -> No | E21: =IF(D21="No","Pass",IF(AND(F21="Pass",G21="Pass"),"Pass","Fail")) -> Pass | F21: =IF(D21="Yes",W58,"Pass") -> Pass | G21: =IF(L19="No","Pass",IF(D21="Yes",AX58,"Pass")) -> Pass
B22: Outpatient - Office Visits Separate
B23: Outpatient - Office Visits | C23: Select an entry | D23: =IF(L20="Office Visits Separate",IF(C23="No","Yes","No"),"No") -> No | E23: =IF(D23="No","Pass",IF(AND(F23="Pass",G23="Pass"),"Pass","Fail")) -> Pass | F23: =IF(D23="Yes",AF58,"Pass") -> Pass | G23: =IF(L19="No","Pass",IF(D23="Yes",BG58,"Pass")) -> Pass
B24: Outpatient - All Other | C24: Select an entry | D24: =IF(L20="Office Visits Separate",IF(C24="No","Yes","No"),"No") -> No | E24: =IF(D24="No","Pass",IF(AND(F24="Pass",G24="Pass"),"Pass","Fail")) -> Pass | F24: =IF(D24="Yes",AO58,"Pass") -> Pass | G24: =IF(L19="No","Pass",IF(D24="Yes",BP58,"Pass")) -> Pass
B25: Emergency Care | C25: Select Input | D25: Yes | E25: =IF(D25="No","Pass",BY58) -> Fail
B26: Prescription Drugs | C26: Select Input | D26: Yes | E26: =IF(D26="No","Pass",CH58) -> Fail
A28: PART 1
A29: COST SHARES FOR MEDICAL/SURGICAL BENEFITS, BY BENEFIT CLASSIFICATION
B32: Benefit Classification | C32: ="(" &C37&") "&C35&", "&SUBSTITUTE(C36,"N/A","")&" ("&D37&")" -> (1) Inpatient, In-Network (IP INN) | K32: Benefit Classification | L32: ="(" &L37&") "&L35&", "&SUBSTITUTE(L36,"N/A","")&" ("&M37&")" -> (2) Inpatient, Out-of-Network (IP OON) | T32: Benefit Classification | U32: ="(" &U37&") "&U35&", "&SUBSTITUTE(U36,"N/A","")&" ("&V37&")" -> (3) Outpatient, In-Network (OP INN) | AC32: Benefit Classification | AD32: ="(" &AD37&") "&AD35&", "&SUBSTITUTE(AD36,"N/A","")&" ("&AE37&")" -> (3a) Outpatient - Office Visits, In-Network (OP-OV INN) | AL32: Benefit Classification | AM32: ="(" &AM37&") "&AM35&", "&SUBSTITUTE(AM36,"N/A","")&" ("&AN37&")" -> (3b) Outpatient - All Other, In-Network (OP-AO INN) | AU32: Benefit Classification | AV32: ="(" &AV37&") "&AV35&", "&SUBSTITUTE(AV36,"N/A","")&" ("&AW37&")" -> (4) Outpatient, Out-of-Network (OP OON) | BD32: Benefit Classification | BE32: ="(" &BE37&") "&BE35&", "&SUBSTITUTE(BE36,"N/A","")&" ("&BF37&")" -> (4a) Outpatient - Office Visits, Out-of-Network (OP-OV OON) | BM32: Benefit Classification | BN32: ="(" &BN37&") "&BN35&", "&SUBSTITUTE(BN36,"N/A","")&" ("&BO37&")" -> (4b) Outpatient - All Other, Out-of-Network (OP-AO OON) | BV32: Benefit Classification | BW32: ="(" &BW37&") "&BW35&", "&SUBSTITUTE(BW36,"N/A","")&" ("&BX37&")" -> (5) Emergency Care, (ER ) | CE32: Benefit Classification | CF32: ="(" &CF37&") "&CF35&", "&SUBSTITUTE(CF36,"N/A","")&" ("&CG37&")" -> (6) Prescription Drugs, (RX )
T33: Notes: | U33: Use this table if you are testing all outpatient services combined. | AC33: Notes: | AD33: Use this table if you are separately testing outpatient office visits and all other outpatient services. | AL33: Notes: | AM33: =AD33 -> Use this table if you are separately testing outpatient office visits and all other outpatient services. | AU33: Notes: | AV33: Use this table if you are testing all outpatient services combined. | BD33: Notes: | BE33: =AD33 -> Use this table if you are separately testing outpatient office visits and all other outpatient services. | BM33: Notes: | BN33: =BE33 -> Use this table if you are separately testing outpatient office visits and all other outpatient services.
B35: Classification | C35: Inpatient | D35: =VLOOKUP(C35,LookupTables!$F$4:$G$9,2,FALSE) -> IP | K35: Classification | L35: Inpatient | M35: =VLOOKUP(L35,LookupTables!$F$4:$G$9,2,FALSE) -> IP | T35: Classification | U35: Outpatient | V35: =VLOOKUP(U35,LookupTables!$F$4:$G$9,2,FALSE) -> OP | AC35: Classification | AD35: Outpatient - Office Visits | AE35: =VLOOKUP(AD35,LookupTables!$F$4:$G$9,2,FALSE) -> OP-OV | AL35: Classification | AM35: Outpatient - All Other | AN35: =VLOOKUP(AM35,LookupTables!$F$4:$G$9,2,FALSE) -> OP-AO | AU35: Classification | AV35: Outpatient | AW35: =VLOOKUP(AV35,LookupTables!$F$4:$G$9,2,FALSE) -> OP | BD35: Classification | BE35: Outpatient - Office Visits | BF35: =VLOOKUP(BE35,LookupTables!$F$4:$G$9,2,FALSE) -> OP-OV | BM35: Classification | BN35: Outpatient - All Other | BO35: =VLOOKUP(BN35,LookupTables!$F$4:$G$9,2,FALSE) -> OP-AO | BV35: Classification | BW35: Emergency Care | BX35: =VLOOKUP(BW35,LookupTables!$F$4:$G$9,2,FALSE) -> ER | CE35: Classification | CF35: Prescription Drugs | CG35: =VLOOKUP(CF35,LookupTables!$F$4:$G$9,2,FALSE) -> RX
B36: Network (In/Out) | C36: In-Network | D36: =VLOOKUP(C36,LookupTables!$C$4:$D$6,2,0) -> INN | K36: Network (In/Out) | L36: Out-of-Network | M36: =VLOOKUP(L36,LookupTables!$C$4:$D$6,2,0) -> OON | T36: Network (In/Out) | U36: In-Network | V36: =VLOOKUP(U36,LookupTables!$C$4:$D$6,2,0) -> INN | AC36: Network (In/Out) | AD36: In-Network | AE36: =VLOOKUP(AD36,LookupTables!$C$4:$D$6,2,0) -> INN | AL36: Network (In/Out) | AM36: In-Network | AN36: =VLOOKUP(AM36,LookupTables!$C$4:$D$6,2,0) -> INN | AU36: Network (In/Out) | AV36: Out-of-Network | AW36: =VLOOKUP(AV36,LookupTables!$C$4:$D$6,2,0) -> OON | BD36: Network (In/Out) | BE36: Out-of-Network | BF36: =VLOOKUP(BE36,LookupTables!$C$4:$D$6,2,0) -> OON | BM36: Network (In/Out) | BN36: Out-of-Network | BO36: =VLOOKUP(BN36,LookupTables!$C$4:$D$6,2,0) -> OON | BV36: Network (In/Out) | BW36: N/A | BX36: =VLOOKUP(BW36,LookupTables!$C$4:$D$6,2,0) ->  | CE36: Network (In/Out) | CF36: N/A | CG36: =VLOOKUP(CF36,LookupTables!$C$4:$D$6,2,0) -> 
B37: Classification Code | C37: 1 | D37: =D35&" "&D36 -> IP INN | K37: Classification Code | L37: 2 | M37: =M35&" "&M36 -> IP OON | T37: Classification Code | U37: 3 | V37: =V35&" "&V36 -> OP INN | AC37: Classification Code | AD37: 3a | AE37: =AE35&" "&AE36 -> OP-OV INN | AL37: Classification Code | AM37: 3b | AN37: =AN35&" "&AN36 -> OP-AO INN | AU37: Classification Code | AV37: 4 | AW37: =AW35&" "&AW36 -> OP OON | BD37: Classification Code | BE37: 4a | BF37: =BF35&" "&BF36 -> OP-OV OON | BM37: Classification Code | BN37: 4b | BO37: =BO35&" "&BO36 -> OP-AO OON | BV37: Classification Code | BW37: 5 | BX37: =BX35&" "&BX36 -> ER | CE37: Classification Code | CF37: 6 | CG37: =CG35&" "&CG36 -> RX
B38: Table Name | D38: =SUBSTITUTE(SUBSTITUTE("tbl_"&D37&"_P1"," ",""),"-","") -> tbl_IPINN_P1 | H38: Number of Rows | I38: 6 | K38: Table Name | M38: =SUBSTITUTE(SUBSTITUTE("tbl_"&M37&"_P1"," ",""),"-","") -> tbl_IPOON_P1 | Q38: Number of Rows | R38: 6 | T38: Table Name | V38: =SUBSTITUTE(SUBSTITUTE("tbl_"&V37&"_P1"," ",""),"-","") -> tbl_OPINN_P1 | Z38: Number of Rows | AA38: 6 | AC38: Table Name | AE38: =SUBSTITUTE(SUBSTITUTE("tbl_"&AE37&"_P1"," ",""),"-","") -> tbl_OPOVINN_P1 | AI38: Number of Rows | AJ38: 6 | AL38: Table Name | AN38: =SUBSTITUTE(SUBSTITUTE("tbl_"&AN37&"_P1"," ",""),"-","") -> tbl_OPAOINN_P1 | AR38: Number of Rows | AS38: 6 | AU38: Table Name | AW38: =SUBSTITUTE(SUBSTITUTE("tbl_"&AW37&"_P1"," ",""),"-","") -> tbl_OPOON_P1 | BA38: Number of Rows | BB38: 6 | BD38: Table Name | BF38: =SUBSTITUTE(SUBSTITUTE("tbl_"&BF37&"_P1"," ",""),"-","") -> tbl_OPOVOON_P1 | BJ38: Number of Rows | BK38: 6 | BM38: Table Name | BO38: =SUBSTITUTE(SUBSTITUTE("tbl_"&BO37&"_P1"," ",""),"-","") -> tbl_OPAOOON_P1 | BS38: Number of Rows | BT38: 6 | BV38: Table Name | BX38: =SUBSTITUTE(SUBSTITUTE("tbl_"&BX37&"_P1"," ",""),"-","") -> tbl_ER_P1 | CB38: Number of Rows | CC38: 6 | CE38: Table Name | CG38: =SUBSTITUTE(SUBSTITUTE("tbl_"&CG37&"_P1"," ",""),"-","") -> tbl_RX_P1 | CK38: Number of Rows | CL38: 6
E39: For each cost share, if it does not apply, enter "N/A". | N39: For each cost share, if it does not apply, enter "N/A". | W39: For each cost share, if it does not apply, enter "N/A". | AF39: For each cost share, if it does not apply, enter "N/A". | AO39: For each cost share, if it does not apply, enter "N/A". | AX39: For each cost share, if it does not apply, enter "N/A". | BG39: For each cost share, if it does not apply, enter "N/A". | BP39: For each cost share, if it does not apply, enter "N/A". | BY39: For each cost share, if it does not apply, enter "N/A". | CH39: For each cost share, if it does not apply, enter "N/A".
B40: Service Description | C40: Cost-Share Description | D40: Plan Projected Allowed Amount | E40: Deductible | F40: Copayment | G40: Coinsurance | H40: Out-of-Pocket Maximum (OOPM) | I40: No Cost-Share (If true, enter "x") | K40: Service Description | L40: Cost-Share Description | M40: Plan Projected Allowed Amount | N40: Deductible | O40: Copayment | P40: Coinsurance | Q40: Out-of-Pocket Maximum (OOPM) | R40: No Cost-Share (If true, enter "x") | T40: Service Description | U40: Cost-Share Description | V40: Plan Projected Allowed Amount | W40: Deductible | X40: Copayment | Y40: Coinsurance | Z40: Out-of-Pocket Maximum (OOPM) | AA40: No Cost-Share (If true, enter "x") | AC40: Service Description | AD40: Cost-Share Description | AE40: Plan Projected Allowed Amount | AF40: Deductible | AG40: Copayment | AH40: Coinsurance | AI40: Out-of-Pocket Maximum (OOPM) | AJ40: No Cost-Share (If true, enter "x") | AL40: Service Description | AM40: Cost-Share Description | AN40: Plan Projected Allowed Amount | AO40: Deductible | AP40: Copayment | AQ40: Coinsurance | AR40: Out-of-Pocket Maximum (OOPM) | AS40: No Cost-Share (If true, enter "x") | AU40: Service Description | AV40: Cost-Share Description | AW40: Plan Projected Allowed Amount | AX40: Deductible | AY40: Copayment | AZ40: Coinsurance | BA40: Out-of-Pocket Maximum (OOPM) | BB40: No Cost-Share (If true, enter "x") | BD40: Service Description | BE40: Cost-Share Description | BF40: Plan Projected Allowed Amount | BG40: Deductible | BH40: Copayment | BI40: Coinsurance | BJ40: Out-of-Pocket Maximum (OOPM) | BK40: No Cost-Share (If true, enter "x") | BM40: Service Description | BN40: Cost-Share Description | BO40: Plan Projected Allowed Amount | BP40: Deductible | BQ40: Copayment | BR40: Coinsurance | BS40: Out-of-Pocket Maximum (OOPM) | BT40: No Cost-Share (If true, enter "x") | BV40: Service Description | BW40: Cost-Share Description | BX40: Plan Projected Allowed Amount | BY40: Deductible | BZ40: Copayment | CA40: Coinsurance | CB40: Out-of-Pocket Maximum (OOPM) | CC40: No Cost-Share (If true, enter "x") | CE40: Service Description | CF40: Cost-Share Description | CG40: Plan Projected Allowed Amount | CH40: Deductible | CI40: Copayment | CJ40: Coinsurance | CK40: Out-of-Pocket Maximum (OOPM) | CL40: No Cost-Share (If true, enter "x")
B41: <<Enter description>> | C41: <<Enter description>> | K41: <<Enter description>> | L41: <<Enter description>> | T41: <<Enter description>> | U41: <<Enter description>> | AC41: <<Enter description>> | AD41: <<Enter description>> | AL41: <<Enter description>> | AM41: <<Enter description>> | AU41: <<Enter description>> | AV41: <<Enter description>> | BD41: <<Enter description>> | BE41: <<Enter description>> | BM41: <<Enter description>> | BN41: <<Enter description>> | BV41: <<Enter description>> | BW41: <<Enter description>> | CE41: <<Enter description>> | CF41: <<Enter description>>
B47: Total Row | D47: =SUBTOTAL(109,tbl_IPINN_P1[Plan Projected Allowed Amount]) -> 0 | K47: Total Row | M47: =SUBTOTAL(109,tbl_IPOON_P1[Plan Projected Allowed Amount]) -> 0 | T47: Total Row | V47: =SUBTOTAL(109,tbl_OPINN_P1[Plan Projected Allowed Amount]) -> 0 | AC47: Total Row | AE47: =SUBTOTAL(109,tbl_OPOVINN_P1[Plan Projected Allowed Amount]) -> 0 | AL47: Total Row | AN47: =SUBTOTAL(109,tbl_OPAOINN_P1[Plan Projected Allowed Amount]) -> 0 | AU47: Total Row | AW47: =SUBTOTAL(109,tbl_OPOON_P1[Plan Projected Allowed Amount]) -> 0 | BD47: Total Row | BF47: =SUBTOTAL(109,tbl_OPOVOON_P1[Plan Projected Allowed Amount]) -> 0 | BM47: Total Row | BO47: =SUBTOTAL(109,tbl_OPAOOON_P1[Plan Projected Allowed Amount]) -> 0 | BV47: Total Row | BX47: =SUBTOTAL(109,tbl_ER_P1[Plan Projected Allowed Amount]) -> 0 | CE47: Total Row | CG47: =SUBTOTAL(109,tbl_RX_P1[Plan Projected Allowed Amount]) -> 0
A49: PART 2
A50: ANALYSIS OF MHSUD FINANCIAL REQUIREMENT PARITY, BY BENEFIT CLASSIFICATION
B52: ="Financial Parity for "&C32 -> Financial Parity for (1) Inpatient, In-Network (IP INN) | K52: ="Financial Parity for "&L32 -> Financial Parity for (2) Inpatient, Out-of-Network (IP OON) | T52: ="Financial Parity for "&U32 -> Financial Parity for (3) Outpatient, In-Network (OP INN) | AC52: ="Financial Parity for "&AD32 -> Financial Parity for (3a) Outpatient - Office Visits, In-Network (OP-OV INN) | AL52: ="Financial Parity for "&AM32 -> Financial Parity for (3b) Outpatient - All Other, In-Network (OP-AO INN) | AU52: ="Financial Parity for "&AV32 -> Financial Parity for (4) Outpatient, Out-of-Network (OP OON) | BD52: ="Financial Parity for "&BE32 -> Financial Parity for (4a) Outpatient - Office Visits, Out-of-Network (OP-OV OON) | BM52: ="Financial Parity for "&BN32 -> Financial Parity for (4b) Outpatient - All Other, Out-of-Network (OP-AO OON) | BV52: ="Financial Parity for "&BW32 -> Financial Parity for (5) Emergency Care, (ER ) | CE52: ="Financial Parity for "&CF32 -> Financial Parity for (6) Prescription Drugs, (RX )
B53: Cost-Share Type | C53: MHSUD Cost Shares in Plan Design* | D53: Predominant Level for Medical/ Surgical | E53: MHSUD Financial Parity Result | G53: Enter Footnotes (as needed) about MHSUD Cost Shares in the Plan Design | K53: Cost-Share Type | L53: MHSUD Cost Shares in Plan Design* | M53: Predominant Level for Medical/ Surgical | N53: MHSUD Financial Parity Result | P53: Enter Footnotes (as needed) about MHSUD Cost Shares in the Plan Design | T53: Cost-Share Type | U53: MHSUD Cost Shares in Plan Design* | V53: Predominant Level for Medical/ Surgical | W53: MHSUD Financial Parity Result | Y53: Enter Footnotes (as needed) about MHSUD Cost Shares in the Plan Design | AC53: Cost-Share Type | AD53: MHSUD Cost Shares in Plan Design* | AE53: Predominant Level for Medical/ Surgical | AF53: MHSUD Financial Parity Result | AH53: Enter Footnotes (as needed) about MHSUD Cost Shares in the Plan Design | AL53: Cost-Share Type | AM53: MHSUD Cost Shares in Plan Design* | AN53: Predominant Level for Medical/ Surgical | AO53: MHSUD Financial Parity Result | AQ53: Enter Footnotes (as needed) about MHSUD Cost Shares in the Plan Design | AU53: Cost-Share Type | AV53: MHSUD Cost Shares in Plan Design* | AW53: Predominant Level for Medical/ Surgical | AX53: MHSUD Financial Parity Result | AZ53: Enter Footnotes (as needed) about MHSUD Cost Shares in the Plan Design | BD53: Cost-Share Type | BE53: MHSUD Cost Shares in Plan Design* | BF53: Predominant Level for Medical/ Surgical | BG53: MHSUD Financial Parity Result | BI53: Enter Footnotes (as needed) about MHSUD Cost Shares in the Plan Design | BM53: Cost-Share Type | BN53: MHSUD Cost Shares in Plan Design* | BO53: Predominant Level for Medical/ Surgical | BP53: MHSUD Financial Parity Result | BR53: Enter Footnotes (as needed) about MHSUD Cost Shares in the Plan Design | BV53: Cost-Share Type | BW53: MHSUD Cost Shares in Plan Design* | BX53: Predominant Level for Medical/ Surgical | BY53: MHSUD Financial Parity Result | CA53: Enter Footnotes (as needed) about MHSUD Cost Shares in the Plan Design | CE53: Cost-Share Type | CF53: MHSUD Cost Shares in Plan Design* | CG53: Predominant Level for Medical/ Surgical | CH53: MHSUD Financial Parity Result | CJ53: Enter Footnotes (as needed) about MHSUD Cost Shares in the Plan Design
B54: Deductible | D54: =IF(OR(E61="Fail",E61="N/A"),E61,MAX(tbl_IPINN_P2Ded[Predominant & Smaller])) -> Fail | E54: =IF(AND(OR(C54="",C54="N/A"),E61="N/A"),"N/A",IF(AND(OR(D54="N/A",D54="Fail"),OR(C54="N/A",C54="Not Applicable")),"Pass",IF(D54="Fail",D54,IF(C54="","Fail - Enter MHSUD cost share",IF(AND(D54<>"N/A",D54<>"Fail",OR(AND(C54<=D54,C54>=0),C54="N/A",C54="Not Applicable")),"Pass","Fail"))))) -> Fail | G54: xx | K54: Deductible | M54: =IF(OR(N61="Fail",N61="N/A"),N61,MAX(tbl_IPOON_P2Ded[Predominant & Smaller])) -> N/A | N54: =IF(AND(OR(L54="",L54="N/A"),N61="N/A"),"N/A",IF(AND(OR(M54="N/A",M54="Fail"),OR(L54="N/A",L54="Not Applicable")),"Pass",IF(M54="Fail",M54,IF(L54="","Fail - Enter MHSUD cost share",IF(AND(M54<>"N/A",M54<>"Fail",OR(AND(L54<=M54,L54>=0),L54="N/A",L54="Not Applicable")),"Pass","Fail"))))) -> N/A | P54: xx | T54: Deductible | V54: =IF(OR(W61="Fail",W61="N/A"),W61,MAX(tbl_OPINN_P2Ded[Predominant & Smaller])) -> N/A | W54: =IF(AND(OR(U54="",U54="N/A"),W61="N/A"),"N/A",IF(AND(OR(V54="N/A",V54="Fail"),OR(U54="N/A",U54="Not Applicable")),"Pass",IF(V54="Fail",V54,IF(U54="","Fail - Enter MHSUD cost share",IF(AND(V54<>"N/A",V54<>"Fail",OR(AND(U54<=V54,U54>=0),U54="N/A",U54="Not Applicable")),"Pass","Fail"))))) -> N/A | Y54: xx | AC54: Deductible | AE54: =IF(OR(AF61="Fail",AF61="N/A"),AF61,MAX(tbl_OPOVINN_P2Ded[Predominant & Smaller])) -> N/A | AF54: =IF(AND(OR(AD54="",AD54="N/A"),AF61="N/A"),"N/A",IF(AND(OR(AE54="N/A",AE54="Fail"),OR(AD54="N/A",AD54="Not Applicable")),"Pass",IF(AE54="Fail",AE54,IF(AD54="","Fail - Enter MHSUD cost share",IF(AND(AE54<>"N/A",AE54<>"Fail",OR(AND(AD54<=AE54,AD54>=0),AD54="N/A",AD54="Not Applicable")),"Pass","Fail"))))) -> N/A | AH54: xx | AL54: Deductible | AN54: =IF(OR(AO61="Fail",AO61="N/A"),AO61,MAX(tbl_OPAOINN_P2Ded[Predominant & Smaller])) -> N/A | AO54: =IF(AND(OR(AM54="",AM54="N/A"),AO61="N/A"),"N/A",IF(AND(OR(AN54="N/A",AN54="Fail"),OR(AM54="N/A",AM54="Not Applicable")),"Pass",IF(AN54="Fail",AN54,IF(AM54="","Fail - Enter MHSUD cost share",IF(AND(AN54<>"N/A",AN54<>"Fail",OR(AND(AM54<=AN54,AM54>=0),AM54="N/A",AM54="Not Applicable")),"Pass","Fail"))))) -> N/A | AQ54: xx | AU54: Deductible | AW54: =IF(OR(AX61="Fail",AX61="N/A"),AX61,MAX(tbl_OPOON_P2Ded[Predominant & Smaller])) -> N/A | AX54: =IF(AND(OR(AV54="",AV54="N/A"),AX61="N/A"),"N/A",IF(AND(OR(AW54="N/A",AW54="Fail"),OR(AV54="N/A",AV54="Not Applicable")),"Pass",IF(AW54="Fail",AW54,IF(AV54="","Fail - Enter MHSUD cost share",IF(AND(AW54<>"N/A",AW54<>"Fail",OR(AND(AV54<=AW54,AV54>=0),AV54="N/A",AV54="Not Applicable")),"Pass","Fail"))))) -> N/A | AZ54: xx | BD54: Deductible | BF54: =IF(OR(BG61="Fail",BG61="N/A"),BG61,MAX(tbl_OPOVOON_P2Ded[Predominant & Smaller])) -> N/A | BG54: =IF(AND(OR(BE54="",BE54="N/A"),BG61="N/A"),"N/A",IF(AND(OR(BF54="N/A",BF54="Fail"),OR(BE54="N/A",BE54="Not Applicable")),"Pass",IF(BF54="Fail",BF54,IF(BE54="","Fail - Enter MHSUD cost share",IF(AND(BF54<>"N/A",BF54<>"Fail",OR(AND(BE54<=BF54,BE54>=0),BE54="N/A",BE54="Not Applicable")),"Pass","Fail"))))) -> N/A | BI54: xx | BM54: Deductible | BO54: =IF(OR(BP61="Fail",BP61="N/A"),BP61,MAX(tbl_OPAOOON_P2Ded[Predominant & Smaller])) -> N/A | BP54: =IF(AND(OR(BN54="",BN54="N/A"),BP61="N/A"),"N/A",IF(AND(OR(BO54="N/A",BO54="Fail"),OR(BN54="N/A",BN54="Not Applicable")),"Pass",IF(BO54="Fail",BO54,IF(BN54="","Fail - Enter MHSUD cost share",IF(AND(BO54<>"N/A",BO54<>"Fail",OR(AND(BN54<=BO54,BN54>=0),BN54="N/A",BN54="Not Applicable")),"Pass","Fail"))))) -> N/A | BR54: xx | BV54: Deductible | BX54: =IF(OR(BY61="Fail",BY61="N/A"),BY61,MAX(tbl_ER_P2Ded[Predominant & Smaller])) -> Fail | BY54: =IF(AND(OR(BW54="",BW54="N/A"),BY61="N/A"),"N/A",IF(AND(OR(BX54="N/A",BX54="Fail"),OR(BW54="N/A",BW54="Not Applicable")),"Pass",IF(BX54="Fail",BX54,IF(BW54="","Fail - Enter MHSUD cost share",IF(AND(BX54<>"N/A",BX54<>"Fail",OR(AND(BW54<=BX54,BW54>=0),BW54="N/A",BW54="Not Applicable")),"Pass","Fail"))))) -> Fail | CA54: xx | CE54: Deductible | CG54: =IF(OR(CH61="Fail",CH61="N/A"),CH61,MAX(tbl_RX_P2Ded[Predominant & Smaller])) -> Fail | CH54: =IF(AND(OR(CF54="",CF54="N/A"),CH61="N/A"),"N/A",IF(AND(OR(CG54="N/A",CG54="Fail"),OR(CF54="N/A",CF54="Not Applicable")),"Pass",IF(CG54="Fail",CG54,IF(CF54="","Fail - Enter MHSUD cost share",IF(AND(CG54<>"N/A",CG54<>"Fail",OR(AND(CF54<=CG54,CF54>=0),CF54="N/A",CF54="Not Applicable")),"Pass","Fail"))))) -> Fail | CJ54: xx
B55: Copayment | D55: =IF(OR(E62="Fail",E62="N/A"),E62,MAX(tbl_IPINN_P2Cop[Predominant & Smaller])) -> Fail | E55: =IF(AND(OR(C55="",C55="N/A"),E62="N/A"),"N/A",IF(AND(OR(D55="N/A",D55="Fail"),OR(C55="N/A",C55="Not Applicable")),"Pass",IF(D55="Fail",D55,IF(C55="","Fail - Enter MHSUD cost share",IF(AND(D55<>"N/A",D55<>"Fail",OR(AND(C55<=D55,C55>=0),C55="N/A",C55="Not Applicable")),"Pass","Fail"))))) -> Fail | K55: Copayment | M55: =IF(OR(N62="Fail",N62="N/A"),N62,MAX(tbl_IPOON_P2Cop[Predominant & Smaller])) -> N/A | N55: =IF(AND(OR(L55="",L55="N/A"),N62="N/A"),"N/A",IF(AND(OR(M55="N/A",M55="Fail"),OR(L55="N/A",L55="Not Applicable")),"Pass",IF(M55="Fail",M55,IF(L55="","Fail - Enter MHSUD cost share",IF(AND(M55<>"N/A",M55<>"Fail",OR(AND(L55<=M55,L55>=0),L55="N/A",L55="Not Applicable")),"Pass","Fail"))))) -> N/A | T55: Copayment | V55: =IF(OR(W62="Fail",W62="N/A"),W62,MAX(tbl_OPINN_P2Cop[Predominant & Smaller])) -> N/A | W55: =IF(AND(OR(U55="",U55="N/A"),W62="N/A"),"N/A",IF(AND(OR(V55="N/A",V55="Fail"),OR(U55="N/A",U55="Not Applicable")),"Pass",IF(V55="Fail",V55,IF(U55="","Fail - Enter MHSUD cost share",IF(AND(V55<>"N/A",V55<>"Fail",OR(AND(U55<=V55,U55>=0),U55="N/A",U55="Not Applicable")),"Pass","Fail"))))) -> N/A | AC55: Copayment | AE55: =IF(OR(AF62="Fail",AF62="N/A"),AF62,MAX(tbl_OPOVINN_P2Cop[Predominant & Smaller])) -> N/A | AF55: =IF(AND(OR(AD55="",AD55="N/A"),AF62="N/A"),"N/A",IF(AND(OR(AE55="N/A",AE55="Fail"),OR(AD55="N/A",AD55="Not Applicable")),"Pass",IF(AE55="Fail",AE55,IF(AD55="","Fail - Enter MHSUD cost share",IF(AND(AE55<>"N/A",AE55<>"Fail",OR(AND(AD55<=AE55,AD55>=0),AD55="N/A",AD55="Not Applicable")),"Pass","Fail"))))) -> N/A | AL55: Copayment | AN55: =IF(OR(AO62="Fail",AO62="N/A"),AO62,MAX(tbl_OPAOINN_P2Cop[Predominant & Smaller])) -> N/A | AO55: =IF(AND(OR(AM55="",AM55="N/A"),AO62="N/A"),"N/A",IF(AND(OR(AN55="N/A",AN55="Fail"),OR(AM55="N/A",AM55="Not Applicable")),"Pass",IF(AN55="Fail",AN55,IF(AM55="","Fail - Enter MHSUD cost share",IF(AND(AN55<>"N/A",AN55<>"Fail",OR(AND(AM55<=AN55,AM55>=0),AM55="N/A",AM55="Not Applicable")),"Pass","Fail"))))) -> N/A | AU55: Copayment | AW55: =IF(OR(AX62="Fail",AX62="N/A"),AX62,MAX(tbl_OPOON_P2Cop[Predominant & Smaller])) -> N/A | AX55: =IF(AND(OR(AV55="",AV55="N/A"),AX62="N/A"),"N/A",IF(AND(OR(AW55="N/A",AW55="Fail"),OR(AV55="N/A",AV55="Not Applicable")),"Pass",IF(AW55="Fail",AW55,IF(AV55="","Fail - Enter MHSUD cost share",IF(AND(AW55<>"N/A",AW55<>"Fail",OR(AND(AV55<=AW55,AV55>=0),AV55="N/A",AV55="Not Applicable")),"Pass","Fail"))))) -> N/A | BD55: Copayment | BF55: =IF(OR(BG62="Fail",BG62="N/A"),BG62,MAX(tbl_OPOVOON_P2Cop[Predominant & Smaller])) -> N/A | BG55: =IF(AND(OR(BE55="",BE55="N/A"),BG62="N/A"),"N/A",IF(AND(OR(BF55="N/A",BF55="Fail"),OR(BE55="N/A",BE55="Not Applicable")),"Pass",IF(BF55="Fail",BF55,IF(BE55="","Fail - Enter MHSUD cost share",IF(AND(BF55<>"N/A",BF55<>"Fail",OR(AND(BE55<=BF55,BE55>=0),BE55="N/A",BE55="Not Applicable")),"Pass","Fail"))))) -> N/A | BM55: Copayment | BO55: =IF(OR(BP62="Fail",BP62="N/A"),BP62,MAX(tbl_OPAOOON_P2Cop[Predominant & Smaller])) -> N/A | BP55: =IF(AND(OR(BN55="",BN55="N/A"),BP62="N/A"),"N/A",IF(AND(OR(BO55="N/A",BO55="Fail"),OR(BN55="N/A",BN55="Not Applicable")),"Pass",IF(BO55="Fail",BO55,IF(BN55="","Fail - Enter MHSUD cost share",IF(AND(BO55<>"N/A",BO55<>"Fail",OR(AND(BN55<=BO55,BN55>=0),BN55="N/A",BN55="Not Applicable")),"Pass","Fail"))))) -> N/A | BV55: Copayment | BX55: =IF(OR(BY62="Fail",BY62="N/A"),BY62,MAX(tbl_ER_P2Cop[Predominant & Smaller])) -> Fail | BY55: =IF(AND(OR(BW55="",BW55="N/A"),BY62="N/A"),"N/A",IF(AND(OR(BX55="N/A",BX55="Fail"),OR(BW55="N/A",BW55="Not Applicable")),"Pass",IF(BX55="Fail",BX55,IF(BW55="","Fail - Enter MHSUD cost share",IF(AND(BX55<>"N/A",BX55<>"Fail",OR(AND(BW55<=BX55,BW55>=0),BW55="N/A",BW55="Not Applicable")),"Pass","Fail"))))) -> Fail | CE55: Copayment | CG55: =IF(OR(CH62="Fail",CH62="N/A"),CH62,MAX(tbl_RX_P2Cop[Predominant & Smaller])) -> Fail | CH55: =IF(AND(OR(CF55="",CF55="N/A"),CH62="N/A"),"N/A",IF(AND(OR(CG55="N/A",CG55="Fail"),OR(CF55="N/A",CF55="Not Applicable")),"Pass",IF(CG55="Fail",CG55,IF(CF55="","Fail - Enter MHSUD cost share",IF(AND(CG55<>"N/A",CG55<>"Fail",OR(AND(CF55<=CG55,CF55>=0),CF55="N/A",CF55="Not Applicable")),"Pass","Fail"))))) -> Fail
B56: Coinsurance | D56: =IF(OR(E63="Fail",E63="N/A"),E63,MAX(tbl_IPINN_P2Coi[Predominant & Smaller])) -> Fail | E56: Fail | K56: Coinsurance | M56: =IF(OR(N63="Fail",N63="N/A"),N63,MAX(tbl_IPOON_P2Coi[Predominant & Smaller])) -> N/A | N56: N/A | T56: Coinsurance | V56: =IF(OR(W63="Fail",W63="N/A"),W63,MAX(tbl_OPINN_P2Coi[Predominant & Smaller])) -> N/A | W56: N/A | AC56: Coinsurance | AE56: =IF(OR(AF63="Fail",AF63="N/A"),AF63,MAX(tbl_OPOVINN_P2Coi[Predominant & Smaller])) -> N/A | AF56: N/A | AL56: Coinsurance | AN56: =IF(OR(AO63="Fail",AO63="N/A"),AO63,MAX(tbl_OPAOINN_P2Coi[Predominant & Smaller])) -> N/A | AO56: N/A | AU56: Coinsurance | AW56: =IF(OR(AX63="Fail",AX63="N/A"),AX63,MAX(tbl_OPOON_P2Coi[Predominant & Smaller])) -> N/A | AX56: N/A | BD56: Coinsurance | BF56: =IF(OR(BG63="Fail",BG63="N/A"),BG63,MAX(tbl_OPOVOON_P2Coi[Predominant & Smaller])) -> N/A | BG56: N/A | BM56: Coinsurance | BO56: =IF(OR(BP63="Fail",BP63="N/A"),BP63,MAX(tbl_OPAOOON_P2Coi[Predominant & Smaller])) -> N/A | BP56: N/A | BV56: Coinsurance | BX56: =IF(OR(BY63="Fail",BY63="N/A"),BY63,MAX(tbl_ER_P2Coi[Predominant & Smaller])) -> Fail | BY56: Fail | CE56: Coinsurance | CG56: =IF(OR(CH63="Fail",CH63="N/A"),CH63,MAX(tbl_RX_P2Coi[Predominant & Smaller])) -> Fail | CH56: Fail
B57: OOPM | D57: =IF(OR(E64="Fail",E64="N/A"),E64,MAX(tbl_IPINN_P2OOPM[Predominant & Smaller])) -> Fail | E57: Fail | K57: OOPM | M57: =IF(OR(N64="Fail",N64="N/A"),N64,MAX(tbl_IPOON_P2OOPM[Predominant & Smaller])) -> N/A | N57: N/A | T57: OOPM | V57: =IF(OR(W64="Fail",W64="N/A"),W64,MAX(tbl_OPINN_P2OOPM[Predominant & Smaller])) -> N/A | W57: N/A | AC57: OOPM | AE57: =IF(OR(AF64="Fail",AF64="N/A"),AF64,MAX(tbl_OPOVINN_P2OOPM[Predominant & Smaller])) -> N/A | AF57: N/A | AL57: OOPM | AN57: =IF(OR(AO64="Fail",AO64="N/A"),AO64,MAX(tbl_OPAOINN_P2OOPM[Predominant & Smaller])) -> N/A | AO57: N/A | AU57: OOPM | AW57: =IF(OR(AX64="Fail",AX64="N/A"),AX64,MAX(tbl_OPOON_P2OOPM[Predominant & Smaller])) -> N/A | AX57: N/A | BD57: OOPM | BF57: =IF(OR(BG64="Fail",BG64="N/A"),BG64,MAX(tbl_OPOVOON_P2OOPM[Predominant & Smaller])) -> N/A | BG57: N/A | BM57: OOPM | BO57: =IF(OR(BP64="Fail",BP64="N/A"),BP64,MAX(tbl_OPAOOON_P2OOPM[Predominant & Smaller])) -> N/A | BP57: N/A | BV57: OOPM | BX57: =IF(OR(BY64="Fail",BY64="N/A"),BY64,MAX(tbl_ER_P2OOPM[Predominant & Smaller])) -> Fail | BY57: Fail | CE57: OOPM | CG57: =IF(OR(CH64="Fail",CH64="N/A"),CH64,MAX(tbl_RX_P2OOPM[Predominant & Smaller])) -> Fail | CH57: Fail
B58: Overall | E58: =IF((COUNTIF(E54:E57,"Pass")+COUNTIF(E54:E57,"N/A"))=4,"Pass","Fail") -> Fail | K58: Overall | N58: =IF((COUNTIF(N54:N57,"Pass")+COUNTIF(N54:N57,"N/A"))=4,"Pass","Fail") -> Pass | T58: Overall | W58: =IF((COUNTIF(W54:W57,"Pass")+COUNTIF(W54:W57,"N/A"))=4,"Pass","Fail") -> Pass | AC58: Overall | AF58: =IF((COUNTIF(AF54:AF57,"Pass")+COUNTIF(AF54:AF57,"N/A"))=4,"Pass","Fail") -> Pass | AL58: Overall | AO58: =IF((COUNTIF(AO54:AO57,"Pass")+COUNTIF(AO54:AO57,"N/A"))=4,"Pass","Fail") -> Pass | AU58: Overall | AX58: =IF((COUNTIF(AX54:AX57,"Pass")+COUNTIF(AX54:AX57,"N/A"))=4,"Pass","Fail") -> Pass | BD58: Overall | BG58: =IF((COUNTIF(BG54:BG57,"Pass")+COUNTIF(BG54:BG57,"N/A"))=4,"Pass","Fail") -> Pass | BM58: Overall | BP58: =IF((COUNTIF(BP54:BP57,"Pass")+COUNTIF(BP54:BP57,"N/A"))=4,"Pass","Fail") -> Pass | BV58: Overall | BY58: =IF((COUNTIF(BY54:BY57,"Pass")+COUNTIF(BY54:BY57,"N/A"))=4,"Pass","Fail") -> Fail | CE58: Overall | CH58: =IF((COUNTIF(CH54:CH57,"Pass")+COUNTIF(CH54:CH57,"N/A"))=4,"Pass","Fail") -> Fail
C59: *If not applicable, enter "N/A" | L59: *If not applicable, enter "N/A" | U59: *If not applicable, enter "N/A" | AD59: *If not applicable, enter "N/A" | AM59: *If not applicable, enter "N/A" | AV59: *If not applicable, enter "N/A" | BE59: *If not applicable, enter "N/A" | BN59: *If not applicable, enter "N/A" | BW59: *If not applicable, enter "N/A" | CF59: *If not applicable, enter "N/A"
B60: Step 1 Substantially All (i.e., ≥ ⅔ of medical/surgical benefits) | K60: Step 1 Substantially All (i.e., ≥ ⅔ of medical/surgical benefits) | T60: Step 1 Substantially All (i.e., ≥ ⅔ of medical/surgical benefits) | AC60: Step 1 Substantially All (i.e., ≥ ⅔ of medical/surgical benefits) | AL60: Step 1 Substantially All (i.e., ≥ ⅔ of medical/surgical benefits) | AU60: Step 1 Substantially All (i.e., ≥ ⅔ of medical/surgical benefits) | BD60: Step 1 Substantially All (i.e., ≥ ⅔ of medical/surgical benefits) | BM60: Step 1 Substantially All (i.e., ≥ ⅔ of medical/surgical benefits) | BV60: Step 1 Substantially All (i.e., ≥ ⅔ of medical/surgical benefits) | CE60: Step 1 Substantially All (i.e., ≥ ⅔ of medical/surgical benefits)
B61: Deductible | C61: =SUMIF(tbl_IPINN_P1[Deductible],">0",tbl_IPINN_P1[Plan Projected Allowed Amount]) -> 0 | D61: =IFERROR(C61/C$65,"") ->  | E61: =IF($D$19="Yes",IF(C61=0,"Fail",IF(D61>=(2/3),D$37&" "&B61,"Fail")),"N/A") -> Fail | K61: Deductible | L61: =SUMIF(tbl_IPOON_P1[Deductible],">0",tbl_IPOON_P1[Plan Projected Allowed Amount]) -> 0 | M61: =IFERROR(L61/L$65,"") ->  | N61: =IF(AND($D$19="Yes",$L$19="Yes"),IF(L61=0,"Fail",IF(M61>=(2/3),M$37&" "&K61,"Fail")),"N/A") -> N/A | T61: Deductible | U61: =SUMIF(tbl_OPINN_P1[Deductible],">0",tbl_OPINN_P1[Plan Projected Allowed Amount]) -> 0 | V61: =IFERROR(U61/U$65,"") ->  | W61: =IF(AND(OR($D$20="Yes",$D$21="Yes"),$L$20="All Combined"),IF(U61=0,"Fail",IF(V61>=(2/3),V$37&" "&T61,"Fail")),"N/A") -> N/A | AC61: Deductible | AD61: =SUMIF(tbl_OPOVINN_P1[Deductible],">0",tbl_OPOVINN_P1[Plan Projected Allowed Amount]) -> 0 | AE61: =IFERROR(AD61/AD$65,"") ->  | AF61: =IF(AND(OR($D$20="Yes",$D$23="Yes"),$L$20="Office Visits Separate"),IF(AD61=0,"Fail",IF(AE61>=(2/3),AE$37&" "&AC61,"Fail")),"N/A") -> N/A | AL61: Deductible | AM61: =SUMIF(tbl_OPAOINN_P1[Deductible],">0",tbl_OPAOINN_P1[Plan Projected Allowed Amount]) -> 0 | AN61: =IFERROR(AM61/AM$65,"") ->  | AO61: =IF(AND(OR($D$20="Yes",$D$24="Yes"),$L$20="Office Visits Separate"),IF(AM61=0,"Fail",IF(AN61>=(2/3),AN$37&" "&AL61,"Fail")),"N/A") -> N/A | AU61: Deductible | AV61: =SUMIF(tbl_OPOON_P1[Deductible],">0",tbl_OPOON_P1[Plan Projected Allowed Amount]) -> 0 | AW61: =IFERROR(AV61/AV$65,"") ->  | AX61: =IF(AND(OR($D$20="Yes",$D$21="Yes"),$L$20="All Combined",$L$19="Yes"),IF(AV61=0,"Fail",IF(AW61>=(2/3),AW$37&" "&AU61,"Fail")),"N/A") -> N/A | BD61: Deductible | BE61: =SUMIF(tbl_OPOVOON_P1[Deductible],">0",tbl_OPOVOON_P1[Plan Projected Allowed Amount]) -> 0 | BF61: =IFERROR(BE61/BE$65,"") ->  | BG61: =IF(AND(OR($D$20="Yes",$D$23="Yes"),$L$20="Office Visits Separate",$L$19="Yes"),IF(BE61=0,"Fail",IF(BF61>=(2/3),BF$37&" "&BD61,"Fail")),"N/A") -> N/A | BM61: Deductible | BN61: =SUMIF(tbl_OPAOOON_P1[Deductible],">0",tbl_OPAOOON_P1[Plan Projected Allowed Amount]) -> 0 | BO61: =IFERROR(BN61/BN$65,"") ->  | BP61: =IF(AND(OR($D$20="Yes",$D$24="Yes"),$L$20="Office Visits Separate",$L$19="Yes"),IF(BN61=0,"Fail",IF(BO61>=(2/3),BO$37&" "&BM61,"Fail")),"N/A") -> N/A | BV61: Deductible | BW61: =SUMIF(tbl_ER_P1[Deductible],">0",tbl_ER_P1[Plan Projected Allowed Amount]) -> 0 | BX61: =IFERROR(BW61/BW$65,"") ->  | BY61: =IF($D$25="Yes",IF(BW61=0,"Fail",IF(BX61>=(2/3),BX$37&" "&BV61,"Fail")),"N/A") -> Fail | CE61: Deductible | CF61: =SUMIF(tbl_RX_P1[Deductible],">0",tbl_RX_P1[Plan Projected Allowed Amount]) -> 0 | CG61: =IFERROR(CF61/CF$65,"") ->  | CH61: =IF($D$26="Yes",IF(CF61=0,"Fail",IF(CG61>=(2/3),CG$37&" "&CE61,"Fail")),"N/A") -> Fail
B62: Copayment | C62: =SUMIF(tbl_IPINN_P1[Copayment],">0",tbl_IPINN_P1[Plan Projected Allowed Amount]) -> 0 | D62: =IFERROR(C62/C$65,"") ->  | E62: =IF($D$19="Yes",IF(C62=0,"Fail",IF(D62>=(2/3),D$37&" "&B62,"Fail")),"N/A") -> Fail | K62: Copayment | L62: =SUMIF(tbl_IPOON_P1[Copayment],">0",tbl_IPOON_P1[Plan Projected Allowed Amount]) -> 0 | M62: =IFERROR(L62/L$65,"") ->  | N62: =IF(AND($D$19="Yes",$L$19="Yes"),IF(L62=0,"Fail",IF(M62>=(2/3),M$37&" "&K62,"Fail")),"N/A") -> N/A | T62: Copayment | U62: =SUMIF(tbl_OPINN_P1[Copayment],">0",tbl_OPINN_P1[Plan Projected Allowed Amount]) -> 0 | V62: =IFERROR(U62/U$65,"") ->  | W62: =IF(AND(OR($D$20="Yes",$D$21="Yes"),$L$20="All Combined"),IF(U62=0,"Fail",IF(V62>=(2/3),V$37&" "&T62,"Fail")),"N/A") -> N/A | AC62: Copayment | AD62: =SUMIF(tbl_OPOVINN_P1[Copayment],">0",tbl_OPOVINN_P1[Plan Projected Allowed Amount]) -> 0 | AE62: =IFERROR(AD62/AD$65,"") ->  | AF62: =IF(AND(OR($D$20="Yes",$D$23="Yes"),$L$20="Office Visits Separate"),IF(AD62=0,"Fail",IF(AE62>=(2/3),AE$37&" "&AC62,"Fail")),"N/A") -> N/A | AL62: Copayment | AM62: =SUMIF(tbl_OPAOINN_P1[Copayment],">0",tbl_OPAOINN_P1[Plan Projected Allowed Amount]) -> 0 | AN62: =IFERROR(AM62/AM$65,"") ->  | AO62: =IF(AND(OR($D$20="Yes",$D$24="Yes"),$L$20="Office Visits Separate"),IF(AM62=0,"Fail",IF(AN62>=(2/3),AN$37&" "&AL62,"Fail")),"N/A") -> N/A | AU62: Copayment | AV62: =SUMIF(tbl_OPOON_P1[Copayment],">0",tbl_OPOON_P1[Plan Projected Allowed Amount]) -> 0 | AW62: =IFERROR(AV62/AV$65,"") ->  | AX62: =IF(AND(OR($D$20="Yes",$D$21="Yes"),$L$20="All Combined",$L$19="Yes"),IF(AV62=0,"Fail",IF(AW62>=(2/3),AW$37&" "&AU62,"Fail")),"N/A") -> N/A | BD62: Copayment | BE62: =SUMIF(tbl_OPOVOON_P1[Copayment],">0",tbl_OPOVOON_P1[Plan Projected Allowed Amount]) -> 0 | BF62: =IFERROR(BE62/BE$65,"") ->  | BG62: =IF(AND(OR($D$20="Yes",$D$23="Yes"),$L$20="Office Visits Separate",$L$19="Yes"),IF(BE62=0,"Fail",IF(BF62>=(2/3),BF$37&" "&BD62,"Fail")),"N/A") -> N/A | BM62: Copayment | BN62: =SUMIF(tbl_OPAOOON_P1[Copayment],">0",tbl_OPAOOON_P1[Plan Projected Allowed Amount]) -> 0 | BO62: =IFERROR(BN62/BN$65,"") ->  | BP62: =IF(AND(OR($D$20="Yes",$D$24="Yes"),$L$20="Office Visits Separate",$L$19="Yes"),IF(BN62=0,"Fail",IF(BO62>=(2/3),BO$37&" "&BM62,"Fail")),"N/A") -> N/A | BV62: Copayment | BW62: =SUMIF(tbl_ER_P1[Copayment],">0",tbl_ER_P1[Plan Projected Allowed Amount]) -> 0 | BX62: =IFERROR(BW62/BW$65,"") ->  | BY62: =IF($D$25="Yes",IF(BW62=0,"Fail",IF(BX62>=(2/3),BX$37&" "&BV62,"Fail")),"N/A") -> Fail | CE62: Copayment | CF62: =SUMIF(tbl_RX_P1[Copayment],">0",tbl_RX_P1[Plan Projected Allowed Amount]) -> 0 | CG62: =IFERROR(CF62/CF$65,"") ->  | CH62: =IF($D$26="Yes",IF(CF62=0,"Fail",IF(CG62>=(2/3),CG$37&" "&CE62,"Fail")),"N/A") -> Fail
B63: Coinsurance | C63: =SUMIF(tbl_IPINN_P1[Coinsurance],">0",tbl_IPINN_P1[Plan Projected Allowed Amount]) -> 0 | D63: =IFERROR(C63/C$65,"") ->  | E63: =IF($D$19="Yes",IF(C63=0,"Fail",IF(D63>=(2/3),D$37&" "&B63,"Fail")),"N/A") -> Fail | K63: Coinsurance | L63: =SUMIF(tbl_IPOON_P1[Coinsurance],">0",tbl_IPOON_P1[Plan Projected Allowed Amount]) -> 0 | M63: =IFERROR(L63/L$65,"") ->  | N63: =IF(AND($D$19="Yes",$L$19="Yes"),IF(L63=0,"Fail",IF(M63>=(2/3),M$37&" "&K63,"Fail")),"N/A") -> N/A | T63: Coinsurance | U63: =SUMIF(tbl_OPINN_P1[Coinsurance],">0",tbl_OPINN_P1[Plan Projected Allowed Amount]) -> 0 | V63: =IFERROR(U63/U$65,"") ->  | W63: =IF(AND(OR($D$20="Yes",$D$21="Yes"),$L$20="All Combined"),IF(U63=0,"Fail",IF(V63>=(2/3),V$37&" "&T63,"Fail")),"N/A") -> N/A | AC63: Coinsurance | AD63: =SUMIF(tbl_OPOVINN_P1[Coinsurance],">0",tbl_OPOVINN_P1[Plan Projected Allowed Amount]) -> 0 | AE63: =IFERROR(AD63/AD$65,"") ->  | AF63: =IF(AND(OR($D$20="Yes",$D$23="Yes"),$L$20="Office Visits Separate"),IF(AD63=0,"Fail",IF(AE63>=(2/3),AE$37&" "&AC63,"Fail")),"N/A") -> N/A | AL63: Coinsurance | AM63: =SUMIF(tbl_OPAOINN_P1[Coinsurance],">0",tbl_OPAOINN_P1[Plan Projected Allowed Amount]) -> 0 | AN63: =IFERROR(AM63/AM$65,"") ->  | AO63: =IF(AND(OR($D$20="Yes",$D$24="Yes"),$L$20="Office Visits Separate"),IF(AM63=0,"Fail",IF(AN63>=(2/3),AN$37&" "&AL63,"Fail")),"N/A") -> N/A | AU63: Coinsurance | AV63: =SUMIF(tbl_OPOON_P1[Coinsurance],">0",tbl_OPOON_P1[Plan Projected Allowed Amount]) -> 0 | AW63: =IFERROR(AV63/AV$65,"") ->  | AX63: =IF(AND(OR($D$20="Yes",$D$21="Yes"),$L$20="All Combined",$L$19="Yes"),IF(AV63=0,"Fail",IF(AW63>=(2/3),AW$37&" "&AU63,"Fail")),"N/A") -> N/A | BD63: Coinsurance | BE63: =SUMIF(tbl_OPOVOON_P1[Coinsurance],">0",tbl_OPOVOON_P1[Plan Projected Allowed Amount]) -> 0 | BF63: =IFERROR(BE63/BE$65,"") ->  | BG63: =IF(AND(OR($D$20="Yes",$D$23="Yes"),$L$20="Office Visits Separate",$L$19="Yes"),IF(BE63=0,"Fail",IF(BF63>=(2/3),BF$37&" "&BD63,"Fail")),"N/A") -> N/A | BM63: Coinsurance | BN63: =SUMIF(tbl_OPAOOON_P1[Coinsurance],">0",tbl_OPAOOON_P1[Plan Projected Allowed Amount]) -> 0 | BO63: =IFERROR(BN63/BN$65,"") ->  | BP63: =IF(AND(OR($D$20="Yes",$D$24="Yes"),$L$20="Office Visits Separate",$L$19="Yes"),IF(BN63=0,"Fail",IF(BO63>=(2/3),BO$37&" "&BM63,"Fail")),"N/A") -> N/A | BV63: Coinsurance | BW63: =SUMIF(tbl_ER_P1[Coinsurance],">0",tbl_ER_P1[Plan Projected Allowed Amount]) -> 0 | BX63: =IFERROR(BW63/BW$65,"") ->  | BY63: =IF($D$25="Yes",IF(BW63=0,"Fail",IF(BX63>=(2/3),BX$37&" "&BV63,"Fail")),"N/A") -> Fail | CE63: Coinsurance | CF63: =SUMIF(tbl_RX_P1[Coinsurance],">0",tbl_RX_P1[Plan Projected Allowed Amount]) -> 0 | CG63: =IFERROR(CF63/CF$65,"") ->  | CH63: =IF($D$26="Yes",IF(CF63=0,"Fail",IF(CG63>=(2/3),CG$37&" "&CE63,"Fail")),"N/A") -> Fail
B64: OOPM | C64: =SUMIF(tbl_IPINN_P1[Out-of-Pocket Maximum (OOPM)],">0",tbl_IPINN_P1[Plan Projected Allowed Amount]) -> 0 | D64: =IFERROR(C64/C$65,"") ->  | E64: =IF($D$19="Yes",IF(C64=0,"Fail",IF(D64>=(2/3),D$37&" "&B64,"Fail")),"N/A") -> Fail | K64: OOPM | L64: =SUMIF(tbl_IPOON_P1[Out-of-Pocket Maximum (OOPM)],">0",tbl_IPOON_P1[Plan Projected Allowed Amount]) -> 0 | M64: =IFERROR(L64/L$65,"") ->  | N64: =IF(AND($D$19="Yes",$L$19="Yes"),IF(L64=0,"Fail",IF(M64>=(2/3),M$37&" "&K64,"Fail")),"N/A") -> N/A | T64: OOPM | U64: =SUMIF(tbl_OPINN_P1[Out-of-Pocket Maximum (OOPM)],">0",tbl_OPINN_P1[Plan Projected Allowed Amount]) -> 0 | V64: =IFERROR(U64/U$65,"") ->  | W64: =IF(AND(OR($D$20="Yes",$D$21="Yes"),$L$20="All Combined"),IF(U64=0,"Fail",IF(V64>=(2/3),V$37&" "&T64,"Fail")),"N/A") -> N/A | AC64: OOPM | AD64: =SUMIF(tbl_OPOVINN_P1[Out-of-Pocket Maximum (OOPM)],">0",tbl_OPOVINN_P1[Plan Projected Allowed Amount]) -> 0 | AE64: =IFERROR(AD64/AD$65,"") ->  | AF64: =IF(AND(OR($D$20="Yes",$D$23="Yes"),$L$20="Office Visits Separate"),IF(AD64=0,"Fail",IF(AE64>=(2/3),AE$37&" "&AC64,"Fail")),"N/A") -> N/A | AL64: OOPM | AM64: =SUMIF(tbl_OPAOINN_P1[Out-of-Pocket Maximum (OOPM)],">0",tbl_OPAOINN_P1[Plan Projected Allowed Amount]) -> 0 | AN64: =IFERROR(AM64/AM$65,"") ->  | AO64: =IF(AND(OR($D$20="Yes",$D$24="Yes"),$L$20="Office Visits Separate"),IF(AM64=0,"Fail",IF(AN64>=(2/3),AN$37&" "&AL64,"Fail")),"N/A") -> N/A | AU64: OOPM | AV64: =SUMIF(tbl_OPOON_P1[Out-of-Pocket Maximum (OOPM)],">0",tbl_OPOON_P1[Plan Projected Allowed Amount]) -> 0 | AW64: =IFERROR(AV64/AV$65,"") ->  | AX64: =IF(AND(OR($D$20="Yes",$D$21="Yes"),$L$20="All Combined",$L$19="Yes"),IF(AV64=0,"Fail",IF(AW64>=(2/3),AW$37&" "&AU64,"Fail")),"N/A") -> N/A | BD64: OOPM | BE64: =SUMIF(tbl_OPOVOON_P1[Out-of-Pocket Maximum (OOPM)],">0",tbl_OPOVOON_P1[Plan Projected Allowed Amount]) -> 0 | BF64: =IFERROR(BE64/BE$65,"") ->  | BG64: =IF(AND(OR($D$20="Yes",$D$23="Yes"),$L$20="Office Visits Separate",$L$19="Yes"),IF(BE64=0,"Fail",IF(BF64>=(2/3),BF$37&" "&BD64,"Fail")),"N/A") -> N/A | BM64: OOPM | BN64: =SUMIF(tbl_OPAOOON_P1[Out-of-Pocket Maximum (OOPM)],">0",tbl_OPAOOON_P1[Plan Projected Allowed Amount]) -> 0 | BO64: =IFERROR(BN64/BN$65,"") ->  | BP64: =IF(AND(OR($D$20="Yes",$D$24="Yes"),$L$20="Office Visits Separate",$L$19="Yes"),IF(BN64=0,"Fail",IF(BO64>=(2/3),BO$37&" "&BM64,"Fail")),"N/A") -> N/A | BV64: OOPM | BW64: =SUMIF(tbl_ER_P1[Out-of-Pocket Maximum (OOPM)],">0",tbl_ER_P1[Plan Projected Allowed Amount]) -> 0 | BX64: =IFERROR(BW64/BW$65,"") ->  | BY64: =IF($D$25="Yes",IF(BW64=0,"Fail",IF(BX64>=(2/3),BX$37&" "&BV64,"Fail")),"N/A") -> Fail | CE64: OOPM | CF64: =SUMIF(tbl_RX_P1[Out-of-Pocket Maximum (OOPM)],">0",tbl_RX_P1[Plan Projected Allowed Amount]) -> 0 | CG64: =IFERROR(CF64/CF$65,"") ->  | CH64: =IF($D$26="Yes",IF(CF64=0,"Fail",IF(CG64>=(2/3),CG$37&" "&CE64,"Fail")),"N/A") -> Fail
B65: Total Projected | C65: =tbl_IPINN_P1[[#Totals],[Plan Projected Allowed Amount]] -> 0 | K65: Total Projected | L65: =tbl_IPOON_P1[[#Totals],[Plan Projected Allowed Amount]] -> 0 | T65: Total Projected | U65: =tbl_OPINN_P1[[#Totals],[Plan Projected Allowed Amount]] -> 0 | AC65: Total Projected | AD65: =tbl_OPOVINN_P1[[#Totals],[Plan Projected Allowed Amount]] -> 0 | AL65: Total Projected | AM65: =tbl_OPAOINN_P1[[#Totals],[Plan Projected Allowed Amount]] -> 0 | AU65: Total Projected | AV65: =tbl_OPOON_P1[[#Totals],[Plan Projected Allowed Amount]] -> 0 | BD65: Total Projected | BE65: =tbl_OPOVOON_P1[[#Totals],[Plan Projected Allowed Amount]] -> 0 | BM65: Total Projected | BN65: =tbl_OPAOOON_P1[[#Totals],[Plan Projected Allowed Amount]] -> 0 | BV65: Total Projected | BW65: =tbl_ER_P1[[#Totals],[Plan Projected Allowed Amount]] -> 0 | CE65: Total Projected | CF65: =tbl_RX_P1[[#Totals],[Plan Projected Allowed Amount]] -> 0
B67: Step 2 Predominant Level | K67: Step 2 Predominant Level | T67: Step 2 Predominant Level | AC67: Step 2 Predominant Level | AL67: Step 2 Predominant Level | AU67: Step 2 Predominant Level | BD67: Step 2 Predominant Level | BM67: Step 2 Predominant Level | BV67: Step 2 Predominant Level | CE67: Step 2 Predominant Level
B68: =B72&" ---- "&C$32 -> Deductible ---- (1) Inpatient, In-Network (IP INN) | K68: =K72&" ---- "&L$32 -> Deductible ---- (2) Inpatient, Out-of-Network (IP OON) | T68: =T72&" ---- "&U$32 -> Deductible ---- (3) Outpatient, In-Network (OP INN) | AC68: =AC72&" ---- "&AD$32 -> Deductible ---- (3a) Outpatient - Office Visits, In-Network (OP-OV INN) | AL68: =AL72&" ---- "&AM$32 -> Deductible ---- (3b) Outpatient - All Other, In-Network (OP-AO INN) | AU68: =AU72&" ---- "&AV$32 -> Deductible ---- (4) Outpatient, Out-of-Network (OP OON) | BD68: =BD72&" ---- "&BE$32 -> Deductible ---- (4a) Outpatient - Office Visits, Out-of-Network (OP-OV OON) | BM68: =BM72&" ---- "&BN$32 -> Deductible ---- (4b) Outpatient - All Other, Out-of-Network (OP-AO OON) | BV68: =BV72&" ---- "&BW$32 -> Deductible ---- (5) Emergency Care, (ER ) | CE68: =CE72&" ---- "&CF$32 -> Deductible ---- (6) Prescription Drugs, (RX )
B69: =IF(INDEX(D$61:D$64,MATCH(B72,B$61:B$64,0))="","If testing is required for this benefit classification: Please ensure each different cost-share combination is entered above in PART 1.",IF(INDEX(D$61:D$64,MATCH(B72,B$61:B$64,0))>=(2/3),"Applies to substantially all medical/surgical benefits in this classification. ENTER different "&LOWER(B72)&" amounts from smallest to largest.","Does not apply to substantially all medical/surgical benefits in this classification. DELETE any values in the left-hand column below.")) -> If testing is required for this benefit classification: Please ensure each different cost-share combination is entered above in PART 1. | K69: =IF(INDEX(M$61:M$64,MATCH(K72,K$61:K$64,0))="","If testing is required for this benefit classification: Please ensure each different cost-share combination is entered above in PART 1.",IF(INDEX(M$61:M$64,MATCH(K72,K$61:K$64,0))>=(2/3),"Applies to substantially all medical/surgical benefits in this classification. ENTER different "&LOWER(K72)&" amounts from smallest to largest.","Does not apply to substantially all medical/surgical benefits in this classification. DELETE any values in the left-hand column below.")) -> If testing is required for this benefit classification: Please ensure each different cost-share combination is entered above in PART 1. | T69: =IF(INDEX(V$61:V$64,MATCH(T72,T$61:T$64,0))="","If testing is required for this benefit classification: Please ensure each different cost-share combination is entered above in PART 1.",IF(INDEX(V$61:V$64,MATCH(T72,T$61:T$64,0))>=(2/3),"Applies to substantially all medical/surgical benefits in this classification. ENTER different "&LOWER(T72)&" amounts from smallest to largest.","Does not apply to substantially all medical/surgical benefits in this classification. DELETE any values in the left-hand column below.")) -> If testing is required for this benefit classification: Please ensure each different cost-share combination is entered above in PART 1. | AC69: =IF(INDEX(AE$61:AE$64,MATCH(AC72,AC$61:AC$64,0))="","If testing is required for this benefit classification: Please ensure each different cost-share combination is entered above in PART 1.",IF(INDEX(AE$61:AE$64,MATCH(AC72,AC$61:AC$64,0))>=(2/3),"Applies to substantially all medical/surgical benefits in this classification. ENTER different "&LOWER(AC72)&" amounts from smallest to largest.","Does not apply to substantially all medical/surgical benefits in this classification. DELETE any values in the left-hand column below.")) -> If testing is required for this benefit classification: Please ensure each different cost-share combination is entered above in PART 1. | AL69: =IF(INDEX(AN$61:AN$64,MATCH(AL72,AL$61:AL$64,0))="","If testing is required for this benefit classification: Please ensure each different cost-share combination is entered above in PART 1.",IF(INDEX(AN$61:AN$64,MATCH(AL72,AL$61:AL$64,0))>=(2/3),"Applies to substantially all medical/surgical benefits in this classification. ENTER different "&LOWER(AL72)&" amounts from smallest to largest.","Does not apply to substantially all medical/surgical benefits in this classification. DELETE any values in the left-hand column below.")) -> If testing is required for this benefit classification: Please ensure each different cost-share combination is entered above in PART 1. | AU69: =IF(INDEX(AW$61:AW$64,MATCH(AU72,AU$61:AU$64,0))="","If testing is required for this benefit classification: Please ensure each different cost-share combination is entered above in PART 1.",IF(INDEX(AW$61:AW$64,MATCH(AU72,AU$61:AU$64,0))>=(2/3),"Applies to substantially all medical/surgical benefits in this classification. ENTER different "&LOWER(AU72)&" amounts from smallest to largest.","Does not apply to substantially all medical/surgical benefits in this classification. DELETE any values in the left-hand column below.")) -> If testing is required for this benefit classification: Please ensure each different cost-share combination is entered above in PART 1. | BD69: =IF(INDEX(BF$61:BF$64,MATCH(BD72,BD$61:BD$64,0))="","If testing is required for this benefit classification: Please ensure each different cost-share combination is entered above in PART 1.",IF(INDEX(BF$61:BF$64,MATCH(BD72,BD$61:BD$64,0))>=(2/3),"Applies to substantially all medical/surgical benefits in this classification. ENTER different "&LOWER(BD72)&" amounts from smallest to largest.","Does not apply to substantially all medical/surgical benefits in this classification. DELETE any values in the left-hand column below.")) -> If testing is required for this benefit classification: Please ensure each different cost-share combination is entered above in PART 1. | BM69: =IF(INDEX(BO$61:BO$64,MATCH(BM72,BM$61:BM$64,0))="","If testing is required for this benefit classification: Please ensure each different cost-share combination is entered above in PART 1.",IF(INDEX(BO$61:BO$64,MATCH(BM72,BM$61:BM$64,0))>=(2/3),"Applies to substantially all medical/surgical benefits in this classification. ENTER different "&LOWER(BM72)&" amounts from smallest to largest.","Does not apply to substantially all medical/surgical benefits in this classification. DELETE any values in the left-hand column below.")) -> If testing is required for this benefit classification: Please ensure each different cost-share combination is entered above in PART 1. | BV69: =IF(INDEX(BX$61:BX$64,MATCH(BV72,BV$61:BV$64,0))="","If testing is required for this benefit classification: Please ensure each different cost-share combination is entered above in PART 1.",IF(INDEX(BX$61:BX$64,MATCH(BV72,BV$61:BV$64,0))>=(2/3),"Applies to substantially all medical/surgical benefits in this classification. ENTER different "&LOWER(BV72)&" amounts from smallest to largest.","Does not apply to substantially all medical/surgical benefits in this classification. DELETE any values in the left-hand column below.")) -> If testing is required for this benefit classification: Please ensure each different cost-share combination is entered above in PART 1. | CE69: =IF(INDEX(CG$61:CG$64,MATCH(CE72,CE$61:CE$64,0))="","If testing is required for this benefit classification: Please ensure each different cost-share combination is entered above in PART 1.",IF(INDEX(CG$61:CG$64,MATCH(CE72,CE$61:CE$64,0))>=(2/3),"Applies to substantially all medical/surgical benefits in this classification. ENTER different "&LOWER(CE72)&" amounts from smallest to largest.","Does not apply to substantially all medical/surgical benefits in this classification. DELETE any values in the left-hand column below.")) -> If testing is required for this benefit classification: Please ensure each different cost-share combination is entered above in PART 1.
B72: Deductible | C72: Allowed Claims | D72: Portion | E72: Predominant & Smaller | F72: Error Checking | K72: Deductible | L72: Allowed Claims | M72: Portion | N72: Predominant & Smaller | O72: Error Checking | T72: Deductible | U72: Allowed Claims | V72: Portion | W72: Predominant & Smaller | X72: Error Checking | AC72: Deductible | AD72: Allowed Claims | AE72: Portion | AF72: Predominant & Smaller | AG72: Error Checking | AL72: Deductible | AM72: Allowed Claims | AN72: Portion | AO72: Predominant & Smaller | AP72: Error Checking | AU72: Deductible | AV72: Allowed Claims | AW72: Portion | AX72: Predominant & Smaller | AY72: Error Checking | BD72: Deductible | BE72: Allowed Claims | BF72: Portion | BG72: Predominant & Smaller | BH72: Error Checking | BM72: Deductible | BN72: Allowed Claims | BO72: Portion | BP72: Predominant & Smaller | BQ72: Error Checking | BV72: Deductible | BW72: Allowed Claims | BX72: Portion | BY72: Predominant & Smaller | BZ72: Error Checking | CE72: Deductible | CF72: Allowed Claims | CG72: Portion | CH72: Predominant & Smaller | CI72: Error Checking
C73: =SUMIF(tbl_IPINN_P1[Deductible],B73,tbl_IPINN_P1[Plan Projected Allowed Amount]) -> 0 | D73: =IF(OR(C73=0,C73=""),"",C73/tbl_IPINN_P2Ded[[#Totals],[Allowed Claims]]) ->  | E73: =IF(D73="","",IF(SUMIF(tbl_IPINN_P2Ded[Deductible],">="&B73,tbl_IPINN_P2Ded[Portion])>0.5,B73,"")) ->  | F73: =IF(COUNTIF(tbl_IPINN_P2Ded[Deductible],tbl_IPINN_P2Ded[[#This Row],[Deductible]])>1,"Remove Duplicate Entry.",IF(AND(tbl_IPINN_P2Ded[[#This Row],[Deductible]]<>"",tbl_IPINN_P2Ded[[#This Row],[Allowed Claims]]=0),"Entry not found in Part 1 Table",IF(AND(OFFSET(tbl_IPINN_P2Ded[[#This Row],[Deductible]],1,0)<>"Total",OFFSET(tbl_IPINN_P2Ded[[#This Row],[Deductible]],1,0)<>"",OFFSET(tbl_IPINN_P2Ded[[#This Row],[Deductible]],1,0)<tbl_IPINN_P2Ded[[#This Row],[Deductible]]),"Sort Entries from lowest to highest",""))) ->  | L73: =SUMIF(tbl_IPOON_P1[Deductible],K73,tbl_IPOON_P1[Plan Projected Allowed Amount]) -> 0 | M73: =IF(OR(L73=0,L73=""),"",L73/tbl_IPOON_P2Ded[[#Totals],[Allowed Claims]]) ->  | N73: =IF(M73="","",IF(SUMIF(tbl_IPOON_P2Ded[Deductible],">="&K73,tbl_IPOON_P2Ded[Portion])>0.5,K73,"")) ->  | O73: =IF(COUNTIF(tbl_IPOON_P2Ded[Deductible],tbl_IPOON_P2Ded[[#This Row],[Deductible]])>1,"Remove Duplicate Entry.",IF(AND(tbl_IPOON_P2Ded[[#This Row],[Deductible]]<>"",tbl_IPOON_P2Ded[[#This Row],[Allowed Claims]]=0),"Entry not found in Part 1 Table",IF(AND(OFFSET(tbl_IPOON_P2Ded[[#This Row],[Deductible]],1,0)<>"Total",OFFSET(tbl_IPOON_P2Ded[[#This Row],[Deductible]],1,0)<>"",OFFSET(tbl_IPOON_P2Ded[[#This Row],[Deductible]],1,0)<tbl_IPOON_P2Ded[[#This Row],[Deductible]]),"Sort Entries from lowest to highest",""))) ->  | U73: =SUMIF(tbl_OPINN_P1[Deductible],T73,tbl_OPINN_P1[Plan Projected Allowed Amount]) -> 0 | V73: =IF(OR(U73=0,U73=""),"",U73/tbl_OPINN_P2Ded[[#Totals],[Allowed Claims]]) ->  | W73: =IF(V73="","",IF(SUMIF(tbl_OPINN_P2Ded[Deductible],">="&T73,tbl_OPINN_P2Ded[Portion])>0.5,T73,"")) ->  | X73: =IF(COUNTIF(tbl_OPINN_P2Ded[Deductible],tbl_OPINN_P2Ded[[#This Row],[Deductible]])>1,"Remove Duplicate Entry.",IF(AND(tbl_OPINN_P2Ded[[#This Row],[Deductible]]<>"",tbl_OPINN_P2Ded[[#This Row],[Allowed Claims]]=0),"Entry not found in Part 1 Table",IF(AND(OFFSET(tbl_OPINN_P2Ded[[#This Row],[Deductible]],1,0)<>"Total",OFFSET(tbl_OPINN_P2Ded[[#This Row],[Deductible]],1,0)<>"",OFFSET(tbl_OPINN_P2Ded[[#This Row],[Deductible]],1,0)<tbl_OPINN_P2Ded[[#This Row],[Deductible]]),"Sort Entries from lowest to highest",""))) ->  | AD73: =SUMIF(tbl_OPOVINN_P1[Deductible],AC73,tbl_OPOVINN_P1[Plan Projected Allowed Amount]) -> 0 | AE73: =IF(OR(AD73=0,AD73=""),"",AD73/tbl_OPOVINN_P2Ded[[#Totals],[Allowed Claims]]) ->  | AF73: =IF(AE73="","",IF(SUMIF(tbl_OPOVINN_P2Ded[Deductible],">="&AC73,tbl_OPOVINN_P2Ded[Portion])>0.5,AC73,"")) ->  | AG73: =IF(COUNTIF(tbl_OPOVINN_P2Ded[Deductible],tbl_OPOVINN_P2Ded[[#This Row],[Deductible]])>1,"Remove Duplicate Entry.",IF(AND(tbl_OPOVINN_P2Ded[[#This Row],[Deductible]]<>"",tbl_OPOVINN_P2Ded[[#This Row],[Allowed Claims]]=0),"Entry not found in Part 1 Table",IF(AND(OFFSET(tbl_OPOVINN_P2Ded[[#This Row],[Deductible]],1,0)<>"Total",OFFSET(tbl_OPOVINN_P2Ded[[#This Row],[Deductible]],1,0)<>"",OFFSET(tbl_OPOVINN_P2Ded[[#This Row],[Deductible]],1,0)<tbl_OPOVINN_P2Ded[[#This Row],[Deductible]]),"Sort Entries from lowest to highest",""))) ->  | AM73: =SUMIF(tbl_OPAOINN_P1[Deductible],AL73,tbl_OPAOINN_P1[Plan Projected Allowed Amount]) -> 0 | AN73: =IF(OR(AM73=0,AM73=""),"",AM73/tbl_OPAOINN_P2Ded[[#Totals],[Allowed Claims]]) ->  | AO73: =IF(AN73="","",IF(SUMIF(tbl_OPAOINN_P2Ded[Deductible],">="&AL73,tbl_OPAOINN_P2Ded[Portion])>0.5,AL73,"")) ->  | AP73: =IF(COUNTIF(tbl_OPAOINN_P2Ded[Deductible],tbl_OPAOINN_P2Ded[[#This Row],[Deductible]])>1,"Remove Duplicate Entry.",IF(AND(tbl_OPAOINN_P2Ded[[#This Row],[Deductible]]<>"",tbl_OPAOINN_P2Ded[[#This Row],[Allowed Claims]]=0),"Entry not found in Part 1 Table",IF(AND(OFFSET(tbl_OPAOINN_P2Ded[[#This Row],[Deductible]],1,0)<>"Total",OFFSET(tbl_OPAOINN_P2Ded[[#This Row],[Deductible]],1,0)<>"",OFFSET(tbl_OPAOINN_P2Ded[[#This Row],[Deductible]],1,0)<tbl_OPAOINN_P2Ded[[#This Row],[Deductible]]),"Sort Entries from lowest to highest",""))) ->  | AV73: =SUMIF(tbl_OPOON_P1[Deductible],AU73,tbl_OPOON_P1[Plan Projected Allowed Amount]) -> 0 | AW73: =IF(OR(AV73=0,AV73=""),"",AV73/tbl_OPOON_P2Ded[[#Totals],[Allowed Claims]]) ->  | AX73: =IF(AW73="","",IF(SUMIF(tbl_OPOON_P2Ded[Deductible],">="&AU73,tbl_OPOON_P2Ded[Portion])>0.5,AU73,"")) ->  | AY73: =IF(COUNTIF(tbl_OPOON_P2Ded[Deductible],tbl_OPOON_P2Ded[[#This Row],[Deductible]])>1,"Remove Duplicate Entry.",IF(AND(tbl_OPOON_P2Ded[[#This Row],[Deductible]]<>"",tbl_OPOON_P2Ded[[#This Row],[Allowed Claims]]=0),"Entry not found in Part 1 Table",IF(AND(OFFSET(tbl_OPOON_P2Ded[[#This Row],[Deductible]],1,0)<>"Total",OFFSET(tbl_OPOON_P2Ded[[#This Row],[Deductible]],1,0)<>"",OFFSET(tbl_OPOON_P2Ded[[#This Row],[Deductible]],1,0)<tbl_OPOON_P2Ded[[#This Row],[Deductible]]),"Sort Entries from lowest to highest",""))) ->  | BE73: =SUMIF(tbl_OPOVOON_P1[Deductible],BD73,tbl_OPOVOON_P1[Plan Projected Allowed Amount]) -> 0 | BF73: =IF(OR(BE73=0,BE73=""),"",BE73/tbl_OPOVOON_P2Ded[[#Totals],[Allowed Claims]]) ->  | BG73: =IF(BF73="","",IF(SUMIF(tbl_OPOVOON_P2Ded[Deductible],">="&BD73,tbl_OPOVOON_P2Ded[Portion])>0.5,BD73,"")) ->  | BH73: =IF(COUNTIF(tbl_OPOVOON_P2Ded[Deductible],tbl_OPOVOON_P2Ded[[#This Row],[Deductible]])>1,"Remove Duplicate Entry.",IF(AND(tbl_OPOVOON_P2Ded[[#This Row],[Deductible]]<>"",tbl_OPOVOON_P2Ded[[#This Row],[Allowed Claims]]=0),"Entry not found in Part 1 Table",IF(AND(OFFSET(tbl_OPOVOON_P2Ded[[#This Row],[Deductible]],1,0)<>"Total",OFFSET(tbl_OPOVOON_P2Ded[[#This Row],[Deductible]],1,0)<>"",OFFSET(tbl_OPOVOON_P2Ded[[#This Row],[Deductible]],1,0)<tbl_OPOVOON_P2Ded[[#This Row],[Deductible]]),"Sort Entries from lowest to highest",""))) ->  | BN73: =SUMIF(tbl_OPAOOON_P1[Deductible],BM73,tbl_OPAOOON_P1[Plan Projected Allowed Amount]) -> 0 | BO73: =IF(OR(BN73=0,BN73=""),"",BN73/tbl_OPAOOON_P2Ded[[#Totals],[Allowed Claims]]) ->  | BP73: =IF(BO73="","",IF(SUMIF(tbl_OPAOOON_P2Ded[Deductible],">="&BM73,tbl_OPAOOON_P2Ded[Portion])>0.5,BM73,"")) ->  | BQ73: =IF(COUNTIF(tbl_OPAOOON_P2Ded[Deductible],tbl_OPAOOON_P2Ded[[#This Row],[Deductible]])>1,"Remove Duplicate Entry.",IF(AND(tbl_OPAOOON_P2Ded[[#This Row],[Deductible]]<>"",tbl_OPAOOON_P2Ded[[#This Row],[Allowed Claims]]=0),"Entry not found in Part 1 Table",IF(AND(OFFSET(tbl_OPAOOON_P2Ded[[#This Row],[Deductible]],1,0)<>"Total",OFFSET(tbl_OPAOOON_P2Ded[[#This Row],[Deductible]],1,0)<>"",OFFSET(tbl_OPAOOON_P2Ded[[#This Row],[Deductible]],1,0)<tbl_OPAOOON_P2Ded[[#This Row],[Deductible]]),"Sort Entries from lowest to highest",""))) ->  | BW73: =SUMIF(tbl_ER_P1[Deductible],BV73,tbl_ER_P1[Plan Projected Allowed Amount]) -> 0 | BX73: =IF(OR(BW73=0,BW73=""),"",BW73/tbl_ER_P2Ded[[#Totals],[Allowed Claims]]) ->  | BY73: =IF(BX73="","",IF(SUMIF(tbl_ER_P2Ded[Deductible],">="&BV73,tbl_ER_P2Ded[Portion])>0.5,BV73,"")) ->  | BZ73: =IF(COUNTIF(tbl_ER_P2Ded[Deductible],tbl_ER_P2Ded[[#This Row],[Deductible]])>1,"Remove Duplicate Entry.",IF(AND(tbl_ER_P2Ded[[#This Row],[Deductible]]<>"",tbl_ER_P2Ded[[#This Row],[Allowed Claims]]=0),"Entry not found in Part 1 Table",IF(AND(OFFSET(tbl_ER_P2Ded[[#This Row],[Deductible]],1,0)<>"Total",OFFSET(tbl_ER_P2Ded[[#This Row],[Deductible]],1,0)<>"",OFFSET(tbl_ER_P2Ded[[#This Row],[Deductible]],1,0)<tbl_ER_P2Ded[[#This Row],[Deductible]]),"Sort Entries from lowest to highest",""))) ->  | CF73: =SUMIF(tbl_RX_P1[Deductible],CE73,tbl_RX_P1[Plan Projected Allowed Amount]) -> 0 | CG73: =IF(OR(CF73=0,CF73=""),"",CF73/tbl_RX_P2Ded[[#Totals],[Allowed Claims]]) ->  | CH73: =IF(CG73="","",IF(SUMIF(tbl_RX_P2Ded[Deductible],">="&CE73,tbl_RX_P2Ded[Portion])>0.5,CE73,"")) ->  | CI73: =IF(COUNTIF(tbl_RX_P2Ded[Deductible],tbl_RX_P2Ded[[#This Row],[Deductible]])>1,"Remove Duplicate Entry.",IF(AND(tbl_RX_P2Ded[[#This Row],[Deductible]]<>"",tbl_RX_P2Ded[[#This Row],[Allowed Claims]]=0),"Entry not found in Part 1 Table",IF(AND(OFFSET(tbl_RX_P2Ded[[#This Row],[Deductible]],1,0)<>"Total",OFFSET(tbl_RX_P2Ded[[#This Row],[Deductible]],1,0)<>"",OFFSET(tbl_RX_P2Ded[[#This Row],[Deductible]],1,0)<tbl_RX_P2Ded[[#This Row],[Deductible]]),"Sort Entries from lowest to highest",""))) -> 
C74: =SUMIF(tbl_IPINN_P1[Deductible],B74,tbl_IPINN_P1[Plan Projected Allowed Amount]) -> 0 | D74: =IF(OR(C74=0,C74=""),"",C74/tbl_IPINN_P2Ded[[#Totals],[Allowed Claims]]) ->  | E74: =IF(D74="","",IF(SUMIF(tbl_IPINN_P2Ded[Deductible],">="&B74,tbl_IPINN_P2Ded[Portion])>0.5,B74,"")) ->  | F74: =IF(COUNTIF(tbl_IPINN_P2Ded[Deductible],tbl_IPINN_P2Ded[[#This Row],[Deductible]])>1,"Remove Duplicate Entry.",IF(AND(tbl_IPINN_P2Ded[[#This Row],[Deductible]]<>"",tbl_IPINN_P2Ded[[#This Row],[Allowed Claims]]=0),"Entry not found in Part 1 Table",IF(AND(OFFSET(tbl_IPINN_P2Ded[[#This Row],[Deductible]],1,0)<>"Total",OFFSET(tbl_IPINN_P2Ded[[#This Row],[Deductible]],1,0)<>"",OFFSET(tbl_IPINN_P2Ded[[#This Row],[Deductible]],1,0)<tbl_IPINN_P2Ded[[#This Row],[Deductible]]),"Sort Entries from lowest to highest",""))) ->  | L74: =SUMIF(tbl_IPOON_P1[Deductible],K74,tbl_IPOON_P1[Plan Projected Allowed Amount]) -> 0 | M74: =IF(OR(L74=0,L74=""),"",L74/tbl_IPOON_P2Ded[[#Totals],[Allowed Claims]]) ->  | N74: =IF(M74="","",IF(SUMIF(tbl_IPOON_P2Ded[Deductible],">="&K74,tbl_IPOON_P2Ded[Portion])>0.5,K74,"")) ->  | O74: =IF(COUNTIF(tbl_IPOON_P2Ded[Deductible],tbl_IPOON_P2Ded[[#This Row],[Deductible]])>1,"Remove Duplicate Entry.",IF(AND(tbl_IPOON_P2Ded[[#This Row],[Deductible]]<>"",tbl_IPOON_P2Ded[[#This Row],[Allowed Claims]]=0),"Entry not found in Part 1 Table",IF(AND(OFFSET(tbl_IPOON_P2Ded[[#This Row],[Deductible]],1,0)<>"Total",OFFSET(tbl_IPOON_P2Ded[[#This Row],[Deductible]],1,0)<>"",OFFSET(tbl_IPOON_P2Ded[[#This Row],[Deductible]],1,0)<tbl_IPOON_P2Ded[[#This Row],[Deductible]]),"Sort Entries from lowest to highest",""))) ->  | U74: =SUMIF(tbl_OPINN_P1[Deductible],T74,tbl_OPINN_P1[Plan Projected Allowed Amount]) -> 0 | V74: =IF(OR(U74=0,U74=""),"",U74/tbl_OPINN_P2Ded[[#Totals],[Allowed Claims]]) ->  | W74: =IF(V74="","",IF(SUMIF(tbl_OPINN_P2Ded[Deductible],">="&T74,tbl_OPINN_P2Ded[Portion])>0.5,T74,"")) ->  | X74: =IF(COUNTIF(tbl_OPINN_P2Ded[Deductible],tbl_OPINN_P2Ded[[#This Row],[Deductible]])>1,"Remove Duplicate Entry.",IF(AND(tbl_OPINN_P2Ded[[#This Row],[Deductible]]<>"",tbl_OPINN_P2Ded[[#This Row],[Allowed Claims]]=0),"Entry not found in Part 1 Table",IF(AND(OFFSET(tbl_OPINN_P2Ded[[#This Row],[Deductible]],1,0)<>"Total",OFFSET(tbl_OPINN_P2Ded[[#This Row],[Deductible]],1,0)<>"",OFFSET(tbl_OPINN_P2Ded[[#This Row],[Deductible]],1,0)<tbl_OPINN_P2Ded[[#This Row],[Deductible]]),"Sort Entries from lowest to highest",""))) ->  | AD74: =SUMIF(tbl_OPOVINN_P1[Deductible],AC74,tbl_OPOVINN_P1[Plan Projected Allowed Amount]) -> 0 | AE74: =IF(OR(AD74=0,AD74=""),"",AD74/tbl_OPOVINN_P2Ded[[#Totals],[Allowed Claims]]) ->  | AF74: =IF(AE74="","",IF(SUMIF(tbl_OPOVINN_P2Ded[Deductible],">="&AC74,tbl_OPOVINN_P2Ded[Portion])>0.5,AC74,"")) ->  | AG74: =IF(COUNTIF(tbl_OPOVINN_P2Ded[Deductible],tbl_OPOVINN_P2Ded[[#This Row],[Deductible]])>1,"Remove Duplicate Entry.",IF(AND(tbl_OPOVINN_P2Ded[[#This Row],[Deductible]]<>"",tbl_OPOVINN_P2Ded[[#This Row],[Allowed Claims]]=0),"Entry not found in Part 1 Table",IF(AND(OFFSET(tbl_OPOVINN_P2Ded[[#This Row],[Deductible]],1,0)<>"Total",OFFSET(tbl_OPOVINN_P2Ded[[#This Row],[Deductible]],1,0)<>"",OFFSET(tbl_OPOVINN_P2Ded[[#This Row],[Deductible]],1,0)<tbl_OPOVINN_P2Ded[[#This Row],[Deductible]]),"Sort Entries from lowest to highest",""))) ->  | AM74: =SUMIF(tbl_OPAOINN_P1[Deductible],AL74,tbl_OPAOINN_P1[Plan Projected Allowed Amount]) -> 0 | AN74: =IF(OR(AM74=0,AM74=""),"",AM74/tbl_OPAOINN_P2Ded[[#Totals],[Allowed Claims]]) ->  | AO74: =IF(AN74="","",IF(SUMIF(tbl_OPAOINN_P2Ded[Deductible],">="&AL74,tbl_OPAOINN_P2Ded[Portion])>0.5,AL74,"")) ->  | AP74: =IF(COUNTIF(tbl_OPAOINN_P2Ded[Deductible],tbl_OPAOINN_P2Ded[[#This Row],[Deductible]])>1,"Remove Duplicate Entry.",IF(AND(tbl_OPAOINN_P2Ded[[#This Row],[Deductible]]<>"",tbl_OPAOINN_P2Ded[[#This Row],[Allowed Claims]]=0),"Entry not found in Part 1 Table",IF(AND(OFFSET(tbl_OPAOINN_P2Ded[[#This Row],[Deductible]],1,0)<>"Total",OFFSET(tbl_OPAOINN_P2Ded[[#This Row],[Deductible]],1,0)<>"",OFFSET(tbl_OPAOINN_P2Ded[[#This Row],[Deductible]],1,0)<tbl_OPAOINN_P2Ded[[#This Row],[Deductible]]),"Sort Entries from lowest to highest",""))) ->  | AV74: =SUMIF(tbl_OPOON_P1[Deductible],AU74,tbl_OPOON_P1[Plan Projected Allowed Amount]) -> 0 | AW74: =IF(OR(AV74=0,AV74=""),"",AV74/tbl_OPOON_P2Ded[[#Totals],[Allowed Claims]]) ->  | AX74: =IF(AW74="","",IF(SUMIF(tbl_OPOON_P2Ded[Deductible],">="&AU74,tbl_OPOON_P2Ded[Portion])>0.5,AU74,"")) ->  | AY74: =IF(COUNTIF(tbl_OPOON_P2Ded[Deductible],tbl_OPOON_P2Ded[[#This Row],[Deductible]])>1,"Remove Duplicate Entry.",IF(AND(tbl_OPOON_P2Ded[[#This Row],[Deductible]]<>"",tbl_OPOON_P2Ded[[#This Row],[Allowed Claims]]=0),"Entry not found in Part 1 Table",IF(AND(OFFSET(tbl_OPOON_P2Ded[[#This Row],[Deductible]],1,0)<>"Total",OFFSET(tbl_OPOON_P2Ded[[#This Row],[Deductible]],1,0)<>"",OFFSET(tbl_OPOON_P2Ded[[#This Row],[Deductible]],1,0)<tbl_OPOON_P2Ded[[#This Row],[Deductible]]),"Sort Entries from lowest to highest",""))) ->  | BE74: =SUMIF(tbl_OPOVOON_P1[Deductible],BD74,tbl_OPOVOON_P1[Plan Projected Allowed Amount]) -> 0 | BF74: =IF(OR(BE74=0,BE74=""),"",BE74/tbl_OPOVOON_P2Ded[[#Totals],[Allowed Claims]]) ->  | BG74: =IF(BF74="","",IF(SUMIF(tbl_OPOVOON_P2Ded[Deductible],">="&BD74,tbl_OPOVOON_P2Ded[Portion])>0.5,BD74,"")) ->  | BH74: =IF(COUNTIF(tbl_OPOVOON_P2Ded[Deductible],tbl_OPOVOON_P2Ded[[#This Row],[Deductible]])>1,"Remove Duplicate Entry.",IF(AND(tbl_OPOVOON_P2Ded[[#This Row],[Deductible]]<>"",tbl_OPOVOON_P2Ded[[#This Row],[Allowed Claims]]=0),"Entry not found in Part 1 Table",IF(AND(OFFSET(tbl_OPOVOON_P2Ded[[#This Row],[Deductible]],1,0)<>"Total",OFFSET(tbl_OPOVOON_P2Ded[[#This Row],[Deductible]],1,0)<>"",OFFSET(tbl_OPOVOON_P2Ded[[#This Row],[Deductible]],1,0)<tbl_OPOVOON_P2Ded[[#This Row],[Deductible]]),"Sort Entries from lowest to highest",""))) ->  | BN74: =SUMIF(tbl_OPAOOON_P1[Deductible],BM74,tbl_OPAOOON_P1[Plan Projected Allowed Amount]) -> 0 | BO74: =IF(OR(BN74=0,BN74=""),"",BN74/tbl_OPAOOON_P2Ded[[#Totals],[Allowed Claims]]) ->  | BP74: =IF(BO74="","",IF(SUMIF(tbl_OPAOOON_P2Ded[Deductible],">="&BM74,tbl_OPAOOON_P2Ded[Portion])>0.5,BM74,"")) ->  | BQ74: =IF(COUNTIF(tbl_OPAOOON_P2Ded[Deductible],tbl_OPAOOON_P2Ded[[#This Row],[Deductible]])>1,"Remove Duplicate Entry.",IF(AND(tbl_OPAOOON_P2Ded[[#This Row],[Deductible]]<>"",tbl_OPAOOON_P2Ded[[#This Row],[Allowed Claims]]=0),"Entry not found in Part 1 Table",IF(AND(OFFSET(tbl_OPAOOON_P2Ded[[#This Row],[Deductible]],1,0)<>"Total",OFFSET(tbl_OPAOOON_P2Ded[[#This Row],[Deductible]],1,0)<>"",OFFSET(tbl_OPAOOON_P2Ded[[#This Row],[Deductible]],1,0)<tbl_OPAOOON_P2Ded[[#This Row],[Deductible]]),"Sort Entries from lowest to highest",""))) ->  | BW74: =SUMIF(tbl_ER_P1[Deductible],BV74,tbl_ER_P1[Plan Projected Allowed Amount]) -> 0 | BX74: =IF(OR(BW74=0,BW74=""),"",BW74/tbl_ER_P2Ded[[#Totals],[Allowed Claims]]) ->  | BY74: =IF(BX74="","",IF(SUMIF(tbl_ER_P2Ded[Deductible],">="&BV74,tbl_ER_P2Ded[Portion])>0.5,BV74,"")) ->  | BZ74: =IF(COUNTIF(tbl_ER_P2Ded[Deductible],tbl_ER_P2Ded[[#This Row],[Deductible]])>1,"Remove Duplicate Entry.",IF(AND(tbl_ER_P2Ded[[#This Row],[Deductible]]<>"",tbl_ER_P2Ded[[#This Row],[Allowed Claims]]=0),"Entry not found in Part 1 Table",IF(AND(OFFSET(tbl_ER_P2Ded[[#This Row],[Deductible]],1,0)<>"Total",OFFSET(tbl_ER_P2Ded[[#This Row],[Deductible]],1,0)<>"",OFFSET(tbl_ER_P2Ded[[#This Row],[Deductible]],1,0)<tbl_ER_P2Ded[[#This Row],[Deductible]]),"Sort Entries from lowest to highest",""))) ->  | CF74: =SUMIF(tbl_RX_P1[Deductible],CE74,tbl_RX_P1[Plan Projected Allowed Amount]) -> 0 | CG74: =IF(OR(CF74=0,CF74=""),"",CF74/tbl_RX_P2Ded[[#Totals],[Allowed Claims]]) ->  | CH74: =IF(CG74="","",IF(SUMIF(tbl_RX_P2Ded[Deductible],">="&CE74,tbl_RX_P2Ded[Portion])>0.5,CE74,"")) ->  | CI74: =IF(COUNTIF(tbl_RX_P2Ded[Deductible],tbl_RX_P2Ded[[#This Row],[Deductible]])>1,"Remove Duplicate Entry.",IF(AND(tbl_RX_P2Ded[[#This Row],[Deductible]]<>"",tbl_RX_P2Ded[[#This Row],[Allowed Claims]]=0),"Entry not found in Part 1 Table",IF(AND(OFFSET(tbl_RX_P2Ded[[#This Row],[Deductible]],1,0)<>"Total",OFFSET(tbl_RX_P2Ded[[#This Row],[Deductible]],1,0)<>"",OFFSET(tbl_RX_P2Ded[[#This Row],[Deductible]],1,0)<tbl_RX_P2Ded[[#This Row],[Deductible]]),"Sort Entries from lowest to highest",""))) -> 
B75: Total | C75: =SUBTOTAL(109,tbl_IPINN_P2Ded[Allowed Claims]) -> 0 | D75: =SUBTOTAL(109,tbl_IPINN_P2Ded[Portion]) -> 0 | F75: =IF(AND(tbl_IPINN_P2Ded[[#Totals],[Allowed Claims]]<C61,E61<>"Fail",E61<>"N/A"),"Add missing cost share values.",IF(C75>D47,"Delete extra row or edit deductible values.","")) ->  | K75: Total | L75: =SUBTOTAL(109,tbl_IPOON_P2Ded[Allowed Claims]) -> 0 | M75: =SUBTOTAL(109,tbl_IPOON_P2Ded[Portion]) -> 0 | O75: =IF(AND(tbl_IPOON_P2Ded[[#Totals],[Allowed Claims]]<L61,N61<>"Fail",N61<>"N/A"),"Add missing cost share values.",IF(L75>M47,"Delete extra row or edit deductible values.","")) ->  | T75: Total | U75: =SUBTOTAL(109,tbl_OPINN_P2Ded[Allowed Claims]) -> 0 | V75: =SUBTOTAL(109,tbl_OPINN_P2Ded[Portion]) -> 0 | X75: =IF(AND(tbl_OPINN_P2Ded[[#Totals],[Allowed Claims]]<U61,W61<>"Fail",W61<>"N/A"),"Add missing cost share values.",IF(U75>V47,"Delete extra row or edit deductible values.","")) ->  | AC75: Total | AD75: =SUBTOTAL(109,tbl_OPOVINN_P2Ded[Allowed Claims]) -> 0 | AE75: =SUBTOTAL(109,tbl_OPOVINN_P2Ded[Portion]) -> 0 | AG75: =IF(AND(tbl_OPOVINN_P2Ded[[#Totals],[Allowed Claims]]<AD61,AF61<>"Fail",AF61<>"N/A"),"Add missing cost share values.",IF(AD75>AE47,"Delete extra row or edit deductible values.","")) ->  | AL75: Total | AM75: =SUBTOTAL(109,tbl_OPAOINN_P2Ded[Allowed Claims]) -> 0 | AN75: =SUBTOTAL(109,tbl_OPAOINN_P2Ded[Portion]) -> 0 | AP75: =IF(AND(tbl_OPAOINN_P2Ded[[#Totals],[Allowed Claims]]<AM61,AO61<>"Fail",AO61<>"N/A"),"Add missing cost share values.",IF(AM75>AN47,"Delete extra row or edit deductible values.","")) ->  | AU75: Total | AV75: =SUBTOTAL(109,tbl_OPOON_P2Ded[Allowed Claims]) -> 0 | AW75: =SUBTOTAL(109,tbl_OPOON_P2Ded[Portion]) -> 0 | AY75: =IF(AND(tbl_OPOON_P2Ded[[#Totals],[Allowed Claims]]<AV61,AX61<>"Fail",AX61<>"N/A"),"Add missing cost share values.",IF(AV75>AW47,"Delete extra row or edit deductible values.","")) ->  | BD75: Total | BE75: =SUBTOTAL(109,tbl_OPOVOON_P2Ded[Allowed Claims]) -> 0 | BF75: =SUBTOTAL(109,tbl_OPOVOON_P2Ded[Portion]) -> 0 | BH75: =IF(AND(tbl_OPOVOON_P2Ded[[#Totals],[Allowed Claims]]<BE61,BG61<>"Fail",BG61<>"N/A"),"Add missing cost share values.",IF(BE75>BF47,"Delete extra row or edit deductible values.","")) ->  | BM75: Total | BN75: =SUBTOTAL(109,tbl_OPAOOON_P2Ded[Allowed Claims]) -> 0 | BO75: =SUBTOTAL(109,tbl_OPAOOON_P2Ded[Portion]) -> 0 | BQ75: =IF(AND(tbl_OPAOOON_P2Ded[[#Totals],[Allowed Claims]]<BN61,BP61<>"Fail",BP61<>"N/A"),"Add missing cost share values.",IF(BN75>BO47,"Delete extra row or edit deductible values.","")) ->  | BV75: Total | BW75: =SUBTOTAL(109,tbl_ER_P2Ded[Allowed Claims]) -> 0 | BX75: =SUBTOTAL(109,tbl_ER_P2Ded[Portion]) -> 0 | BZ75: =IF(AND(tbl_ER_P2Ded[[#Totals],[Allowed Claims]]<BW61,BY61<>"Fail",BY61<>"N/A"),"Add missing cost share values.",IF(BW75>BX47,"Delete extra row or edit deductible values.","")) ->  | CE75: Total | CF75: =SUBTOTAL(109,tbl_RX_P2Ded[Allowed Claims]) -> 0 | CG75: =SUBTOTAL(109,tbl_RX_P2Ded[Portion]) -> 0 | CI75: =IF(AND(tbl_RX_P2Ded[[#Totals],[Allowed Claims]]<CF61,CH61<>"Fail",CH61<>"N/A"),"Add missing cost share values.",IF(CF75>CG47,"Delete extra row or edit deductible values.","")) -> 
B77: =B81&" ---- "&C$32 -> Copayment ---- (1) Inpatient, In-Network (IP INN) | K77: =K81&" ---- "&L$32 -> Copayment ---- (2) Inpatient, Out-of-Network (IP OON) | T77: =T81&" ---- "&U$32 -> Copayment ---- (3) Outpatient, In-Network (OP INN) | AC77: =AC81&" ---- "&AD$32 -> Copayment ---- (3a) Outpatient - Office Visits, In-Network (OP-OV INN) | AL77: =AL81&" ---- "&AM$32 -> Copayment ---- (3b) Outpatient - All Other, In-Network (OP-AO INN) | AU77: =AU81&" ---- "&AV$32 -> Copayment ---- (4) Outpatient, Out-of-Network (OP OON) | BD77: =BD81&" ---- "&BE$32 -> Copayment ---- (4a) Outpatient - Office Visits, Out-of-Network (OP-OV OON) | BM77: =BM81&" ---- "&BN$32 -> Copayment ---- (4b) Outpatient - All Other, Out-of-Network (OP-AO OON) | BV77: =BV81&" ---- "&BW$32 -> Copayment ---- (5) Emergency Care, (ER ) | CE77: =CE81&" ---- "&CF$32 -> Copayment ---- (6) Prescription Drugs, (RX )
B78: =IF(INDEX(D$61:D$64,MATCH(B81,B$61:B$64,0))="","If testing is required for this benefit classification: Please ensure each different cost-share combination is entered above in PART 1.",IF(INDEX(D$61:D$64,MATCH(B81,B$61:B$64,0))>=(2/3),"Applies to substantially all medical/surgical benefits in this classification. ENTER different "&LOWER(B81)&" amounts from smallest to largest.","Does not apply to substantially all medical/surgical benefits in this classification. DELETE any values in the left-hand column below.")) -> If testing is required for this benefit classification: Please ensure each different cost-share combination is entered above in PART 1. | K78: =IF(INDEX(M$61:M$64,MATCH(K81,K$61:K$64,0))="","If testing is required for this benefit classification: Please ensure each different cost-share combination is entered above in PART 1.",IF(INDEX(M$61:M$64,MATCH(K81,K$61:K$64,0))>=(2/3),"Applies to substantially all medical/surgical benefits in this classification. ENTER different "&LOWER(K81)&" amounts from smallest to largest.","Does not apply to substantially all medical/surgical benefits in this classification. DELETE any values in the left-hand column below.")) -> If testing is required for this benefit classification: Please ensure each different cost-share combination is entered above in PART 1. | T78: =IF(INDEX(V$61:V$64,MATCH(T81,T$61:T$64,0))="","If testing is required for this benefit classification: Please ensure each different cost-share combination is entered above in PART 1.",IF(INDEX(V$61:V$64,MATCH(T81,T$61:T$64,0))>=(2/3),"Applies to substantially all medical/surgical benefits in this classification. ENTER different "&LOWER(T81)&" amounts from smallest to largest.","Does not apply to substantially all medical/surgical benefits in this classification. DELETE any values in the left-hand column below.")) -> If testing is required for this benefit classification: Please ensure each different cost-share combination is entered above in PART 1. | AC78: =IF(INDEX(AE$61:AE$64,MATCH(AC81,AC$61:AC$64,0))="","If testing is required for this benefit classification: Please ensure each different cost-share combination is entered above in PART 1.",IF(INDEX(AE$61:AE$64,MATCH(AC81,AC$61:AC$64,0))>=(2/3),"Applies to substantially all medical/surgical benefits in this classification. ENTER different "&LOWER(AC81)&" amounts from smallest to largest.","Does not apply to substantially all medical/surgical benefits in this classification. DELETE any values in the left-hand column below.")) -> If testing is required for this benefit classification: Please ensure each different cost-share combination is entered above in PART 1. | AL78: =IF(INDEX(AN$61:AN$64,MATCH(AL81,AL$61:AL$64,0))="","If testing is required for this benefit classification: Please ensure each different cost-share combination is entered above in PART 1.",IF(INDEX(AN$61:AN$64,MATCH(AL81,AL$61:AL$64,0))>=(2/3),"Applies to substantially all medical/surgical benefits in this classification. ENTER different "&LOWER(AL81)&" amounts from smallest to largest.","Does not apply to substantially all medical/surgical benefits in this classification. DELETE any values in the left-hand column below.")) -> If testing is required for this benefit classification: Please ensure each different cost-share combination is entered above in PART 1. | AU78: =IF(INDEX(AW$61:AW$64,MATCH(AU81,AU$61:AU$64,0))="","If testing is required for this benefit classification: Please ensure each different cost-share combination is entered above in PART 1.",IF(INDEX(AW$61:AW$64,MATCH(AU81,AU$61:AU$64,0))>=(2/3),"Applies to substantially all medical/surgical benefits in this classification. ENTER different "&LOWER(AU81)&" amounts from smallest to largest.","Does not apply to substantially all medical/surgical benefits in this classification. DELETE any values in the left-hand column below.")) -> If testing is required for this benefit classification: Please ensure each different cost-share combination is entered above in PART 1. | BD78: =IF(INDEX(BF$61:BF$64,MATCH(BD81,BD$61:BD$64,0))="","If testing is required for this benefit classification: Please ensure each different cost-share combination is entered above in PART 1.",IF(INDEX(BF$61:BF$64,MATCH(BD81,BD$61:BD$64,0))>=(2/3),"Applies to substantially all medical/surgical benefits in this classification. ENTER different "&LOWER(BD81)&" amounts from smallest to largest.","Does not apply to substantially all medical/surgical benefits in this classification. DELETE any values in the left-hand column below.")) -> If testing is required for this benefit classification: Please ensure each different cost-share combination is entered above in PART 1. | BM78: =IF(INDEX(BO$61:BO$64,MATCH(BM81,BM$61:BM$64,0))="","If testing is required for this benefit classification: Please ensure each different cost-share combination is entered above in PART 1.",IF(INDEX(BO$61:BO$64,MATCH(BM81,BM$61:BM$64,0))>=(2/3),"Applies to substantially all medical/surgical benefits in this classification. ENTER different "&LOWER(BM81)&" amounts from smallest to largest.","Does not apply to substantially all medical/surgical benefits in this classification. DELETE any values in the left-hand column below.")) -> If testing is required for this benefit classification: Please ensure each different cost-share combination is entered above in PART 1. | BV78: =IF(INDEX(BX$61:BX$64,MATCH(BV81,BV$61:BV$64,0))="","If testing is required for this benefit classification: Please ensure each different cost-share combination is entered above in PART 1.",IF(INDEX(BX$61:BX$64,MATCH(BV81,BV$61:BV$64,0))>=(2/3),"Applies to substantially all medical/surgical benefits in this classification. ENTER different "&LOWER(BV81)&" amounts from smallest to largest.","Does not apply to substantially all medical/surgical benefits in this classification. DELETE any values in the left-hand column below.")) -> If testing is required for this benefit classification: Please ensure each different cost-share combination is entered above in PART 1. | CE78: =IF(INDEX(CG$61:CG$64,MATCH(CE81,CE$61:CE$64,0))="","If testing is required for this benefit classification: Please ensure each different cost-share combination is entered above in PART 1.",IF(INDEX(CG$61:CG$64,MATCH(CE81,CE$61:CE$64,0))>=(2/3),"Applies to substantially all medical/surgical benefits in this classification. ENTER different "&LOWER(CE81)&" amounts from smallest to largest.","Does not apply to substantially all medical/surgical benefits in this classification. DELETE any values in the left-hand column below.")) -> If testing is required for this benefit classification: Please ensure each different cost-share combination is entered above in PART 1.
B81: Copayment | C81: Allowed Claims | D81: Portion | E81: Predominant & Smaller | F81: Error Checking | K81: Copayment | L81: Allowed Claims | M81: Portion | N81: Predominant & Smaller | O81: Error Checking | T81: Copayment | U81: Allowed Claims | V81: Portion | W81: Predominant & Smaller | X81: Error Checking | AC81: Copayment | AD81: Allowed Claims | AE81: Portion | AF81: Predominant & Smaller | AG81: Error Checking | AL81: Copayment | AM81: Allowed Claims | AN81: Portion | AO81: Predominant & Smaller | AP81: Error Checking | AU81: Copayment | AV81: Allowed Claims | AW81: Portion | AX81: Predominant & Smaller | AY81: Error Checking | BD81: Copayment | BE81: Allowed Claims | BF81: Portion | BG81: Predominant & Smaller | BH81: Error Checking | BM81: Copayment | BN81: Allowed Claims | BO81: Portion | BP81: Predominant & Smaller | BQ81: Error Checking | BV81: Copayment | BW81: Allowed Claims | BX81: Portion | BY81: Predominant & Smaller | BZ81: Error Checking | CE81: Copayment | CF81: Allowed Claims | CG81: Portion | CH81: Predominant & Smaller | CI81: Error Checking
C82: =SUMIF(tbl_IPINN_P1[Copayment],B82,tbl_IPINN_P1[Plan Projected Allowed Amount]) -> 0 | D82: =IF(OR(C82=0,C82=""),"",C82/tbl_IPINN_P2Cop[[#Totals],[Allowed Claims]]) ->  | E82: =IF(D82="","",IF(SUMIF(tbl_IPINN_P2Cop[Copayment],">="&B82,tbl_IPINN_P2Cop[Portion])>0.5,B82,"")) ->  | F82: =IF(COUNTIF(tbl_IPINN_P2Cop[Copayment],tbl_IPINN_P2Cop[[#This Row],[Copayment]])>1,"Remove Duplicate Entry.",IF(AND(tbl_IPINN_P2Cop[[#This Row],[Copayment]]<>"",tbl_IPINN_P2Cop[[#This Row],[Allowed Claims]]=0),"Entry not found in Part 1 Table",IF(AND(OFFSET(tbl_IPINN_P2Cop[[#This Row],[Copayment]],1,0)<>"Total",OFFSET(tbl_IPINN_P2Cop[[#This Row],[Copayment]],1,0)<>"",OFFSET(tbl_IPINN_P2Cop[[#This Row],[Copayment]],1,0)<tbl_IPINN_P2Cop[[#This Row],[Copayment]]),"Sort Entries from lowest to highest",""))) ->  | L82: =SUMIF(tbl_IPOON_P1[Copayment],K82,tbl_IPOON_P1[Plan Projected Allowed Amount]) -> 0 | M82: =IF(OR(L82=0,L82=""),"",L82/tbl_IPOON_P2Cop[[#Totals],[Allowed Claims]]) ->  | N82: =IF(M82="","",IF(SUMIF(tbl_IPOON_P2Cop[Copayment],">="&K82,tbl_IPOON_P2Cop[Portion])>0.5,K82,"")) ->  | O82: =IF(COUNTIF(tbl_IPOON_P2Cop[Copayment],tbl_IPOON_P2Cop[[#This Row],[Copayment]])>1,"Remove Duplicate Entry.",IF(AND(tbl_IPOON_P2Cop[[#This Row],[Copayment]]<>"",tbl_IPOON_P2Cop[[#This Row],[Allowed Claims]]=0),"Entry not found in Part 1 Table",IF(AND(OFFSET(tbl_IPOON_P2Cop[[#This Row],[Copayment]],1,0)<>"Total",OFFSET(tbl_IPOON_P2Cop[[#This Row],[Copayment]],1,0)<>"",OFFSET(tbl_IPOON_P2Cop[[#This Row],[Copayment]],1,0)<tbl_IPOON_P2Cop[[#This Row],[Copayment]]),"Sort Entries from lowest to highest",""))) ->  | U82: =SUMIF(tbl_OPINN_P1[Copayment],T82,tbl_OPINN_P1[Plan Projected Allowed Amount]) -> 0 | V82: =IF(OR(U82=0,U82=""),"",U82/tbl_OPINN_P2Cop[[#Totals],[Allowed Claims]]) ->  | W82: =IF(V82="","",IF(SUMIF(tbl_OPINN_P2Cop[Copayment],">="&T82,tbl_OPINN_P2Cop[Portion])>0.5,T82,"")) ->  | X82: =IF(COUNTIF(tbl_OPINN_P2Cop[Copayment],tbl_OPINN_P2Cop[[#This Row],[Copayment]])>1,"Remove Duplicate Entry.",IF(AND(tbl_OPINN_P2Cop[[#This Row],[Copayment]]<>"",tbl_OPINN_P2Cop[[#This Row],[Allowed Claims]]=0),"Entry not found in Part 1 Table",IF(AND(OFFSET(tbl_OPINN_P2Cop[[#This Row],[Copayment]],1,0)<>"Total",OFFSET(tbl_OPINN_P2Cop[[#This Row],[Copayment]],1,0)<>"",OFFSET(tbl_OPINN_P2Cop[[#This Row],[Copayment]],1,0)<tbl_OPINN_P2Cop[[#This Row],[Copayment]]),"Sort Entries from lowest to highest",""))) ->  | AD82: =SUMIF(tbl_OPOVINN_P1[Copayment],AC82,tbl_OPOVINN_P1[Plan Projected Allowed Amount]) -> 0 | AE82: =IF(OR(AD82=0,AD82=""),"",AD82/tbl_OPOVINN_P2Cop[[#Totals],[Allowed Claims]]) ->  | AF82: =IF(AE82="","",IF(SUMIF(tbl_OPOVINN_P2Cop[Copayment],">="&AC82,tbl_OPOVINN_P2Cop[Portion])>0.5,AC82,"")) ->  | AG82: =IF(COUNTIF(tbl_OPOVINN_P2Cop[Copayment],tbl_OPOVINN_P2Cop[[#This Row],[Copayment]])>1,"Remove Duplicate Entry.",IF(AND(tbl_OPOVINN_P2Cop[[#This Row],[Copayment]]<>"",tbl_OPOVINN_P2Cop[[#This Row],[Allowed Claims]]=0),"Entry not found in Part 1 Table",IF(AND(OFFSET(tbl_OPOVINN_P2Cop[[#This Row],[Copayment]],1,0)<>"Total",OFFSET(tbl_OPOVINN_P2Cop[[#This Row],[Copayment]],1,0)<>"",OFFSET(tbl_OPOVINN_P2Cop[[#This Row],[Copayment]],1,0)<tbl_OPOVINN_P2Cop[[#This Row],[Copayment]]),"Sort Entries from lowest to highest",""))) ->  | AM82: =SUMIF(tbl_OPAOINN_P1[Copayment],AL82,tbl_OPAOINN_P1[Plan Projected Allowed Amount]) -> 0 | AN82: =IF(OR(AM82=0,AM82=""),"",AM82/tbl_OPAOINN_P2Cop[[#Totals],[Allowed Claims]]) ->  | AO82: =IF(AN82="","",IF(SUMIF(tbl_OPAOINN_P2Cop[Copayment],">="&AL82,tbl_OPAOINN_P2Cop[Portion])>0.5,AL82,"")) ->  | AP82: =IF(COUNTIF(tbl_OPAOINN_P2Cop[Copayment],tbl_OPAOINN_P2Cop[[#This Row],[Copayment]])>1,"Remove Duplicate Entry.",IF(AND(tbl_OPAOINN_P2Cop[[#This Row],[Copayment]]<>"",tbl_OPAOINN_P2Cop[[#This Row],[Allowed Claims]]=0),"Entry not found in Part 1 Table",IF(AND(OFFSET(tbl_OPAOINN_P2Cop[[#This Row],[Copayment]],1,0)<>"Total",OFFSET(tbl_OPAOINN_P2Cop[[#This Row],[Copayment]],1,0)<>"",OFFSET(tbl_OPAOINN_P2Cop[[#This Row],[Copayment]],1,0)<tbl_OPAOINN_P2Cop[[#This Row],[Copayment]]),"Sort Entries from lowest to highest",""))) ->  | AV82: =SUMIF(tbl_OPOON_P1[Copayment],AU82,tbl_OPOON_P1[Plan Projected Allowed Amount]) -> 0 | AW82: =IF(OR(AV82=0,AV82=""),"",AV82/tbl_OPOON_P2Cop[[#Totals],[Allowed Claims]]) ->  | AX82: =IF(AW82="","",IF(SUMIF(tbl_OPOON_P2Cop[Copayment],">="&AU82,tbl_OPOON_P2Cop[Portion])>0.5,AU82,"")) ->  | AY82: =IF(COUNTIF(tbl_OPOON_P2Cop[Copayment],tbl_OPOON_P2Cop[[#This Row],[Copayment]])>1,"Remove Duplicate Entry.",IF(AND(tbl_OPOON_P2Cop[[#This Row],[Copayment]]<>"",tbl_OPOON_P2Cop[[#This Row],[Allowed Claims]]=0),"Entry not found in Part 1 Table",IF(AND(OFFSET(tbl_OPOON_P2Cop[[#This Row],[Copayment]],1,0)<>"Total",OFFSET(tbl_OPOON_P2Cop[[#This Row],[Copayment]],1,0)<>"",OFFSET(tbl_OPOON_P2Cop[[#This Row],[Copayment]],1,0)<tbl_OPOON_P2Cop[[#This Row],[Copayment]]),"Sort Entries from lowest to highest",""))) ->  | BE82: =SUMIF(tbl_OPOVOON_P1[Copayment],BD82,tbl_OPOVOON_P1[Plan Projected Allowed Amount]) -> 0 | BF82: =IF(OR(BE82=0,BE82=""),"",BE82/tbl_OPOVOON_P2Cop[[#Totals],[Allowed Claims]]) ->  | BG82: =IF(BF82="","",IF(SUMIF(tbl_OPOVOON_P2Cop[Copayment],">="&BD82,tbl_OPOVOON_P2Cop[Portion])>0.5,BD82,"")) ->  | BH82: =IF(COUNTIF(tbl_OPOVOON_P2Cop[Copayment],tbl_OPOVOON_P2Cop[[#This Row],[Copayment]])>1,"Remove Duplicate Entry.",IF(AND(tbl_OPOVOON_P2Cop[[#This Row],[Copayment]]<>"",tbl_OPOVOON_P2Cop[[#This Row],[Allowed Claims]]=0),"Entry not found in Part 1 Table",IF(AND(OFFSET(tbl_OPOVOON_P2Cop[[#This Row],[Copayment]],1,0)<>"Total",OFFSET(tbl_OPOVOON_P2Cop[[#This Row],[Copayment]],1,0)<>"",OFFSET(tbl_OPOVOON_P2Cop[[#This Row],[Copayment]],1,0)<tbl_OPOVOON_P2Cop[[#This Row],[Copayment]]),"Sort Entries from lowest to highest",""))) ->  | BN82: =SUMIF(tbl_OPAOOON_P1[Copayment],BM82,tbl_OPAOOON_P1[Plan Projected Allowed Amount]) -> 0 | BO82: =IF(OR(BN82=0,BN82=""),"",BN82/tbl_OPAOOON_P2Cop[[#Totals],[Allowed Claims]]) ->  | BP82: =IF(BO82="","",IF(SUMIF(tbl_OPAOOON_P2Cop[Copayment],">="&BM82,tbl_OPAOOON_P2Cop[Portion])>0.5,BM82,"")) ->  | BQ82: =IF(COUNTIF(tbl_OPAOOON_P2Cop[Copayment],tbl_OPAOOON_P2Cop[[#This Row],[Copayment]])>1,"Remove Duplicate Entry.",IF(AND(tbl_OPAOOON_P2Cop[[#This Row],[Copayment]]<>"",tbl_OPAOOON_P2Cop[[#This Row],[Allowed Claims]]=0),"Entry not found in Part 1 Table",IF(AND(OFFSET(tbl_OPAOOON_P2Cop[[#This Row],[Copayment]],1,0)<>"Total",OFFSET(tbl_OPAOOON_P2Cop[[#This Row],[Copayment]],1,0)<>"",OFFSET(tbl_OPAOOON_P2Cop[[#This Row],[Copayment]],1,0)<tbl_OPAOOON_P2Cop[[#This Row],[Copayment]]),"Sort Entries from lowest to highest",""))) ->  | BW82: =SUMIF(tbl_ER_P1[Copayment],BV82,tbl_ER_P1[Plan Projected Allowed Amount]) -> 0 | BX82: =IF(OR(BW82=0,BW82=""),"",BW82/tbl_ER_P2Cop[[#Totals],[Allowed Claims]]) ->  | BY82: =IF(BX82="","",IF(SUMIF(tbl_ER_P2Cop[Copayment],">="&BV82,tbl_ER_P2Cop[Portion])>0.5,BV82,"")) ->  | BZ82: =IF(COUNTIF(tbl_ER_P2Cop[Copayment],tbl_ER_P2Cop[[#This Row],[Copayment]])>1,"Remove Duplicate Entry.",IF(AND(tbl_ER_P2Cop[[#This Row],[Copayment]]<>"",tbl_ER_P2Cop[[#This Row],[Allowed Claims]]=0),"Entry not found in Part 1 Table",IF(AND(OFFSET(tbl_ER_P2Cop[[#This Row],[Copayment]],1,0)<>"Total",OFFSET(tbl_ER_P2Cop[[#This Row],[Copayment]],1,0)<>"",OFFSET(tbl_ER_P2Cop[[#This Row],[Copayment]],1,0)<tbl_ER_P2Cop[[#This Row],[Copayment]]),"Sort Entries from lowest to highest",""))) ->  | CF82: =SUMIF(tbl_RX_P1[Copayment],CE82,tbl_RX_P1[Plan Projected Allowed Amount]) -> 0 | CG82: =IF(OR(CF82=0,CF82=""),"",CF82/tbl_RX_P2Cop[[#Totals],[Allowed Claims]]) ->  | CH82: =IF(CG82="","",IF(SUMIF(tbl_RX_P2Cop[Copayment],">="&CE82,tbl_RX_P2Cop[Portion])>0.5,CE82,"")) ->  | CI82: =IF(COUNTIF(tbl_RX_P2Cop[Copayment],tbl_RX_P2Cop[[#This Row],[Copayment]])>1,"Remove Duplicate Entry.",IF(AND(tbl_RX_P2Cop[[#This Row],[Copayment]]<>"",tbl_RX_P2Cop[[#This Row],[Allowed Claims]]=0),"Entry not found in Part 1 Table",IF(AND(OFFSET(tbl_RX_P2Cop[[#This Row],[Copayment]],1,0)<>"Total",OFFSET(tbl_RX_P2Cop[[#This Row],[Copayment]],1,0)<>"",OFFSET(tbl_RX_P2Cop[[#This Row],[Copayment]],1,0)<tbl_RX_P2Cop[[#This Row],[Copayment]]),"Sort Entries from lowest to highest",""))) -> 
C83: =SUMIF(tbl_IPINN_P1[Copayment],B83,tbl_IPINN_P1[Plan Projected Allowed Amount]) -> 0 | D83: =IF(OR(C83=0,C83=""),"",C83/tbl_IPINN_P2Cop[[#Totals],[Allowed Claims]]) ->  | E83: =IF(D83="","",IF(SUMIF(tbl_IPINN_P2Cop[Copayment],">="&B83,tbl_IPINN_P2Cop[Portion])>0.5,B83,"")) ->  | F83: =IF(COUNTIF(tbl_IPINN_P2Cop[Copayment],tbl_IPINN_P2Cop[[#This Row],[Copayment]])>1,"Remove Duplicate Entry.",IF(AND(tbl_IPINN_P2Cop[[#This Row],[Copayment]]<>"",tbl_IPINN_P2Cop[[#This Row],[Allowed Claims]]=0),"Entry not found in Part 1 Table",IF(AND(OFFSET(tbl_IPINN_P2Cop[[#This Row],[Copayment]],1,0)<>"Total",OFFSET(tbl_IPINN_P2Cop[[#This Row],[Copayment]],1,0)<>"",OFFSET(tbl_IPINN_P2Cop[[#This Row],[Copayment]],1,0)<tbl_IPINN_P2Cop[[#This Row],[Copayment]]),"Sort Entries from lowest to highest",""))) ->  | L83: =SUMIF(tbl_IPOON_P1[Copayment],K83,tbl_IPOON_P1[Plan Projected Allowed Amount]) -> 0 | M83: =IF(OR(L83=0,L83=""),"",L83/tbl_IPOON_P2Cop[[#Totals],[Allowed Claims]]) ->  | N83: =IF(M83="","",IF(SUMIF(tbl_IPOON_P2Cop[Copayment],">="&K83,tbl_IPOON_P2Cop[Portion])>0.5,K83,"")) ->  | O83: =IF(COUNTIF(tbl_IPOON_P2Cop[Copayment],tbl_IPOON_P2Cop[[#This Row],[Copayment]])>1,"Remove Duplicate Entry.",IF(AND(tbl_IPOON_P2Cop[[#This Row],[Copayment]]<>"",tbl_IPOON_P2Cop[[#This Row],[Allowed Claims]]=0),"Entry not found in Part 1 Table",IF(AND(OFFSET(tbl_IPOON_P2Cop[[#This Row],[Copayment]],1,0)<>"Total",OFFSET(tbl_IPOON_P2Cop[[#This Row],[Copayment]],1,0)<>"",OFFSET(tbl_IPOON_P2Cop[[#This Row],[Copayment]],1,0)<tbl_IPOON_P2Cop[[#This Row],[Copayment]]),"Sort Entries from lowest to highest",""))) ->  | U83: =SUMIF(tbl_OPINN_P1[Copayment],T83,tbl_OPINN_P1[Plan Projected Allowed Amount]) -> 0 | V83: =IF(OR(U83=0,U83=""),"",U83/tbl_OPINN_P2Cop[[#Totals],[Allowed Claims]]) ->  | W83: =IF(V83="","",IF(SUMIF(tbl_OPINN_P2Cop[Copayment],">="&T83,tbl_OPINN_P2Cop[Portion])>0.5,T83,"")) ->  | X83: =IF(COUNTIF(tbl_OPINN_P2Cop[Copayment],tbl_OPINN_P2Cop[[#This Row],[Copayment]])>1,"Remove Duplicate Entry.",IF(AND(tbl_OPINN_P2Cop[[#This Row],[Copayment]]<>"",tbl_OPINN_P2Cop[[#This Row],[Allowed Claims]]=0),"Entry not found in Part 1 Table",IF(AND(OFFSET(tbl_OPINN_P2Cop[[#This Row],[Copayment]],1,0)<>"Total",OFFSET(tbl_OPINN_P2Cop[[#This Row],[Copayment]],1,0)<>"",OFFSET(tbl_OPINN_P2Cop[[#This Row],[Copayment]],1,0)<tbl_OPINN_P2Cop[[#This Row],[Copayment]]),"Sort Entries from lowest to highest",""))) ->  | AD83: =SUMIF(tbl_OPOVINN_P1[Copayment],AC83,tbl_OPOVINN_P1[Plan Projected Allowed Amount]) -> 0 | AE83: =IF(OR(AD83=0,AD83=""),"",AD83/tbl_OPOVINN_P2Cop[[#Totals],[Allowed Claims]]) ->  | AF83: =IF(AE83="","",IF(SUMIF(tbl_OPOVINN_P2Cop[Copayment],">="&AC83,tbl_OPOVINN_P2Cop[Portion])>0.5,AC83,"")) ->  | AG83: =IF(COUNTIF(tbl_OPOVINN_P2Cop[Copayment],tbl_OPOVINN_P2Cop[[#This Row],[Copayment]])>1,"Remove Duplicate Entry.",IF(AND(tbl_OPOVINN_P2Cop[[#This Row],[Copayment]]<>"",tbl_OPOVINN_P2Cop[[#This Row],[Allowed Claims]]=0),"Entry not found in Part 1 Table",IF(AND(OFFSET(tbl_OPOVINN_P2Cop[[#This Row],[Copayment]],1,0)<>"Total",OFFSET(tbl_OPOVINN_P2Cop[[#This Row],[Copayment]],1,0)<>"",OFFSET(tbl_OPOVINN_P2Cop[[#This Row],[Copayment]],1,0)<tbl_OPOVINN_P2Cop[[#This Row],[Copayment]]),"Sort Entries from lowest to highest",""))) ->  | AM83: =SUMIF(tbl_OPAOINN_P1[Copayment],AL83,tbl_OPAOINN_P1[Plan Projected Allowed Amount]) -> 0 | AN83: =IF(OR(AM83=0,AM83=""),"",AM83/tbl_OPAOINN_P2Cop[[#Totals],[Allowed Claims]]) ->  | AO83: =IF(AN83="","",IF(SUMIF(tbl_OPAOINN_P2Cop[Copayment],">="&AL83,tbl_OPAOINN_P2Cop[Portion])>0.5,AL83,"")) ->  | AP83: =IF(COUNTIF(tbl_OPAOINN_P2Cop[Copayment],tbl_OPAOINN_P2Cop[[#This Row],[Copayment]])>1,"Remove Duplicate Entry.",IF(AND(tbl_OPAOINN_P2Cop[[#This Row],[Copayment]]<>"",tbl_OPAOINN_P2Cop[[#This Row],[Allowed Claims]]=0),"Entry not found in Part 1 Table",IF(AND(OFFSET(tbl_OPAOINN_P2Cop[[#This Row],[Copayment]],1,0)<>"Total",OFFSET(tbl_OPAOINN_P2Cop[[#This Row],[Copayment]],1,0)<>"",OFFSET(tbl_OPAOINN_P2Cop[[#This Row],[Copayment]],1,0)<tbl_OPAOINN_P2Cop[[#This Row],[Copayment]]),"Sort Entries from lowest to highest",""))) ->  | AV83: =SUMIF(tbl_OPOON_P1[Copayment],AU83,tbl_OPOON_P1[Plan Projected Allowed Amount]) -> 0 | AW83: =IF(OR(AV83=0,AV83=""),"",AV83/tbl_OPOON_P2Cop[[#Totals],[Allowed Claims]]) ->  | AX83: =IF(AW83="","",IF(SUMIF(tbl_OPOON_P2Cop[Copayment],">="&AU83,tbl_OPOON_P2Cop[Portion])>0.5,AU83,"")) ->  | AY83: =IF(COUNTIF(tbl_OPOON_P2Cop[Copayment],tbl_OPOON_P2Cop[[#This Row],[Copayment]])>1,"Remove Duplicate Entry.",IF(AND(tbl_OPOON_P2Cop[[#This Row],[Copayment]]<>"",tbl_OPOON_P2Cop[[#This Row],[Allowed Claims]]=0),"Entry not found in Part 1 Table",IF(AND(OFFSET(tbl_OPOON_P2Cop[[#This Row],[Copayment]],1,0)<>"Total",OFFSET(tbl_OPOON_P2Cop[[#This Row],[Copayment]],1,0)<>"",OFFSET(tbl_OPOON_P2Cop[[#This Row],[Copayment]],1,0)<tbl_OPOON_P2Cop[[#This Row],[Copayment]]),"Sort Entries from lowest to highest",""))) ->  | BE83: =SUMIF(tbl_OPOVOON_P1[Copayment],BD83,tbl_OPOVOON_P1[Plan Projected Allowed Amount]) -> 0 | BF83: =IF(OR(BE83=0,BE83=""),"",BE83/tbl_OPOVOON_P2Cop[[#Totals],[Allowed Claims]]) ->  | BG83: =IF(BF83="","",IF(SUMIF(tbl_OPOVOON_P2Cop[Copayment],">="&BD83,tbl_OPOVOON_P2Cop[Portion])>0.5,BD83,"")) ->  | BH83: =IF(COUNTIF(tbl_OPOVOON_P2Cop[Copayment],tbl_OPOVOON_P2Cop[[#This Row],[Copayment]])>1,"Remove Duplicate Entry.",IF(AND(tbl_OPOVOON_P2Cop[[#This Row],[Copayment]]<>"",tbl_OPOVOON_P2Cop[[#This Row],[Allowed Claims]]=0),"Entry not found in Part 1 Table",IF(AND(OFFSET(tbl_OPOVOON_P2Cop[[#This Row],[Copayment]],1,0)<>"Total",OFFSET(tbl_OPOVOON_P2Cop[[#This Row],[Copayment]],1,0)<>"",OFFSET(tbl_OPOVOON_P2Cop[[#This Row],[Copayment]],1,0)<tbl_OPOVOON_P2Cop[[#This Row],[Copayment]]),"Sort Entries from lowest to highest",""))) ->  | BN83: =SUMIF(tbl_OPAOOON_P1[Copayment],BM83,tbl_OPAOOON_P1[Plan Projected Allowed Amount]) -> 0 | BO83: =IF(OR(BN83=0,BN83=""),"",BN83/tbl_OPAOOON_P2Cop[[#Totals],[Allowed Claims]]) ->  | BP83: =IF(BO83="","",IF(SUMIF(tbl_OPAOOON_P2Cop[Copayment],">="&BM83,tbl_OPAOOON_P2Cop[Portion])>0.5,BM83,"")) ->  | BQ83: =IF(COUNTIF(tbl_OPAOOON_P2Cop[Copayment],tbl_OPAOOON_P2Cop[[#This Row],[Copayment]])>1,"Remove Duplicate Entry.",IF(AND(tbl_OPAOOON_P2Cop[[#This Row],[Copayment]]<>"",tbl_OPAOOON_P2Cop[[#This Row],[Allowed Claims]]=0),"Entry not found in Part 1 Table",IF(AND(OFFSET(tbl_OPAOOON_P2Cop[[#This Row],[Copayment]],1,0)<>"Total",OFFSET(tbl_OPAOOON_P2Cop[[#This Row],[Copayment]],1,0)<>"",OFFSET(tbl_OPAOOON_P2Cop[[#This Row],[Copayment]],1,0)<tbl_OPAOOON_P2Cop[[#This Row],[Copayment]]),"Sort Entries from lowest to highest",""))) ->  | BW83: =SUMIF(tbl_ER_P1[Copayment],BV83,tbl_ER_P1[Plan Projected Allowed Amount]) -> 0 | BX83: =IF(OR(BW83=0,BW83=""),"",BW83/tbl_ER_P2Cop[[#Totals],[Allowed Claims]]) ->  | BY83: =IF(BX83="","",IF(SUMIF(tbl_ER_P2Cop[Copayment],">="&BV83,tbl_ER_P2Cop[Portion])>0.5,BV83,"")) ->  | BZ83: =IF(COUNTIF(tbl_ER_P2Cop[Copayment],tbl_ER_P2Cop[[#This Row],[Copayment]])>1,"Remove Duplicate Entry.",IF(AND(tbl_ER_P2Cop[[#This Row],[Copayment]]<>"",tbl_ER_P2Cop[[#This Row],[Allowed Claims]]=0),"Entry not found in Part 1 Table",IF(AND(OFFSET(tbl_ER_P2Cop[[#This Row],[Copayment]],1,0)<>"Total",OFFSET(tbl_ER_P2Cop[[#This Row],[Copayment]],1,0)<>"",OFFSET(tbl_ER_P2Cop[[#This Row],[Copayment]],1,0)<tbl_ER_P2Cop[[#This Row],[Copayment]]),"Sort Entries from lowest to highest",""))) ->  | CF83: =SUMIF(tbl_RX_P1[Copayment],CE83,tbl_RX_P1[Plan Projected Allowed Amount]) -> 0 | CG83: =IF(OR(CF83=0,CF83=""),"",CF83/tbl_RX_P2Cop[[#Totals],[Allowed Claims]]) ->  | CH83: =IF(CG83="","",IF(SUMIF(tbl_RX_P2Cop[Copayment],">="&CE83,tbl_RX_P2Cop[Portion])>0.5,CE83,"")) ->  | CI83: =IF(COUNTIF(tbl_RX_P2Cop[Copayment],tbl_RX_P2Cop[[#This Row],[Copayment]])>1,"Remove Duplicate Entry.",IF(AND(tbl_RX_P2Cop[[#This Row],[Copayment]]<>"",tbl_RX_P2Cop[[#This Row],[Allowed Claims]]=0),"Entry not found in Part 1 Table",IF(AND(OFFSET(tbl_RX_P2Cop[[#This Row],[Copayment]],1,0)<>"Total",OFFSET(tbl_RX_P2Cop[[#This Row],[Copayment]],1,0)<>"",OFFSET(tbl_RX_P2Cop[[#This Row],[Copayment]],1,0)<tbl_RX_P2Cop[[#This Row],[Copayment]]),"Sort Entries from lowest to highest",""))) -> 
C84: =SUMIF(tbl_IPINN_P1[Copayment],B84,tbl_IPINN_P1[Plan Projected Allowed Amount]) -> 0 | D84: =IF(OR(C84=0,C84=""),"",C84/tbl_IPINN_P2Cop[[#Totals],[Allowed Claims]]) ->  | E84: =IF(D84="","",IF(SUMIF(tbl_IPINN_P2Cop[Copayment],">="&B84,tbl_IPINN_P2Cop[Portion])>0.5,B84,"")) ->  | F84: =IF(COUNTIF(tbl_IPINN_P2Cop[Copayment],tbl_IPINN_P2Cop[[#This Row],[Copayment]])>1,"Remove Duplicate Entry.",IF(AND(tbl_IPINN_P2Cop[[#This Row],[Copayment]]<>"",tbl_IPINN_P2Cop[[#This Row],[Allowed Claims]]=0),"Entry not found in Part 1 Table",IF(AND(OFFSET(tbl_IPINN_P2Cop[[#This Row],[Copayment]],1,0)<>"Total",OFFSET(tbl_IPINN_P2Cop[[#This Row],[Copayment]],1,0)<>"",OFFSET(tbl_IPINN_P2Cop[[#This Row],[Copayment]],1,0)<tbl_IPINN_P2Cop[[#This Row],[Copayment]]),"Sort Entries from lowest to highest",""))) ->  | L84: =SUMIF(tbl_IPOON_P1[Copayment],K84,tbl_IPOON_P1[Plan Projected Allowed Amount]) -> 0 | M84: =IF(OR(L84=0,L84=""),"",L84/tbl_IPOON_P2Cop[[#Totals],[Allowed Claims]]) ->  | N84: =IF(M84="","",IF(SUMIF(tbl_IPOON_P2Cop[Copayment],">="&K84,tbl_IPOON_P2Cop[Portion])>0.5,K84,"")) ->  | O84: =IF(COUNTIF(tbl_IPOON_P2Cop[Copayment],tbl_IPOON_P2Cop[[#This Row],[Copayment]])>1,"Remove Duplicate Entry.",IF(AND(tbl_IPOON_P2Cop[[#This Row],[Copayment]]<>"",tbl_IPOON_P2Cop[[#This Row],[Allowed Claims]]=0),"Entry not found in Part 1 Table",IF(AND(OFFSET(tbl_IPOON_P2Cop[[#This Row],[Copayment]],1,0)<>"Total",OFFSET(tbl_IPOON_P2Cop[[#This Row],[Copayment]],1,0)<>"",OFFSET(tbl_IPOON_P2Cop[[#This Row],[Copayment]],1,0)<tbl_IPOON_P2Cop[[#This Row],[Copayment]]),"Sort Entries from lowest to highest",""))) ->  | U84: =SUMIF(tbl_OPINN_P1[Copayment],T84,tbl_OPINN_P1[Plan Projected Allowed Amount]) -> 0 | V84: =IF(OR(U84=0,U84=""),"",U84/tbl_OPINN_P2Cop[[#Totals],[Allowed Claims]]) ->  | W84: =IF(V84="","",IF(SUMIF(tbl_OPINN_P2Cop[Copayment],">="&T84,tbl_OPINN_P2Cop[Portion])>0.5,T84,"")) ->  | X84: =IF(COUNTIF(tbl_OPINN_P2Cop[Copayment],tbl_OPINN_P2Cop[[#This Row],[Copayment]])>1,"Remove Duplicate Entry.",IF(AND(tbl_OPINN_P2Cop[[#This Row],[Copayment]]<>"",tbl_OPINN_P2Cop[[#This Row],[Allowed Claims]]=0),"Entry not found in Part 1 Table",IF(AND(OFFSET(tbl_OPINN_P2Cop[[#This Row],[Copayment]],1,0)<>"Total",OFFSET(tbl_OPINN_P2Cop[[#This Row],[Copayment]],1,0)<>"",OFFSET(tbl_OPINN_P2Cop[[#This Row],[Copayment]],1,0)<tbl_OPINN_P2Cop[[#This Row],[Copayment]]),"Sort Entries from lowest to highest",""))) ->  | AD84: =SUMIF(tbl_OPOVINN_P1[Copayment],AC84,tbl_OPOVINN_P1[Plan Projected Allowed Amount]) -> 0 | AE84: =IF(OR(AD84=0,AD84=""),"",AD84/tbl_OPOVINN_P2Cop[[#Totals],[Allowed Claims]]) ->  | AF84: =IF(AE84="","",IF(SUMIF(tbl_OPOVINN_P2Cop[Copayment],">="&AC84,tbl_OPOVINN_P2Cop[Portion])>0.5,AC84,"")) ->  | AG84: =IF(COUNTIF(tbl_OPOVINN_P2Cop[Copayment],tbl_OPOVINN_P2Cop[[#This Row],[Copayment]])>1,"Remove Duplicate Entry.",IF(AND(tbl_OPOVINN_P2Cop[[#This Row],[Copayment]]<>"",tbl_OPOVINN_P2Cop[[#This Row],[Allowed Claims]]=0),"Entry not found in Part 1 Table",IF(AND(OFFSET(tbl_OPOVINN_P2Cop[[#This Row],[Copayment]],1,0)<>"Total",OFFSET(tbl_OPOVINN_P2Cop[[#This Row],[Copayment]],1,0)<>"",OFFSET(tbl_OPOVINN_P2Cop[[#This Row],[Copayment]],1,0)<tbl_OPOVINN_P2Cop[[#This Row],[Copayment]]),"Sort Entries from lowest to highest",""))) ->  | AM84: =SUMIF(tbl_OPAOINN_P1[Copayment],AL84,tbl_OPAOINN_P1[Plan Projected Allowed Amount]) -> 0 | AN84: =IF(OR(AM84=0,AM84=""),"",AM84/tbl_OPAOINN_P2Cop[[#Totals],[Allowed Claims]]) ->  | AO84: =IF(AN84="","",IF(SUMIF(tbl_OPAOINN_P2Cop[Copayment],">="&AL84,tbl_OPAOINN_P2Cop[Portion])>0.5,AL84,"")) ->  | AP84: =IF(COUNTIF(tbl_OPAOINN_P2Cop[Copayment],tbl_OPAOINN_P2Cop[[#This Row],[Copayment]])>1,"Remove Duplicate Entry.",IF(AND(tbl_OPAOINN_P2Cop[[#This Row],[Copayment]]<>"",tbl_OPAOINN_P2Cop[[#This Row],[Allowed Claims]]=0),"Entry not found in Part 1 Table",IF(AND(OFFSET(tbl_OPAOINN_P2Cop[[#This Row],[Copayment]],1,0)<>"Total",OFFSET(tbl_OPAOINN_P2Cop[[#This Row],[Copayment]],1,0)<>"",OFFSET(tbl_OPAOINN_P2Cop[[#This Row],[Copayment]],1,0)<tbl_OPAOINN_P2Cop[[#This Row],[Copayment]]),"Sort Entries from lowest to highest",""))) ->  | AV84: =SUMIF(tbl_OPOON_P1[Copayment],AU84,tbl_OPOON_P1[Plan Projected Allowed Amount]) -> 0 | AW84: =IF(OR(AV84=0,AV84=""),"",AV84/tbl_OPOON_P2Cop[[#Totals],[Allowed Claims]]) ->  | AX84: =IF(AW84="","",IF(SUMIF(tbl_OPOON_P2Cop[Copayment],">="&AU84,tbl_OPOON_P2Cop[Portion])>0.5,AU84,"")) ->  | AY84: =IF(COUNTIF(tbl_OPOON_P2Cop[Copayment],tbl_OPOON_P2Cop[[#This Row],[Copayment]])>1,"Remove Duplicate Entry.",IF(AND(tbl_OPOON_P2Cop[[#This Row],[Copayment]]<>"",tbl_OPOON_P2Cop[[#This Row],[Allowed Claims]]=0),"Entry not found in Part 1 Table",IF(AND(OFFSET(tbl_OPOON_P2Cop[[#This Row],[Copayment]],1,0)<>"Total",OFFSET(tbl_OPOON_P2Cop[[#This Row],[Copayment]],1,0)<>"",OFFSET(tbl_OPOON_P2Cop[[#This Row],[Copayment]],1,0)<tbl_OPOON_P2Cop[[#This Row],[Copayment]]),"Sort Entries from lowest to highest",""))) ->  | BE84: =SUMIF(tbl_OPOVOON_P1[Copayment],BD84,tbl_OPOVOON_P1[Plan Projected Allowed Amount]) -> 0 | BF84: =IF(OR(BE84=0,BE84=""),"",BE84/tbl_OPOVOON_P2Cop[[#Totals],[Allowed Claims]]) ->  | BG84: =IF(BF84="","",IF(SUMIF(tbl_OPOVOON_P2Cop[Copayment],">="&BD84,tbl_OPOVOON_P2Cop[Portion])>0.5,BD84,"")) ->  | BH84: =IF(COUNTIF(tbl_OPOVOON_P2Cop[Copayment],tbl_OPOVOON_P2Cop[[#This Row],[Copayment]])>1,"Remove Duplicate Entry.",IF(AND(tbl_OPOVOON_P2Cop[[#This Row],[Copayment]]<>"",tbl_OPOVOON_P2Cop[[#This Row],[Allowed Claims]]=0),"Entry not found in Part 1 Table",IF(AND(OFFSET(tbl_OPOVOON_P2Cop[[#This Row],[Copayment]],1,0)<>"Total",OFFSET(tbl_OPOVOON_P2Cop[[#This Row],[Copayment]],1,0)<>"",OFFSET(tbl_OPOVOON_P2Cop[[#This Row],[Copayment]],1,0)<tbl_OPOVOON_P2Cop[[#This Row],[Copayment]]),"Sort Entries from lowest to highest",""))) ->  | BN84: =SUMIF(tbl_OPAOOON_P1[Copayment],BM84,tbl_OPAOOON_P1[Plan Projected Allowed Amount]) -> 0 | BO84: =IF(OR(BN84=0,BN84=""),"",BN84/tbl_OPAOOON_P2Cop[[#Totals],[Allowed Claims]]) ->  | BP84: =IF(BO84="","",IF(SUMIF(tbl_OPAOOON_P2Cop[Copayment],">="&BM84,tbl_OPAOOON_P2Cop[Portion])>0.5,BM84,"")) ->  | BQ84: =IF(COUNTIF(tbl_OPAOOON_P2Cop[Copayment],tbl_OPAOOON_P2Cop[[#This Row],[Copayment]])>1,"Remove Duplicate Entry.",IF(AND(tbl_OPAOOON_P2Cop[[#This Row],[Copayment]]<>"",tbl_OPAOOON_P2Cop[[#This Row],[Allowed Claims]]=0),"Entry not found in Part 1 Table",IF(AND(OFFSET(tbl_OPAOOON_P2Cop[[#This Row],[Copayment]],1,0)<>"Total",OFFSET(tbl_OPAOOON_P2Cop[[#This Row],[Copayment]],1,0)<>"",OFFSET(tbl_OPAOOON_P2Cop[[#This Row],[Copayment]],1,0)<tbl_OPAOOON_P2Cop[[#This Row],[Copayment]]),"Sort Entries from lowest to highest",""))) ->  | BW84: =SUMIF(tbl_ER_P1[Copayment],BV84,tbl_ER_P1[Plan Projected Allowed Amount]) -> 0 | BX84: =IF(OR(BW84=0,BW84=""),"",BW84/tbl_ER_P2Cop[[#Totals],[Allowed Claims]]) ->  | BY84: =IF(BX84="","",IF(SUMIF(tbl_ER_P2Cop[Copayment],">="&BV84,tbl_ER_P2Cop[Portion])>0.5,BV84,"")) ->  | BZ84: =IF(COUNTIF(tbl_ER_P2Cop[Copayment],tbl_ER_P2Cop[[#This Row],[Copayment]])>1,"Remove Duplicate Entry.",IF(AND(tbl_ER_P2Cop[[#This Row],[Copayment]]<>"",tbl_ER_P2Cop[[#This Row],[Allowed Claims]]=0),"Entry not found in Part 1 Table",IF(AND(OFFSET(tbl_ER_P2Cop[[#This Row],[Copayment]],1,0)<>"Total",OFFSET(tbl_ER_P2Cop[[#This Row],[Copayment]],1,0)<>"",OFFSET(tbl_ER_P2Cop[[#This Row],[Copayment]],1,0)<tbl_ER_P2Cop[[#This Row],[Copayment]]),"Sort Entries from lowest to highest",""))) ->  | CF84: =SUMIF(tbl_RX_P1[Copayment],CE84,tbl_RX_P1[Plan Projected Allowed Amount]) -> 0 | CG84: =IF(OR(CF84=0,CF84=""),"",CF84/tbl_RX_P2Cop[[#Totals],[Allowed Claims]]) ->  | CH84: =IF(CG84="","",IF(SUMIF(tbl_RX_P2Cop[Copayment],">="&CE84,tbl_RX_P2Cop[Portion])>0.5,CE84,"")) ->  | CI84: =IF(COUNTIF(tbl_RX_P2Cop[Copayment],tbl_RX_P2Cop[[#This Row],[Copayment]])>1,"Remove Duplicate Entry.",IF(AND(tbl_RX_P2Cop[[#This Row],[Copayment]]<>"",tbl_RX_P2Cop[[#This Row],[Allowed Claims]]=0),"Entry not found in Part 1 Table",IF(AND(OFFSET(tbl_RX_P2Cop[[#This Row],[Copayment]],1,0)<>"Total",OFFSET(tbl_RX_P2Cop[[#This Row],[Copayment]],1,0)<>"",OFFSET(tbl_RX_P2Cop[[#This Row],[Copayment]],1,0)<tbl_RX_P2Cop[[#This Row],[Copayment]]),"Sort Entries from lowest to highest",""))) -> 
C85: =SUMIF(tbl_IPINN_P1[Copayment],B85,tbl_IPINN_P1[Plan Projected Allowed Amount]) -> 0 | D85: =IF(OR(C85=0,C85=""),"",C85/tbl_IPINN_P2Cop[[#Totals],[Allowed Claims]]) ->  | E85: =IF(D85="","",IF(SUMIF(tbl_IPINN_P2Cop[Copayment],">="&B85,tbl_IPINN_P2Cop[Portion])>0.5,B85,"")) ->  | F85: =IF(COUNTIF(tbl_IPINN_P2Cop[Copayment],tbl_IPINN_P2Cop[[#This Row],[Copayment]])>1,"Remove Duplicate Entry.",IF(AND(tbl_IPINN_P2Cop[[#This Row],[Copayment]]<>"",tbl_IPINN_P2Cop[[#This Row],[Allowed Claims]]=0),"Entry not found in Part 1 Table",IF(AND(OFFSET(tbl_IPINN_P2Cop[[#This Row],[Copayment]],1,0)<>"Total",OFFSET(tbl_IPINN_P2Cop[[#This Row],[Copayment]],1,0)<>"",OFFSET(tbl_IPINN_P2Cop[[#This Row],[Copayment]],1,0)<tbl_IPINN_P2Cop[[#This Row],[Copayment]]),"Sort Entries from lowest to highest",""))) ->  | L85: =SUMIF(tbl_IPOON_P1[Copayment],K85,tbl_IPOON_P1[Plan Projected Allowed Amount]) -> 0 | M85: =IF(OR(L85=0,L85=""),"",L85/tbl_IPOON_P2Cop[[#Totals],[Allowed Claims]]) ->  | N85: =IF(M85="","",IF(SUMIF(tbl_IPOON_P2Cop[Copayment],">="&K85,tbl_IPOON_P2Cop[Portion])>0.5,K85,"")) ->  | O85: =IF(COUNTIF(tbl_IPOON_P2Cop[Copayment],tbl_IPOON_P2Cop[[#This Row],[Copayment]])>1,"Remove Duplicate Entry.",IF(AND(tbl_IPOON_P2Cop[[#This Row],[Copayment]]<>"",tbl_IPOON_P2Cop[[#This Row],[Allowed Claims]]=0),"Entry not found in Part 1 Table",IF(AND(OFFSET(tbl_IPOON_P2Cop[[#This Row],[Copayment]],1,0)<>"Total",OFFSET(tbl_IPOON_P2Cop[[#This Row],[Copayment]],1,0)<>"",OFFSET(tbl_IPOON_P2Cop[[#This Row],[Copayment]],1,0)<tbl_IPOON_P2Cop[[#This Row],[Copayment]]),"Sort Entries from lowest to highest",""))) ->  | U85: =SUMIF(tbl_OPINN_P1[Copayment],T85,tbl_OPINN_P1[Plan Projected Allowed Amount]) -> 0 | V85: =IF(OR(U85=0,U85=""),"",U85/tbl_OPINN_P2Cop[[#Totals],[Allowed Claims]]) ->  | W85: =IF(V85="","",IF(SUMIF(tbl_OPINN_P2Cop[Copayment],">="&T85,tbl_OPINN_P2Cop[Portion])>0.5,T85,"")) ->  | X85: =IF(COUNTIF(tbl_OPINN_P2Cop[Copayment],tbl_OPINN_P2Cop[[#This Row],[Copayment]])>1,"Remove Duplicate Entry.",IF(AND(tbl_OPINN_P2Cop[[#This Row],[Copayment]]<>"",tbl_OPINN_P2Cop[[#This Row],[Allowed Claims]]=0),"Entry not found in Part 1 Table",IF(AND(OFFSET(tbl_OPINN_P2Cop[[#This Row],[Copayment]],1,0)<>"Total",OFFSET(tbl_OPINN_P2Cop[[#This Row],[Copayment]],1,0)<>"",OFFSET(tbl_OPINN_P2Cop[[#This Row],[Copayment]],1,0)<tbl_OPINN_P2Cop[[#This Row],[Copayment]]),"Sort Entries from lowest to highest",""))) ->  | AD85: =SUMIF(tbl_OPOVINN_P1[Copayment],AC85,tbl_OPOVINN_P1[Plan Projected Allowed Amount]) -> 0 | AE85: =IF(OR(AD85=0,AD85=""),"",AD85/tbl_OPOVINN_P2Cop[[#Totals],[Allowed Claims]]) ->  | AF85: =IF(AE85="","",IF(SUMIF(tbl_OPOVINN_P2Cop[Copayment],">="&AC85,tbl_OPOVINN_P2Cop[Portion])>0.5,AC85,"")) ->  | AG85: =IF(COUNTIF(tbl_OPOVINN_P2Cop[Copayment],tbl_OPOVINN_P2Cop[[#This Row],[Copayment]])>1,"Remove Duplicate Entry.",IF(AND(tbl_OPOVINN_P2Cop[[#This Row],[Copayment]]<>"",tbl_OPOVINN_P2Cop[[#This Row],[Allowed Claims]]=0),"Entry not found in Part 1 Table",IF(AND(OFFSET(tbl_OPOVINN_P2Cop[[#This Row],[Copayment]],1,0)<>"Total",OFFSET(tbl_OPOVINN_P2Cop[[#This Row],[Copayment]],1,0)<>"",OFFSET(tbl_OPOVINN_P2Cop[[#This Row],[Copayment]],1,0)<tbl_OPOVINN_P2Cop[[#This Row],[Copayment]]),"Sort Entries from lowest to highest",""))) ->  | AM85: =SUMIF(tbl_OPAOINN_P1[Copayment],AL85,tbl_OPAOINN_P1[Plan Projected Allowed Amount]) -> 0 | AN85: =IF(OR(AM85=0,AM85=""),"",AM85/tbl_OPAOINN_P2Cop[[#Totals],[Allowed Claims]]) ->  | AO85: =IF(AN85="","",IF(SUMIF(tbl_OPAOINN_P2Cop[Copayment],">="&AL85,tbl_OPAOINN_P2Cop[Portion])>0.5,AL85,"")) ->  | AP85: =IF(COUNTIF(tbl_OPAOINN_P2Cop[Copayment],tbl_OPAOINN_P2Cop[[#This Row],[Copayment]])>1,"Remove Duplicate Entry.",IF(AND(tbl_OPAOINN_P2Cop[[#This Row],[Copayment]]<>"",tbl_OPAOINN_P2Cop[[#This Row],[Allowed Claims]]=0),"Entry not found in Part 1 Table",IF(AND(OFFSET(tbl_OPAOINN_P2Cop[[#This Row],[Copayment]],1,0)<>"Total",OFFSET(tbl_OPAOINN_P2Cop[[#This Row],[Copayment]],1,0)<>"",OFFSET(tbl_OPAOINN_P2Cop[[#This Row],[Copayment]],1,0)<tbl_OPAOINN_P2Cop[[#This Row],[Copayment]]),"Sort Entries from lowest to highest",""))) ->  | AV85: =SUMIF(tbl_OPOON_P1[Copayment],AU85,tbl_OPOON_P1[Plan Projected Allowed Amount]) -> 0 | AW85: =IF(OR(AV85=0,AV85=""),"",AV85/tbl_OPOON_P2Cop[[#Totals],[Allowed Claims]]) ->  | AX85: =IF(AW85="","",IF(SUMIF(tbl_OPOON_P2Cop[Copayment],">="&AU85,tbl_OPOON_P2Cop[Portion])>0.5,AU85,"")) ->  | AY85: =IF(COUNTIF(tbl_OPOON_P2Cop[Copayment],tbl_OPOON_P2Cop[[#This Row],[Copayment]])>1,"Remove Duplicate Entry.",IF(AND(tbl_OPOON_P2Cop[[#This Row],[Copayment]]<>"",tbl_OPOON_P2Cop[[#This Row],[Allowed Claims]]=0),"Entry not found in Part 1 Table",IF(AND(OFFSET(tbl_OPOON_P2Cop[[#This Row],[Copayment]],1,0)<>"Total",OFFSET(tbl_OPOON_P2Cop[[#This Row],[Copayment]],1,0)<>"",OFFSET(tbl_OPOON_P2Cop[[#This Row],[Copayment]],1,0)<tbl_OPOON_P2Cop[[#This Row],[Copayment]]),"Sort Entries from lowest to highest",""))) ->  | BE85: =SUMIF(tbl_OPOVOON_P1[Copayment],BD85,tbl_OPOVOON_P1[Plan Projected Allowed Amount]) -> 0 | BF85: =IF(OR(BE85=0,BE85=""),"",BE85/tbl_OPOVOON_P2Cop[[#Totals],[Allowed Claims]]) ->  | BG85: =IF(BF85="","",IF(SUMIF(tbl_OPOVOON_P2Cop[Copayment],">="&BD85,tbl_OPOVOON_P2Cop[Portion])>0.5,BD85,"")) ->  | BH85: =IF(COUNTIF(tbl_OPOVOON_P2Cop[Copayment],tbl_OPOVOON_P2Cop[[#This Row],[Copayment]])>1,"Remove Duplicate Entry.",IF(AND(tbl_OPOVOON_P2Cop[[#This Row],[Copayment]]<>"",tbl_OPOVOON_P2Cop[[#This Row],[Allowed Claims]]=0),"Entry not found in Part 1 Table",IF(AND(OFFSET(tbl_OPOVOON_P2Cop[[#This Row],[Copayment]],1,0)<>"Total",OFFSET(tbl_OPOVOON_P2Cop[[#This Row],[Copayment]],1,0)<>"",OFFSET(tbl_OPOVOON_P2Cop[[#This Row],[Copayment]],1,0)<tbl_OPOVOON_P2Cop[[#This Row],[Copayment]]),"Sort Entries from lowest to highest",""))) ->  | BN85: =SUMIF(tbl_OPAOOON_P1[Copayment],BM85,tbl_OPAOOON_P1[Plan Projected Allowed Amount]) -> 0 | BO85: =IF(OR(BN85=0,BN85=""),"",BN85/tbl_OPAOOON_P2Cop[[#Totals],[Allowed Claims]]) ->  | BP85: =IF(BO85="","",IF(SUMIF(tbl_OPAOOON_P2Cop[Copayment],">="&BM85,tbl_OPAOOON_P2Cop[Portion])>0.5,BM85,"")) ->  | BQ85: =IF(COUNTIF(tbl_OPAOOON_P2Cop[Copayment],tbl_OPAOOON_P2Cop[[#This Row],[Copayment]])>1,"Remove Duplicate Entry.",IF(AND(tbl_OPAOOON_P2Cop[[#This Row],[Copayment]]<>"",tbl_OPAOOON_P2Cop[[#This Row],[Allowed Claims]]=0),"Entry not found in Part 1 Table",IF(AND(OFFSET(tbl_OPAOOON_P2Cop[[#This Row],[Copayment]],1,0)<>"Total",OFFSET(tbl_OPAOOON_P2Cop[[#This Row],[Copayment]],1,0)<>"",OFFSET(tbl_OPAOOON_P2Cop[[#This Row],[Copayment]],1,0)<tbl_OPAOOON_P2Cop[[#This Row],[Copayment]]),"Sort Entries from lowest to highest",""))) ->  | BW85: =SUMIF(tbl_ER_P1[Copayment],BV85,tbl_ER_P1[Plan Projected Allowed Amount]) -> 0 | BX85: =IF(OR(BW85=0,BW85=""),"",BW85/tbl_ER_P2Cop[[#Totals],[Allowed Claims]]) ->  | BY85: =IF(BX85="","",IF(SUMIF(tbl_ER_P2Cop[Copayment],">="&BV85,tbl_ER_P2Cop[Portion])>0.5,BV85,"")) ->  | BZ85: =IF(COUNTIF(tbl_ER_P2Cop[Copayment],tbl_ER_P2Cop[[#This Row],[Copayment]])>1,"Remove Duplicate Entry.",IF(AND(tbl_ER_P2Cop[[#This Row],[Copayment]]<>"",tbl_ER_P2Cop[[#This Row],[Allowed Claims]]=0),"Entry not found in Part 1 Table",IF(AND(OFFSET(tbl_ER_P2Cop[[#This Row],[Copayment]],1,0)<>"Total",OFFSET(tbl_ER_P2Cop[[#This Row],[Copayment]],1,0)<>"",OFFSET(tbl_ER_P2Cop[[#This Row],[Copayment]],1,0)<tbl_ER_P2Cop[[#This Row],[Copayment]]),"Sort Entries from lowest to highest",""))) ->  | CF85: =SUMIF(tbl_RX_P1[Copayment],CE85,tbl_RX_P1[Plan Projected Allowed Amount]) -> 0 | CG85: =IF(OR(CF85=0,CF85=""),"",CF85/tbl_RX_P2Cop[[#Totals],[Allowed Claims]]) ->  | CH85: =IF(CG85="","",IF(SUMIF(tbl_RX_P2Cop[Copayment],">="&CE85,tbl_RX_P2Cop[Portion])>0.5,CE85,"")) ->  | CI85: =IF(COUNTIF(tbl_RX_P2Cop[Copayment],tbl_RX_P2Cop[[#This Row],[Copayment]])>1,"Remove Duplicate Entry.",IF(AND(tbl_RX_P2Cop[[#This Row],[Copayment]]<>"",tbl_RX_P2Cop[[#This Row],[Allowed Claims]]=0),"Entry not found in Part 1 Table",IF(AND(OFFSET(tbl_RX_P2Cop[[#This Row],[Copayment]],1,0)<>"Total",OFFSET(tbl_RX_P2Cop[[#This Row],[Copayment]],1,0)<>"",OFFSET(tbl_RX_P2Cop[[#This Row],[Copayment]],1,0)<tbl_RX_P2Cop[[#This Row],[Copayment]]),"Sort Entries from lowest to highest",""))) -> 
B86: Total | C86: =SUBTOTAL(109,tbl_IPINN_P2Cop[Allowed Claims]) -> 0 | D86: =SUBTOTAL(109,tbl_IPINN_P2Cop[Portion]) -> 0 | F86: =IF(AND(tbl_IPINN_P2Cop[[#Totals],[Allowed Claims]]<C62,E62<>"Fail",E62<>"N/A"),"Add missing cost share values.",IF(C86>D47,"Allowed claims higher than possible; correct entries.","")) ->  | K86: Total | L86: =SUBTOTAL(109,tbl_IPOON_P2Cop[Allowed Claims]) -> 0 | M86: =SUBTOTAL(109,tbl_IPOON_P2Cop[Portion]) -> 0 | O86: =IF(AND(tbl_IPOON_P2Cop[[#Totals],[Allowed Claims]]<L62,N62<>"Fail",N62<>"N/A"),"Add missing cost share values.",IF(L86>M47,"Allowed claims higher than possible; correct entries.","")) ->  | T86: Total | U86: =SUBTOTAL(109,tbl_OPINN_P2Cop[Allowed Claims]) -> 0 | V86: =SUBTOTAL(109,tbl_OPINN_P2Cop[Portion]) -> 0 | X86: =IF(AND(tbl_OPINN_P2Cop[[#Totals],[Allowed Claims]]<U62,W62<>"Fail",W62<>"N/A"),"Add missing cost share values.",IF(U86>V47,"Allowed claims higher than possible; correct entries.","")) ->  | AC86: Total | AD86: =SUBTOTAL(109,tbl_OPOVINN_P2Cop[Allowed Claims]) -> 0 | AE86: =SUBTOTAL(109,tbl_OPOVINN_P2Cop[Portion]) -> 0 | AG86: =IF(AND(tbl_OPOVINN_P2Cop[[#Totals],[Allowed Claims]]<AD62,AF62<>"Fail",AF62<>"N/A"),"Add missing cost share values.",IF(AD86>AE47,"Allowed claims higher than possible; correct entries.","")) ->  | AL86: Total | AM86: =SUBTOTAL(109,tbl_OPAOINN_P2Cop[Allowed Claims]) -> 0 | AN86: =SUBTOTAL(109,tbl_OPAOINN_P2Cop[Portion]) -> 0 | AP86: =IF(AND(tbl_OPAOINN_P2Cop[[#Totals],[Allowed Claims]]<AM62,AO62<>"Fail",AO62<>"N/A"),"Add missing cost share values.",IF(AM86>AN47,"Allowed claims higher than possible; correct entries.","")) ->  | AU86: Total | AV86: =SUBTOTAL(109,tbl_OPOON_P2Cop[Allowed Claims]) -> 0 | AW86: =SUBTOTAL(109,tbl_OPOON_P2Cop[Portion]) -> 0 | AY86: =IF(AND(tbl_OPOON_P2Cop[[#Totals],[Allowed Claims]]<AV62,AX62<>"Fail",AX62<>"N/A"),"Add missing cost share values.",IF(AV86>AW47,"Allowed claims higher than possible; correct entries.","")) ->  | BD86: Total | BE86: =SUBTOTAL(109,tbl_OPOVOON_P2Cop[Allowed Claims]) -> 0 | BF86: =SUBTOTAL(109,tbl_OPOVOON_P2Cop[Portion]) -> 0 | BH86: =IF(AND(tbl_OPOVOON_P2Cop[[#Totals],[Allowed Claims]]<BE62,BG62<>"Fail",BG62<>"N/A"),"Add missing cost share values.",IF(BE86>BF47,"Allowed claims higher than possible; correct entries.","")) ->  | BM86: Total | BN86: =SUBTOTAL(109,tbl_OPAOOON_P2Cop[Allowed Claims]) -> 0 | BO86: =SUBTOTAL(109,tbl_OPAOOON_P2Cop[Portion]) -> 0 | BQ86: =IF(AND(tbl_OPAOOON_P2Cop[[#Totals],[Allowed Claims]]<BN62,BP62<>"Fail",BP62<>"N/A"),"Add missing cost share values.",IF(BN86>BO47,"Allowed claims higher than possible; correct entries.","")) ->  | BV86: Total | BW86: =SUBTOTAL(109,tbl_ER_P2Cop[Allowed Claims]) -> 0 | BX86: =SUBTOTAL(109,tbl_ER_P2Cop[Portion]) -> 0 | BZ86: =IF(AND(tbl_ER_P2Cop[[#Totals],[Allowed Claims]]<BW62,BY62<>"Fail",BY62<>"N/A"),"Add missing cost share values.",IF(BW86>BX47,"Allowed claims higher than possible; correct entries.","")) ->  | CE86: Total | CF86: =SUBTOTAL(109,tbl_RX_P2Cop[Allowed Claims]) -> 0 | CG86: =SUBTOTAL(109,tbl_RX_P2Cop[Portion]) -> 0 | CI86: =IF(AND(tbl_RX_P2Cop[[#Totals],[Allowed Claims]]<CF62,CH62<>"Fail",CH62<>"N/A"),"Add missing cost share values.",IF(CF86>CG47,"Allowed claims higher than possible; correct entries.","")) -> 
B88: =B92&" ---- "&C$32 -> Coinsurance ---- (1) Inpatient, In-Network (IP INN) | K88: =K92&" ---- "&L$32 -> Coinsurance ---- (2) Inpatient, Out-of-Network (IP OON) | T88: =T92&" ---- "&U$32 -> Coinsurance ---- (3) Outpatient, In-Network (OP INN) | AC88: =AC92&" ---- "&AD$32 -> Coinsurance ---- (3a) Outpatient - Office Visits, In-Network (OP-OV INN) | AL88: =AL92&" ---- "&AM$32 -> Coinsurance ---- (3b) Outpatient - All Other, In-Network (OP-AO INN) | AU88: =AU92&" ---- "&AV$32 -> Coinsurance ---- (4) Outpatient, Out-of-Network (OP OON) | BD88: =BD92&" ---- "&BE$32 -> Coinsurance ---- (4a) Outpatient - Office Visits, Out-of-Network (OP-OV OON) | BM88: =BM92&" ---- "&BN$32 -> Coinsurance ---- (4b) Outpatient - All Other, Out-of-Network (OP-AO OON) | BV88: =BV92&" ---- "&BW$32 -> Coinsurance ---- (5) Emergency Care, (ER ) | CE88: =CE92&" ---- "&CF$32 -> Coinsurance ---- (6) Prescription Drugs, (RX )
B89: =IF(INDEX(D$61:D$64,MATCH(B92,B$61:B$64,0))="","If testing is required for this benefit classification: Please ensure each different cost-share combination is entered above in PART 1.",IF(INDEX(D$61:D$64,MATCH(B92,B$61:B$64,0))>=(2/3),"Applies to substantially all medical/surgical benefits in this classification. ENTER different "&LOWER(B92)&" amounts from smallest to largest.","Does not apply to substantially all medical/surgical benefits in this classification. DELETE any values in the left-hand column below.")) -> If testing is required for this benefit classification: Please ensure each different cost-share combination is entered above in PART 1. | K89: =IF(INDEX(M$61:M$64,MATCH(K92,K$61:K$64,0))="","If testing is required for this benefit classification: Please ensure each different cost-share combination is entered above in PART 1.",IF(INDEX(M$61:M$64,MATCH(K92,K$61:K$64,0))>=(2/3),"Applies to substantially all medical/surgical benefits in this classification. ENTER different "&LOWER(K92)&" amounts from smallest to largest.","Does not apply to substantially all medical/surgical benefits in this classification. DELETE any values in the left-hand column below.")) -> If testing is required for this benefit classification: Please ensure each different cost-share combination is entered above in PART 1. | T89: =IF(INDEX(V$61:V$64,MATCH(T92,T$61:T$64,0))="","If testing is required for this benefit classification: Please ensure each different cost-share combination is entered above in PART 1.",IF(INDEX(V$61:V$64,MATCH(T92,T$61:T$64,0))>=(2/3),"Applies to substantially all medical/surgical benefits in this classification. ENTER different "&LOWER(T92)&" amounts from smallest to largest.","Does not apply to substantially all medical/surgical benefits in this classification. DELETE any values in the left-hand column below.")) -> If testing is required for this benefit classification: Please ensure each different cost-share combination is entered above in PART 1. | AC89: =IF(INDEX(AE$61:AE$64,MATCH(AC92,AC$61:AC$64,0))="","If testing is required for this benefit classification: Please ensure each different cost-share combination is entered above in PART 1.",IF(INDEX(AE$61:AE$64,MATCH(AC92,AC$61:AC$64,0))>=(2/3),"Applies to substantially all medical/surgical benefits in this classification. ENTER different "&LOWER(AC92)&" amounts from smallest to largest.","Does not apply to substantially all medical/surgical benefits in this classification. DELETE any values in the left-hand column below.")) -> If testing is required for this benefit classification: Please ensure each different cost-share combination is entered above in PART 1. | AL89: =IF(INDEX(AN$61:AN$64,MATCH(AL92,AL$61:AL$64,0))="","If testing is required for this benefit classification: Please ensure each different cost-share combination is entered above in PART 1.",IF(INDEX(AN$61:AN$64,MATCH(AL92,AL$61:AL$64,0))>=(2/3),"Applies to substantially all medical/surgical benefits in this classification. ENTER different "&LOWER(AL92)&" amounts from smallest to largest.","Does not apply to substantially all medical/surgical benefits in this classification. DELETE any values in the left-hand column below.")) -> If testing is required for this benefit classification: Please ensure each different cost-share combination is entered above in PART 1. | AU89: =IF(INDEX(AW$61:AW$64,MATCH(AU92,AU$61:AU$64,0))="","If testing is required for this benefit classification: Please ensure each different cost-share combination is entered above in PART 1.",IF(INDEX(AW$61:AW$64,MATCH(AU92,AU$61:AU$64,0))>=(2/3),"Applies to substantially all medical/surgical benefits in this classification. ENTER different "&LOWER(AU92)&" amounts from smallest to largest.","Does not apply to substantially all medical/surgical benefits in this classification. DELETE any values in the left-hand column below.")) -> If testing is required for this benefit classification: Please ensure each different cost-share combination is entered above in PART 1. | BD89: =IF(INDEX(BF$61:BF$64,MATCH(BD92,BD$61:BD$64,0))="","If testing is required for this benefit classification: Please ensure each different cost-share combination is entered above in PART 1.",IF(INDEX(BF$61:BF$64,MATCH(BD92,BD$61:BD$64,0))>=(2/3),"Applies to substantially all medical/surgical benefits in this classification. ENTER different "&LOWER(BD92)&" amounts from smallest to largest.","Does not apply to substantially all medical/surgical benefits in this classification. DELETE any values in the left-hand column below.")) -> If testing is required for this benefit classification: Please ensure each different cost-share combination is entered above in PART 1. | BM89: =IF(INDEX(BO$61:BO$64,MATCH(BM92,BM$61:BM$64,0))="","If testing is required for this benefit classification: Please ensure each different cost-share combination is entered above in PART 1.",IF(INDEX(BO$61:BO$64,MATCH(BM92,BM$61:BM$64,0))>=(2/3),"Applies to substantially all medical/surgical benefits in this classification. ENTER different "&LOWER(BM92)&" amounts from smallest to largest.","Does not apply to substantially all medical/surgical benefits in this classification. DELETE any values in the left-hand column below.")) -> If testing is required for this benefit classification: Please ensure each different cost-share combination is entered above in PART 1. | BV89: =IF(INDEX(BX$61:BX$64,MATCH(BV92,BV$61:BV$64,0))="","If testing is required for this benefit classification: Please ensure each different cost-share combination is entered above in PART 1.",IF(INDEX(BX$61:BX$64,MATCH(BV92,BV$61:BV$64,0))>=(2/3),"Applies to substantially all medical/surgical benefits in this classification. ENTER different "&LOWER(BV92)&" amounts from smallest to largest.","Does not apply to substantially all medical/surgical benefits in this classification. DELETE any values in the left-hand column below.")) -> If testing is required for this benefit classification: Please ensure each different cost-share combination is entered above in PART 1. | CE89: =IF(INDEX(CG$61:CG$64,MATCH(CE92,CE$61:CE$64,0))="","If testing is required for this benefit classification: Please ensure each different cost-share combination is entered above in PART 1.",IF(INDEX(CG$61:CG$64,MATCH(CE92,CE$61:CE$64,0))>=(2/3),"Applies to substantially all medical/surgical benefits in this classification. ENTER different "&LOWER(CE92)&" amounts from smallest to largest.","Does not apply to substantially all medical/surgical benefits in this classification. DELETE any values in the left-hand column below.")) -> If testing is required for this benefit classification: Please ensure each different cost-share combination is entered above in PART 1.
B92: Coinsurance | C92: Allowed Claims | D92: Portion | E92: Predominant & Smaller | F92: Error Checking | K92: Coinsurance | L92: Allowed Claims | M92: Portion | N92: Predominant & Smaller | O92: Error Checking | T92: Coinsurance | U92: Allowed Claims | V92: Portion | W92: Predominant & Smaller | X92: Error Checking | AC92: Coinsurance | AD92: Allowed Claims | AE92: Portion | AF92: Predominant & Smaller | AG92: Error Checking | AL92: Coinsurance | AM92: Allowed Claims | AN92: Portion | AO92: Predominant & Smaller | AP92: Error Checking | AU92: Coinsurance | AV92: Allowed Claims | AW92: Portion | AX92: Predominant & Smaller | AY92: Error Checking | BD92: Coinsurance | BE92: Allowed Claims | BF92: Portion | BG92: Predominant & Smaller | BH92: Error Checking | BM92: Coinsurance | BN92: Allowed Claims | BO92: Portion | BP92: Predominant & Smaller | BQ92: Error Checking | BV92: Coinsurance | BW92: Allowed Claims | BX92: Portion | BY92: Predominant & Smaller | BZ92: Error Checking | CE92: Coinsurance | CF92: Allowed Claims | CG92: Portion | CH92: Predominant & Smaller | CI92: Error Checking
C93: =SUMIF(tbl_IPINN_P1[Coinsurance],B93,tbl_IPINN_P1[Plan Projected Allowed Amount]) -> 0 | D93: =IF(OR(C93=0,C93=""),"",C93/tbl_IPINN_P2Coi[[#Totals],[Allowed Claims]]) ->  | E93: =IF(D93="","",IF(SUMIF(tbl_IPINN_P2Coi[Coinsurance],">="&B93,tbl_IPINN_P2Coi[Portion])>0.5,B93,"")) ->  | F93: =IF(COUNTIF(tbl_IPINN_P2Coi[Coinsurance],tbl_IPINN_P2Coi[[#This Row],[Coinsurance]])>1,"Remove Duplicate Entry.",IF(AND(tbl_IPINN_P2Coi[[#This Row],[Coinsurance]]<>"",tbl_IPINN_P2Coi[[#This Row],[Allowed Claims]]=0),"Entry not found in Part 1 Table",IF(AND(OFFSET(tbl_IPINN_P2Coi[[#This Row],[Coinsurance]],1,0)<>"Total",OFFSET(tbl_IPINN_P2Coi[[#This Row],[Coinsurance]],1,0)<>"",OFFSET(tbl_IPINN_P2Coi[[#This Row],[Coinsurance]],1,0)<tbl_IPINN_P2Coi[[#This Row],[Coinsurance]]),"Sort Entries from lowest to highest",""))) ->  | L93: =SUMIF(tbl_IPOON_P1[Coinsurance],K93,tbl_IPOON_P1[Plan Projected Allowed Amount]) -> 0 | M93: =IF(OR(L93=0,L93=""),"",L93/tbl_IPOON_P2Coi[[#Totals],[Allowed Claims]]) ->  | N93: =IF(M93="","",IF(SUMIF(tbl_IPOON_P2Coi[Coinsurance],">="&K93,tbl_IPOON_P2Coi[Portion])>0.5,K93,"")) ->  | O93: =IF(COUNTIF(tbl_IPOON_P2Coi[Coinsurance],tbl_IPOON_P2Coi[[#This Row],[Coinsurance]])>1,"Remove Duplicate Entry.",IF(AND(tbl_IPOON_P2Coi[[#This Row],[Coinsurance]]<>"",tbl_IPOON_P2Coi[[#This Row],[Allowed Claims]]=0),"Entry not found in Part 1 Table",IF(AND(OFFSET(tbl_IPOON_P2Coi[[#This Row],[Coinsurance]],1,0)<>"Total",OFFSET(tbl_IPOON_P2Coi[[#This Row],[Coinsurance]],1,0)<>"",OFFSET(tbl_IPOON_P2Coi[[#This Row],[Coinsurance]],1,0)<tbl_IPOON_P2Coi[[#This Row],[Coinsurance]]),"Sort Entries from lowest to highest",""))) ->  | U93: =SUMIF(tbl_OPINN_P1[Coinsurance],T93,tbl_OPINN_P1[Plan Projected Allowed Amount]) -> 0 | V93: =IF(OR(U93=0,U93=""),"",U93/tbl_OPINN_P2Coi[[#Totals],[Allowed Claims]]) ->  | W93: =IF(V93="","",IF(SUMIF(tbl_OPINN_P2Coi[Coinsurance],">="&T93,tbl_OPINN_P2Coi[Portion])>0.5,T93,"")) ->  | X93: =IF(COUNTIF(tbl_OPINN_P2Coi[Coinsurance],tbl_OPINN_P2Coi[[#This Row],[Coinsurance]])>1,"Remove Duplicate Entry.",IF(AND(tbl_OPINN_P2Coi[[#This Row],[Coinsurance]]<>"",tbl_OPINN_P2Coi[[#This Row],[Allowed Claims]]=0),"Entry not found in Part 1 Table",IF(AND(OFFSET(tbl_OPINN_P2Coi[[#This Row],[Coinsurance]],1,0)<>"Total",OFFSET(tbl_OPINN_P2Coi[[#This Row],[Coinsurance]],1,0)<>"",OFFSET(tbl_OPINN_P2Coi[[#This Row],[Coinsurance]],1,0)<tbl_OPINN_P2Coi[[#This Row],[Coinsurance]]),"Sort Entries from lowest to highest",""))) ->  | AD93: =SUMIF(tbl_OPOVINN_P1[Coinsurance],AC93,tbl_OPOVINN_P1[Plan Projected Allowed Amount]) -> 0 | AE93: =IF(OR(AD93=0,AD93=""),"",AD93/tbl_OPOVINN_P2Coi[[#Totals],[Allowed Claims]]) ->  | AF93: =IF(AE93="","",IF(SUMIF(tbl_OPOVINN_P2Coi[Coinsurance],">="&AC93,tbl_OPOVINN_P2Coi[Portion])>0.5,AC93,"")) ->  | AG93: =IF(COUNTIF(tbl_OPOVINN_P2Coi[Coinsurance],tbl_OPOVINN_P2Coi[[#This Row],[Coinsurance]])>1,"Remove Duplicate Entry.",IF(AND(tbl_OPOVINN_P2Coi[[#This Row],[Coinsurance]]<>"",tbl_OPOVINN_P2Coi[[#This Row],[Allowed Claims]]=0),"Entry not found in Part 1 Table",IF(AND(OFFSET(tbl_OPOVINN_P2Coi[[#This Row],[Coinsurance]],1,0)<>"Total",OFFSET(tbl_OPOVINN_P2Coi[[#This Row],[Coinsurance]],1,0)<>"",OFFSET(tbl_OPOVINN_P2Coi[[#This Row],[Coinsurance]],1,0)<tbl_OPOVINN_P2Coi[[#This Row],[Coinsurance]]),"Sort Entries from lowest to highest",""))) ->  | AM93: =SUMIF(tbl_OPAOINN_P1[Coinsurance],AL93,tbl_OPAOINN_P1[Plan Projected Allowed Amount]) -> 0 | AN93: =IF(OR(AM93=0,AM93=""),"",AM93/tbl_OPAOINN_P2Coi[[#Totals],[Allowed Claims]]) ->  | AO93: =IF(AN93="","",IF(SUMIF(tbl_OPAOINN_P2Coi[Coinsurance],">="&AL93,tbl_OPAOINN_P2Coi[Portion])>0.5,AL93,"")) ->  | AP93: =IF(COUNTIF(tbl_OPAOINN_P2Coi[Coinsurance],tbl_OPAOINN_P2Coi[[#This Row],[Coinsurance]])>1,"Remove Duplicate Entry.",IF(AND(tbl_OPAOINN_P2Coi[[#This Row],[Coinsurance]]<>"",tbl_OPAOINN_P2Coi[[#This Row],[Allowed Claims]]=0),"Entry not found in Part 1 Table",IF(AND(OFFSET(tbl_OPAOINN_P2Coi[[#This Row],[Coinsurance]],1,0)<>"Total",OFFSET(tbl_OPAOINN_P2Coi[[#This Row],[Coinsurance]],1,0)<>"",OFFSET(tbl_OPAOINN_P2Coi[[#This Row],[Coinsurance]],1,0)<tbl_OPAOINN_P2Coi[[#This Row],[Coinsurance]]),"Sort Entries from lowest to highest",""))) ->  | AV93: =SUMIF(tbl_OPOON_P1[Coinsurance],AU93,tbl_OPOON_P1[Plan Projected Allowed Amount]) -> 0 | AW93: =IF(OR(AV93=0,AV93=""),"",AV93/tbl_OPOON_P2Coi[[#Totals],[Allowed Claims]]) ->  | AX93: =IF(AW93="","",IF(SUMIF(tbl_OPOON_P2Coi[Coinsurance],">="&AU93,tbl_OPOON_P2Coi[Portion])>0.5,AU93,"")) ->  | AY93: =IF(COUNTIF(tbl_OPOON_P2Coi[Coinsurance],tbl_OPOON_P2Coi[[#This Row],[Coinsurance]])>1,"Remove Duplicate Entry.",IF(AND(tbl_OPOON_P2Coi[[#This Row],[Coinsurance]]<>"",tbl_OPOON_P2Coi[[#This Row],[Allowed Claims]]=0),"Entry not found in Part 1 Table",IF(AND(OFFSET(tbl_OPOON_P2Coi[[#This Row],[Coinsurance]],1,0)<>"Total",OFFSET(tbl_OPOON_P2Coi[[#This Row],[Coinsurance]],1,0)<>"",OFFSET(tbl_OPOON_P2Coi[[#This Row],[Coinsurance]],1,0)<tbl_OPOON_P2Coi[[#This Row],[Coinsurance]]),"Sort Entries from lowest to highest",""))) ->  | BE93: =SUMIF(tbl_OPOVOON_P1[Coinsurance],BD93,tbl_OPOVOON_P1[Plan Projected Allowed Amount]) -> 0 | BF93: =IF(OR(BE93=0,BE93=""),"",BE93/tbl_OPOVOON_P2Coi[[#Totals],[Allowed Claims]]) ->  | BG93: =IF(BF93="","",IF(SUMIF(tbl_OPOVOON_P2Coi[Coinsurance],">="&BD93,tbl_OPOVOON_P2Coi[Portion])>0.5,BD93,"")) ->  | BH93: =IF(COUNTIF(tbl_OPOVOON_P2Coi[Coinsurance],tbl_OPOVOON_P2Coi[[#This Row],[Coinsurance]])>1,"Remove Duplicate Entry.",IF(AND(tbl_OPOVOON_P2Coi[[#This Row],[Coinsurance]]<>"",tbl_OPOVOON_P2Coi[[#This Row],[Allowed Claims]]=0),"Entry not found in Part 1 Table",IF(AND(OFFSET(tbl_OPOVOON_P2Coi[[#This Row],[Coinsurance]],1,0)<>"Total",OFFSET(tbl_OPOVOON_P2Coi[[#This Row],[Coinsurance]],1,0)<>"",OFFSET(tbl_OPOVOON_P2Coi[[#This Row],[Coinsurance]],1,0)<tbl_OPOVOON_P2Coi[[#This Row],[Coinsurance]]),"Sort Entries from lowest to highest",""))) ->  | BN93: =SUMIF(tbl_OPAOOON_P1[Coinsurance],BM93,tbl_OPAOOON_P1[Plan Projected Allowed Amount]) -> 0 | BO93: =IF(OR(BN93=0,BN93=""),"",BN93/tbl_OPAOOON_P2Coi[[#Totals],[Allowed Claims]]) ->  | BP93: =IF(BO93="","",IF(SUMIF(tbl_OPAOOON_P2Coi[Coinsurance],">="&BM93,tbl_OPAOOON_P2Coi[Portion])>0.5,BM93,"")) ->  | BQ93: =IF(COUNTIF(tbl_OPAOOON_P2Coi[Coinsurance],tbl_OPAOOON_P2Coi[[#This Row],[Coinsurance]])>1,"Remove Duplicate Entry.",IF(AND(tbl_OPAOOON_P2Coi[[#This Row],[Coinsurance]]<>"",tbl_OPAOOON_P2Coi[[#This Row],[Allowed Claims]]=0),"Entry not found in Part 1 Table",IF(AND(OFFSET(tbl_OPAOOON_P2Coi[[#This Row],[Coinsurance]],1,0)<>"Total",OFFSET(tbl_OPAOOON_P2Coi[[#This Row],[Coinsurance]],1,0)<>"",OFFSET(tbl_OPAOOON_P2Coi[[#This Row],[Coinsurance]],1,0)<tbl_OPAOOON_P2Coi[[#This Row],[Coinsurance]]),"Sort Entries from lowest to highest",""))) ->  | BW93: =SUMIF(tbl_ER_P1[Coinsurance],BV93,tbl_ER_P1[Plan Projected Allowed Amount]) -> 0 | BX93: =IF(OR(BW93=0,BW93=""),"",BW93/tbl_ER_P2Coi[[#Totals],[Allowed Claims]]) ->  | BY93: =IF(BX93="","",IF(SUMIF(tbl_ER_P2Coi[Coinsurance],">="&BV93,tbl_ER_P2Coi[Portion])>0.5,BV93,"")) ->  | BZ93: =IF(COUNTIF(tbl_ER_P2Coi[Coinsurance],tbl_ER_P2Coi[[#This Row],[Coinsurance]])>1,"Remove Duplicate Entry.",IF(AND(tbl_ER_P2Coi[[#This Row],[Coinsurance]]<>"",tbl_ER_P2Coi[[#This Row],[Allowed Claims]]=0),"Entry not found in Part 1 Table",IF(AND(OFFSET(tbl_ER_P2Coi[[#This Row],[Coinsurance]],1,0)<>"Total",OFFSET(tbl_ER_P2Coi[[#This Row],[Coinsurance]],1,0)<>"",OFFSET(tbl_ER_P2Coi[[#This Row],[Coinsurance]],1,0)<tbl_ER_P2Coi[[#This Row],[Coinsurance]]),"Sort Entries from lowest to highest",""))) ->  | CF93: =SUMIF(tbl_RX_P1[Coinsurance],CE93,tbl_RX_P1[Plan Projected Allowed Amount]) -> 0 | CG93: =IF(OR(CF93=0,CF93=""),"",CF93/tbl_RX_P2Coi[[#Totals],[Allowed Claims]]) ->  | CH93: =IF(CG93="","",IF(SUMIF(tbl_RX_P2Coi[Coinsurance],">="&CE93,tbl_RX_P2Coi[Portion])>0.5,CE93,"")) ->  | CI93: =IF(COUNTIF(tbl_RX_P2Coi[Coinsurance],tbl_RX_P2Coi[[#This Row],[Coinsurance]])>1,"Remove Duplicate Entry.",IF(AND(tbl_RX_P2Coi[[#This Row],[Coinsurance]]<>"",tbl_RX_P2Coi[[#This Row],[Allowed Claims]]=0),"Entry not found in Part 1 Table",IF(AND(OFFSET(tbl_RX_P2Coi[[#This Row],[Coinsurance]],1,0)<>"Total",OFFSET(tbl_RX_P2Coi[[#This Row],[Coinsurance]],1,0)<>"",OFFSET(tbl_RX_P2Coi[[#This Row],[Coinsurance]],1,0)<tbl_RX_P2Coi[[#This Row],[Coinsurance]]),"Sort Entries from lowest to highest",""))) -> 
C94: =SUMIF(tbl_IPINN_P1[Coinsurance],B94,tbl_IPINN_P1[Plan Projected Allowed Amount]) -> 0 | D94: =IF(OR(C94=0,C94=""),"",C94/tbl_IPINN_P2Coi[[#Totals],[Allowed Claims]]) ->  | E94: =IF(D94="","",IF(SUMIF(tbl_IPINN_P2Coi[Coinsurance],">="&B94,tbl_IPINN_P2Coi[Portion])>0.5,B94,"")) ->  | F94: =IF(COUNTIF(tbl_IPINN_P2Coi[Coinsurance],tbl_IPINN_P2Coi[[#This Row],[Coinsurance]])>1,"Remove Duplicate Entry.",IF(AND(tbl_IPINN_P2Coi[[#This Row],[Coinsurance]]<>"",tbl_IPINN_P2Coi[[#This Row],[Allowed Claims]]=0),"Entry not found in Part 1 Table",IF(AND(OFFSET(tbl_IPINN_P2Coi[[#This Row],[Coinsurance]],1,0)<>"Total",OFFSET(tbl_IPINN_P2Coi[[#This Row],[Coinsurance]],1,0)<>"",OFFSET(tbl_IPINN_P2Coi[[#This Row],[Coinsurance]],1,0)<tbl_IPINN_P2Coi[[#This Row],[Coinsurance]]),"Sort Entries from lowest to highest",""))) ->  | L94: =SUMIF(tbl_IPOON_P1[Coinsurance],K94,tbl_IPOON_P1[Plan Projected Allowed Amount]) -> 0 | M94: =IF(OR(L94=0,L94=""),"",L94/tbl_IPOON_P2Coi[[#Totals],[Allowed Claims]]) ->  | N94: =IF(M94="","",IF(SUMIF(tbl_IPOON_P2Coi[Coinsurance],">="&K94,tbl_IPOON_P2Coi[Portion])>0.5,K94,"")) ->  | O94: =IF(COUNTIF(tbl_IPOON_P2Coi[Coinsurance],tbl_IPOON_P2Coi[[#This Row],[Coinsurance]])>1,"Remove Duplicate Entry.",IF(AND(tbl_IPOON_P2Coi[[#This Row],[Coinsurance]]<>"",tbl_IPOON_P2Coi[[#This Row],[Allowed Claims]]=0),"Entry not found in Part 1 Table",IF(AND(OFFSET(tbl_IPOON_P2Coi[[#This Row],[Coinsurance]],1,0)<>"Total",OFFSET(tbl_IPOON_P2Coi[[#This Row],[Coinsurance]],1,0)<>"",OFFSET(tbl_IPOON_P2Coi[[#This Row],[Coinsurance]],1,0)<tbl_IPOON_P2Coi[[#This Row],[Coinsurance]]),"Sort Entries from lowest to highest",""))) ->  | U94: =SUMIF(tbl_OPINN_P1[Coinsurance],T94,tbl_OPINN_P1[Plan Projected Allowed Amount]) -> 0 | V94: =IF(OR(U94=0,U94=""),"",U94/tbl_OPINN_P2Coi[[#Totals],[Allowed Claims]]) ->  | W94: =IF(V94="","",IF(SUMIF(tbl_OPINN_P2Coi[Coinsurance],">="&T94,tbl_OPINN_P2Coi[Portion])>0.5,T94,"")) ->  | X94: =IF(COUNTIF(tbl_OPINN_P2Coi[Coinsurance],tbl_OPINN_P2Coi[[#This Row],[Coinsurance]])>1,"Remove Duplicate Entry.",IF(AND(tbl_OPINN_P2Coi[[#This Row],[Coinsurance]]<>"",tbl_OPINN_P2Coi[[#This Row],[Allowed Claims]]=0),"Entry not found in Part 1 Table",IF(AND(OFFSET(tbl_OPINN_P2Coi[[#This Row],[Coinsurance]],1,0)<>"Total",OFFSET(tbl_OPINN_P2Coi[[#This Row],[Coinsurance]],1,0)<>"",OFFSET(tbl_OPINN_P2Coi[[#This Row],[Coinsurance]],1,0)<tbl_OPINN_P2Coi[[#This Row],[Coinsurance]]),"Sort Entries from lowest to highest",""))) ->  | AD94: =SUMIF(tbl_OPOVINN_P1[Coinsurance],AC94,tbl_OPOVINN_P1[Plan Projected Allowed Amount]) -> 0 | AE94: =IF(OR(AD94=0,AD94=""),"",AD94/tbl_OPOVINN_P2Coi[[#Totals],[Allowed Claims]]) ->  | AF94: =IF(AE94="","",IF(SUMIF(tbl_OPOVINN_P2Coi[Coinsurance],">="&AC94,tbl_OPOVINN_P2Coi[Portion])>0.5,AC94,"")) ->  | AG94: =IF(COUNTIF(tbl_OPOVINN_P2Coi[Coinsurance],tbl_OPOVINN_P2Coi[[#This Row],[Coinsurance]])>1,"Remove Duplicate Entry.",IF(AND(tbl_OPOVINN_P2Coi[[#This Row],[Coinsurance]]<>"",tbl_OPOVINN_P2Coi[[#This Row],[Allowed Claims]]=0),"Entry not found in Part 1 Table",IF(AND(OFFSET(tbl_OPOVINN_P2Coi[[#This Row],[Coinsurance]],1,0)<>"Total",OFFSET(tbl_OPOVINN_P2Coi[[#This Row],[Coinsurance]],1,0)<>"",OFFSET(tbl_OPOVINN_P2Coi[[#This Row],[Coinsurance]],1,0)<tbl_OPOVINN_P2Coi[[#This Row],[Coinsurance]]),"Sort Entries from lowest to highest",""))) ->  | AM94: =SUMIF(tbl_OPAOINN_P1[Coinsurance],AL94,tbl_OPAOINN_P1[Plan Projected Allowed Amount]) -> 0 | AN94: =IF(OR(AM94=0,AM94=""),"",AM94/tbl_OPAOINN_P2Coi[[#Totals],[Allowed Claims]]) ->  | AO94: =IF(AN94="","",IF(SUMIF(tbl_OPAOINN_P2Coi[Coinsurance],">="&AL94,tbl_OPAOINN_P2Coi[Portion])>0.5,AL94,"")) ->  | AP94: =IF(COUNTIF(tbl_OPAOINN_P2Coi[Coinsurance],tbl_OPAOINN_P2Coi[[#This Row],[Coinsurance]])>1,"Remove Duplicate Entry.",IF(AND(tbl_OPAOINN_P2Coi[[#This Row],[Coinsurance]]<>"",tbl_OPAOINN_P2Coi[[#This Row],[Allowed Claims]]=0),"Entry not found in Part 1 Table",IF(AND(OFFSET(tbl_OPAOINN_P2Coi[[#This Row],[Coinsurance]],1,0)<>"Total",OFFSET(tbl_OPAOINN_P2Coi[[#This Row],[Coinsurance]],1,0)<>"",OFFSET(tbl_OPAOINN_P2Coi[[#This Row],[Coinsurance]],1,0)<tbl_OPAOINN_P2Coi[[#This Row],[Coinsurance]]),"Sort Entries from lowest to highest",""))) ->  | AV94: =SUMIF(tbl_OPOON_P1[Coinsurance],AU94,tbl_OPOON_P1[Plan Projected Allowed Amount]) -> 0 | AW94: =IF(OR(AV94=0,AV94=""),"",AV94/tbl_OPOON_P2Coi[[#Totals],[Allowed Claims]]) ->  | AX94: =IF(AW94="","",IF(SUMIF(tbl_OPOON_P2Coi[Coinsurance],">="&AU94,tbl_OPOON_P2Coi[Portion])>0.5,AU94,"")) ->  | AY94: =IF(COUNTIF(tbl_OPOON_P2Coi[Coinsurance],tbl_OPOON_P2Coi[[#This Row],[Coinsurance]])>1,"Remove Duplicate Entry.",IF(AND(tbl_OPOON_P2Coi[[#This Row],[Coinsurance]]<>"",tbl_OPOON_P2Coi[[#This Row],[Allowed Claims]]=0),"Entry not found in Part 1 Table",IF(AND(OFFSET(tbl_OPOON_P2Coi[[#This Row],[Coinsurance]],1,0)<>"Total",OFFSET(tbl_OPOON_P2Coi[[#This Row],[Coinsurance]],1,0)<>"",OFFSET(tbl_OPOON_P2Coi[[#This Row],[Coinsurance]],1,0)<tbl_OPOON_P2Coi[[#This Row],[Coinsurance]]),"Sort Entries from lowest to highest",""))) ->  | BE94: =SUMIF(tbl_OPOVOON_P1[Coinsurance],BD94,tbl_OPOVOON_P1[Plan Projected Allowed Amount]) -> 0 | BF94: =IF(OR(BE94=0,BE94=""),"",BE94/tbl_OPOVOON_P2Coi[[#Totals],[Allowed Claims]]) ->  | BG94: =IF(BF94="","",IF(SUMIF(tbl_OPOVOON_P2Coi[Coinsurance],">="&BD94,tbl_OPOVOON_P2Coi[Portion])>0.5,BD94,"")) ->  | BH94: =IF(COUNTIF(tbl_OPOVOON_P2Coi[Coinsurance],tbl_OPOVOON_P2Coi[[#This Row],[Coinsurance]])>1,"Remove Duplicate Entry.",IF(AND(tbl_OPOVOON_P2Coi[[#This Row],[Coinsurance]]<>"",tbl_OPOVOON_P2Coi[[#This Row],[Allowed Claims]]=0),"Entry not found in Part 1 Table",IF(AND(OFFSET(tbl_OPOVOON_P2Coi[[#This Row],[Coinsurance]],1,0)<>"Total",OFFSET(tbl_OPOVOON_P2Coi[[#This Row],[Coinsurance]],1,0)<>"",OFFSET(tbl_OPOVOON_P2Coi[[#This Row],[Coinsurance]],1,0)<tbl_OPOVOON_P2Coi[[#This Row],[Coinsurance]]),"Sort Entries from lowest to highest",""))) ->  | BN94: =SUMIF(tbl_OPAOOON_P1[Coinsurance],BM94,tbl_OPAOOON_P1[Plan Projected Allowed Amount]) -> 0 | BO94: =IF(OR(BN94=0,BN94=""),"",BN94/tbl_OPAOOON_P2Coi[[#Totals],[Allowed Claims]]) ->  | BP94: =IF(BO94="","",IF(SUMIF(tbl_OPAOOON_P2Coi[Coinsurance],">="&BM94,tbl_OPAOOON_P2Coi[Portion])>0.5,BM94,"")) ->  | BQ94: =IF(COUNTIF(tbl_OPAOOON_P2Coi[Coinsurance],tbl_OPAOOON_P2Coi[[#This Row],[Coinsurance]])>1,"Remove Duplicate Entry.",IF(AND(tbl_OPAOOON_P2Coi[[#This Row],[Coinsurance]]<>"",tbl_OPAOOON_P2Coi[[#This Row],[Allowed Claims]]=0),"Entry not found in Part 1 Table",IF(AND(OFFSET(tbl_OPAOOON_P2Coi[[#This Row],[Coinsurance]],1,0)<>"Total",OFFSET(tbl_OPAOOON_P2Coi[[#This Row],[Coinsurance]],1,0)<>"",OFFSET(tbl_OPAOOON_P2Coi[[#This Row],[Coinsurance]],1,0)<tbl_OPAOOON_P2Coi[[#This Row],[Coinsurance]]),"Sort Entries from lowest to highest",""))) ->  | BW94: =SUMIF(tbl_ER_P1[Coinsurance],BV94,tbl_ER_P1[Plan Projected Allowed Amount]) -> 0 | BX94: =IF(OR(BW94=0,BW94=""),"",BW94/tbl_ER_P2Coi[[#Totals],[Allowed Claims]]) ->  | BY94: =IF(BX94="","",IF(SUMIF(tbl_ER_P2Coi[Coinsurance],">="&BV94,tbl_ER_P2Coi[Portion])>0.5,BV94,"")) ->  | BZ94: =IF(COUNTIF(tbl_ER_P2Coi[Coinsurance],tbl_ER_P2Coi[[#This Row],[Coinsurance]])>1,"Remove Duplicate Entry.",IF(AND(tbl_ER_P2Coi[[#This Row],[Coinsurance]]<>"",tbl_ER_P2Coi[[#This Row],[Allowed Claims]]=0),"Entry not found in Part 1 Table",IF(AND(OFFSET(tbl_ER_P2Coi[[#This Row],[Coinsurance]],1,0)<>"Total",OFFSET(tbl_ER_P2Coi[[#This Row],[Coinsurance]],1,0)<>"",OFFSET(tbl_ER_P2Coi[[#This Row],[Coinsurance]],1,0)<tbl_ER_P2Coi[[#This Row],[Coinsurance]]),"Sort Entries from lowest to highest",""))) ->  | CF94: =SUMIF(tbl_RX_P1[Coinsurance],CE94,tbl_RX_P1[Plan Projected Allowed Amount]) -> 0 | CG94: =IF(OR(CF94=0,CF94=""),"",CF94/tbl_RX_P2Coi[[#Totals],[Allowed Claims]]) ->  | CH94: =IF(CG94="","",IF(SUMIF(tbl_RX_P2Coi[Coinsurance],">="&CE94,tbl_RX_P2Coi[Portion])>0.5,CE94,"")) ->  | CI94: =IF(COUNTIF(tbl_RX_P2Coi[Coinsurance],tbl_RX_P2Coi[[#This Row],[Coinsurance]])>1,"Remove Duplicate Entry.",IF(AND(tbl_RX_P2Coi[[#This Row],[Coinsurance]]<>"",tbl_RX_P2Coi[[#This Row],[Allowed Claims]]=0),"Entry not found in Part 1 Table",IF(AND(OFFSET(tbl_RX_P2Coi[[#This Row],[Coinsurance]],1,0)<>"Total",OFFSET(tbl_RX_P2Coi[[#This Row],[Coinsurance]],1,0)<>"",OFFSET(tbl_RX_P2Coi[[#This Row],[Coinsurance]],1,0)<tbl_RX_P2Coi[[#This Row],[Coinsurance]]),"Sort Entries from lowest to highest",""))) -> 
C95: =SUMIF(tbl_IPINN_P1[Coinsurance],B95,tbl_IPINN_P1[Plan Projected Allowed Amount]) -> 0 | D95: =IF(OR(C95=0,C95=""),"",C95/tbl_IPINN_P2Coi[[#Totals],[Allowed Claims]]) ->  | E95: =IF(D95="","",IF(SUMIF(tbl_IPINN_P2Coi[Coinsurance],">="&B95,tbl_IPINN_P2Coi[Portion])>0.5,B95,"")) ->  | F95: =IF(COUNTIF(tbl_IPINN_P2Coi[Coinsurance],tbl_IPINN_P2Coi[[#This Row],[Coinsurance]])>1,"Remove Duplicate Entry.",IF(AND(tbl_IPINN_P2Coi[[#This Row],[Coinsurance]]<>"",tbl_IPINN_P2Coi[[#This Row],[Allowed Claims]]=0),"Entry not found in Part 1 Table",IF(AND(OFFSET(tbl_IPINN_P2Coi[[#This Row],[Coinsurance]],1,0)<>"Total",OFFSET(tbl_IPINN_P2Coi[[#This Row],[Coinsurance]],1,0)<>"",OFFSET(tbl_IPINN_P2Coi[[#This Row],[Coinsurance]],1,0)<tbl_IPINN_P2Coi[[#This Row],[Coinsurance]]),"Sort Entries from lowest to highest",""))) ->  | L95: =SUMIF(tbl_IPOON_P1[Coinsurance],K95,tbl_IPOON_P1[Plan Projected Allowed Amount]) -> 0 | M95: =IF(OR(L95=0,L95=""),"",L95/tbl_IPOON_P2Coi[[#Totals],[Allowed Claims]]) ->  | N95: =IF(M95="","",IF(SUMIF(tbl_IPOON_P2Coi[Coinsurance],">="&K95,tbl_IPOON_P2Coi[Portion])>0.5,K95,"")) ->  | O95: =IF(COUNTIF(tbl_IPOON_P2Coi[Coinsurance],tbl_IPOON_P2Coi[[#This Row],[Coinsurance]])>1,"Remove Duplicate Entry.",IF(AND(tbl_IPOON_P2Coi[[#This Row],[Coinsurance]]<>"",tbl_IPOON_P2Coi[[#This Row],[Allowed Claims]]=0),"Entry not found in Part 1 Table",IF(AND(OFFSET(tbl_IPOON_P2Coi[[#This Row],[Coinsurance]],1,0)<>"Total",OFFSET(tbl_IPOON_P2Coi[[#This Row],[Coinsurance]],1,0)<>"",OFFSET(tbl_IPOON_P2Coi[[#This Row],[Coinsurance]],1,0)<tbl_IPOON_P2Coi[[#This Row],[Coinsurance]]),"Sort Entries from lowest to highest",""))) ->  | U95: =SUMIF(tbl_OPINN_P1[Coinsurance],T95,tbl_OPINN_P1[Plan Projected Allowed Amount]) -> 0 | V95: =IF(OR(U95=0,U95=""),"",U95/tbl_OPINN_P2Coi[[#Totals],[Allowed Claims]]) ->  | W95: =IF(V95="","",IF(SUMIF(tbl_OPINN_P2Coi[Coinsurance],">="&T95,tbl_OPINN_P2Coi[Portion])>0.5,T95,"")) ->  | X95: =IF(COUNTIF(tbl_OPINN_P2Coi[Coinsurance],tbl_OPINN_P2Coi[[#This Row],[Coinsurance]])>1,"Remove Duplicate Entry.",IF(AND(tbl_OPINN_P2Coi[[#This Row],[Coinsurance]]<>"",tbl_OPINN_P2Coi[[#This Row],[Allowed Claims]]=0),"Entry not found in Part 1 Table",IF(AND(OFFSET(tbl_OPINN_P2Coi[[#This Row],[Coinsurance]],1,0)<>"Total",OFFSET(tbl_OPINN_P2Coi[[#This Row],[Coinsurance]],1,0)<>"",OFFSET(tbl_OPINN_P2Coi[[#This Row],[Coinsurance]],1,0)<tbl_OPINN_P2Coi[[#This Row],[Coinsurance]]),"Sort Entries from lowest to highest",""))) ->  | AD95: =SUMIF(tbl_OPOVINN_P1[Coinsurance],AC95,tbl_OPOVINN_P1[Plan Projected Allowed Amount]) -> 0 | AE95: =IF(OR(AD95=0,AD95=""),"",AD95/tbl_OPOVINN_P2Coi[[#Totals],[Allowed Claims]]) ->  | AF95: =IF(AE95="","",IF(SUMIF(tbl_OPOVINN_P2Coi[Coinsurance],">="&AC95,tbl_OPOVINN_P2Coi[Portion])>0.5,AC95,"")) ->  | AG95: =IF(COUNTIF(tbl_OPOVINN_P2Coi[Coinsurance],tbl_OPOVINN_P2Coi[[#This Row],[Coinsurance]])>1,"Remove Duplicate Entry.",IF(AND(tbl_OPOVINN_P2Coi[[#This Row],[Coinsurance]]<>"",tbl_OPOVINN_P2Coi[[#This Row],[Allowed Claims]]=0),"Entry not found in Part 1 Table",IF(AND(OFFSET(tbl_OPOVINN_P2Coi[[#This Row],[Coinsurance]],1,0)<>"Total",OFFSET(tbl_OPOVINN_P2Coi[[#This Row],[Coinsurance]],1,0)<>"",OFFSET(tbl_OPOVINN_P2Coi[[#This Row],[Coinsurance]],1,0)<tbl_OPOVINN_P2Coi[[#This Row],[Coinsurance]]),"Sort Entries from lowest to highest",""))) ->  | AM95: =SUMIF(tbl_OPAOINN_P1[Coinsurance],AL95,tbl_OPAOINN_P1[Plan Projected Allowed Amount]) -> 0 | AN95: =IF(OR(AM95=0,AM95=""),"",AM95/tbl_OPAOINN_P2Coi[[#Totals],[Allowed Claims]]) ->  | AO95: =IF(AN95="","",IF(SUMIF(tbl_OPAOINN_P2Coi[Coinsurance],">="&AL95,tbl_OPAOINN_P2Coi[Portion])>0.5,AL95,"")) ->  | AP95: =IF(COUNTIF(tbl_OPAOINN_P2Coi[Coinsurance],tbl_OPAOINN_P2Coi[[#This Row],[Coinsurance]])>1,"Remove Duplicate Entry.",IF(AND(tbl_OPAOINN_P2Coi[[#This Row],[Coinsurance]]<>"",tbl_OPAOINN_P2Coi[[#This Row],[Allowed Claims]]=0),"Entry not found in Part 1 Table",IF(AND(OFFSET(tbl_OPAOINN_P2Coi[[#This Row],[Coinsurance]],1,0)<>"Total",OFFSET(tbl_OPAOINN_P2Coi[[#This Row],[Coinsurance]],1,0)<>"",OFFSET(tbl_OPAOINN_P2Coi[[#This Row],[Coinsurance]],1,0)<tbl_OPAOINN_P2Coi[[#This Row],[Coinsurance]]),"Sort Entries from lowest to highest",""))) ->  | AV95: =SUMIF(tbl_OPOON_P1[Coinsurance],AU95,tbl_OPOON_P1[Plan Projected Allowed Amount]) -> 0 | AW95: =IF(OR(AV95=0,AV95=""),"",AV95/tbl_OPOON_P2Coi[[#Totals],[Allowed Claims]]) ->  | AX95: =IF(AW95="","",IF(SUMIF(tbl_OPOON_P2Coi[Coinsurance],">="&AU95,tbl_OPOON_P2Coi[Portion])>0.5,AU95,"")) ->  | AY95: =IF(COUNTIF(tbl_OPOON_P2Coi[Coinsurance],tbl_OPOON_P2Coi[[#This Row],[Coinsurance]])>1,"Remove Duplicate Entry.",IF(AND(tbl_OPOON_P2Coi[[#This Row],[Coinsurance]]<>"",tbl_OPOON_P2Coi[[#This Row],[Allowed Claims]]=0),"Entry not found in Part 1 Table",IF(AND(OFFSET(tbl_OPOON_P2Coi[[#This Row],[Coinsurance]],1,0)<>"Total",OFFSET(tbl_OPOON_P2Coi[[#This Row],[Coinsurance]],1,0)<>"",OFFSET(tbl_OPOON_P2Coi[[#This Row],[Coinsurance]],1,0)<tbl_OPOON_P2Coi[[#This Row],[Coinsurance]]),"Sort Entries from lowest to highest",""))) ->  | BE95: =SUMIF(tbl_OPOVOON_P1[Coinsurance],BD95,tbl_OPOVOON_P1[Plan Projected Allowed Amount]) -> 0 | BF95: =IF(OR(BE95=0,BE95=""),"",BE95/tbl_OPOVOON_P2Coi[[#Totals],[Allowed Claims]]) ->  | BG95: =IF(BF95="","",IF(SUMIF(tbl_OPOVOON_P2Coi[Coinsurance],">="&BD95,tbl_OPOVOON_P2Coi[Portion])>0.5,BD95,"")) ->  | BH95: =IF(COUNTIF(tbl_OPOVOON_P2Coi[Coinsurance],tbl_OPOVOON_P2Coi[[#This Row],[Coinsurance]])>1,"Remove Duplicate Entry.",IF(AND(tbl_OPOVOON_P2Coi[[#This Row],[Coinsurance]]<>"",tbl_OPOVOON_P2Coi[[#This Row],[Allowed Claims]]=0),"Entry not found in Part 1 Table",IF(AND(OFFSET(tbl_OPOVOON_P2Coi[[#This Row],[Coinsurance]],1,0)<>"Total",OFFSET(tbl_OPOVOON_P2Coi[[#This Row],[Coinsurance]],1,0)<>"",OFFSET(tbl_OPOVOON_P2Coi[[#This Row],[Coinsurance]],1,0)<tbl_OPOVOON_P2Coi[[#This Row],[Coinsurance]]),"Sort Entries from lowest to highest",""))) ->  | BN95: =SUMIF(tbl_OPAOOON_P1[Coinsurance],BM95,tbl_OPAOOON_P1[Plan Projected Allowed Amount]) -> 0 | BO95: =IF(OR(BN95=0,BN95=""),"",BN95/tbl_OPAOOON_P2Coi[[#Totals],[Allowed Claims]]) ->  | BP95: =IF(BO95="","",IF(SUMIF(tbl_OPAOOON_P2Coi[Coinsurance],">="&BM95,tbl_OPAOOON_P2Coi[Portion])>0.5,BM95,"")) ->  | BQ95: =IF(COUNTIF(tbl_OPAOOON_P2Coi[Coinsurance],tbl_OPAOOON_P2Coi[[#This Row],[Coinsurance]])>1,"Remove Duplicate Entry.",IF(AND(tbl_OPAOOON_P2Coi[[#This Row],[Coinsurance]]<>"",tbl_OPAOOON_P2Coi[[#This Row],[Allowed Claims]]=0),"Entry not found in Part 1 Table",IF(AND(OFFSET(tbl_OPAOOON_P2Coi[[#This Row],[Coinsurance]],1,0)<>"Total",OFFSET(tbl_OPAOOON_P2Coi[[#This Row],[Coinsurance]],1,0)<>"",OFFSET(tbl_OPAOOON_P2Coi[[#This Row],[Coinsurance]],1,0)<tbl_OPAOOON_P2Coi[[#This Row],[Coinsurance]]),"Sort Entries from lowest to highest",""))) ->  | BW95: =SUMIF(tbl_ER_P1[Coinsurance],BV95,tbl_ER_P1[Plan Projected Allowed Amount]) -> 0 | BX95: =IF(OR(BW95=0,BW95=""),"",BW95/tbl_ER_P2Coi[[#Totals],[Allowed Claims]]) ->  | BY95: =IF(BX95="","",IF(SUMIF(tbl_ER_P2Coi[Coinsurance],">="&BV95,tbl_ER_P2Coi[Portion])>0.5,BV95,"")) ->  | BZ95: =IF(COUNTIF(tbl_ER_P2Coi[Coinsurance],tbl_ER_P2Coi[[#This Row],[Coinsurance]])>1,"Remove Duplicate Entry.",IF(AND(tbl_ER_P2Coi[[#This Row],[Coinsurance]]<>"",tbl_ER_P2Coi[[#This Row],[Allowed Claims]]=0),"Entry not found in Part 1 Table",IF(AND(OFFSET(tbl_ER_P2Coi[[#This Row],[Coinsurance]],1,0)<>"Total",OFFSET(tbl_ER_P2Coi[[#This Row],[Coinsurance]],1,0)<>"",OFFSET(tbl_ER_P2Coi[[#This Row],[Coinsurance]],1,0)<tbl_ER_P2Coi[[#This Row],[Coinsurance]]),"Sort Entries from lowest to highest",""))) ->  | CF95: =SUMIF(tbl_RX_P1[Coinsurance],CE95,tbl_RX_P1[Plan Projected Allowed Amount]) -> 0 | CG95: =IF(OR(CF95=0,CF95=""),"",CF95/tbl_RX_P2Coi[[#Totals],[Allowed Claims]]) ->  | CH95: =IF(CG95="","",IF(SUMIF(tbl_RX_P2Coi[Coinsurance],">="&CE95,tbl_RX_P2Coi[Portion])>0.5,CE95,"")) ->  | CI95: =IF(COUNTIF(tbl_RX_P2Coi[Coinsurance],tbl_RX_P2Coi[[#This Row],[Coinsurance]])>1,"Remove Duplicate Entry.",IF(AND(tbl_RX_P2Coi[[#This Row],[Coinsurance]]<>"",tbl_RX_P2Coi[[#This Row],[Allowed Claims]]=0),"Entry not found in Part 1 Table",IF(AND(OFFSET(tbl_RX_P2Coi[[#This Row],[Coinsurance]],1,0)<>"Total",OFFSET(tbl_RX_P2Coi[[#This Row],[Coinsurance]],1,0)<>"",OFFSET(tbl_RX_P2Coi[[#This Row],[Coinsurance]],1,0)<tbl_RX_P2Coi[[#This Row],[Coinsurance]]),"Sort Entries from lowest to highest",""))) -> 
C96: =SUMIF(tbl_IPINN_P1[Coinsurance],B96,tbl_IPINN_P1[Plan Projected Allowed Amount]) -> 0 | D96: =IF(OR(C96=0,C96=""),"",C96/tbl_IPINN_P2Coi[[#Totals],[Allowed Claims]]) ->  | E96: =IF(D96="","",IF(SUMIF(tbl_IPINN_P2Coi[Coinsurance],">="&B96,tbl_IPINN_P2Coi[Portion])>0.5,B96,"")) ->  | F96: =IF(COUNTIF(tbl_IPINN_P2Coi[Coinsurance],tbl_IPINN_P2Coi[[#This Row],[Coinsurance]])>1,"Remove Duplicate Entry.",IF(AND(tbl_IPINN_P2Coi[[#This Row],[Coinsurance]]<>"",tbl_IPINN_P2Coi[[#This Row],[Allowed Claims]]=0),"Entry not found in Part 1 Table",IF(AND(OFFSET(tbl_IPINN_P2Coi[[#This Row],[Coinsurance]],1,0)<>"Total",OFFSET(tbl_IPINN_P2Coi[[#This Row],[Coinsurance]],1,0)<>"",OFFSET(tbl_IPINN_P2Coi[[#This Row],[Coinsurance]],1,0)<tbl_IPINN_P2Coi[[#This Row],[Coinsurance]]),"Sort Entries from lowest to highest",""))) ->  | L96: =SUMIF(tbl_IPOON_P1[Coinsurance],K96,tbl_IPOON_P1[Plan Projected Allowed Amount]) -> 0 | M96: =IF(OR(L96=0,L96=""),"",L96/tbl_IPOON_P2Coi[[#Totals],[Allowed Claims]]) ->  | N96: =IF(M96="","",IF(SUMIF(tbl_IPOON_P2Coi[Coinsurance],">="&K96,tbl_IPOON_P2Coi[Portion])>0.5,K96,"")) ->  | O96: =IF(COUNTIF(tbl_IPOON_P2Coi[Coinsurance],tbl_IPOON_P2Coi[[#This Row],[Coinsurance]])>1,"Remove Duplicate Entry.",IF(AND(tbl_IPOON_P2Coi[[#This Row],[Coinsurance]]<>"",tbl_IPOON_P2Coi[[#This Row],[Allowed Claims]]=0),"Entry not found in Part 1 Table",IF(AND(OFFSET(tbl_IPOON_P2Coi[[#This Row],[Coinsurance]],1,0)<>"Total",OFFSET(tbl_IPOON_P2Coi[[#This Row],[Coinsurance]],1,0)<>"",OFFSET(tbl_IPOON_P2Coi[[#This Row],[Coinsurance]],1,0)<tbl_IPOON_P2Coi[[#This Row],[Coinsurance]]),"Sort Entries from lowest to highest",""))) ->  | U96: =SUMIF(tbl_OPINN_P1[Coinsurance],T96,tbl_OPINN_P1[Plan Projected Allowed Amount]) -> 0 | V96: =IF(OR(U96=0,U96=""),"",U96/tbl_OPINN_P2Coi[[#Totals],[Allowed Claims]]) ->  | W96: =IF(V96="","",IF(SUMIF(tbl_OPINN_P2Coi[Coinsurance],">="&T96,tbl_OPINN_P2Coi[Portion])>0.5,T96,"")) ->  | X96: =IF(COUNTIF(tbl_OPINN_P2Coi[Coinsurance],tbl_OPINN_P2Coi[[#This Row],[Coinsurance]])>1,"Remove Duplicate Entry.",IF(AND(tbl_OPINN_P2Coi[[#This Row],[Coinsurance]]<>"",tbl_OPINN_P2Coi[[#This Row],[Allowed Claims]]=0),"Entry not found in Part 1 Table",IF(AND(OFFSET(tbl_OPINN_P2Coi[[#This Row],[Coinsurance]],1,0)<>"Total",OFFSET(tbl_OPINN_P2Coi[[#This Row],[Coinsurance]],1,0)<>"",OFFSET(tbl_OPINN_P2Coi[[#This Row],[Coinsurance]],1,0)<tbl_OPINN_P2Coi[[#This Row],[Coinsurance]]),"Sort Entries from lowest to highest",""))) ->  | AD96: =SUMIF(tbl_OPOVINN_P1[Coinsurance],AC96,tbl_OPOVINN_P1[Plan Projected Allowed Amount]) -> 0 | AE96: =IF(OR(AD96=0,AD96=""),"",AD96/tbl_OPOVINN_P2Coi[[#Totals],[Allowed Claims]]) ->  | AF96: =IF(AE96="","",IF(SUMIF(tbl_OPOVINN_P2Coi[Coinsurance],">="&AC96,tbl_OPOVINN_P2Coi[Portion])>0.5,AC96,"")) ->  | AG96: =IF(COUNTIF(tbl_OPOVINN_P2Coi[Coinsurance],tbl_OPOVINN_P2Coi[[#This Row],[Coinsurance]])>1,"Remove Duplicate Entry.",IF(AND(tbl_OPOVINN_P2Coi[[#This Row],[Coinsurance]]<>"",tbl_OPOVINN_P2Coi[[#This Row],[Allowed Claims]]=0),"Entry not found in Part 1 Table",IF(AND(OFFSET(tbl_OPOVINN_P2Coi[[#This Row],[Coinsurance]],1,0)<>"Total",OFFSET(tbl_OPOVINN_P2Coi[[#This Row],[Coinsurance]],1,0)<>"",OFFSET(tbl_OPOVINN_P2Coi[[#This Row],[Coinsurance]],1,0)<tbl_OPOVINN_P2Coi[[#This Row],[Coinsurance]]),"Sort Entries from lowest to highest",""))) ->  | AM96: =SUMIF(tbl_OPAOINN_P1[Coinsurance],AL96,tbl_OPAOINN_P1[Plan Projected Allowed Amount]) -> 0 | AN96: =IF(OR(AM96=0,AM96=""),"",AM96/tbl_OPAOINN_P2Coi[[#Totals],[Allowed Claims]]) ->  | AO96: =IF(AN96="","",IF(SUMIF(tbl_OPAOINN_P2Coi[Coinsurance],">="&AL96,tbl_OPAOINN_P2Coi[Portion])>0.5,AL96,"")) ->  | AP96: =IF(COUNTIF(tbl_OPAOINN_P2Coi[Coinsurance],tbl_OPAOINN_P2Coi[[#This Row],[Coinsurance]])>1,"Remove Duplicate Entry.",IF(AND(tbl_OPAOINN_P2Coi[[#This Row],[Coinsurance]]<>"",tbl_OPAOINN_P2Coi[[#This Row],[Allowed Claims]]=0),"Entry not found in Part 1 Table",IF(AND(OFFSET(tbl_OPAOINN_P2Coi[[#This Row],[Coinsurance]],1,0)<>"Total",OFFSET(tbl_OPAOINN_P2Coi[[#This Row],[Coinsurance]],1,0)<>"",OFFSET(tbl_OPAOINN_P2Coi[[#This Row],[Coinsurance]],1,0)<tbl_OPAOINN_P2Coi[[#This Row],[Coinsurance]]),"Sort Entries from lowest to highest",""))) ->  | AV96: =SUMIF(tbl_OPOON_P1[Coinsurance],AU96,tbl_OPOON_P1[Plan Projected Allowed Amount]) -> 0 | AW96: =IF(OR(AV96=0,AV96=""),"",AV96/tbl_OPOON_P2Coi[[#Totals],[Allowed Claims]]) ->  | AX96: =IF(AW96="","",IF(SUMIF(tbl_OPOON_P2Coi[Coinsurance],">="&AU96,tbl_OPOON_P2Coi[Portion])>0.5,AU96,"")) ->  | AY96: =IF(COUNTIF(tbl_OPOON_P2Coi[Coinsurance],tbl_OPOON_P2Coi[[#This Row],[Coinsurance]])>1,"Remove Duplicate Entry.",IF(AND(tbl_OPOON_P2Coi[[#This Row],[Coinsurance]]<>"",tbl_OPOON_P2Coi[[#This Row],[Allowed Claims]]=0),"Entry not found in Part 1 Table",IF(AND(OFFSET(tbl_OPOON_P2Coi[[#This Row],[Coinsurance]],1,0)<>"Total",OFFSET(tbl_OPOON_P2Coi[[#This Row],[Coinsurance]],1,0)<>"",OFFSET(tbl_OPOON_P2Coi[[#This Row],[Coinsurance]],1,0)<tbl_OPOON_P2Coi[[#This Row],[Coinsurance]]),"Sort Entries from lowest to highest",""))) ->  | BE96: =SUMIF(tbl_OPOVOON_P1[Coinsurance],BD96,tbl_OPOVOON_P1[Plan Projected Allowed Amount]) -> 0 | BF96: =IF(OR(BE96=0,BE96=""),"",BE96/tbl_OPOVOON_P2Coi[[#Totals],[Allowed Claims]]) ->  | BG96: =IF(BF96="","",IF(SUMIF(tbl_OPOVOON_P2Coi[Coinsurance],">="&BD96,tbl_OPOVOON_P2Coi[Portion])>0.5,BD96,"")) ->  | BH96: =IF(COUNTIF(tbl_OPOVOON_P2Coi[Coinsurance],tbl_OPOVOON_P2Coi[[#This Row],[Coinsurance]])>1,"Remove Duplicate Entry.",IF(AND(tbl_OPOVOON_P2Coi[[#This Row],[Coinsurance]]<>"",tbl_OPOVOON_P2Coi[[#This Row],[Allowed Claims]]=0),"Entry not found in Part 1 Table",IF(AND(OFFSET(tbl_OPOVOON_P2Coi[[#This Row],[Coinsurance]],1,0)<>"Total",OFFSET(tbl_OPOVOON_P2Coi[[#This Row],[Coinsurance]],1,0)<>"",OFFSET(tbl_OPOVOON_P2Coi[[#This Row],[Coinsurance]],1,0)<tbl_OPOVOON_P2Coi[[#This Row],[Coinsurance]]),"Sort Entries from lowest to highest",""))) ->  | BN96: =SUMIF(tbl_OPAOOON_P1[Coinsurance],BM96,tbl_OPAOOON_P1[Plan Projected Allowed Amount]) -> 0 | BO96: =IF(OR(BN96=0,BN96=""),"",BN96/tbl_OPAOOON_P2Coi[[#Totals],[Allowed Claims]]) ->  | BP96: =IF(BO96="","",IF(SUMIF(tbl_OPAOOON_P2Coi[Coinsurance],">="&BM96,tbl_OPAOOON_P2Coi[Portion])>0.5,BM96,"")) ->  | BQ96: =IF(COUNTIF(tbl_OPAOOON_P2Coi[Coinsurance],tbl_OPAOOON_P2Coi[[#This Row],[Coinsurance]])>1,"Remove Duplicate Entry.",IF(AND(tbl_OPAOOON_P2Coi[[#This Row],[Coinsurance]]<>"",tbl_OPAOOON_P2Coi[[#This Row],[Allowed Claims]]=0),"Entry not found in Part 1 Table",IF(AND(OFFSET(tbl_OPAOOON_P2Coi[[#This Row],[Coinsurance]],1,0)<>"Total",OFFSET(tbl_OPAOOON_P2Coi[[#This Row],[Coinsurance]],1,0)<>"",OFFSET(tbl_OPAOOON_P2Coi[[#This Row],[Coinsurance]],1,0)<tbl_OPAOOON_P2Coi[[#This Row],[Coinsurance]]),"Sort Entries from lowest to highest",""))) ->  | BW96: =SUMIF(tbl_ER_P1[Coinsurance],BV96,tbl_ER_P1[Plan Projected Allowed Amount]) -> 0 | BX96: =IF(OR(BW96=0,BW96=""),"",BW96/tbl_ER_P2Coi[[#Totals],[Allowed Claims]]) ->  | BY96: =IF(BX96="","",IF(SUMIF(tbl_ER_P2Coi[Coinsurance],">="&BV96,tbl_ER_P2Coi[Portion])>0.5,BV96,"")) ->  | BZ96: =IF(COUNTIF(tbl_ER_P2Coi[Coinsurance],tbl_ER_P2Coi[[#This Row],[Coinsurance]])>1,"Remove Duplicate Entry.",IF(AND(tbl_ER_P2Coi[[#This Row],[Coinsurance]]<>"",tbl_ER_P2Coi[[#This Row],[Allowed Claims]]=0),"Entry not found in Part 1 Table",IF(AND(OFFSET(tbl_ER_P2Coi[[#This Row],[Coinsurance]],1,0)<>"Total",OFFSET(tbl_ER_P2Coi[[#This Row],[Coinsurance]],1,0)<>"",OFFSET(tbl_ER_P2Coi[[#This Row],[Coinsurance]],1,0)<tbl_ER_P2Coi[[#This Row],[Coinsurance]]),"Sort Entries from lowest to highest",""))) ->  | CF96: =SUMIF(tbl_RX_P1[Coinsurance],CE96,tbl_RX_P1[Plan Projected Allowed Amount]) -> 0 | CG96: =IF(OR(CF96=0,CF96=""),"",CF96/tbl_RX_P2Coi[[#Totals],[Allowed Claims]]) ->  | CH96: =IF(CG96="","",IF(SUMIF(tbl_RX_P2Coi[Coinsurance],">="&CE96,tbl_RX_P2Coi[Portion])>0.5,CE96,"")) ->  | CI96: =IF(COUNTIF(tbl_RX_P2Coi[Coinsurance],tbl_RX_P2Coi[[#This Row],[Coinsurance]])>1,"Remove Duplicate Entry.",IF(AND(tbl_RX_P2Coi[[#This Row],[Coinsurance]]<>"",tbl_RX_P2Coi[[#This Row],[Allowed Claims]]=0),"Entry not found in Part 1 Table",IF(AND(OFFSET(tbl_RX_P2Coi[[#This Row],[Coinsurance]],1,0)<>"Total",OFFSET(tbl_RX_P2Coi[[#This Row],[Coinsurance]],1,0)<>"",OFFSET(tbl_RX_P2Coi[[#This Row],[Coinsurance]],1,0)<tbl_RX_P2Coi[[#This Row],[Coinsurance]]),"Sort Entries from lowest to highest",""))) -> 
B97: Total | C97: =SUBTOTAL(109,tbl_IPINN_P2Coi[Allowed Claims]) -> 0 | D97: =SUBTOTAL(109,tbl_IPINN_P2Coi[Portion]) -> 0 | F97: =IF(AND(tbl_IPINN_P2Coi[[#Totals],[Allowed Claims]]<C63,E63<>"Fail",E63<>"N/A"),"Add missing cost share values.",IF(C97>D47,"Allowed claims higher than possible; correct entries.","")) ->  | K97: Total | L97: =SUBTOTAL(109,tbl_IPOON_P2Coi[Allowed Claims]) -> 0 | M97: =SUBTOTAL(109,tbl_IPOON_P2Coi[Portion]) -> 0 | O97: =IF(AND(tbl_IPOON_P2Coi[[#Totals],[Allowed Claims]]<L63,N63<>"Fail",N63<>"N/A"),"Add missing cost share values.",IF(L97>M47,"Allowed claims higher than possible; correct entries.","")) ->  | T97: Total | U97: =SUBTOTAL(109,tbl_OPINN_P2Coi[Allowed Claims]) -> 0 | V97: =SUBTOTAL(109,tbl_OPINN_P2Coi[Portion]) -> 0 | X97: =IF(AND(tbl_OPINN_P2Coi[[#Totals],[Allowed Claims]]<U63,W63<>"Fail",W63<>"N/A"),"Add missing cost share values.",IF(U97>V47,"Allowed claims higher than possible; correct entries.","")) ->  | AC97: Total | AD97: =SUBTOTAL(109,tbl_OPOVINN_P2Coi[Allowed Claims]) -> 0 | AE97: =SUBTOTAL(109,tbl_OPOVINN_P2Coi[Portion]) -> 0 | AG97: =IF(AND(tbl_OPOVINN_P2Coi[[#Totals],[Allowed Claims]]<AD63,AF63<>"Fail",AF63<>"N/A"),"Add missing cost share values.",IF(AD97>AE47,"Allowed claims higher than possible; correct entries.","")) ->  | AL97: Total | AM97: =SUBTOTAL(109,tbl_OPAOINN_P2Coi[Allowed Claims]) -> 0 | AN97: =SUBTOTAL(109,tbl_OPAOINN_P2Coi[Portion]) -> 0 | AP97: =IF(AND(tbl_OPAOINN_P2Coi[[#Totals],[Allowed Claims]]<AM63,AO63<>"Fail",AO63<>"N/A"),"Add missing cost share values.",IF(AM97>AN47,"Allowed claims higher than possible; correct entries.","")) ->  | AU97: Total | AV97: =SUBTOTAL(109,tbl_OPOON_P2Coi[Allowed Claims]) -> 0 | AW97: =SUBTOTAL(109,tbl_OPOON_P2Coi[Portion]) -> 0 | AY97: =IF(AND(tbl_OPOON_P2Coi[[#Totals],[Allowed Claims]]<AV63,AX63<>"Fail",AX63<>"N/A"),"Add missing cost share values.",IF(AV97>AW47,"Allowed claims higher than possible; correct entries.","")) ->  | BD97: Total | BE97: =SUBTOTAL(109,tbl_OPOVOON_P2Coi[Allowed Claims]) -> 0 | BF97: =SUBTOTAL(109,tbl_OPOVOON_P2Coi[Portion]) -> 0 | BH97: =IF(AND(tbl_OPOVOON_P2Coi[[#Totals],[Allowed Claims]]<BE63,BG63<>"Fail",BG63<>"N/A"),"Add missing cost share values.",IF(BE97>BF47,"Allowed claims higher than possible; correct entries.","")) ->  | BM97: Total | BN97: =SUBTOTAL(109,tbl_OPAOOON_P2Coi[Allowed Claims]) -> 0 | BO97: =SUBTOTAL(109,tbl_OPAOOON_P2Coi[Portion]) -> 0 | BQ97: =IF(AND(tbl_OPAOOON_P2Coi[[#Totals],[Allowed Claims]]<BN63,BP63<>"Fail",BP63<>"N/A"),"Add missing cost share values.",IF(BN97>BO47,"Allowed claims higher than possible; correct entries.","")) ->  | BV97: Total | BW97: =SUBTOTAL(109,tbl_ER_P2Coi[Allowed Claims]) -> 0 | BX97: =SUBTOTAL(109,tbl_ER_P2Coi[Portion]) -> 0 | BZ97: =IF(AND(tbl_ER_P2Coi[[#Totals],[Allowed Claims]]<BW63,BY63<>"Fail",BY63<>"N/A"),"Add missing cost share values.",IF(BW97>BX47,"Allowed claims higher than possible; correct entries.","")) ->  | CE97: Total | CF97: =SUBTOTAL(109,tbl_RX_P2Coi[Allowed Claims]) -> 0 | CG97: =SUBTOTAL(109,tbl_RX_P2Coi[Portion]) -> 0 | CI97: =IF(AND(tbl_RX_P2Coi[[#Totals],[Allowed Claims]]<CF63,CH63<>"Fail",CH63<>"N/A"),"Add missing cost share values.",IF(CF97>CG47,"Allowed claims higher than possible; correct entries.","")) -> 
B99: =B103&" ---- "&C$32 -> OOPM ---- (1) Inpatient, In-Network (IP INN) | K99: =K103&" ---- "&L$32 -> OOPM ---- (2) Inpatient, Out-of-Network (IP OON) | T99: =T103&" ---- "&U$32 -> OOPM ---- (3) Outpatient, In-Network (OP INN) | AC99: =AC103&" ---- "&AD$32 -> OOPM ---- (3a) Outpatient - Office Visits, In-Network (OP-OV INN) | AL99: =AL103&" ---- "&AM$32 -> OOPM ---- (3b) Outpatient - All Other, In-Network (OP-AO INN) | AU99: =AU103&" ---- "&AV$32 -> OOPM ---- (4) Outpatient, Out-of-Network (OP OON) | BD99: =BD103&" ---- "&BE$32 -> OOPM ---- (4a) Outpatient - Office Visits, Out-of-Network (OP-OV OON) | BM99: =BM103&" ---- "&BN$32 -> OOPM ---- (4b) Outpatient - All Other, Out-of-Network (OP-AO OON) | BV99: =BV103&" ---- "&BW$32 -> OOPM ---- (5) Emergency Care, (ER ) | CE99: =CE103&" ---- "&CF$32 -> OOPM ---- (6) Prescription Drugs, (RX )
B100: =IF(INDEX(D$61:D$64,MATCH(B103,B$61:B$64,0))="","If testing is required for this benefit classification: Please ensure each different cost-share combination is entered above in PART 1.",IF(INDEX(D$61:D$64,MATCH(B103,B$61:B$64,0))>=(2/3),"Applies to substantially all medical/surgical benefits in this classification. ENTER different "&LOWER(B103)&" amounts from smallest to largest.","Does not apply to substantially all medical/surgical benefits in this classification. DELETE any values in the left-hand column below.")) -> If testing is required for this benefit classification: Please ensure each different cost-share combination is entered above in PART 1. | K100: =IF(INDEX(M$61:M$64,MATCH(K103,K$61:K$64,0))="","If testing is required for this benefit classification: Please ensure each different cost-share combination is entered above in PART 1.",IF(INDEX(M$61:M$64,MATCH(K103,K$61:K$64,0))>=(2/3),"Applies to substantially all medical/surgical benefits in this classification. ENTER different "&LOWER(K103)&" amounts from smallest to largest.","Does not apply to substantially all medical/surgical benefits in this classification. DELETE any values in the left-hand column below.")) -> If testing is required for this benefit classification: Please ensure each different cost-share combination is entered above in PART 1. | T100: =IF(INDEX(V$61:V$64,MATCH(T103,T$61:T$64,0))="","If testing is required for this benefit classification: Please ensure each different cost-share combination is entered above in PART 1.",IF(INDEX(V$61:V$64,MATCH(T103,T$61:T$64,0))>=(2/3),"Applies to substantially all medical/surgical benefits in this classification. ENTER different "&LOWER(T103)&" amounts from smallest to largest.","Does not apply to substantially all medical/surgical benefits in this classification. DELETE any values in the left-hand column below.")) -> If testing is required for this benefit classification: Please ensure each different cost-share combination is entered above in PART 1. | AC100: =IF(INDEX(AE$61:AE$64,MATCH(AC103,AC$61:AC$64,0))="","If testing is required for this benefit classification: Please ensure each different cost-share combination is entered above in PART 1.",IF(INDEX(AE$61:AE$64,MATCH(AC103,AC$61:AC$64,0))>=(2/3),"Applies to substantially all medical/surgical benefits in this classification. ENTER different "&LOWER(AC103)&" amounts from smallest to largest.","Does not apply to substantially all medical/surgical benefits in this classification. DELETE any values in the left-hand column below.")) -> If testing is required for this benefit classification: Please ensure each different cost-share combination is entered above in PART 1. | AL100: =IF(INDEX(AN$61:AN$64,MATCH(AL103,AL$61:AL$64,0))="","If testing is required for this benefit classification: Please ensure each different cost-share combination is entered above in PART 1.",IF(INDEX(AN$61:AN$64,MATCH(AL103,AL$61:AL$64,0))>=(2/3),"Applies to substantially all medical/surgical benefits in this classification. ENTER different "&LOWER(AL103)&" amounts from smallest to largest.","Does not apply to substantially all medical/surgical benefits in this classification. DELETE any values in the left-hand column below.")) -> If testing is required for this benefit classification: Please ensure each different cost-share combination is entered above in PART 1. | AU100: =IF(INDEX(AW$61:AW$64,MATCH(AU103,AU$61:AU$64,0))="","If testing is required for this benefit classification: Please ensure each different cost-share combination is entered above in PART 1.",IF(INDEX(AW$61:AW$64,MATCH(AU103,AU$61:AU$64,0))>=(2/3),"Applies to substantially all medical/surgical benefits in this classification. ENTER different "&LOWER(AU103)&" amounts from smallest to largest.","Does not apply to substantially all medical/surgical benefits in this classification. DELETE any values in the left-hand column below.")) -> If testing is required for this benefit classification: Please ensure each different cost-share combination is entered above in PART 1. | BD100: =IF(INDEX(BF$61:BF$64,MATCH(BD103,BD$61:BD$64,0))="","If testing is required for this benefit classification: Please ensure each different cost-share combination is entered above in PART 1.",IF(INDEX(BF$61:BF$64,MATCH(BD103,BD$61:BD$64,0))>=(2/3),"Applies to substantially all medical/surgical benefits in this classification. ENTER different "&LOWER(BD103)&" amounts from smallest to largest.","Does not apply to substantially all medical/surgical benefits in this classification. DELETE any values in the left-hand column below.")) -> If testing is required for this benefit classification: Please ensure each different cost-share combination is entered above in PART 1. | BM100: =IF(INDEX(BO$61:BO$64,MATCH(BM103,BM$61:BM$64,0))="","If testing is required for this benefit classification: Please ensure each different cost-share combination is entered above in PART 1.",IF(INDEX(BO$61:BO$64,MATCH(BM103,BM$61:BM$64,0))>=(2/3),"Applies to substantially all medical/surgical benefits in this classification. ENTER different "&LOWER(BM103)&" amounts from smallest to largest.","Does not apply to substantially all medical/surgical benefits in this classification. DELETE any values in the left-hand column below.")) -> If testing is required for this benefit classification: Please ensure each different cost-share combination is entered above in PART 1. | BV100: =IF(INDEX(BX$61:BX$64,MATCH(BV103,BV$61:BV$64,0))="","If testing is required for this benefit classification: Please ensure each different cost-share combination is entered above in PART 1.",IF(INDEX(BX$61:BX$64,MATCH(BV103,BV$61:BV$64,0))>=(2/3),"Applies to substantially all medical/surgical benefits in this classification. ENTER different "&LOWER(BV103)&" amounts from smallest to largest.","Does not apply to substantially all medical/surgical benefits in this classification. DELETE any values in the left-hand column below.")) -> If testing is required for this benefit classification: Please ensure each different cost-share combination is entered above in PART 1. | CE100: =IF(INDEX(CG$61:CG$64,MATCH(CE103,CE$61:CE$64,0))="","If testing is required for this benefit classification: Please ensure each different cost-share combination is entered above in PART 1.",IF(INDEX(CG$61:CG$64,MATCH(CE103,CE$61:CE$64,0))>=(2/3),"Applies to substantially all medical/surgical benefits in this classification. ENTER different "&LOWER(CE103)&" amounts from smallest to largest.","Does not apply to substantially all medical/surgical benefits in this classification. DELETE any values in the left-hand column below.")) -> If testing is required for this benefit classification: Please ensure each different cost-share combination is entered above in PART 1.
B103: OOPM | C103: Allowed Claims | D103: Portion | E103: Predominant & Smaller | F103: Error Checking | K103: OOPM | L103: Allowed Claims | M103: Portion | N103: Predominant & Smaller | O103: Error Checking | T103: OOPM | U103: Allowed Claims | V103: Portion | W103: Predominant & Smaller | X103: Error Checking | AC103: OOPM | AD103: Allowed Claims | AE103: Portion | AF103: Predominant & Smaller | AG103: Error Checking | AL103: OOPM | AM103: Allowed Claims | AN103: Portion | AO103: Predominant & Smaller | AP103: Error Checking | AU103: OOPM | AV103: Allowed Claims | AW103: Portion | AX103: Predominant & Smaller | AY103: Error Checking | BD103: OOPM | BE103: Allowed Claims | BF103: Portion | BG103: Predominant & Smaller | BH103: Error Checking | BM103: OOPM | BN103: Allowed Claims | BO103: Portion | BP103: Predominant & Smaller | BQ103: Error Checking | BV103: OOPM | BW103: Allowed Claims | BX103: Portion | BY103: Predominant & Smaller | BZ103: Error Checking | CE103: OOPM | CF103: Allowed Claims | CG103: Portion | CH103: Predominant & Smaller | CI103: Error Checking
C104: =SUMIF(tbl_IPINN_P1[Out-of-Pocket Maximum (OOPM)],B104,tbl_IPINN_P1[Plan Projected Allowed Amount]) -> 0 | D104: =IF(OR(C104=0,C104=""),"",C104/tbl_IPINN_P2OOPM[[#Totals],[Allowed Claims]]) ->  | E104: =IF(D104="","",IF(SUMIF(tbl_IPINN_P2OOPM[OOPM],">="&B104,tbl_IPINN_P2OOPM[Portion])>0.5,B104,"")) ->  | F104: =IF(COUNTIF(tbl_IPINN_P2OOPM[OOPM],tbl_IPINN_P2OOPM[[#This Row],[OOPM]])>1,"Remove Duplicate Entry.",IF(AND(tbl_IPINN_P2OOPM[[#This Row],[OOPM]]<>"",tbl_IPINN_P2OOPM[[#This Row],[Allowed Claims]]=0),"Entry not found in Part 1 Table",IF(AND(OFFSET(tbl_IPINN_P2OOPM[[#This Row],[OOPM]],1,0)<>"Total",OFFSET(tbl_IPINN_P2OOPM[[#This Row],[OOPM]],1,0)<>"",OFFSET(tbl_IPINN_P2OOPM[[#This Row],[OOPM]],1,0)<tbl_IPINN_P2OOPM[[#This Row],[OOPM]]),"Sort Entries from lowest to highest",""))) ->  | L104: =SUMIF(tbl_IPOON_P1[Out-of-Pocket Maximum (OOPM)],K104,tbl_IPOON_P1[Plan Projected Allowed Amount]) -> 0 | M104: =IF(OR(L104=0,L104=""),"",L104/tbl_IPOON_P2OOPM[[#Totals],[Allowed Claims]]) ->  | N104: =IF(M104="","",IF(SUMIF(tbl_IPOON_P2OOPM[OOPM],">="&K104,tbl_IPOON_P2OOPM[Portion])>0.5,K104,"")) ->  | O104: =IF(COUNTIF(tbl_IPOON_P2OOPM[OOPM],tbl_IPOON_P2OOPM[[#This Row],[OOPM]])>1,"Remove Duplicate Entry.",IF(AND(tbl_IPOON_P2OOPM[[#This Row],[OOPM]]<>"",tbl_IPOON_P2OOPM[[#This Row],[Allowed Claims]]=0),"Entry not found in Part 1 Table",IF(AND(OFFSET(tbl_IPOON_P2OOPM[[#This Row],[OOPM]],1,0)<>"Total",OFFSET(tbl_IPOON_P2OOPM[[#This Row],[OOPM]],1,0)<>"",OFFSET(tbl_IPOON_P2OOPM[[#This Row],[OOPM]],1,0)<tbl_IPOON_P2OOPM[[#This Row],[OOPM]]),"Sort Entries from lowest to highest",""))) ->  | U104: =SUMIF(tbl_OPINN_P1[Out-of-Pocket Maximum (OOPM)],T104,tbl_OPINN_P1[Plan Projected Allowed Amount]) -> 0 | V104: =IF(OR(U104=0,U104=""),"",U104/tbl_OPINN_P2OOPM[[#Totals],[Allowed Claims]]) ->  | W104: =IF(V104="","",IF(SUMIF(tbl_OPINN_P2OOPM[OOPM],">="&T104,tbl_OPINN_P2OOPM[Portion])>0.5,T104,"")) ->  | X104: =IF(COUNTIF(tbl_OPINN_P2OOPM[OOPM],tbl_OPINN_P2OOPM[[#This Row],[OOPM]])>1,"Remove Duplicate Entry.",IF(AND(tbl_OPINN_P2OOPM[[#This Row],[OOPM]]<>"",tbl_OPINN_P2OOPM[[#This Row],[Allowed Claims]]=0),"Entry not found in Part 1 Table",IF(AND(OFFSET(tbl_OPINN_P2OOPM[[#This Row],[OOPM]],1,0)<>"Total",OFFSET(tbl_OPINN_P2OOPM[[#This Row],[OOPM]],1,0)<>"",OFFSET(tbl_OPINN_P2OOPM[[#This Row],[OOPM]],1,0)<tbl_OPINN_P2OOPM[[#This Row],[OOPM]]),"Sort Entries from lowest to highest",""))) ->  | AD104: =SUMIF(tbl_OPOVINN_P1[Out-of-Pocket Maximum (OOPM)],AC104,tbl_OPOVINN_P1[Plan Projected Allowed Amount]) -> 0 | AE104: =IF(OR(AD104=0,AD104=""),"",AD104/tbl_OPOVINN_P2OOPM[[#Totals],[Allowed Claims]]) ->  | AF104: =IF(AE104="","",IF(SUMIF(tbl_OPOVINN_P2OOPM[OOPM],">="&AC104,tbl_OPOVINN_P2OOPM[Portion])>0.5,AC104,"")) ->  | AG104: =IF(COUNTIF(tbl_OPOVINN_P2OOPM[OOPM],tbl_OPOVINN_P2OOPM[[#This Row],[OOPM]])>1,"Remove Duplicate Entry.",IF(AND(tbl_OPOVINN_P2OOPM[[#This Row],[OOPM]]<>"",tbl_OPOVINN_P2OOPM[[#This Row],[Allowed Claims]]=0),"Entry not found in Part 1 Table",IF(AND(OFFSET(tbl_OPOVINN_P2OOPM[[#This Row],[OOPM]],1,0)<>"Total",OFFSET(tbl_OPOVINN_P2OOPM[[#This Row],[OOPM]],1,0)<>"",OFFSET(tbl_OPOVINN_P2OOPM[[#This Row],[OOPM]],1,0)<tbl_OPOVINN_P2OOPM[[#This Row],[OOPM]]),"Sort Entries from lowest to highest",""))) ->  | AM104: =SUMIF(tbl_OPAOINN_P1[Out-of-Pocket Maximum (OOPM)],AL104,tbl_OPAOINN_P1[Plan Projected Allowed Amount]) -> 0 | AN104: =IF(OR(AM104=0,AM104=""),"",AM104/tbl_OPAOINN_P2OOPM[[#Totals],[Allowed Claims]]) ->  | AO104: =IF(AN104="","",IF(SUMIF(tbl_OPAOINN_P2OOPM[OOPM],">="&AL104,tbl_OPAOINN_P2OOPM[Portion])>0.5,AL104,"")) ->  | AP104: =IF(COUNTIF(tbl_OPAOINN_P2OOPM[OOPM],tbl_OPAOINN_P2OOPM[[#This Row],[OOPM]])>1,"Remove Duplicate Entry.",IF(AND(tbl_OPAOINN_P2OOPM[[#This Row],[OOPM]]<>"",tbl_OPAOINN_P2OOPM[[#This Row],[Allowed Claims]]=0),"Entry not found in Part 1 Table",IF(AND(OFFSET(tbl_OPAOINN_P2OOPM[[#This Row],[OOPM]],1,0)<>"Total",OFFSET(tbl_OPAOINN_P2OOPM[[#This Row],[OOPM]],1,0)<>"",OFFSET(tbl_OPAOINN_P2OOPM[[#This Row],[OOPM]],1,0)<tbl_OPAOINN_P2OOPM[[#This Row],[OOPM]]),"Sort Entries from lowest to highest",""))) ->  | AV104: =SUMIF(tbl_OPOON_P1[Out-of-Pocket Maximum (OOPM)],AU104,tbl_OPOON_P1[Plan Projected Allowed Amount]) -> 0 | AW104: =IF(OR(AV104=0,AV104=""),"",AV104/tbl_OPOON_P2OOPM[[#Totals],[Allowed Claims]]) ->  | AX104: =IF(AW104="","",IF(SUMIF(tbl_OPOON_P2OOPM[OOPM],">="&AU104,tbl_OPOON_P2OOPM[Portion])>0.5,AU104,"")) ->  | AY104: =IF(COUNTIF(tbl_OPOON_P2OOPM[OOPM],tbl_OPOON_P2OOPM[[#This Row],[OOPM]])>1,"Remove Duplicate Entry.",IF(AND(tbl_OPOON_P2OOPM[[#This Row],[OOPM]]<>"",tbl_OPOON_P2OOPM[[#This Row],[Allowed Claims]]=0),"Entry not found in Part 1 Table",IF(AND(OFFSET(tbl_OPOON_P2OOPM[[#This Row],[OOPM]],1,0)<>"Total",OFFSET(tbl_OPOON_P2OOPM[[#This Row],[OOPM]],1,0)<>"",OFFSET(tbl_OPOON_P2OOPM[[#This Row],[OOPM]],1,0)<tbl_OPOON_P2OOPM[[#This Row],[OOPM]]),"Sort Entries from lowest to highest",""))) ->  | BE104: =SUMIF(tbl_OPOVOON_P1[Out-of-Pocket Maximum (OOPM)],BD104,tbl_OPOVOON_P1[Plan Projected Allowed Amount]) -> 0 | BF104: =IF(OR(BE104=0,BE104=""),"",BE104/tbl_OPOVOON_P2OOPM[[#Totals],[Allowed Claims]]) ->  | BG104: =IF(BF104="","",IF(SUMIF(tbl_OPOVOON_P2OOPM[OOPM],">="&BD104,tbl_OPOVOON_P2OOPM[Portion])>0.5,BD104,"")) ->  | BH104: =IF(COUNTIF(tbl_OPOVOON_P2OOPM[OOPM],tbl_OPOVOON_P2OOPM[[#This Row],[OOPM]])>1,"Remove Duplicate Entry.",IF(AND(tbl_OPOVOON_P2OOPM[[#This Row],[OOPM]]<>"",tbl_OPOVOON_P2OOPM[[#This Row],[Allowed Claims]]=0),"Entry not found in Part 1 Table",IF(AND(OFFSET(tbl_OPOVOON_P2OOPM[[#This Row],[OOPM]],1,0)<>"Total",OFFSET(tbl_OPOVOON_P2OOPM[[#This Row],[OOPM]],1,0)<>"",OFFSET(tbl_OPOVOON_P2OOPM[[#This Row],[OOPM]],1,0)<tbl_OPOVOON_P2OOPM[[#This Row],[OOPM]]),"Sort Entries from lowest to highest",""))) ->  | BN104: =SUMIF(tbl_OPAOOON_P1[Out-of-Pocket Maximum (OOPM)],BM104,tbl_OPAOOON_P1[Plan Projected Allowed Amount]) -> 0 | BO104: =IF(OR(BN104=0,BN104=""),"",BN104/tbl_OPAOOON_P2OOPM[[#Totals],[Allowed Claims]]) ->  | BP104: =IF(BO104="","",IF(SUMIF(tbl_OPAOOON_P2OOPM[OOPM],">="&BM104,tbl_OPAOOON_P2OOPM[Portion])>0.5,BM104,"")) ->  | BQ104: =IF(COUNTIF(tbl_OPAOOON_P2OOPM[OOPM],tbl_OPAOOON_P2OOPM[[#This Row],[OOPM]])>1,"Remove Duplicate Entry.",IF(AND(tbl_OPAOOON_P2OOPM[[#This Row],[OOPM]]<>"",tbl_OPAOOON_P2OOPM[[#This Row],[Allowed Claims]]=0),"Entry not found in Part 1 Table",IF(AND(OFFSET(tbl_OPAOOON_P2OOPM[[#This Row],[OOPM]],1,0)<>"Total",OFFSET(tbl_OPAOOON_P2OOPM[[#This Row],[OOPM]],1,0)<>"",OFFSET(tbl_OPAOOON_P2OOPM[[#This Row],[OOPM]],1,0)<tbl_OPAOOON_P2OOPM[[#This Row],[OOPM]]),"Sort Entries from lowest to highest",""))) ->  | BW104: =SUMIF(tbl_ER_P1[Out-of-Pocket Maximum (OOPM)],BV104,tbl_ER_P1[Plan Projected Allowed Amount]) -> 0 | BX104: =IF(OR(BW104=0,BW104=""),"",BW104/tbl_ER_P2OOPM[[#Totals],[Allowed Claims]]) ->  | BY104: =IF(BX104="","",IF(SUMIF(tbl_ER_P2OOPM[OOPM],">="&BV104,tbl_ER_P2OOPM[Portion])>0.5,BV104,"")) ->  | BZ104: =IF(COUNTIF(tbl_ER_P2OOPM[OOPM],tbl_ER_P2OOPM[[#This Row],[OOPM]])>1,"Remove Duplicate Entry.",IF(AND(tbl_ER_P2OOPM[[#This Row],[OOPM]]<>"",tbl_ER_P2OOPM[[#This Row],[Allowed Claims]]=0),"Entry not found in Part 1 Table",IF(AND(OFFSET(tbl_ER_P2OOPM[[#This Row],[OOPM]],1,0)<>"Total",OFFSET(tbl_ER_P2OOPM[[#This Row],[OOPM]],1,0)<>"",OFFSET(tbl_ER_P2OOPM[[#This Row],[OOPM]],1,0)<tbl_ER_P2OOPM[[#This Row],[OOPM]]),"Sort Entries from lowest to highest",""))) ->  | CF104: =SUMIF(tbl_RX_P1[Out-of-Pocket Maximum (OOPM)],CE104,tbl_RX_P1[Plan Projected Allowed Amount]) -> 0 | CG104: =IF(OR(CF104=0,CF104=""),"",CF104/tbl_RX_P2OOPM[[#Totals],[Allowed Claims]]) ->  | CH104: =IF(CG104="","",IF(SUMIF(tbl_RX_P2OOPM[OOPM],">="&CE104,tbl_RX_P2OOPM[Portion])>0.5,CE104,"")) ->  | CI104: =IF(COUNTIF(tbl_RX_P2OOPM[OOPM],tbl_RX_P2OOPM[[#This Row],[OOPM]])>1,"Remove Duplicate Entry.",IF(AND(tbl_RX_P2OOPM[[#This Row],[OOPM]]<>"",tbl_RX_P2OOPM[[#This Row],[Allowed Claims]]=0),"Entry not found in Part 1 Table",IF(AND(OFFSET(tbl_RX_P2OOPM[[#This Row],[OOPM]],1,0)<>"Total",OFFSET(tbl_RX_P2OOPM[[#This Row],[OOPM]],1,0)<>"",OFFSET(tbl_RX_P2OOPM[[#This Row],[OOPM]],1,0)<tbl_RX_P2OOPM[[#This Row],[OOPM]]),"Sort Entries from lowest to highest",""))) -> 
C105: =SUMIF(tbl_IPINN_P1[Out-of-Pocket Maximum (OOPM)],B105,tbl_IPINN_P1[Plan Projected Allowed Amount]) -> 0 | D105: =IF(OR(C105=0,C105=""),"",C105/tbl_IPINN_P2OOPM[[#Totals],[Allowed Claims]]) ->  | E105: =IF(D105="","",IF(SUMIF(tbl_IPINN_P2OOPM[OOPM],">="&B105,tbl_IPINN_P2OOPM[Portion])>0.5,B105,"")) ->  | F105: =IF(COUNTIF(tbl_IPINN_P2OOPM[OOPM],tbl_IPINN_P2OOPM[[#This Row],[OOPM]])>1,"Remove Duplicate Entry.",IF(AND(tbl_IPINN_P2OOPM[[#This Row],[OOPM]]<>"",tbl_IPINN_P2OOPM[[#This Row],[Allowed Claims]]=0),"Entry not found in Part 1 Table",IF(AND(OFFSET(tbl_IPINN_P2OOPM[[#This Row],[OOPM]],1,0)<>"Total",OFFSET(tbl_IPINN_P2OOPM[[#This Row],[OOPM]],1,0)<>"",OFFSET(tbl_IPINN_P2OOPM[[#This Row],[OOPM]],1,0)<tbl_IPINN_P2OOPM[[#This Row],[OOPM]]),"Sort Entries from lowest to highest",""))) ->  | L105: =SUMIF(tbl_IPOON_P1[Out-of-Pocket Maximum (OOPM)],K105,tbl_IPOON_P1[Plan Projected Allowed Amount]) -> 0 | M105: =IF(OR(L105=0,L105=""),"",L105/tbl_IPOON_P2OOPM[[#Totals],[Allowed Claims]]) ->  | N105: =IF(M105="","",IF(SUMIF(tbl_IPOON_P2OOPM[OOPM],">="&K105,tbl_IPOON_P2OOPM[Portion])>0.5,K105,"")) ->  | O105: =IF(COUNTIF(tbl_IPOON_P2OOPM[OOPM],tbl_IPOON_P2OOPM[[#This Row],[OOPM]])>1,"Remove Duplicate Entry.",IF(AND(tbl_IPOON_P2OOPM[[#This Row],[OOPM]]<>"",tbl_IPOON_P2OOPM[[#This Row],[Allowed Claims]]=0),"Entry not found in Part 1 Table",IF(AND(OFFSET(tbl_IPOON_P2OOPM[[#This Row],[OOPM]],1,0)<>"Total",OFFSET(tbl_IPOON_P2OOPM[[#This Row],[OOPM]],1,0)<>"",OFFSET(tbl_IPOON_P2OOPM[[#This Row],[OOPM]],1,0)<tbl_IPOON_P2OOPM[[#This Row],[OOPM]]),"Sort Entries from lowest to highest",""))) ->  | U105: =SUMIF(tbl_OPINN_P1[Out-of-Pocket Maximum (OOPM)],T105,tbl_OPINN_P1[Plan Projected Allowed Amount]) -> 0 | V105: =IF(OR(U105=0,U105=""),"",U105/tbl_OPINN_P2OOPM[[#Totals],[Allowed Claims]]) ->  | W105: =IF(V105="","",IF(SUMIF(tbl_OPINN_P2OOPM[OOPM],">="&T105,tbl_OPINN_P2OOPM[Portion])>0.5,T105,"")) ->  | X105: =IF(COUNTIF(tbl_OPINN_P2OOPM[OOPM],tbl_OPINN_P2OOPM[[#This Row],[OOPM]])>1,"Remove Duplicate Entry.",IF(AND(tbl_OPINN_P2OOPM[[#This Row],[OOPM]]<>"",tbl_OPINN_P2OOPM[[#This Row],[Allowed Claims]]=0),"Entry not found in Part 1 Table",IF(AND(OFFSET(tbl_OPINN_P2OOPM[[#This Row],[OOPM]],1,0)<>"Total",OFFSET(tbl_OPINN_P2OOPM[[#This Row],[OOPM]],1,0)<>"",OFFSET(tbl_OPINN_P2OOPM[[#This Row],[OOPM]],1,0)<tbl_OPINN_P2OOPM[[#This Row],[OOPM]]),"Sort Entries from lowest to highest",""))) ->  | AD105: =SUMIF(tbl_OPOVINN_P1[Out-of-Pocket Maximum (OOPM)],AC105,tbl_OPOVINN_P1[Plan Projected Allowed Amount]) -> 0 | AE105: =IF(OR(AD105=0,AD105=""),"",AD105/tbl_OPOVINN_P2OOPM[[#Totals],[Allowed Claims]]) ->  | AF105: =IF(AE105="","",IF(SUMIF(tbl_OPOVINN_P2OOPM[OOPM],">="&AC105,tbl_OPOVINN_P2OOPM[Portion])>0.5,AC105,"")) ->  | AG105: =IF(COUNTIF(tbl_OPOVINN_P2OOPM[OOPM],tbl_OPOVINN_P2OOPM[[#This Row],[OOPM]])>1,"Remove Duplicate Entry.",IF(AND(tbl_OPOVINN_P2OOPM[[#This Row],[OOPM]]<>"",tbl_OPOVINN_P2OOPM[[#This Row],[Allowed Claims]]=0),"Entry not found in Part 1 Table",IF(AND(OFFSET(tbl_OPOVINN_P2OOPM[[#This Row],[OOPM]],1,0)<>"Total",OFFSET(tbl_OPOVINN_P2OOPM[[#This Row],[OOPM]],1,0)<>"",OFFSET(tbl_OPOVINN_P2OOPM[[#This Row],[OOPM]],1,0)<tbl_OPOVINN_P2OOPM[[#This Row],[OOPM]]),"Sort Entries from lowest to highest",""))) ->  | AM105: =SUMIF(tbl_OPAOINN_P1[Out-of-Pocket Maximum (OOPM)],AL105,tbl_OPAOINN_P1[Plan Projected Allowed Amount]) -> 0 | AN105: =IF(OR(AM105=0,AM105=""),"",AM105/tbl_OPAOINN_P2OOPM[[#Totals],[Allowed Claims]]) ->  | AO105: =IF(AN105="","",IF(SUMIF(tbl_OPAOINN_P2OOPM[OOPM],">="&AL105,tbl_OPAOINN_P2OOPM[Portion])>0.5,AL105,"")) ->  | AP105: =IF(COUNTIF(tbl_OPAOINN_P2OOPM[OOPM],tbl_OPAOINN_P2OOPM[[#This Row],[OOPM]])>1,"Remove Duplicate Entry.",IF(AND(tbl_OPAOINN_P2OOPM[[#This Row],[OOPM]]<>"",tbl_OPAOINN_P2OOPM[[#This Row],[Allowed Claims]]=0),"Entry not found in Part 1 Table",IF(AND(OFFSET(tbl_OPAOINN_P2OOPM[[#This Row],[OOPM]],1,0)<>"Total",OFFSET(tbl_OPAOINN_P2OOPM[[#This Row],[OOPM]],1,0)<>"",OFFSET(tbl_OPAOINN_P2OOPM[[#This Row],[OOPM]],1,0)<tbl_OPAOINN_P2OOPM[[#This Row],[OOPM]]),"Sort Entries from lowest to highest",""))) ->  | AV105: =SUMIF(tbl_OPOON_P1[Out-of-Pocket Maximum (OOPM)],AU105,tbl_OPOON_P1[Plan Projected Allowed Amount]) -> 0 | AW105: =IF(OR(AV105=0,AV105=""),"",AV105/tbl_OPOON_P2OOPM[[#Totals],[Allowed Claims]]) ->  | AX105: =IF(AW105="","",IF(SUMIF(tbl_OPOON_P2OOPM[OOPM],">="&AU105,tbl_OPOON_P2OOPM[Portion])>0.5,AU105,"")) ->  | AY105: =IF(COUNTIF(tbl_OPOON_P2OOPM[OOPM],tbl_OPOON_P2OOPM[[#This Row],[OOPM]])>1,"Remove Duplicate Entry.",IF(AND(tbl_OPOON_P2OOPM[[#This Row],[OOPM]]<>"",tbl_OPOON_P2OOPM[[#This Row],[Allowed Claims]]=0),"Entry not found in Part 1 Table",IF(AND(OFFSET(tbl_OPOON_P2OOPM[[#This Row],[OOPM]],1,0)<>"Total",OFFSET(tbl_OPOON_P2OOPM[[#This Row],[OOPM]],1,0)<>"",OFFSET(tbl_OPOON_P2OOPM[[#This Row],[OOPM]],1,0)<tbl_OPOON_P2OOPM[[#This Row],[OOPM]]),"Sort Entries from lowest to highest",""))) ->  | BE105: =SUMIF(tbl_OPOVOON_P1[Out-of-Pocket Maximum (OOPM)],BD105,tbl_OPOVOON_P1[Plan Projected Allowed Amount]) -> 0 | BF105: =IF(OR(BE105=0,BE105=""),"",BE105/tbl_OPOVOON_P2OOPM[[#Totals],[Allowed Claims]]) ->  | BG105: =IF(BF105="","",IF(SUMIF(tbl_OPOVOON_P2OOPM[OOPM],">="&BD105,tbl_OPOVOON_P2OOPM[Portion])>0.5,BD105,"")) ->  | BH105: =IF(COUNTIF(tbl_OPOVOON_P2OOPM[OOPM],tbl_OPOVOON_P2OOPM[[#This Row],[OOPM]])>1,"Remove Duplicate Entry.",IF(AND(tbl_OPOVOON_P2OOPM[[#This Row],[OOPM]]<>"",tbl_OPOVOON_P2OOPM[[#This Row],[Allowed Claims]]=0),"Entry not found in Part 1 Table",IF(AND(OFFSET(tbl_OPOVOON_P2OOPM[[#This Row],[OOPM]],1,0)<>"Total",OFFSET(tbl_OPOVOON_P2OOPM[[#This Row],[OOPM]],1,0)<>"",OFFSET(tbl_OPOVOON_P2OOPM[[#This Row],[OOPM]],1,0)<tbl_OPOVOON_P2OOPM[[#This Row],[OOPM]]),"Sort Entries from lowest to highest",""))) ->  | BN105: =SUMIF(tbl_OPAOOON_P1[Out-of-Pocket Maximum (OOPM)],BM105,tbl_OPAOOON_P1[Plan Projected Allowed Amount]) -> 0 | BO105: =IF(OR(BN105=0,BN105=""),"",BN105/tbl_OPAOOON_P2OOPM[[#Totals],[Allowed Claims]]) ->  | BP105: =IF(BO105="","",IF(SUMIF(tbl_OPAOOON_P2OOPM[OOPM],">="&BM105,tbl_OPAOOON_P2OOPM[Portion])>0.5,BM105,"")) ->  | BQ105: =IF(COUNTIF(tbl_OPAOOON_P2OOPM[OOPM],tbl_OPAOOON_P2OOPM[[#This Row],[OOPM]])>1,"Remove Duplicate Entry.",IF(AND(tbl_OPAOOON_P2OOPM[[#This Row],[OOPM]]<>"",tbl_OPAOOON_P2OOPM[[#This Row],[Allowed Claims]]=0),"Entry not found in Part 1 Table",IF(AND(OFFSET(tbl_OPAOOON_P2OOPM[[#This Row],[OOPM]],1,0)<>"Total",OFFSET(tbl_OPAOOON_P2OOPM[[#This Row],[OOPM]],1,0)<>"",OFFSET(tbl_OPAOOON_P2OOPM[[#This Row],[OOPM]],1,0)<tbl_OPAOOON_P2OOPM[[#This Row],[OOPM]]),"Sort Entries from lowest to highest",""))) ->  | BW105: =SUMIF(tbl_ER_P1[Out-of-Pocket Maximum (OOPM)],BV105,tbl_ER_P1[Plan Projected Allowed Amount]) -> 0 | BX105: =IF(OR(BW105=0,BW105=""),"",BW105/tbl_ER_P2OOPM[[#Totals],[Allowed Claims]]) ->  | BY105: =IF(BX105="","",IF(SUMIF(tbl_ER_P2OOPM[OOPM],">="&BV105,tbl_ER_P2OOPM[Portion])>0.5,BV105,"")) ->  | BZ105: =IF(COUNTIF(tbl_ER_P2OOPM[OOPM],tbl_ER_P2OOPM[[#This Row],[OOPM]])>1,"Remove Duplicate Entry.",IF(AND(tbl_ER_P2OOPM[[#This Row],[OOPM]]<>"",tbl_ER_P2OOPM[[#This Row],[Allowed Claims]]=0),"Entry not found in Part 1 Table",IF(AND(OFFSET(tbl_ER_P2OOPM[[#This Row],[OOPM]],1,0)<>"Total",OFFSET(tbl_ER_P2OOPM[[#This Row],[OOPM]],1,0)<>"",OFFSET(tbl_ER_P2OOPM[[#This Row],[OOPM]],1,0)<tbl_ER_P2OOPM[[#This Row],[OOPM]]),"Sort Entries from lowest to highest",""))) ->  | CF105: =SUMIF(tbl_RX_P1[Out-of-Pocket Maximum (OOPM)],CE105,tbl_RX_P1[Plan Projected Allowed Amount]) -> 0 | CG105: =IF(OR(CF105=0,CF105=""),"",CF105/tbl_RX_P2OOPM[[#Totals],[Allowed Claims]]) ->  | CH105: =IF(CG105="","",IF(SUMIF(tbl_RX_P2OOPM[OOPM],">="&CE105,tbl_RX_P2OOPM[Portion])>0.5,CE105,"")) ->  | CI105: =IF(COUNTIF(tbl_RX_P2OOPM[OOPM],tbl_RX_P2OOPM[[#This Row],[OOPM]])>1,"Remove Duplicate Entry.",IF(AND(tbl_RX_P2OOPM[[#This Row],[OOPM]]<>"",tbl_RX_P2OOPM[[#This Row],[Allowed Claims]]=0),"Entry not found in Part 1 Table",IF(AND(OFFSET(tbl_RX_P2OOPM[[#This Row],[OOPM]],1,0)<>"Total",OFFSET(tbl_RX_P2OOPM[[#This Row],[OOPM]],1,0)<>"",OFFSET(tbl_RX_P2OOPM[[#This Row],[OOPM]],1,0)<tbl_RX_P2OOPM[[#This Row],[OOPM]]),"Sort Entries from lowest to highest",""))) -> 
C106: =SUMIF(tbl_IPINN_P1[Out-of-Pocket Maximum (OOPM)],B106,tbl_IPINN_P1[Plan Projected Allowed Amount]) -> 0 | D106: =IF(OR(C106=0,C106=""),"",C106/tbl_IPINN_P2OOPM[[#Totals],[Allowed Claims]]) ->  | E106: =IF(D106="","",IF(SUMIF(tbl_IPINN_P2OOPM[OOPM],">="&B106,tbl_IPINN_P2OOPM[Portion])>0.5,B106,"")) ->  | F106: =IF(COUNTIF(tbl_IPINN_P2OOPM[OOPM],tbl_IPINN_P2OOPM[[#This Row],[OOPM]])>1,"Remove Duplicate Entry.",IF(AND(tbl_IPINN_P2OOPM[[#This Row],[OOPM]]<>"",tbl_IPINN_P2OOPM[[#This Row],[Allowed Claims]]=0),"Entry not found in Part 1 Table",IF(AND(OFFSET(tbl_IPINN_P2OOPM[[#This Row],[OOPM]],1,0)<>"Total",OFFSET(tbl_IPINN_P2OOPM[[#This Row],[OOPM]],1,0)<>"",OFFSET(tbl_IPINN_P2OOPM[[#This Row],[OOPM]],1,0)<tbl_IPINN_P2OOPM[[#This Row],[OOPM]]),"Sort Entries from lowest to highest",""))) ->  | L106: =SUMIF(tbl_IPOON_P1[Out-of-Pocket Maximum (OOPM)],K106,tbl_IPOON_P1[Plan Projected Allowed Amount]) -> 0 | M106: =IF(OR(L106=0,L106=""),"",L106/tbl_IPOON_P2OOPM[[#Totals],[Allowed Claims]]) ->  | N106: =IF(M106="","",IF(SUMIF(tbl_IPOON_P2OOPM[OOPM],">="&K106,tbl_IPOON_P2OOPM[Portion])>0.5,K106,"")) ->  | O106: =IF(COUNTIF(tbl_IPOON_P2OOPM[OOPM],tbl_IPOON_P2OOPM[[#This Row],[OOPM]])>1,"Remove Duplicate Entry.",IF(AND(tbl_IPOON_P2OOPM[[#This Row],[OOPM]]<>"",tbl_IPOON_P2OOPM[[#This Row],[Allowed Claims]]=0),"Entry not found in Part 1 Table",IF(AND(OFFSET(tbl_IPOON_P2OOPM[[#This Row],[OOPM]],1,0)<>"Total",OFFSET(tbl_IPOON_P2OOPM[[#This Row],[OOPM]],1,0)<>"",OFFSET(tbl_IPOON_P2OOPM[[#This Row],[OOPM]],1,0)<tbl_IPOON_P2OOPM[[#This Row],[OOPM]]),"Sort Entries from lowest to highest",""))) ->  | U106: =SUMIF(tbl_OPINN_P1[Out-of-Pocket Maximum (OOPM)],T106,tbl_OPINN_P1[Plan Projected Allowed Amount]) -> 0 | V106: =IF(OR(U106=0,U106=""),"",U106/tbl_OPINN_P2OOPM[[#Totals],[Allowed Claims]]) ->  | W106: =IF(V106="","",IF(SUMIF(tbl_OPINN_P2OOPM[OOPM],">="&T106,tbl_OPINN_P2OOPM[Portion])>0.5,T106,"")) ->  | X106: =IF(COUNTIF(tbl_OPINN_P2OOPM[OOPM],tbl_OPINN_P2OOPM[[#This Row],[OOPM]])>1,"Remove Duplicate Entry.",IF(AND(tbl_OPINN_P2OOPM[[#This Row],[OOPM]]<>"",tbl_OPINN_P2OOPM[[#This Row],[Allowed Claims]]=0),"Entry not found in Part 1 Table",IF(AND(OFFSET(tbl_OPINN_P2OOPM[[#This Row],[OOPM]],1,0)<>"Total",OFFSET(tbl_OPINN_P2OOPM[[#This Row],[OOPM]],1,0)<>"",OFFSET(tbl_OPINN_P2OOPM[[#This Row],[OOPM]],1,0)<tbl_OPINN_P2OOPM[[#This Row],[OOPM]]),"Sort Entries from lowest to highest",""))) ->  | AD106: =SUMIF(tbl_OPOVINN_P1[Out-of-Pocket Maximum (OOPM)],AC106,tbl_OPOVINN_P1[Plan Projected Allowed Amount]) -> 0 | AE106: =IF(OR(AD106=0,AD106=""),"",AD106/tbl_OPOVINN_P2OOPM[[#Totals],[Allowed Claims]]) ->  | AF106: =IF(AE106="","",IF(SUMIF(tbl_OPOVINN_P2OOPM[OOPM],">="&AC106,tbl_OPOVINN_P2OOPM[Portion])>0.5,AC106,"")) ->  | AG106: =IF(COUNTIF(tbl_OPOVINN_P2OOPM[OOPM],tbl_OPOVINN_P2OOPM[[#This Row],[OOPM]])>1,"Remove Duplicate Entry.",IF(AND(tbl_OPOVINN_P2OOPM[[#This Row],[OOPM]]<>"",tbl_OPOVINN_P2OOPM[[#This Row],[Allowed Claims]]=0),"Entry not found in Part 1 Table",IF(AND(OFFSET(tbl_OPOVINN_P2OOPM[[#This Row],[OOPM]],1,0)<>"Total",OFFSET(tbl_OPOVINN_P2OOPM[[#This Row],[OOPM]],1,0)<>"",OFFSET(tbl_OPOVINN_P2OOPM[[#This Row],[OOPM]],1,0)<tbl_OPOVINN_P2OOPM[[#This Row],[OOPM]]),"Sort Entries from lowest to highest",""))) ->  | AM106: =SUMIF(tbl_OPAOINN_P1[Out-of-Pocket Maximum (OOPM)],AL106,tbl_OPAOINN_P1[Plan Projected Allowed Amount]) -> 0 | AN106: =IF(OR(AM106=0,AM106=""),"",AM106/tbl_OPAOINN_P2OOPM[[#Totals],[Allowed Claims]]) ->  | AO106: =IF(AN106="","",IF(SUMIF(tbl_OPAOINN_P2OOPM[OOPM],">="&AL106,tbl_OPAOINN_P2OOPM[Portion])>0.5,AL106,"")) ->  | AP106: =IF(COUNTIF(tbl_OPAOINN_P2OOPM[OOPM],tbl_OPAOINN_P2OOPM[[#This Row],[OOPM]])>1,"Remove Duplicate Entry.",IF(AND(tbl_OPAOINN_P2OOPM[[#This Row],[OOPM]]<>"",tbl_OPAOINN_P2OOPM[[#This Row],[Allowed Claims]]=0),"Entry not found in Part 1 Table",IF(AND(OFFSET(tbl_OPAOINN_P2OOPM[[#This Row],[OOPM]],1,0)<>"Total",OFFSET(tbl_OPAOINN_P2OOPM[[#This Row],[OOPM]],1,0)<>"",OFFSET(tbl_OPAOINN_P2OOPM[[#This Row],[OOPM]],1,0)<tbl_OPAOINN_P2OOPM[[#This Row],[OOPM]]),"Sort Entries from lowest to highest",""))) ->  | AV106: =SUMIF(tbl_OPOON_P1[Out-of-Pocket Maximum (OOPM)],AU106,tbl_OPOON_P1[Plan Projected Allowed Amount]) -> 0 | AW106: =IF(OR(AV106=0,AV106=""),"",AV106/tbl_OPOON_P2OOPM[[#Totals],[Allowed Claims]]) ->  | AX106: =IF(AW106="","",IF(SUMIF(tbl_OPOON_P2OOPM[OOPM],">="&AU106,tbl_OPOON_P2OOPM[Portion])>0.5,AU106,"")) ->  | AY106: =IF(COUNTIF(tbl_OPOON_P2OOPM[OOPM],tbl_OPOON_P2OOPM[[#This Row],[OOPM]])>1,"Remove Duplicate Entry.",IF(AND(tbl_OPOON_P2OOPM[[#This Row],[OOPM]]<>"",tbl_OPOON_P2OOPM[[#This Row],[Allowed Claims]]=0),"Entry not found in Part 1 Table",IF(AND(OFFSET(tbl_OPOON_P2OOPM[[#This Row],[OOPM]],1,0)<>"Total",OFFSET(tbl_OPOON_P2OOPM[[#This Row],[OOPM]],1,0)<>"",OFFSET(tbl_OPOON_P2OOPM[[#This Row],[OOPM]],1,0)<tbl_OPOON_P2OOPM[[#This Row],[OOPM]]),"Sort Entries from lowest to highest",""))) ->  | BE106: =SUMIF(tbl_OPOVOON_P1[Out-of-Pocket Maximum (OOPM)],BD106,tbl_OPOVOON_P1[Plan Projected Allowed Amount]) -> 0 | BF106: =IF(OR(BE106=0,BE106=""),"",BE106/tbl_OPOVOON_P2OOPM[[#Totals],[Allowed Claims]]) ->  | BG106: =IF(BF106="","",IF(SUMIF(tbl_OPOVOON_P2OOPM[OOPM],">="&BD106,tbl_OPOVOON_P2OOPM[Portion])>0.5,BD106,"")) ->  | BH106: =IF(COUNTIF(tbl_OPOVOON_P2OOPM[OOPM],tbl_OPOVOON_P2OOPM[[#This Row],[OOPM]])>1,"Remove Duplicate Entry.",IF(AND(tbl_OPOVOON_P2OOPM[[#This Row],[OOPM]]<>"",tbl_OPOVOON_P2OOPM[[#This Row],[Allowed Claims]]=0),"Entry not found in Part 1 Table",IF(AND(OFFSET(tbl_OPOVOON_P2OOPM[[#This Row],[OOPM]],1,0)<>"Total",OFFSET(tbl_OPOVOON_P2OOPM[[#This Row],[OOPM]],1,0)<>"",OFFSET(tbl_OPOVOON_P2OOPM[[#This Row],[OOPM]],1,0)<tbl_OPOVOON_P2OOPM[[#This Row],[OOPM]]),"Sort Entries from lowest to highest",""))) ->  | BN106: =SUMIF(tbl_OPAOOON_P1[Out-of-Pocket Maximum (OOPM)],BM106,tbl_OPAOOON_P1[Plan Projected Allowed Amount]) -> 0 | BO106: =IF(OR(BN106=0,BN106=""),"",BN106/tbl_OPAOOON_P2OOPM[[#Totals],[Allowed Claims]]) ->  | BP106: =IF(BO106="","",IF(SUMIF(tbl_OPAOOON_P2OOPM[OOPM],">="&BM106,tbl_OPAOOON_P2OOPM[Portion])>0.5,BM106,"")) ->  | BQ106: =IF(COUNTIF(tbl_OPAOOON_P2OOPM[OOPM],tbl_OPAOOON_P2OOPM[[#This Row],[OOPM]])>1,"Remove Duplicate Entry.",IF(AND(tbl_OPAOOON_P2OOPM[[#This Row],[OOPM]]<>"",tbl_OPAOOON_P2OOPM[[#This Row],[Allowed Claims]]=0),"Entry not found in Part 1 Table",IF(AND(OFFSET(tbl_OPAOOON_P2OOPM[[#This Row],[OOPM]],1,0)<>"Total",OFFSET(tbl_OPAOOON_P2OOPM[[#This Row],[OOPM]],1,0)<>"",OFFSET(tbl_OPAOOON_P2OOPM[[#This Row],[OOPM]],1,0)<tbl_OPAOOON_P2OOPM[[#This Row],[OOPM]]),"Sort Entries from lowest to highest",""))) ->  | BW106: =SUMIF(tbl_ER_P1[Out-of-Pocket Maximum (OOPM)],BV106,tbl_ER_P1[Plan Projected Allowed Amount]) -> 0 | BX106: =IF(OR(BW106=0,BW106=""),"",BW106/tbl_ER_P2OOPM[[#Totals],[Allowed Claims]]) ->  | BY106: =IF(BX106="","",IF(SUMIF(tbl_ER_P2OOPM[OOPM],">="&BV106,tbl_ER_P2OOPM[Portion])>0.5,BV106,"")) ->  | BZ106: =IF(COUNTIF(tbl_ER_P2OOPM[OOPM],tbl_ER_P2OOPM[[#This Row],[OOPM]])>1,"Remove Duplicate Entry.",IF(AND(tbl_ER_P2OOPM[[#This Row],[OOPM]]<>"",tbl_ER_P2OOPM[[#This Row],[Allowed Claims]]=0),"Entry not found in Part 1 Table",IF(AND(OFFSET(tbl_ER_P2OOPM[[#This Row],[OOPM]],1,0)<>"Total",OFFSET(tbl_ER_P2OOPM[[#This Row],[OOPM]],1,0)<>"",OFFSET(tbl_ER_P2OOPM[[#This Row],[OOPM]],1,0)<tbl_ER_P2OOPM[[#This Row],[OOPM]]),"Sort Entries from lowest to highest",""))) ->  | CF106: =SUMIF(tbl_RX_P1[Out-of-Pocket Maximum (OOPM)],CE106,tbl_RX_P1[Plan Projected Allowed Amount]) -> 0 | CG106: =IF(OR(CF106=0,CF106=""),"",CF106/tbl_RX_P2OOPM[[#Totals],[Allowed Claims]]) ->  | CH106: =IF(CG106="","",IF(SUMIF(tbl_RX_P2OOPM[OOPM],">="&CE106,tbl_RX_P2OOPM[Portion])>0.5,CE106,"")) ->  | CI106: =IF(COUNTIF(tbl_RX_P2OOPM[OOPM],tbl_RX_P2OOPM[[#This Row],[OOPM]])>1,"Remove Duplicate Entry.",IF(AND(tbl_RX_P2OOPM[[#This Row],[OOPM]]<>"",tbl_RX_P2OOPM[[#This Row],[Allowed Claims]]=0),"Entry not found in Part 1 Table",IF(AND(OFFSET(tbl_RX_P2OOPM[[#This Row],[OOPM]],1,0)<>"Total",OFFSET(tbl_RX_P2OOPM[[#This Row],[OOPM]],1,0)<>"",OFFSET(tbl_RX_P2OOPM[[#This Row],[OOPM]],1,0)<tbl_RX_P2OOPM[[#This Row],[OOPM]]),"Sort Entries from lowest to highest",""))) -> 
C107: =SUMIF(tbl_IPINN_P1[Out-of-Pocket Maximum (OOPM)],B107,tbl_IPINN_P1[Plan Projected Allowed Amount]) -> 0 | D107: =IF(OR(C107=0,C107=""),"",C107/tbl_IPINN_P2OOPM[[#Totals],[Allowed Claims]]) ->  | E107: =IF(D107="","",IF(SUMIF(tbl_IPINN_P2OOPM[OOPM],">="&B107,tbl_IPINN_P2OOPM[Portion])>0.5,B107,"")) ->  | F107: =IF(COUNTIF(tbl_IPINN_P2OOPM[OOPM],tbl_IPINN_P2OOPM[[#This Row],[OOPM]])>1,"Remove Duplicate Entry.",IF(AND(tbl_IPINN_P2OOPM[[#This Row],[OOPM]]<>"",tbl_IPINN_P2OOPM[[#This Row],[Allowed Claims]]=0),"Entry not found in Part 1 Table",IF(AND(OFFSET(tbl_IPINN_P2OOPM[[#This Row],[OOPM]],1,0)<>"Total",OFFSET(tbl_IPINN_P2OOPM[[#This Row],[OOPM]],1,0)<>"",OFFSET(tbl_IPINN_P2OOPM[[#This Row],[OOPM]],1,0)<tbl_IPINN_P2OOPM[[#This Row],[OOPM]]),"Sort Entries from lowest to highest",""))) ->  | L107: =SUMIF(tbl_IPOON_P1[Out-of-Pocket Maximum (OOPM)],K107,tbl_IPOON_P1[Plan Projected Allowed Amount]) -> 0 | M107: =IF(OR(L107=0,L107=""),"",L107/tbl_IPOON_P2OOPM[[#Totals],[Allowed Claims]]) ->  | N107: =IF(M107="","",IF(SUMIF(tbl_IPOON_P2OOPM[OOPM],">="&K107,tbl_IPOON_P2OOPM[Portion])>0.5,K107,"")) ->  | O107: =IF(COUNTIF(tbl_IPOON_P2OOPM[OOPM],tbl_IPOON_P2OOPM[[#This Row],[OOPM]])>1,"Remove Duplicate Entry.",IF(AND(tbl_IPOON_P2OOPM[[#This Row],[OOPM]]<>"",tbl_IPOON_P2OOPM[[#This Row],[Allowed Claims]]=0),"Entry not found in Part 1 Table",IF(AND(OFFSET(tbl_IPOON_P2OOPM[[#This Row],[OOPM]],1,0)<>"Total",OFFSET(tbl_IPOON_P2OOPM[[#This Row],[OOPM]],1,0)<>"",OFFSET(tbl_IPOON_P2OOPM[[#This Row],[OOPM]],1,0)<tbl_IPOON_P2OOPM[[#This Row],[OOPM]]),"Sort Entries from lowest to highest",""))) ->  | U107: =SUMIF(tbl_OPINN_P1[Out-of-Pocket Maximum (OOPM)],T107,tbl_OPINN_P1[Plan Projected Allowed Amount]) -> 0 | V107: =IF(OR(U107=0,U107=""),"",U107/tbl_OPINN_P2OOPM[[#Totals],[Allowed Claims]]) ->  | W107: =IF(V107="","",IF(SUMIF(tbl_OPINN_P2OOPM[OOPM],">="&T107,tbl_OPINN_P2OOPM[Portion])>0.5,T107,"")) ->  | X107: =IF(COUNTIF(tbl_OPINN_P2OOPM[OOPM],tbl_OPINN_P2OOPM[[#This Row],[OOPM]])>1,"Remove Duplicate Entry.",IF(AND(tbl_OPINN_P2OOPM[[#This Row],[OOPM]]<>"",tbl_OPINN_P2OOPM[[#This Row],[Allowed Claims]]=0),"Entry not found in Part 1 Table",IF(AND(OFFSET(tbl_OPINN_P2OOPM[[#This Row],[OOPM]],1,0)<>"Total",OFFSET(tbl_OPINN_P2OOPM[[#This Row],[OOPM]],1,0)<>"",OFFSET(tbl_OPINN_P2OOPM[[#This Row],[OOPM]],1,0)<tbl_OPINN_P2OOPM[[#This Row],[OOPM]]),"Sort Entries from lowest to highest",""))) ->  | AD107: =SUMIF(tbl_OPOVINN_P1[Out-of-Pocket Maximum (OOPM)],AC107,tbl_OPOVINN_P1[Plan Projected Allowed Amount]) -> 0 | AE107: =IF(OR(AD107=0,AD107=""),"",AD107/tbl_OPOVINN_P2OOPM[[#Totals],[Allowed Claims]]) ->  | AF107: =IF(AE107="","",IF(SUMIF(tbl_OPOVINN_P2OOPM[OOPM],">="&AC107,tbl_OPOVINN_P2OOPM[Portion])>0.5,AC107,"")) ->  | AG107: =IF(COUNTIF(tbl_OPOVINN_P2OOPM[OOPM],tbl_OPOVINN_P2OOPM[[#This Row],[OOPM]])>1,"Remove Duplicate Entry.",IF(AND(tbl_OPOVINN_P2OOPM[[#This Row],[OOPM]]<>"",tbl_OPOVINN_P2OOPM[[#This Row],[Allowed Claims]]=0),"Entry not found in Part 1 Table",IF(AND(OFFSET(tbl_OPOVINN_P2OOPM[[#This Row],[OOPM]],1,0)<>"Total",OFFSET(tbl_OPOVINN_P2OOPM[[#This Row],[OOPM]],1,0)<>"",OFFSET(tbl_OPOVINN_P2OOPM[[#This Row],[OOPM]],1,0)<tbl_OPOVINN_P2OOPM[[#This Row],[OOPM]]),"Sort Entries from lowest to highest",""))) ->  | AM107: =SUMIF(tbl_OPAOINN_P1[Out-of-Pocket Maximum (OOPM)],AL107,tbl_OPAOINN_P1[Plan Projected Allowed Amount]) -> 0 | AN107: =IF(OR(AM107=0,AM107=""),"",AM107/tbl_OPAOINN_P2OOPM[[#Totals],[Allowed Claims]]) ->  | AO107: =IF(AN107="","",IF(SUMIF(tbl_OPAOINN_P2OOPM[OOPM],">="&AL107,tbl_OPAOINN_P2OOPM[Portion])>0.5,AL107,"")) ->  | AP107: =IF(COUNTIF(tbl_OPAOINN_P2OOPM[OOPM],tbl_OPAOINN_P2OOPM[[#This Row],[OOPM]])>1,"Remove Duplicate Entry.",IF(AND(tbl_OPAOINN_P2OOPM[[#This Row],[OOPM]]<>"",tbl_OPAOINN_P2OOPM[[#This Row],[Allowed Claims]]=0),"Entry not found in Part 1 Table",IF(AND(OFFSET(tbl_OPAOINN_P2OOPM[[#This Row],[OOPM]],1,0)<>"Total",OFFSET(tbl_OPAOINN_P2OOPM[[#This Row],[OOPM]],1,0)<>"",OFFSET(tbl_OPAOINN_P2OOPM[[#This Row],[OOPM]],1,0)<tbl_OPAOINN_P2OOPM[[#This Row],[OOPM]]),"Sort Entries from lowest to highest",""))) ->  | AV107: =SUMIF(tbl_OPOON_P1[Out-of-Pocket Maximum (OOPM)],AU107,tbl_OPOON_P1[Plan Projected Allowed Amount]) -> 0 | AW107: =IF(OR(AV107=0,AV107=""),"",AV107/tbl_OPOON_P2OOPM[[#Totals],[Allowed Claims]]) ->  | AX107: =IF(AW107="","",IF(SUMIF(tbl_OPOON_P2OOPM[OOPM],">="&AU107,tbl_OPOON_P2OOPM[Portion])>0.5,AU107,"")) ->  | AY107: =IF(COUNTIF(tbl_OPOON_P2OOPM[OOPM],tbl_OPOON_P2OOPM[[#This Row],[OOPM]])>1,"Remove Duplicate Entry.",IF(AND(tbl_OPOON_P2OOPM[[#This Row],[OOPM]]<>"",tbl_OPOON_P2OOPM[[#This Row],[Allowed Claims]]=0),"Entry not found in Part 1 Table",IF(AND(OFFSET(tbl_OPOON_P2OOPM[[#This Row],[OOPM]],1,0)<>"Total",OFFSET(tbl_OPOON_P2OOPM[[#This Row],[OOPM]],1,0)<>"",OFFSET(tbl_OPOON_P2OOPM[[#This Row],[OOPM]],1,0)<tbl_OPOON_P2OOPM[[#This Row],[OOPM]]),"Sort Entries from lowest to highest",""))) ->  | BE107: =SUMIF(tbl_OPOVOON_P1[Out-of-Pocket Maximum (OOPM)],BD107,tbl_OPOVOON_P1[Plan Projected Allowed Amount]) -> 0 | BF107: =IF(OR(BE107=0,BE107=""),"",BE107/tbl_OPOVOON_P2OOPM[[#Totals],[Allowed Claims]]) ->  | BG107: =IF(BF107="","",IF(SUMIF(tbl_OPOVOON_P2OOPM[OOPM],">="&BD107,tbl_OPOVOON_P2OOPM[Portion])>0.5,BD107,"")) ->  | BH107: =IF(COUNTIF(tbl_OPOVOON_P2OOPM[OOPM],tbl_OPOVOON_P2OOPM[[#This Row],[OOPM]])>1,"Remove Duplicate Entry.",IF(AND(tbl_OPOVOON_P2OOPM[[#This Row],[OOPM]]<>"",tbl_OPOVOON_P2OOPM[[#This Row],[Allowed Claims]]=0),"Entry not found in Part 1 Table",IF(AND(OFFSET(tbl_OPOVOON_P2OOPM[[#This Row],[OOPM]],1,0)<>"Total",OFFSET(tbl_OPOVOON_P2OOPM[[#This Row],[OOPM]],1,0)<>"",OFFSET(tbl_OPOVOON_P2OOPM[[#This Row],[OOPM]],1,0)<tbl_OPOVOON_P2OOPM[[#This Row],[OOPM]]),"Sort Entries from lowest to highest",""))) ->  | BN107: =SUMIF(tbl_OPAOOON_P1[Out-of-Pocket Maximum (OOPM)],BM107,tbl_OPAOOON_P1[Plan Projected Allowed Amount]) -> 0 | BO107: =IF(OR(BN107=0,BN107=""),"",BN107/tbl_OPAOOON_P2OOPM[[#Totals],[Allowed Claims]]) ->  | BP107: =IF(BO107="","",IF(SUMIF(tbl_OPAOOON_P2OOPM[OOPM],">="&BM107,tbl_OPAOOON_P2OOPM[Portion])>0.5,BM107,"")) ->  | BQ107: =IF(COUNTIF(tbl_OPAOOON_P2OOPM[OOPM],tbl_OPAOOON_P2OOPM[[#This Row],[OOPM]])>1,"Remove Duplicate Entry.",IF(AND(tbl_OPAOOON_P2OOPM[[#This Row],[OOPM]]<>"",tbl_OPAOOON_P2OOPM[[#This Row],[Allowed Claims]]=0),"Entry not found in Part 1 Table",IF(AND(OFFSET(tbl_OPAOOON_P2OOPM[[#This Row],[OOPM]],1,0)<>"Total",OFFSET(tbl_OPAOOON_P2OOPM[[#This Row],[OOPM]],1,0)<>"",OFFSET(tbl_OPAOOON_P2OOPM[[#This Row],[OOPM]],1,0)<tbl_OPAOOON_P2OOPM[[#This Row],[OOPM]]),"Sort Entries from lowest to highest",""))) ->  | BW107: =SUMIF(tbl_ER_P1[Out-of-Pocket Maximum (OOPM)],BV107,tbl_ER_P1[Plan Projected Allowed Amount]) -> 0 | BX107: =IF(OR(BW107=0,BW107=""),"",BW107/tbl_ER_P2OOPM[[#Totals],[Allowed Claims]]) ->  | BY107: =IF(BX107="","",IF(SUMIF(tbl_ER_P2OOPM[OOPM],">="&BV107,tbl_ER_P2OOPM[Portion])>0.5,BV107,"")) ->  | BZ107: =IF(COUNTIF(tbl_ER_P2OOPM[OOPM],tbl_ER_P2OOPM[[#This Row],[OOPM]])>1,"Remove Duplicate Entry.",IF(AND(tbl_ER_P2OOPM[[#This Row],[OOPM]]<>"",tbl_ER_P2OOPM[[#This Row],[Allowed Claims]]=0),"Entry not found in Part 1 Table",IF(AND(OFFSET(tbl_ER_P2OOPM[[#This Row],[OOPM]],1,0)<>"Total",OFFSET(tbl_ER_P2OOPM[[#This Row],[OOPM]],1,0)<>"",OFFSET(tbl_ER_P2OOPM[[#This Row],[OOPM]],1,0)<tbl_ER_P2OOPM[[#This Row],[OOPM]]),"Sort Entries from lowest to highest",""))) ->  | CF107: =SUMIF(tbl_RX_P1[Out-of-Pocket Maximum (OOPM)],CE107,tbl_RX_P1[Plan Projected Allowed Amount]) -> 0 | CG107: =IF(OR(CF107=0,CF107=""),"",CF107/tbl_RX_P2OOPM[[#Totals],[Allowed Claims]]) ->  | CH107: =IF(CG107="","",IF(SUMIF(tbl_RX_P2OOPM[OOPM],">="&CE107,tbl_RX_P2OOPM[Portion])>0.5,CE107,"")) ->  | CI107: =IF(COUNTIF(tbl_RX_P2OOPM[OOPM],tbl_RX_P2OOPM[[#This Row],[OOPM]])>1,"Remove Duplicate Entry.",IF(AND(tbl_RX_P2OOPM[[#This Row],[OOPM]]<>"",tbl_RX_P2OOPM[[#This Row],[Allowed Claims]]=0),"Entry not found in Part 1 Table",IF(AND(OFFSET(tbl_RX_P2OOPM[[#This Row],[OOPM]],1,0)<>"Total",OFFSET(tbl_RX_P2OOPM[[#This Row],[OOPM]],1,0)<>"",OFFSET(tbl_RX_P2OOPM[[#This Row],[OOPM]],1,0)<tbl_RX_P2OOPM[[#This Row],[OOPM]]),"Sort Entries from lowest to highest",""))) -> 
B108: Total | C108: =SUBTOTAL(109,tbl_IPINN_P2OOPM[Allowed Claims]) -> 0 | D108: =SUBTOTAL(109,tbl_IPINN_P2OOPM[Portion]) -> 0 | F108: =IF(AND(tbl_IPINN_P2OOPM[[#Totals],[Allowed Claims]]<C64,E64<>"Fail",E64<>"N/A"),"Add missing cost share values.",IF(C108>D47,"Allowed claims higher than possible; correct entries.","")) ->  | K108: Total | L108: =SUBTOTAL(109,tbl_IPOON_P2OOPM[Allowed Claims]) -> 0 | M108: =SUBTOTAL(109,tbl_IPOON_P2OOPM[Portion]) -> 0 | O108: =IF(AND(tbl_IPOON_P2OOPM[[#Totals],[Allowed Claims]]<L64,N64<>"Fail",N64<>"N/A"),"Add missing cost share values.",IF(L108>M47,"Allowed claims higher than possible; correct entries.","")) ->  | T108: Total | U108: =SUBTOTAL(109,tbl_OPINN_P2OOPM[Allowed Claims]) -> 0 | V108: =SUBTOTAL(109,tbl_OPINN_P2OOPM[Portion]) -> 0 | X108: =IF(AND(tbl_OPINN_P2OOPM[[#Totals],[Allowed Claims]]<U64,W64<>"Fail",W64<>"N/A"),"Add missing cost share values.",IF(U108>V47,"Allowed claims higher than possible; correct entries.","")) ->  | AC108: Total | AD108: =SUBTOTAL(109,tbl_OPOVINN_P2OOPM[Allowed Claims]) -> 0 | AE108: =SUBTOTAL(109,tbl_OPOVINN_P2OOPM[Portion]) -> 0 | AG108: =IF(AND(tbl_OPOVINN_P2OOPM[[#Totals],[Allowed Claims]]<AD64,AF64<>"Fail",AF64<>"N/A"),"Add missing cost share values.",IF(AD108>AE47,"Allowed claims higher than possible; correct entries.","")) ->  | AL108: Total | AM108: =SUBTOTAL(109,tbl_OPAOINN_P2OOPM[Allowed Claims]) -> 0 | AN108: =SUBTOTAL(109,tbl_OPAOINN_P2OOPM[Portion]) -> 0 | AP108: =IF(AND(tbl_OPAOINN_P2OOPM[[#Totals],[Allowed Claims]]<AM64,AO64<>"Fail",AO64<>"N/A"),"Add missing cost share values.",IF(AM108>AN47,"Allowed claims higher than possible; correct entries.","")) ->  | AU108: Total | AV108: =SUBTOTAL(109,tbl_OPOON_P2OOPM[Allowed Claims]) -> 0 | AW108: =SUBTOTAL(109,tbl_OPOON_P2OOPM[Portion]) -> 0 | AY108: =IF(AND(tbl_OPOON_P2OOPM[[#Totals],[Allowed Claims]]<AV64,AX64<>"Fail",AX64<>"N/A"),"Add missing cost share values.",IF(AV108>AW47,"Allowed claims higher than possible; correct entries.","")) ->  | BD108: Total | BE108: =SUBTOTAL(109,tbl_OPOVOON_P2OOPM[Allowed Claims]) -> 0 | BF108: =SUBTOTAL(109,tbl_OPOVOON_P2OOPM[Portion]) -> 0 | BH108: =IF(AND(tbl_OPOVOON_P2OOPM[[#Totals],[Allowed Claims]]<BE64,BG64<>"Fail",BG64<>"N/A"),"Add missing cost share values.",IF(BE108>BF47,"Allowed claims higher than possible; correct entries.","")) ->  | BM108: Total | BN108: =SUBTOTAL(109,tbl_OPAOOON_P2OOPM[Allowed Claims]) -> 0 | BO108: =SUBTOTAL(109,tbl_OPAOOON_P2OOPM[Portion]) -> 0 | BQ108: =IF(AND(tbl_OPAOOON_P2OOPM[[#Totals],[Allowed Claims]]<BN64,BP64<>"Fail",BP64<>"N/A"),"Add missing cost share values.",IF(BN108>BO47,"Allowed claims higher than possible; correct entries.","")) ->  | BV108: Total | BW108: =SUBTOTAL(109,tbl_ER_P2OOPM[Allowed Claims]) -> 0 | BX108: =SUBTOTAL(109,tbl_ER_P2OOPM[Portion]) -> 0 | BZ108: =IF(AND(tbl_ER_P2OOPM[[#Totals],[Allowed Claims]]<BW64,BY64<>"Fail",BY64<>"N/A"),"Add missing cost share values.",IF(BW108>BX47,"Allowed claims higher than possible; correct entries.","")) ->  | CE108: Total | CF108: =SUBTOTAL(109,tbl_RX_P2OOPM[Allowed Claims]) -> 0 | CG108: =SUBTOTAL(109,tbl_RX_P2OOPM[Portion]) -> 0 | CI108: =IF(AND(tbl_RX_P2OOPM[[#Totals],[Allowed Claims]]<CF64,CH64<>"Fail",CH64<>"N/A"),"Add missing cost share values.",IF(CF108>CG47,"Allowed claims higher than possible; correct entries.","")) -> 

Sheet Developer Notes (hidden)
A1: Development Notes
A2: 45391 | B2: Do not use table references in Part 2 Table total rows, there is a bug in Excel where the formula will change after data is entered in the first column. The table reference will change to pointing to the original template sheet rather than the template copy sheet.

Sheet LookupTables (hidden)
A1: Workbook Lookup Tables
A3: Market | C3: Network | D3: Code | F3: Benefit Classification | G3: Classification Code | I3: Yes/No Cells | K3: OutpatientToggle
A4: Select a Market | C4: In-Network | D4: INN | F4: Inpatient | G4: IP | I4: Select Input | K4: Select Input
A5: Individual | C5: Out-of-Network | D5: OON | F5: Outpatient | G5: OP | I5: Yes | K5: All Combined
A6: Small Group | C6: N/A | D6: ="" ->  | F6: Outpatient - Office Visits | G6: OP-OV | I6: No | K6: Office Visits Separate
F7: Outpatient - All Other | G7: OP-AO
F8: Emergency Care | G8: ER
F9: Prescription Drugs | G9: RX
F13: <<select testing classification>>
F14: Inpatient
F15: Outpatient
F16: Outpatient - Office Visits
F17: Outpatient - All Other
F18: Emergency Care
F19: Prescription Drugs
F20: Outpatient

Sheet Example
A1: MHSUD Financial Requirement (a.k.a. Cost Share) Parity Testing | K1: Workbook Info | T1: =T32 -> Benefit Classification | U1: =U32 -> (3) Outpatient, In-Network (OP INN) | AC1: =AC32 -> Benefit Classification | AD1: =AD32 -> (3a) Outpatient - Office Visits, In-Network (OP-OV INN) | AL1: =AL32 -> Benefit Classification | AM1: =AM32 -> (3b) Outpatient - All Other, In-Network (OP-AO INN) | AU1: =AU32 -> Benefit Classification | AV1: =AV32 -> (4) Outpatient, Out-of-Network (OP OON) | BD1: =BD32 -> Benefit Classification | BE1: =BE32 -> (4a) Outpatient - Office Visits, Out-of-Network (OP-OV OON) | BM1: =BM32 -> Benefit Classification | BN1: =BN32 -> (4b) Outpatient - All Other, Out-of-Network (OP-AO OON) | BV1: =BV32 -> Benefit Classification | BW1: =BW32 -> (5) Emergency Care, (ER ) | CE1: =CE32 -> Benefit Classification | CF1: =CF32 -> (6) Prescription Drugs, (RX )
B3: Issuer / Market: | C3: =IF(LEFT(IssuerName,2)="<<","<<Go back to 'Summary' tab and enter Issuer Name>>",IssuerName) -> <<Go back to 'Summary' tab and enter Issuer Name>> | K3: Link back to Summary Sheet
B4: Market: | C4: =IF(Market="Select Market","<<Go back to 'Summary' tab and select the market for this filing>>",Market) -> <<Go back to 'Summary' tab and select the market for this filing>> | K4: User Inputs Cell Format
B5: State Filing Tracking Number: | C5: =IF(LEFT(StateTracker,2)="<<","<<Go back to 'Summary' tab and enter state filing tracking number>>",StateTracker) -> <<Go back to 'Summary' tab and enter state filing tracking number>> | K5: See the Example worksheet for additional details.
A7: PLAN INFORMATION
B9: Plan Name: | K9: FOR DEMONSTRATION PURPOSES ONLY
B10: Plan ID:
B11: CSR Variant Description:
A12: PARITY PASS/FAIL RESULTS, BY BENEFIT CLASSIFICATION
B14: Overall Result: | C14: =IF(AND(E19="Pass",E20="Pass",E25="Pass",E26="Pass"),"Pass","Fail") -> Fail
B16: Results By Benefit Classification | K16: Testing Options
B17: A. Benefit Classification | C17: B. Do the MHSUD cost shares match all Medical/Surgical cost shares in the Benefit Classification? | D17: C. Test Required? | E17: D. Test Results | F17: E. By Network Tier | K17: Option | L17: Selection
F18: E1. In-Network | G18: E2. Out-of-Network
B19: Inpatient | C19: No | D19: =IF(C19="Yes","No","Yes") -> Yes | E19: =IF(D19="No","Pass",IF(AND(F19="Pass",G19="Pass"),"Pass","Fail")) -> Fail | F19: =E60 -> Fail | G19: =IF(L19="No","Pass",N60) -> Pass | K19: Out-of-Network Tier? | L19: No
B20: Outpatient | C20: Yes | D20: =IF(C20="Yes","No","Yes") -> No | E20: =IF($D20="No","Pass",IF(AND($L$20="Office Visits Separate",E23="Pass",E24="Pass"),"Pass",IF(AND($L$20="All Combined",E21="Pass"),"Pass","Fail"))) -> Pass | F20: =IF($D20="No","Pass",IF(AND($L$20="Office Visits Separate",F23="Pass",F24="Pass"),"Pass",IF(AND($L$20="All Combined",F21="Pass"),"Pass","Fail"))) -> Pass | G20: =IF(L19="No","Pass",IF($D20="No","Pass",IF(AND($L$20="Office Visits Separate",G23="Pass",G24="Pass"),"Pass",IF(AND($L$20="All Combined",G21="Pass"),"Pass","Fail")))) -> Pass | K20: Outpatient Benefit Testing | L20: Office Visits Separate
B21: Outpatient - All Services Combined | C21: No | D21: =IF(L20="All Combined",IF(C21="No","Yes","No"),"No") -> No | E21: =IF(D21="No","Pass",IF(AND(F21="Pass",G21="Pass"),"Pass","Fail")) -> Pass | F21: =IF(D21="Yes",W60,"Pass") -> Pass | G21: =IF(L19="No","Pass",IF(D21="Yes",AX60,"Pass")) -> Pass
B22: Outpatient - Office Visits Separate
B23: Outpatient - Office Visits | C23: No | D23: =IF(L20="Office Visits Separate",IF(C23="No","Yes","No"),"No") -> Yes | E23: =IF(D23="No","Pass",IF(AND(F23="Pass",G23="Pass"),"Pass","Fail")) -> Pass | F23: =IF(D23="Yes",AF60,"Pass") -> Pass | G23: =IF(L19="No","Pass",IF(D23="Yes",BG60,"Pass")) -> Pass
B24: Outpatient - All Other | C24: No | D24: =IF(L20="Office Visits Separate",IF(C24="No","Yes","No"),"No") -> Yes | E24: =IF(D24="No","Pass",IF(AND(F24="Pass",G24="Pass"),"Pass","Fail")) -> Pass | F24: =IF(D24="Yes",AO60,"Pass") -> Pass | G24: =IF(L19="No","Pass",IF(D24="Yes",BP60,"Pass")) -> Pass
B25: Emergency Care | C25: Yes | D25: No | E25: =IF(D25="No","Pass",BY60) -> Pass
B26: Prescription Drugs | C26: Yes | D26: No | E26: =IF(D26="No","Pass",CH60) -> Pass
A28: PART 1
A29: COST SHARES FOR MEDICAL/SURGICAL BENEFITS, BY BENEFIT CLASSIFICATION
B32: Benefit Classification | C32: ="(" &C37&") "&C35&", "&SUBSTITUTE(C36,"N/A","")&" ("&D37&")" -> (1) Inpatient, In-Network (IP INN) | K32: Benefit Classification | L32: ="(" &L37&") "&L35&", "&SUBSTITUTE(L36,"N/A","")&" ("&M37&")" -> (2) Inpatient, Out-of-Network (IP OON) | T32: Benefit Classification | U32: ="(" &U37&") "&U35&", "&SUBSTITUTE(U36,"N/A","")&" ("&V37&")" -> (3) Outpatient, In-Network (OP INN) | AC32: Benefit Classification | AD32: ="(" &AD37&") "&AD35&", "&SUBSTITUTE(AD36,"N/A","")&" ("&AE37&")" -> (3a) Outpatient - Office Visits, In-Network (OP-OV INN) | AL32: Benefit Classification | AM32: ="(" &AM37&") "&AM35&", "&SUBSTITUTE(AM36,"N/A","")&" ("&AN37&")" -> (3b) Outpatient - All Other, In-Network (OP-AO INN) | AU32: Benefit Classification | AV32: ="(" &AV37&") "&AV35&", "&SUBSTITUTE(AV36,"N/A","")&" ("&AW37&")" -> (4) Outpatient, Out-of-Network (OP OON) | BD32: Benefit Classification | BE32: ="(" &BE37&") "&BE35&", "&SUBSTITUTE(BE36,"N/A","")&" ("&BF37&")" -> (4a) Outpatient - Office Visits, Out-of-Network (OP-OV OON) | BM32: Benefit Classification | BN32: ="(" &BN37&") "&BN35&", "&SUBSTITUTE(BN36,"N/A","")&" ("&BO37&")" -> (4b) Outpatient - All Other, Out-of-Network (OP-AO OON) | BV32: Benefit Classification | BW32: ="(" &BW37&") "&BW35&", "&SUBSTITUTE(BW36,"N/A","")&" ("&BX37&")" -> (5) Emergency Care, (ER ) | CE32: Benefit Classification | CF32: ="(" &CF37&") "&CF35&", "&SUBSTITUTE(CF36,"N/A","")&" ("&CG37&")" -> (6) Prescription Drugs, (RX )
T33: Notes: | U33: Use this table if you are testing all outpatient services combined. | AC33: Notes: | AD33: Use this table if you are separately testing outpatient office visits and all other outpatient services. | AL33: Notes: | AM33: =AD33 -> Use this table if you are separately testing outpatient office visits and all other outpatient services. | AU33: Notes: | AV33: Use this table if you are testing all outpatient services combined. | BD33: Notes: | BE33: =AD33 -> Use this table if you are separately testing outpatient office visits and all other outpatient services. | BM33: Notes: | BN33: =BE33 -> Use this table if you are separately testing outpatient office visits and all other outpatient services.
B35: Classification | C35: Inpatient | D35: =VLOOKUP(C35,LookupTables!$F$4:$G$9,2,FALSE) -> IP | K35: Classification | L35: Inpatient | M35: =VLOOKUP(L35,LookupTables!$F$4:$G$9,2,FALSE) -> IP | T35: Classification | U35: Outpatient | V35: =VLOOKUP(U35,LookupTables!$F$4:$G$9,2,FALSE) -> OP | AC35: Classification | AD35: Outpatient - Office Visits | AE35: =VLOOKUP(AD35,LookupTables!$F$4:$G$9,2,FALSE) -> OP-OV | AL35: Classification | AM35: Outpatient - All Other | AN35: =VLOOKUP(AM35,LookupTables!$F$4:$G$9,2,FALSE) -> OP-AO | AU35: Classification | AV35: Outpatient | AW35: =VLOOKUP(AV35,LookupTables!$F$4:$G$9,2,FALSE) -> OP | BD35: Classification | BE35: Outpatient - Office Visits | BF35: =VLOOKUP(BE35,LookupTables!$F$4:$G$9,2,FALSE) -> OP-OV | BM35: Classification | BN35: Outpatient - All Other | BO35: =VLOOKUP(BN35,LookupTables!$F$4:$G$9,2,FALSE) -> OP-AO | BV35: Classification | BW35: Emergency Care | BX35: =VLOOKUP(BW35,LookupTables!$F$4:$G$9,2,FALSE) -> ER | CE35: Classification | CF35: Prescription Drugs | CG35: =VLOOKUP(CF35,LookupTables!$F$4:$G$9,2,FALSE) -> RX
B36: Network (In/Out) | C36: In-Network | D36: =VLOOKUP(C36,LookupTables!$C$4:$D$6,2,0) -> INN | K36: Network (In/Out) | L36: Out-of-Network | M36: =VLOOKUP(L36,LookupTables!$C$4:$D$6,2,0) -> OON | T36: Network (In/Out) | U36: In-Network | V36: =VLOOKUP(U36,LookupTables!$C$4:$D$6,2,0) -> INN | AC36: Network (In/Out) | AD36: In-Network | AE36: =VLOOKUP(AD36,LookupTables!$C$4:$D$6,2,0) -> INN | AL36: Network (In/Out) | AM36: In-Network | AN36: =VLOOKUP(AM36,LookupTables!$C$4:$D$6,2,0) -> INN | AU36: Network (In/Out) | AV36: Out-of-Network | AW36: =VLOOKUP(AV36,LookupTables!$C$4:$D$6,2,0) -> OON | BD36: Network (In/Out) | BE36: Out-of-Network | BF36: =VLOOKUP(BE36,LookupTables!$C$4:$D$6,2,0) -> OON | BM36: Network (In/Out) | BN36: Out-of-Network | BO36: =VLOOKUP(BN36,LookupTables!$C$4:$D$6,2,0) -> OON | BV36: Network (In/Out) | BW36: N/A | BX36: =VLOOKUP(BW36,LookupTables!$C$4:$D$6,2,0) ->  | CE36: Network (In/Out) | CF36: N/A | CG36: =VLOOKUP(CF36,LookupTables!$C$4:$D$6,2,0) -> 
B37: Classification Code | C37: 1 | D37: =D35&" "&D36 -> IP INN | K37: Classification Code | L37: 2 | M37: =M35&" "&M36 -> IP OON | T37: Classification Code | U37: 3 | V37: =V35&" "&V36 -> OP INN | AC37: Classification Code | AD37: 3a | AE37: =AE35&" "&AE36 -> OP-OV INN | AL37: Classification Code | AM37: 3b | AN37: =AN35&" "&AN36 -> OP-AO INN | AU37: Classification Code | AV37: 4 | AW37: =AW35&" "&AW36 -> OP OON | BD37: Classification Code | BE37: 4a | BF37: =BF35&" "&BF36 -> OP-OV OON | BM37: Classification Code | BN37: 4b | BO37: =BO35&" "&BO36 -> OP-AO OON | BV37: Classification Code | BW37: 5 | BX37: =BX35&" "&BX36 -> ER | CE37: Classification Code | CF37: 6 | CG37: =CG35&" "&CG36 -> RX
B38: Table Name | D38: =SUBSTITUTE(SUBSTITUTE("tbl_"&D37&"_P1"," ",""),"-","") -> tbl_IPINN_P1 | H38: Number of Rows | I38: 6 | K38: Table Name | M38: =SUBSTITUTE(SUBSTITUTE("tbl_"&M37&"_P1"," ",""),"-","") -> tbl_IPOON_P1 | Q38: Number of Rows | R38: 6 | T38: Table Name | V38: =SUBSTITUTE(SUBSTITUTE("tbl_"&V37&"_P1"," ",""),"-","") -> tbl_OPINN_P1 | Z38: Number of Rows | AA38: 6 | AC38: Table Name | AE38: =SUBSTITUTE(SUBSTITUTE("tbl_"&AE37&"_P1"," ",""),"-","") -> tbl_OPOVINN_P1 | AI38: Number of Rows | AJ38: 8 | AL38: Table Name | AN38: =SUBSTITUTE(SUBSTITUTE("tbl_"&AN37&"_P1"," ",""),"-","") -> tbl_OPAOINN_P1 | AR38: Number of Rows | AS38: 6 | AU38: Table Name | AW38: =SUBSTITUTE(SUBSTITUTE("tbl_"&AW37&"_P1"," ",""),"-","") -> tbl_OPOON_P1 | BA38: Number of Rows | BB38: 6 | BD38: Table Name | BF38: =SUBSTITUTE(SUBSTITUTE("tbl_"&BF37&"_P1"," ",""),"-","") -> tbl_OPOVOON_P1 | BJ38: Number of Rows | BK38: 6 | BM38: Table Name | BO38: =SUBSTITUTE(SUBSTITUTE("tbl_"&BO37&"_P1"," ",""),"-","") -> tbl_OPAOOON_P1 | BS38: Number of Rows | BT38: 6 | BV38: Table Name | BX38: =SUBSTITUTE(SUBSTITUTE("tbl_"&BX37&"_P1"," ",""),"-","") -> tbl_ER_P1 | CB38: Number of Rows | CC38: 6 | CE38: Table Name | CG38: =SUBSTITUTE(SUBSTITUTE("tbl_"&CG37&"_P1"," ",""),"-","") -> tbl_RX_P1 | CK38: Number of Rows | CL38: 6
E39: For each cost share, if it does not apply, enter "N/A". | N39: For each cost share, if it does not apply, enter "N/A". | W39: For each cost share, if it does not apply, enter "N/A". | AF39: For each cost share, if it does not apply, enter "N/A". | AO39: For each cost share, if it does not apply, enter "N/A". | AX39: For each cost share, if it does not apply, enter "N/A". | BG39: For each cost share, if it does not apply, enter "N/A". | BP39: For each cost share, if it does not apply, enter "N/A". | BY39: For each cost share, if it does not apply, enter "N/A". | CH39: For each cost share, if it does not apply, enter "N/A".
B40: Service Description | C40: Cost-Share Description | D40: Plan Projected Allowed Amount | E40: Deductible | F40: Copayment | G40: Coinsurance | H40: Out-of-Pocket Maximum (OOPM) | I40: No Cost-Share (If true, enter "x") | K40: Service Description | L40: Cost-Share Description | M40: Plan Projected Allowed Amount | N40: Deductible | O40: Copayment | P40: Coinsurance | Q40: Out-of-Pocket Maximum (OOPM) | R40: No Cost-Share (If true, enter "x") | T40: Service Description | U40: Cost-Share Description | V40: Plan Projected Allowed Amount | W40: Deductible | X40: Copayment | Y40: Coinsurance | Z40: Out-of-Pocket Maximum (OOPM) | AA40: No Cost-Share (If true, enter "x") | AC40: Service Description | AD40: Cost-Share Description | AE40: Plan Projected Allowed Amount | AF40: Deductible | AG40: Copayment | AH40: Coinsurance | AI40: Out-of-Pocket Maximum (OOPM) | AJ40: No Cost-Share (If true, enter "x") | AL40: Service Description | AM40: Cost-Share Description | AN40: Plan Projected Allowed Amount | AO40: Deductible | AP40: Copayment | AQ40: Coinsurance | AR40: Out-of-Pocket Maximum (OOPM) | AS40: No Cost-Share (If true, enter "x") | AU40: Service Description | AV40: Cost-Share Description | AW40: Plan Projected Allowed Amount | AX40: Deductible | AY40: Copayment | AZ40: Coinsurance | BA40: Out-of-Pocket Maximum (OOPM) | BB40: No Cost-Share (If true, enter "x") | BD40: Service Description | BE40: Cost-Share Description | BF40: Plan Projected Allowed Amount | BG40: Deductible | BH40: Copayment | BI40: Coinsurance | BJ40: Out-of-Pocket Maximum (OOPM) | BK40: No Cost-Share (If true, enter "x") | BM40: Service Description | BN40: Cost-Share Description | BO40: Plan Projected Allowed Amount | BP40: Deductible | BQ40: Copayment | BR40: Coinsurance | BS40: Out-of-Pocket Maximum (OOPM) | BT40: No Cost-Share (If true, enter "x") | BV40: Service Description | BW40: Cost-Share Description | BX40: Plan Projected Allowed Amount | BY40: Deductible | BZ40: Copayment | CA40: Coinsurance | CB40: Out-of-Pocket Maximum (OOPM) | CC40: No Cost-Share (If true, enter "x") | CE40: Service Description | CF40: Cost-Share Description | CG40: Plan Projected Allowed Amount | CH40: Deductible | CI40: Copayment | CJ40: Coinsurance | CK40: Out-of-Pocket Maximum (OOPM) | CL40: No Cost-Share (If true, enter "x")
B41: <<Enter description>> | C41: <<Enter description>> | D41: 123 | E41: 0 | F41: 15 | G41: 0.2 | H41: 8000 | K41: <<Enter description>> | L41: <<Enter description>> | T41: <<Enter description>> | U41: <<Enter description>> | AC41: <<Enter description>> | AD41: <<Enter description>> | AE41: 123 | AF41: 500 | AG41: 15 | AH41: 0.2 | AI41: 8000 | AL41: <<Enter description>> | AM41: <<Enter description>> | AN41: 40 | AO41: 500 | AP41: N/A | AQ41: N/A | AR41: 8000 | AU41: <<Enter description>> | AV41: <<Enter description>> | BD41: <<Enter description>> | BE41: <<Enter description>> | BM41: <<Enter description>> | BN41: <<Enter description>> | BV41: <<Enter description>> | BW41: <<Enter description>> | CE41: <<Enter description>> | CF41: <<Enter description>>
B42: <<Enter description>> | C42: <<Enter description>> | D42: 123 | E42: 500 | F42: 15 | G42: N/A | H42: 8000 | AC42: <<Enter description>> | AD42: <<Enter description>> | AE42: 300 | AF42: 550 | AG42: 30 | AH42: N/A | AI42: 8000 | AL42: <<Enter description>> | AM42: <<Enter description>> | AN42: 5000.67 | AO42: 500 | AP42: N/A | AQ42: 0.25 | AR42: 8000
B43: <<Enter description>> | C43: <<Enter description>> | D43: 123 | E43: 500 | F43: 15 | G43: 0.3 | H43: 8000 | AC43: <<Preventive Services description>> | AD43: <<Enter description>> | AE43: 100 | AJ43: x | AL43: <<Preventive Services description>> | AM43: <<Enter description>> | AN43: 100 | AS43: x
B44: <<Enter description>> | C44: <<Enter description>> | D44: 123 | E44: 500 | F44: 15 | G44: 0.5 | H44: 8000 | AC44: <<Enter description>> | AD44: <<Enter description>> | AE44: 57 | AF44: 500 | AG44: 20 | AH44: N/A | AI44: 8000
B45: <<Enter description>> | C45: <<Enter description>> | D45: 123 | E45: 500 | F45: 30 | G45: NA | H45: 8000 | AC45: <<Enter description>> | AD45: <<Enter description>> | AE45: 64 | AF45: 500 | AG45: 30 | AH45: 0.2 | AI45: 8000
B46: <<Enter description>> | C46: <<Enter description>> | D46: 123 | E46: 500 | F46: 45 | G46: NA | H46: 8000 | AC46: <<Enter description>> | AD46: <<Enter description>> | AE46: 38 | AF46: 500 | AG46: N/A | AH46: 0.25 | AI46: 8000
B47: Total Row | D47: =SUBTOTAL(109,tbl_IPINN_P14103154[Plan Projected Allowed Amount]) -> 738 | K47: Total Row | M47: =SUBTOTAL(109,tbl_IPOON_P143108159[Plan Projected Allowed Amount]) -> 0 | T47: Total Row | V47: =SUBTOTAL(109,tbl_OPINN_P163113164[Plan Projected Allowed Amount]) -> 0 | AC47: <<Enter description>> | AD47: <<Enter description>> | AE47: 40 | AF47: 500 | AG47: 15 | AH47: 0.2 | AI47: 8000 | AL47: Total Row | AN47: =SUBTOTAL(109,tbl_OPAOINN_P173123174[Plan Projected Allowed Amount]) -> 5140.67 | AU47: Total Row | AW47: =SUBTOTAL(109,tbl_OPOON_P178128179[Plan Projected Allowed Amount]) -> 0 | BD47: Total Row | BF47: =SUBTOTAL(109,tbl_OPOVOON_P183133184[Plan Projected Allowed Amount]) -> 0 | BM47: Total Row | BO47: =SUBTOTAL(109,tbl_OPAOOON_P188138189[Plan Projected Allowed Amount]) -> 0 | BV47: Total Row | BX47: =SUBTOTAL(109,tbl_ER_P193143194[Plan Projected Allowed Amount]) -> 0 | CE47: Total Row | CG47: =SUBTOTAL(109,tbl_RX_P197147198[Plan Projected Allowed Amount]) -> 0
AC48: <<Enter description>> | AD48: <<Enter description>> | AE48: 37 | AF48: 500 | AG48: 15 | AH48: 0.2 | AI48: 8000
AC49: Total Row | AE49: =SUBTOTAL(109,tbl_OPOVINN_P168118169[Plan Projected Allowed Amount]) -> 759
A51: PART 2
A52: ANALYSIS OF MHSUD FINANCIAL REQUIREMENT PARITY, BY BENEFIT CLASSIFICATION
B54: ="Financial Parity for "&C32 -> Financial Parity for (1) Inpatient, In-Network (IP INN) | K54: ="Financial Parity for "&L32 -> Financial Parity for (2) Inpatient, Out-of-Network (IP OON) | T54: ="Financial Parity for "&U32 -> Financial Parity for (3) Outpatient, In-Network (OP INN) | AC54: ="Financial Parity for "&AD32 -> Financial Parity for (3a) Outpatient - Office Visits, In-Network (OP-OV INN) | AL54: ="Financial Parity for "&AM32 -> Financial Parity for (3b) Outpatient - All Other, In-Network (OP-AO INN) | AU54: ="Financial Parity for "&AV32 -> Financial Parity for (4) Outpatient, Out-of-Network (OP OON) | BD54: ="Financial Parity for "&BE32 -> Financial Parity for (4a) Outpatient - Office Visits, Out-of-Network (OP-OV OON) | BM54: ="Financial Parity for "&BN32 -> Financial Parity for (4b) Outpatient - All Other, Out-of-Network (OP-AO OON) | BV54: ="Financial Parity for "&BW32 -> Financial Parity for (5) Emergency Care, (ER ) | CE54: ="Financial Parity for "&CF32 -> Financial Parity for (6) Prescription Drugs, (RX )
B55: Cost-Share Type | C55: MHSUD Cost Shares in Plan Design* | D55: Predominant Level for Medical/ Surgical | E55: MHSUD Financial Parity Result | G55: Enter Footnotes (as needed) about MHSUD Cost Shares in the Plan Design | K55: Cost-Share Type | L55: MHSUD Cost Shares in Plan Design* | M55: Predominant Level for Medical/ Surgical | N55: MHSUD Financial Parity Result | P55: Enter Footnotes (as needed) about MHSUD Cost Shares in the Plan Design | T55: Cost-Share Type | U55: MHSUD Cost Shares in Plan Design* | V55: Predominant Level for Medical/ Surgical | W55: MHSUD Financial Parity Result | Y55: Enter Footnotes (as needed) about MHSUD Cost Shares in the Plan Design | AC55: Cost-Share Type | AD55: MHSUD Cost Shares in Plan Design* | AE55: Predominant Level for Medical/ Surgical | AF55: MHSUD Financial Parity Result | AH55: Enter Footnotes (as needed) about MHSUD Cost Shares in the Plan Design | AL55: Cost-Share Type | AM55: MHSUD Cost Shares in Plan Design* | AN55: Predominant Level for Medical/ Surgical | AO55: MHSUD Financial Parity Result | AQ55: Enter Footnotes (as needed) about MHSUD Cost Shares in the Plan Design | AU55: Cost-Share Type | AV55: MHSUD Cost Shares in Plan Design* | AW55: Predominant Level for Medical/ Surgical | AX55: MHSUD Financial Parity Result | AZ55: Enter Footnotes (as needed) about MHSUD Cost Shares in the Plan Design | BD55: Cost-Share Type | BE55: MHSUD Cost Shares in Plan Design* | BF55: Predominant Level for Medical/ Surgical | BG55: MHSUD Financial Parity Result | BI55: Enter Footnotes (as needed) about MHSUD Cost Shares in the Plan Design | BM55: Cost-Share Type | BN55: MHSUD Cost Shares in Plan Design* | BO55: Predominant Level for Medical/ Surgical | BP55: MHSUD Financial Parity Result | BR55: Enter Footnotes (as needed) about MHSUD Cost Shares in the Plan Design | BV55: Cost-Share Type | BW55: MHSUD Cost Shares in Plan Design* | BX55: Predominant Level for Medical/ Surgical | BY55: MHSUD Financial Parity Result | CA55: Enter Footnotes (as needed) about MHSUD Cost Shares in the Plan Design | CE55: Cost-Share Type | CF55: MHSUD Cost Shares in Plan Design* | CG55: Predominant Level for Medical/ Surgical | CH55: MHSUD Financial Parity Result | CJ55: Enter Footnotes (as needed) about MHSUD Cost Shares in the Plan Design
B56: Deductible | C56: 500 | D56: =IF(OR(E63="Fail",E63="N/A"),E63,MAX(tbl_IPINN_P2Ded14104155[Predominant & Smaller])) -> 500 | E56: =IF(AND(OR(C56="",C56="N/A"),E63="N/A"),"N/A",IF(AND(OR(D56="N/A",D56="Fail"),OR(C56="N/A",C56="Not Applicable")),"Pass",IF(D56="Fail",D56,IF(C56="","Fail - Enter MHSUD cost share",IF(AND(D56<>"N/A",D56<>"Fail",OR(AND(C56<=D56,C56>=0),C56="N/A",C56="Not Applicable")),"Pass","Fail"))))) -> Pass | G56: xx | K56: Deductible | M56: =IF(OR(N63="Fail",N63="N/A"),N63,MAX(tbl_IPOON_P2Ded44109160[Predominant & Smaller])) -> N/A | N56: =IF(AND(OR(L56="",L56="N/A"),N63="N/A"),"N/A",IF(AND(OR(M56="N/A",M56="Fail"),OR(L56="N/A",L56="Not Applicable")),"Pass",IF(M56="Fail",M56,IF(L56="","Fail - Enter MHSUD cost share",IF(AND(M56<>"N/A",M56<>"Fail",OR(AND(L56<=M56,L56>=0),L56="N/A",L56="Not Applicable")),"Pass","Fail"))))) -> N/A | P56: xx | T56: Deductible | V56: =IF(OR(W63="Fail",W63="N/A"),W63,MAX(tbl_OPINN_P2Ded64114165[Predominant & Smaller])) -> N/A | W56: =IF(AND(OR(U56="",U56="N/A"),W63="N/A"),"N/A",IF(AND(OR(V56="N/A",V56="Fail"),OR(U56="N/A",U56="Not Applicable")),"Pass",IF(V56="Fail",V56,IF(U56="","Fail - Enter MHSUD cost share",IF(AND(V56<>"N/A",V56<>"Fail",OR(AND(U56<=V56,U56>=0),U56="N/A",U56="Not Applicable")),"Pass","Fail"))))) -> N/A | Y56: xx | AC56: Deductible | AD56: 500 | AE56: =IF(OR(AF63="Fail",AF63="N/A"),AF63,MAX(tbl_OPOVINN_P2Ded69119170[Predominant & Smaller])) -> 500 | AF56: =IF(AND(OR(AD56="",AD56="N/A"),AF63="N/A"),"N/A",IF(AND(OR(AE56="N/A",AE56="Fail"),OR(AD56="N/A",AD56="Not Applicable")),"Pass",IF(AE56="Fail",AE56,IF(AD56="","Fail - Enter MHSUD cost share",IF(AND(AE56<>"N/A",AE56<>"Fail",OR(AND(AD56<=AE56,AD56>=0),AD56="N/A",AD56="Not Applicable")),"Pass","Fail"))))) -> Pass | AH56: xx | AL56: Deductible | AM56: 500 | AN56: =IF(OR(AO63="Fail",AO63="N/A"),AO63,MAX(tbl_OPAOINN_P2Ded74124175[Predominant & Smaller])) -> 500 | AO56: =IF(AND(OR(AM56="",AM56="N/A"),AO63="N/A"),"N/A",IF(AND(OR(AN56="N/A",AN56="Fail"),OR(AM56="N/A",AM56="Not Applicable")),"Pass",IF(AN56="Fail",AN56,IF(AM56="","Fail - Enter MHSUD cost share",IF(AND(AN56<>"N/A",AN56<>"Fail",OR(AND(AM56<=AN56,AM56>=0),AM56="N/A",AM56="Not Applicable")),"Pass","Fail"))))) -> Pass | AQ56: xx | AU56: Deductible | AW56: =IF(OR(AX63="Fail",AX63="N/A"),AX63,MAX(tbl_OPOON_P2Ded79129180[Predominant & Smaller])) -> N/A | AX56: =IF(AND(OR(AV56="",AV56="N/A"),AX63="N/A"),"N/A",IF(AND(OR(AW56="N/A",AW56="Fail"),OR(AV56="N/A",AV56="Not Applicable")),"Pass",IF(AW56="Fail",AW56,IF(AV56="","Fail - Enter MHSUD cost share",IF(AND(AW56<>"N/A",AW56<>"Fail",OR(AND(AV56<=AW56,AV56>=0),AV56="N/A",AV56="Not Applicable")),"Pass","Fail"))))) -> N/A | AZ56: xx | BD56: Deductible | BF56: =IF(OR(BG63="Fail",BG63="N/A"),BG63,MAX(tbl_OPOVOON_P2Ded84134185[Predominant & Smaller])) -> N/A | BG56: =IF(AND(OR(BE56="",BE56="N/A"),BG63="N/A"),"N/A",IF(AND(OR(BF56="N/A",BF56="Fail"),OR(BE56="N/A",BE56="Not Applicable")),"Pass",IF(BF56="Fail",BF56,IF(BE56="","Fail - Enter MHSUD cost share",IF(AND(BF56<>"N/A",BF56<>"Fail",OR(AND(BE56<=BF56,BE56>=0),BE56="N/A",BE56="Not Applicable")),"Pass","Fail"))))) -> N/A | BI56: xx | BM56: Deductible | BO56: =IF(OR(BP63="Fail",BP63="N/A"),BP63,MAX(tbl_OPAOOON_P2Ded89139190[Predominant & Smaller])) -> N/A | BP56: =IF(AND(OR(BN56="",BN56="N/A"),BP63="N/A"),"N/A",IF(AND(OR(BO56="N/A",BO56="Fail"),OR(BN56="N/A",BN56="Not Applicable")),"Pass",IF(BO56="Fail",BO56,IF(BN56="","Fail - Enter MHSUD cost share",IF(AND(BO56<>"N/A",BO56<>"Fail",OR(AND(BN56<=BO56,BN56>=0),BN56="N/A",BN56="Not Applicable")),"Pass","Fail"))))) -> N/A | BR56: xx | BV56: Deductible | BX56: =IF(OR(BY63="Fail",BY63="N/A"),BY63,MAX(tbl_ER_P2Ded102152203[Predominant & Smaller])) -> N/A | BY56: =IF(AND(OR(BW56="",BW56="N/A"),BY63="N/A"),"N/A",IF(AND(OR(BX56="N/A",BX56="Fail"),OR(BW56="N/A",BW56="Not Applicable")),"Pass",IF(BX56="Fail",BX56,IF(BW56="","Fail - Enter MHSUD cost share",IF(AND(BX56<>"N/A",BX56<>"Fail",OR(AND(BW56<=BX56,BW56>=0),BW56="N/A",BW56="Not Applicable")),"Pass","Fail"))))) -> N/A | CA56: xx | CE56: Deductible | CG56: =IF(OR(CH63="Fail",CH63="N/A"),CH63,MAX(tbl_RX_P2Ded98148199[Predominant & Smaller])) -> N/A | CH56: =IF(AND(OR(CF56="",CF56="N/A"),CH63="N/A"),"N/A",IF(AND(OR(CG56="N/A",CG56="Fail"),OR(CF56="N/A",CF56="Not Applicable")),"Pass",IF(CG56="Fail",CG56,IF(CF56="","Fail - Enter MHSUD cost share",IF(AND(CG56<>"N/A",CG56<>"Fail",OR(AND(CF56<=CG56,CF56>=0),CF56="N/A",CF56="Not Applicable")),"Pass","Fail"))))) -> N/A | CJ56: xx
B57: Copayment | C57: NA | D57: =IF(OR(E64="Fail",E64="N/A"),E64,MAX(tbl_IPINN_P2Cop15105156[Predominant & Smaller])) -> 15 | E57: =IF(AND(OR(C57="",C57="N/A"),E64="N/A"),"N/A",IF(AND(OR(D57="N/A",D57="Fail"),OR(C57="N/A",C57="Not Applicable")),"Pass",IF(D57="Fail",D57,IF(C57="","Fail - Enter MHSUD cost share",IF(AND(D57<>"N/A",D57<>"Fail",OR(AND(C57<=D57,C57>=0),C57="N/A",C57="Not Applicable")),"Pass","Fail"))))) -> Fail | K57: Copayment | M57: =IF(OR(N64="Fail",N64="N/A"),N64,MAX(tbl_IPOON_P2Cop45110161[Predominant & Smaller])) -> N/A | N57: =IF(AND(OR(L57="",L57="N/A"),N64="N/A"),"N/A",IF(AND(OR(M57="N/A",M57="Fail"),OR(L57="N/A",L57="Not Applicable")),"Pass",IF(M57="Fail",M57,IF(L57="","Fail - Enter MHSUD cost share",IF(AND(M57<>"N/A",M57<>"Fail",OR(AND(L57<=M57,L57>=0),L57="N/A",L57="Not Applicable")),"Pass","Fail"))))) -> N/A | T57: Copayment | V57: =IF(OR(W64="Fail",W64="N/A"),W64,MAX(tbl_OPINN_P2Cop65115166[Predominant & Smaller])) -> N/A | W57: =IF(AND(OR(U57="",U57="N/A"),W64="N/A"),"N/A",IF(AND(OR(V57="N/A",V57="Fail"),OR(U57="N/A",U57="Not Applicable")),"Pass",IF(V57="Fail",V57,IF(U57="","Fail - Enter MHSUD cost share",IF(AND(V57<>"N/A",V57<>"Fail",OR(AND(U57<=V57,U57>=0),U57="N/A",U57="Not Applicable")),"Pass","Fail"))))) -> N/A | AC57: Copayment | AD57: 15 | AE57: =IF(OR(AF64="Fail",AF64="N/A"),AF64,MAX(tbl_OPOVINN_P2Cop70120171[Predominant & Smaller])) -> 30 | AF57: =IF(AND(OR(AD57="",AD57="N/A"),AF64="N/A"),"N/A",IF(AND(OR(AE57="N/A",AE57="Fail"),OR(AD57="N/A",AD57="Not Applicable")),"Pass",IF(AE57="Fail",AE57,IF(AD57="","Fail - Enter MHSUD cost share",IF(AND(AE57<>"N/A",AE57<>"Fail",OR(AND(AD57<=AE57,AD57>=0),AD57="N/A",AD57="Not Applicable")),"Pass","Fail"))))) -> Pass | AL57: Copayment | AM57: N/A | AN57: =IF(OR(AO64="Fail",AO64="N/A"),AO64,MAX(tbl_OPAOINN_P2Cop75125176[Predominant & Smaller])) -> Fail | AO57: =IF(AND(OR(AM57="",AM57="N/A"),AO64="N/A"),"N/A",IF(AND(OR(AN57="N/A",AN57="Fail"),OR(AM57="N/A",AM57="Not Applicable")),"Pass",IF(AN57="Fail",AN57,IF(AM57="","Fail - Enter MHSUD cost share",IF(AND(AN57<>"N/A",AN57<>"Fail",OR(AND(AM57<=AN57,AM57>=0),AM57="N/A",AM57="Not Applicable")),"Pass","Fail"))))) -> Pass | AU57: Copayment | AW57: =IF(OR(AX64="Fail",AX64="N/A"),AX64,MAX(tbl_OPOON_P2Cop80130181[Predominant & Smaller])) -> N/A | AX57: =IF(AND(OR(AV57="",AV57="N/A"),AX64="N/A"),"N/A",IF(AND(OR(AW57="N/A",AW57="Fail"),OR(AV57="N/A",AV57="Not Applicable")),"Pass",IF(AW57="Fail",AW57,IF(AV57="","Fail - Enter MHSUD cost share",IF(AND(AW57<>"N/A",AW57<>"Fail",OR(AND(AV57<=AW57,AV57>=0),AV57="N/A",AV57="Not Applicable")),"Pass","Fail"))))) -> N/A | BD57: Copayment | BF57: =IF(OR(BG64="Fail",BG64="N/A"),BG64,MAX(tbl_OPOVOON_P2Cop85135186[Predominant & Smaller])) -> N/A | BG57: =IF(AND(OR(BE57="",BE57="N/A"),BG64="N/A"),"N/A",IF(AND(OR(BF57="N/A",BF57="Fail"),OR(BE57="N/A",BE57="Not Applicable")),"Pass",IF(BF57="Fail",BF57,IF(BE57="","Fail - Enter MHSUD cost share",IF(AND(BF57<>"N/A",BF57<>"Fail",OR(AND(BE57<=BF57,BE57>=0),BE57="N/A",BE57="Not Applicable")),"Pass","Fail"))))) -> N/A | BM57: Copayment | BO57: =IF(OR(BP64="Fail",BP64="N/A"),BP64,MAX(tbl_OPAOOON_P2Cop90140191[Predominant & Smaller])) -> N/A | BP57: =IF(AND(OR(BN57="",BN57="N/A"),BP64="N/A"),"N/A",IF(AND(OR(BO57="N/A",BO57="Fail"),OR(BN57="N/A",BN57="Not Applicable")),"Pass",IF(BO57="Fail",BO57,IF(BN57="","Fail - Enter MHSUD cost share",IF(AND(BO57<>"N/A",BO57<>"Fail",OR(AND(BN57<=BO57,BN57>=0),BN57="N/A",BN57="Not Applicable")),"Pass","Fail"))))) -> N/A | BV57: Copayment | BX57: =IF(OR(BY64="Fail",BY64="N/A"),BY64,MAX(tbl_ER_P2Cop94144195[Predominant & Smaller])) -> N/A | BY57: =IF(AND(OR(BW57="",BW57="N/A"),BY64="N/A"),"N/A",IF(AND(OR(BX57="N/A",BX57="Fail"),OR(BW57="N/A",BW57="Not Applicable")),"Pass",IF(BX57="Fail",BX57,IF(BW57="","Fail - Enter MHSUD cost share",IF(AND(BX57<>"N/A",BX57<>"Fail",OR(AND(BW57<=BX57,BW57>=0),BW57="N/A",BW57="Not Applicable")),"Pass","Fail"))))) -> N/A | CE57: Copayment | CG57: =IF(OR(CH64="Fail",CH64="N/A"),CH64,MAX(tbl_RX_P2Cop99149200[Predominant & Smaller])) -> N/A | CH57: =IF(AND(OR(CF57="",CF57="N/A"),CH64="N/A"),"N/A",IF(AND(OR(CG57="N/A",CG57="Fail"),OR(CF57="N/A",CF57="Not Applicable")),"Pass",IF(CG57="Fail",CG57,IF(CF57="","Fail - Enter MHSUD cost share",IF(AND(CG57<>"N/A",CG57<>"Fail",OR(AND(CF57<=CG57,CF57>=0),CF57="N/A",CF57="Not Applicable")),"Pass","Fail"))))) -> N/A
B58: Coinsurance | C58: 0.25 | D58: =IF(OR(E65="Fail",E65="N/A"),E65,MAX(tbl_IPINN_P2Coi16106157[Predominant & Smaller])) -> Fail | E58: Fail | K58: Coinsurance | M58: =IF(OR(N65="Fail",N65="N/A"),N65,MAX(tbl_IPOON_P2Coi46111162[Predominant & Smaller])) -> N/A | N58: N/A | T58: Coinsurance | V58: =IF(OR(W65="Fail",W65="N/A"),W65,MAX(tbl_OPINN_P2Coi66116167[Predominant & Smaller])) -> N/A | W58: N/A | AC58: Coinsurance | AD58: N/A | AE58: =IF(OR(AF65="Fail",AF65="N/A"),AF65,MAX(tbl_OPOVINN_P2Coi71121172[Predominant & Smaller])) -> Fail | AF58: Pass | AL58: Coinsurance | AM58: 0.25 | AN58: =IF(OR(AO65="Fail",AO65="N/A"),AO65,MAX(tbl_OPAOINN_P2Coi76126177[Predominant & Smaller])) -> 0.25 | AO58: Pass | AU58: Coinsurance | AW58: =IF(OR(AX65="Fail",AX65="N/A"),AX65,MAX(tbl_OPOON_P2Coi81131182[Predominant & Smaller])) -> N/A | AX58: N/A | BD58: Coinsurance | BF58: =IF(OR(BG65="Fail",BG65="N/A"),BG65,MAX(tbl_OPOVOON_P2Coi86136187[Predominant & Smaller])) -> N/A | BG58: N/A | BM58: Coinsurance | BO58: =IF(OR(BP65="Fail",BP65="N/A"),BP65,MAX(tbl_OPAOOON_P2Coi91141192[Predominant & Smaller])) -> N/A | BP58: N/A | BV58: Coinsurance | BX58: =IF(OR(BY65="Fail",BY65="N/A"),BY65,MAX(tbl_ER_P2Coi95145196[Predominant & Smaller])) -> N/A | BY58: N/A | CE58: Coinsurance | CG58: =IF(OR(CH65="Fail",CH65="N/A"),CH65,MAX(tbl_RX_P2Coi100150201[Predominant & Smaller])) -> N/A | CH58: N/A
B59: OOPM | C59: 8000 | D59: =IF(OR(E66="Fail",E66="N/A"),E66,MAX(tbl_IPINN_P2OOPM17107158[Predominant & Smaller])) -> 8000 | E59: Pass | K59: OOPM | M59: =IF(OR(N66="Fail",N66="N/A"),N66,MAX(tbl_IPOON_P2OOPM47112163[Predominant & Smaller])) -> N/A | N59: N/A | T59: OOPM | V59: =IF(OR(W66="Fail",W66="N/A"),W66,MAX(tbl_OPINN_P2OOPM67117168[Predominant & Smaller])) -> N/A | W59: N/A | AC59: OOPM | AD59: 8000 | AE59: =IF(OR(AF66="Fail",AF66="N/A"),AF66,MAX(tbl_OPOVINN_P2OOPM72122173[Predominant & Smaller])) -> 8000 | AF59: Pass | AL59: OOPM | AM59: 8000 | AN59: =IF(OR(AO66="Fail",AO66="N/A"),AO66,MAX(tbl_OPAOINN_P2OOPM77127178[Predominant & Smaller])) -> 8000 | AO59: Pass | AU59: OOPM | AW59: =IF(OR(AX66="Fail",AX66="N/A"),AX66,MAX(tbl_OPOON_P2OOPM82132183[Predominant & Smaller])) -> N/A | AX59: N/A | BD59: OOPM | BF59: =IF(OR(BG66="Fail",BG66="N/A"),BG66,MAX(tbl_OPOVOON_P2OOPM87137188[Predominant & Smaller])) -> N/A | BG59: N/A | BM59: OOPM | BO59: =IF(OR(BP66="Fail",BP66="N/A"),BP66,MAX(tbl_OPAOOON_P2OOPM92142193[Predominant & Smaller])) -> N/A | BP59: N/A | BV59: OOPM | BX59: =IF(OR(BY66="Fail",BY66="N/A"),BY66,MAX(tbl_ER_P2OOPM96146197[Predominant & Smaller])) -> N/A | BY59: N/A | CE59: OOPM | CG59: =IF(OR(CH66="Fail",CH66="N/A"),CH66,MAX(tbl_RX_P2OOPM101151202[Predominant & Smaller])) -> N/A | CH59: N/A
B60: Overall | E60: =IF((COUNTIF(E56:E59,"Pass")+COUNTIF(E56:E59,"N/A"))=4,"Pass","Fail") -> Fail | K60: Overall | N60: =IF((COUNTIF(N56:N59,"Pass")+COUNTIF(N56:N59,"N/A"))=4,"Pass","Fail") -> Pass | T60: Overall | W60: =IF((COUNTIF(W56:W59,"Pass")+COUNTIF(W56:W59,"N/A"))=4,"Pass","Fail") -> Pass | AC60: Overall | AF60: =IF((COUNTIF(AF56:AF59,"Pass")+COUNTIF(AF56:AF59,"N/A"))=4,"Pass","Fail") -> Pass | AL60: Overall | AO60: =IF((COUNTIF(AO56:AO59,"Pass")+COUNTIF(AO56:AO59,"N/A"))=4,"Pass","Fail") -> Pass | AU60: Overall | AX60: =IF((COUNTIF(AX56:AX59,"Pass")+COUNTIF(AX56:AX59,"N/A"))=4,"Pass","Fail") -> Pass | BD60: Overall | BG60: =IF((COUNTIF(BG56:BG59,"Pass")+COUNTIF(BG56:BG59,"N/A"))=4,"Pass","Fail") -> Pass | BM60: Overall | BP60: =IF((COUNTIF(BP56:BP59,"Pass")+COUNTIF(BP56:BP59,"N/A"))=4,"Pass","Fail") -> Pass | BV60: Overall | BY60: =IF((COUNTIF(BY56:BY59,"Pass")+COUNTIF(BY56:BY59,"N/A"))=4,"Pass","Fail") -> Pass | CE60: Overall | CH60: =IF((COUNTIF(CH56:CH59,"Pass")+COUNTIF(CH56:CH59,"N/A"))=4,"Pass","Fail") -> Pass
C61: *If not applicable, enter "N/A" | L61: *If not applicable, enter "N/A" | U61: *If not applicable, enter "N/A" | AD61: *If not applicable, enter "N/A" | AM61: *If not applicable, enter "N/A" | AV61: *If not applicable, enter "N/A" | BE61: *If not applicable, enter "N/A" | BN61: *If not applicable, enter "N/A" | BW61: *If not applicable, enter "N/A" | CF61: *If not applicable, enter "N/A"
B62: Step 1 Substantially All (i.e., ≥ ⅔ of medical/surgical benefits) | K62: Step 1 Substantially All (i.e., ≥ ⅔ of medical/surgical benefits) | T62: Step 1 Substantially All (i.e., ≥ ⅔ of medical/surgical benefits) | AC62: Step 1 Substantially All (i.e., ≥ ⅔ of medical/surgical benefits) | AL62: Step 1 Substantially All (i.e., ≥ ⅔ of medical/surgical benefits) | AU62: Step 1 Substantially All (i.e., ≥ ⅔ of medical/surgical benefits) | BD62: Step 1 Substantially All (i.e., ≥ ⅔ of medical/surgical benefits) | BM62: Step 1 Substantially All (i.e., ≥ ⅔ of medical/surgical benefits) | BV62: Step 1 Substantially All (i.e., ≥ ⅔ of medical/surgical benefits) | CE62: Step 1 Substantially All (i.e., ≥ ⅔ of medical/surgical benefits)
B63: Deductible | C63: =SUMIF(tbl_IPINN_P14103154[Deductible],">0",tbl_IPINN_P14103154[Plan Projected Allowed Amount]) -> 615 | D63: =IFERROR(C63/C$67,"") -> 0.8333333333 | E63: =IF($D$19="Yes",IF(C63=0,"Fail",IF(D63>=(2/3),D$37&" "&B63,"Fail")),"N/A") -> IP INN Deductible | K63: Deductible | L63: =SUMIF(tbl_IPOON_P143108159[Deductible],">0",tbl_IPOON_P143108159[Plan Projected Allowed Amount]) -> 0 | M63: =IFERROR(L63/L$67,"") ->  | N63: =IF(AND($D$19="Yes",$L$19="Yes"),IF(L63=0,"Fail",IF(M63>=(2/3),M$37&" "&K63,"Fail")),"N/A") -> N/A | T63: Deductible | U63: =SUMIF(tbl_OPINN_P163113164[Deductible],">0",tbl_OPINN_P163113164[Plan Projected Allowed Amount]) -> 0 | V63: =IFERROR(U63/U$67,"") ->  | W63: =IF(AND(OR($D$20="Yes",$D$21="Yes"),$L$20="All Combined"),IF(U63=0,"Fail",IF(V63>=(2/3),V$37&" "&T63,"Fail")),"N/A") -> N/A | AC63: Deductible | AD63: =SUMIF(tbl_OPOVINN_P168118169[Deductible],">0",tbl_OPOVINN_P168118169[Plan Projected Allowed Amount]) -> 659 | AE63: =IFERROR(AD63/AD$67,"") -> 0.8682476943 | AF63: =IF(AND(OR($D$20="Yes",$D$23="Yes"),$L$20="Office Visits Separate"),IF(AD63=0,"Fail",IF(AE63>=(2/3),AE$37&" "&AC63,"Fail")),"N/A") -> OP-OV INN Deductible | AL63: Deductible | AM63: =SUMIF(tbl_OPAOINN_P173123174[Deductible],">0",tbl_OPAOINN_P173123174[Plan Projected Allowed Amount]) -> 5040.67 | AN63: =IFERROR(AM63/AM$67,"") -> 0.9805472827 | AO63: =IF(AND(OR($D$20="Yes",$D$24="Yes"),$L$20="Office Visits Separate"),IF(AM63=0,"Fail",IF(AN63>=(2/3),AN$37&" "&AL63,"Fail")),"N/A") -> OP-AO INN Deductible | AU63: Deductible | AV63: =SUMIF(tbl_OPOON_P178128179[Deductible],">0",tbl_OPOON_P178128179[Plan Projected Allowed Amount]) -> 0 | AW63: =IFERROR(AV63/AV$67,"") ->  | AX63: =IF(AND(OR($D$20="Yes",$D$21="Yes"),$L$20="All Combined",$L$19="Yes"),IF(AV63=0,"Fail",IF(AW63>=(2/3),AW$37&" "&AU63,"Fail")),"N/A") -> N/A | BD63: Deductible | BE63: =SUMIF(tbl_OPOVOON_P183133184[Deductible],">0",tbl_OPOVOON_P183133184[Plan Projected Allowed Amount]) -> 0 | BF63: =IFERROR(BE63/BE$67,"") ->  | BG63: =IF(AND(OR($D$20="Yes",$D$23="Yes"),$L$20="Office Visits Separate",$L$19="Yes"),IF(BE63=0,"Fail",IF(BF63>=(2/3),BF$37&" "&BD63,"Fail")),"N/A") -> N/A | BM63: Deductible | BN63: =SUMIF(tbl_OPAOOON_P188138189[Deductible],">0",tbl_OPAOOON_P188138189[Plan Projected Allowed Amount]) -> 0 | BO63: =IFERROR(BN63/BN$67,"") ->  | BP63: =IF(AND(OR($D$20="Yes",$D$24="Yes"),$L$20="Office Visits Separate",$L$19="Yes"),IF(BN63=0,"Fail",IF(BO63>=(2/3),BO$37&" "&BM63,"Fail")),"N/A") -> N/A | BV63: Deductible | BW63: =SUMIF(tbl_ER_P193143194[Deductible],">0",tbl_ER_P193143194[Plan Projected Allowed Amount]) -> 0 | BX63: =IFERROR(BW63/BW$67,"") ->  | BY63: =IF($D$25="Yes",IF(BW63=0,"Fail",IF(BX63>=(2/3),BX$37&" "&BV63,"Fail")),"N/A") -> N/A | CE63: Deductible | CF63: =SUMIF(tbl_RX_P197147198[Deductible],">0",tbl_RX_P197147198[Plan Projected Allowed Amount]) -> 0 | CG63: =IFERROR(CF63/CF$67,"") ->  | CH63: =IF($D$26="Yes",IF(CF63=0,"Fail",IF(CG63>=(2/3),CG$37&" "&CE63,"Fail")),"N/A") -> N/A
B64: Copayment | C64: =SUMIF(tbl_IPINN_P14103154[Copayment],">0",tbl_IPINN_P14103154[Plan Projected Allowed Amount]) -> 738 | D64: =IFERROR(C64/C$67,"") -> 1 | E64: =IF($D$19="Yes",IF(C64=0,"Fail",IF(D64>=(2/3),D$37&" "&B64,"Fail")),"N/A") -> IP INN Copayment | K64: Copayment | L64: =SUMIF(tbl_IPOON_P143108159[Copayment],">0",tbl_IPOON_P143108159[Plan Projected Allowed Amount]) -> 0 | M64: =IFERROR(L64/L$67,"") ->  | N64: =IF(AND($D$19="Yes",$L$19="Yes"),IF(L64=0,"Fail",IF(M64>=(2/3),M$37&" "&K64,"Fail")),"N/A") -> N/A | T64: Copayment | U64: =SUMIF(tbl_OPINN_P163113164[Copayment],">0",tbl_OPINN_P163113164[Plan Projected Allowed Amount]) -> 0 | V64: =IFERROR(U64/U$67,"") ->  | W64: =IF(AND(OR($D$20="Yes",$D$21="Yes"),$L$20="All Combined"),IF(U64=0,"Fail",IF(V64>=(2/3),V$37&" "&T64,"Fail")),"N/A") -> N/A | AC64: Copayment | AD64: =SUMIF(tbl_OPOVINN_P168118169[Copayment],">0",tbl_OPOVINN_P168118169[Plan Projected Allowed Amount]) -> 621 | AE64: =IFERROR(AD64/AD$67,"") -> 0.8181818182 | AF64: =IF(AND(OR($D$20="Yes",$D$23="Yes"),$L$20="Office Visits Separate"),IF(AD64=0,"Fail",IF(AE64>=(2/3),AE$37&" "&AC64,"Fail")),"N/A") -> OP-OV INN Copayment | AL64: Copayment | AM64: =SUMIF(tbl_OPAOINN_P173123174[Copayment],">0",tbl_OPAOINN_P173123174[Plan Projected Allowed Amount]) -> 0 | AN64: =IFERROR(AM64/AM$67,"") -> 0 | AO64: =IF(AND(OR($D$20="Yes",$D$24="Yes"),$L$20="Office Visits Separate"),IF(AM64=0,"Fail",IF(AN64>=(2/3),AN$37&" "&AL64,"Fail")),"N/A") -> Fail | AU64: Copayment | AV64: =SUMIF(tbl_OPOON_P178128179[Copayment],">0",tbl_OPOON_P178128179[Plan Projected Allowed Amount]) -> 0 | AW64: =IFERROR(AV64/AV$67,"") ->  | AX64: =IF(AND(OR($D$20="Yes",$D$21="Yes"),$L$20="All Combined",$L$19="Yes"),IF(AV64=0,"Fail",IF(AW64>=(2/3),AW$37&" "&AU64,"Fail")),"N/A") -> N/A | BD64: Copayment | BE64: =SUMIF(tbl_OPOVOON_P183133184[Copayment],">0",tbl_OPOVOON_P183133184[Plan Projected Allowed Amount]) -> 0 | BF64: =IFERROR(BE64/BE$67,"") ->  | BG64: =IF(AND(OR($D$20="Yes",$D$23="Yes"),$L$20="Office Visits Separate",$L$19="Yes"),IF(BE64=0,"Fail",IF(BF64>=(2/3),BF$37&" "&BD64,"Fail")),"N/A") -> N/A | BM64: Copayment | BN64: =SUMIF(tbl_OPAOOON_P188138189[Copayment],">0",tbl_OPAOOON_P188138189[Plan Projected Allowed Amount]) -> 0 | BO64: =IFERROR(BN64/BN$67,"") ->  | BP64: =IF(AND(OR($D$20="Yes",$D$24="Yes"),$L$20="Office Visits Separate",$L$19="Yes"),IF(BN64=0,"Fail",IF(BO64>=(2/3),BO$37&" "&BM64,"Fail")),"N/A") -> N/A | BV64: Copayment | BW64: =SUMIF(tbl_ER_P193143194[Copayment],">0",tbl_ER_P193143194[Plan Projected Allowed Amount]) -> 0 | BX64: =IFERROR(BW64/BW$67,"") ->  | BY64: =IF($D$25="Yes",IF(BW64=0,"Fail",IF(BX64>=(2/3),BX$37&" "&BV64,"Fail")),"N/A") -> N/A | CE64: Copayment | CF64: =SUMIF(tbl_RX_P197147198[Copayment],">0",tbl_RX_P197147198[Plan Projected Allowed Amount]) -> 0 | CG64: =IFERROR(CF64/CF$67,"") ->  | CH64: =IF($D$26="Yes",IF(CF64=0,"Fail",IF(CG64>=(2/3),CG$37&" "&CE64,"Fail")),"N/A") -> N/A
B65: Coinsurance | C65: =SUMIF(tbl_IPINN_P14103154[Coinsurance],">0",tbl_IPINN_P14103154[Plan Projected Allowed Amount]) -> 369 | D65: =IFERROR(C65/C$67,"") -> 0.5 | E65: =IF($D$19="Yes",IF(C65=0,"Fail",IF(D65>=(2/3),D$37&" "&B65,"Fail")),"N/A") -> Fail | K65: Coinsurance | L65: =SUMIF(tbl_IPOON_P143108159[Coinsurance],">0",tbl_IPOON_P143108159[Plan Projected Allowed Amount]) -> 0 | M65: =IFERROR(L65/L$67,"") ->  | N65: =IF(AND($D$19="Yes",$L$19="Yes"),IF(L65=0,"Fail",IF(M65>=(2/3),M$37&" "&K65,"Fail")),"N/A") -> N/A | T65: Coinsurance | U65: =SUMIF(tbl_OPINN_P163113164[Coinsurance],">0",tbl_OPINN_P163113164[Plan Projected Allowed Amount]) -> 0 | V65: =IFERROR(U65/U$67,"") ->  | W65: =IF(AND(OR($D$20="Yes",$D$21="Yes"),$L$20="All Combined"),IF(U65=0,"Fail",IF(V65>=(2/3),V$37&" "&T65,"Fail")),"N/A") -> N/A | AC65: Coinsurance | AD65: =SUMIF(tbl_OPOVINN_P168118169[Coinsurance],">0",tbl_OPOVINN_P168118169[Plan Projected Allowed Amount]) -> 302 | AE65: =IFERROR(AD65/AD$67,"") -> 0.3978919631 | AF65: =IF(AND(OR($D$20="Yes",$D$23="Yes"),$L$20="Office Visits Separate"),IF(AD65=0,"Fail",IF(AE65>=(2/3),AE$37&" "&AC65,"Fail")),"N/A") -> Fail | AL65: Coinsurance | AM65: =SUMIF(tbl_OPAOINN_P173123174[Coinsurance],">0",tbl_OPAOINN_P173123174[Plan Projected Allowed Amount]) -> 5000.67 | AN65: =IFERROR(AM65/AM$67,"") -> 0.9727661958 | AO65: =IF(AND(OR($D$20="Yes",$D$24="Yes"),$L$20="Office Visits Separate"),IF(AM65=0,"Fail",IF(AN65>=(2/3),AN$37&" "&AL65,"Fail")),"N/A") -> OP-AO INN Coinsurance | AU65: Coinsurance | AV65: =SUMIF(tbl_OPOON_P178128179[Coinsurance],">0",tbl_OPOON_P178128179[Plan Projected Allowed Amount]) -> 0 | AW65: =IFERROR(AV65/AV$67,"") ->  | AX65: =IF(AND(OR($D$20="Yes",$D$21="Yes"),$L$20="All Combined",$L$19="Yes"),IF(AV65=0,"Fail",IF(AW65>=(2/3),AW$37&" "&AU65,"Fail")),"N/A") -> N/A | BD65: Coinsurance | BE65: =SUMIF(tbl_OPOVOON_P183133184[Coinsurance],">0",tbl_OPOVOON_P183133184[Plan Projected Allowed Amount]) -> 0 | BF65: =IFERROR(BE65/BE$67,"") ->  | BG65: =IF(AND(OR($D$20="Yes",$D$23="Yes"),$L$20="Office Visits Separate",$L$19="Yes"),IF(BE65=0,"Fail",IF(BF65>=(2/3),BF$37&" "&BD65,"Fail")),"N/A") -> N/A | BM65: Coinsurance | BN65: =SUMIF(tbl_OPAOOON_P188138189[Coinsurance],">0",tbl_OPAOOON_P188138189[Plan Projected Allowed Amount]) -> 0 | BO65: =IFERROR(BN65/BN$67,"") ->  | BP65: =IF(AND(OR($D$20="Yes",$D$24="Yes"),$L$20="Office Visits Separate",$L$19="Yes"),IF(BN65=0,"Fail",IF(BO65>=(2/3),BO$37&" "&BM65,"Fail")),"N/A") -> N/A | BV65: Coinsurance | BW65: =SUMIF(tbl_ER_P193143194[Coinsurance],">0",tbl_ER_P193143194[Plan Projected Allowed Amount]) -> 0 | BX65: =IFERROR(BW65/BW$67,"") ->  | BY65: =IF($D$25="Yes",IF(BW65=0,"Fail",IF(BX65>=(2/3),BX$37&" "&BV65,"Fail")),"N/A") -> N/A | CE65: Coinsurance | CF65: =SUMIF(tbl_RX_P197147198[Coinsurance],">0",tbl_RX_P197147198[Plan Projected Allowed Amount]) -> 0 | CG65: =IFERROR(CF65/CF$67,"") ->  | CH65: =IF($D$26="Yes",IF(CF65=0,"Fail",IF(CG65>=(2/3),CG$37&" "&CE65,"Fail")),"N/A") -> N/A
B66: OOPM | C66: =SUMIF(tbl_IPINN_P14103154[Out-of-Pocket Maximum (OOPM)],">0",tbl_IPINN_P14103154[Plan Projected Allowed Amount]) -> 738 | D66: =IFERROR(C66/C$67,"") -> 1 | E66: =IF($D$19="Yes",IF(C66=0,"Fail",IF(D66>=(2/3),D$37&" "&B66,"Fail")),"N/A") -> IP INN OOPM | K66: OOPM | L66: =SUMIF(tbl_IPOON_P143108159[Out-of-Pocket Maximum (OOPM)],">0",tbl_IPOON_P143108159[Plan Projected Allowed Amount]) -> 0 | M66: =IFERROR(L66/L$67,"") ->  | N66: =IF(AND($D$19="Yes",$L$19="Yes"),IF(L66=0,"Fail",IF(M66>=(2/3),M$37&" "&K66,"Fail")),"N/A") -> N/A | T66: OOPM | U66: =SUMIF(tbl_OPINN_P163113164[Out-of-Pocket Maximum (OOPM)],">0",tbl_OPINN_P163113164[Plan Projected Allowed Amount]) -> 0 | V66: =IFERROR(U66/U$67,"") ->  | W66: =IF(AND(OR($D$20="Yes",$D$21="Yes"),$L$20="All Combined"),IF(U66=0,"Fail",IF(V66>=(2/3),V$37&" "&T66,"Fail")),"N/A") -> N/A | AC66: OOPM | AD66: =SUMIF(tbl_OPOVINN_P168118169[Out-of-Pocket Maximum (OOPM)],">0",tbl_OPOVINN_P168118169[Plan Projected Allowed Amount]) -> 659 | AE66: =IFERROR(AD66/AD$67,"") -> 0.8682476943 | AF66: =IF(AND(OR($D$20="Yes",$D$23="Yes"),$L$20="Office Visits Separate"),IF(AD66=0,"Fail",IF(AE66>=(2/3),AE$37&" "&AC66,"Fail")),"N/A") -> OP-OV INN OOPM | AL66: OOPM | AM66: =SUMIF(tbl_OPAOINN_P173123174[Out-of-Pocket Maximum (OOPM)],">0",tbl_OPAOINN_P173123174[Plan Projected Allowed Amount]) -> 5040.67 | AN66: =IFERROR(AM66/AM$67,"") -> 0.9805472827 | AO66: =IF(AND(OR($D$20="Yes",$D$24="Yes"),$L$20="Office Visits Separate"),IF(AM66=0,"Fail",IF(AN66>=(2/3),AN$37&" "&AL66,"Fail")),"N/A") -> OP-AO INN OOPM | AU66: OOPM | AV66: =SUMIF(tbl_OPOON_P178128179[Out-of-Pocket Maximum (OOPM)],">0",tbl_OPOON_P178128179[Plan Projected Allowed Amount]) -> 0 | AW66: =IFERROR(AV66/AV$67,"") ->  | AX66: =IF(AND(OR($D$20="Yes",$D$21="Yes"),$L$20="All Combined",$L$19="Yes"),IF(AV66=0,"Fail",IF(AW66>=(2/3),AW$37&" "&AU66,"Fail")),"N/A") -> N/A | BD66: OOPM | BE66: =SUMIF(tbl_OPOVOON_P183133184[Out-of-Pocket Maximum (OOPM)],">0",tbl_OPOVOON_P183133184[Plan Projected Allowed Amount]) -> 0 | BF66: =IFERROR(BE66/BE$67,"") ->  | BG66: =IF(AND(OR($D$20="Yes",$D$23="Yes"),$L$20="Office Visits Separate",$L$19="Yes"),IF(BE66=0,"Fail",IF(BF66>=(2/3),BF$37&" "&BD66,"Fail")),"N/A") -> N/A | BM66: OOPM | BN66: =SUMIF(tbl_OPAOOON_P188138189[Out-of-Pocket Maximum (OOPM)],">0",tbl_OPAOOON_P188138189[Plan Projected Allowed Amount]) -> 0 | BO66: =IFERROR(BN66/BN$67,"") ->  | BP66: =IF(AND(OR($D$20="Yes",$D$24="Yes"),$L$20="Office Visits Separate",$L$19="Yes"),IF(BN66=0,"Fail",IF(BO66>=(2/3),BO$37&" "&BM66,"Fail")),"N/A") -> N/A | BV66: OOPM | BW66: =SUMIF(tbl_ER_P193143194[Out-of-Pocket Maximum (OOPM)],">0",tbl_ER_P193143194[Plan Projected Allowed Amount]) -> 0 | BX66: =IFERROR(BW66/BW$67,"") ->  | BY66: =IF($D$25="Yes",IF(BW66=0,"Fail",IF(BX66>=(2/3),BX$37&" "&BV66,"Fail")),"N/A") -> N/A | CE66: OOPM | CF66: =SUMIF(tbl_RX_P197147198[Out-of-Pocket Maximum (OOPM)],">0",tbl_RX_P197147198[Plan Projected Allowed Amount]) -> 0 | CG66: =IFERROR(CF66/CF$67,"") ->  | CH66: =IF($D$26="Yes",IF(CF66=0,"Fail",IF(CG66>=(2/3),CG$37&" "&CE66,"Fail")),"N/A") -> N/A
B67: Total Projected | C67: =tbl_IPINN_P14103154[[#Totals],[Plan Projected Allowed Amount]] -> 738 | K67: Total Projected | L67: =tbl_IPOON_P143108159[[#Totals],[Plan Projected Allowed Amount]] -> 0 | T67: Total Projected | U67: =tbl_OPINN_P163113164[[#Totals],[Plan Projected Allowed Amount]] -> 0 | AC67: Total Projected | AD67: =tbl_OPOVINN_P168118169[[#Totals],[Plan Projected Allowed Amount]] -> 759 | AL67: Total Projected | AM67: =tbl_OPAOINN_P173123174[[#Totals],[Plan Projected Allowed Amount]] -> 5140.67 | AU67: Total Projected | AV67: =tbl_OPOON_P178128179[[#Totals],[Plan Projected Allowed Amount]] -> 0 | BD67: Total Projected | BE67: =tbl_OPOVOON_P183133184[[#Totals],[Plan Projected Allowed Amount]] -> 0 | BM67: Total Projected | BN67: =tbl_OPAOOON_P188138189[[#Totals],[Plan Projected Allowed Amount]] -> 0 | BV67: Total Projected | BW67: =tbl_ER_P193143194[[#Totals],[Plan Projected Allowed Amount]] -> 0 | CE67: Total Projected | CF67: =tbl_RX_P197147198[[#Totals],[Plan Projected Allowed Amount]] -> 0
B69: Step 2 Predominant Level | K69: Step 2 Predominant Level | T69: Step 2 Predominant Level | AC69: Step 2 Predominant Level | AL69: Step 2 Predominant Level | AU69: Step 2 Predominant Level | BD69: Step 2 Predominant Level | BM69: Step 2 Predominant Level | BV69: Step 2 Predominant Level | CE69: Step 2 Predominant Level
B70: =B74&" ---- "&C$32 -> Deductible ---- (1) Inpatient, In-Network (IP INN) | K70: =K74&" ---- "&L$32 -> Deductible ---- (2) Inpatient, Out-of-Network (IP OON) | T70: =T74&" ---- "&U$32 -> Deductible ---- (3) Outpatient, In-Network (OP INN) | AC70: =AC74&" ---- "&AD$32 -> Deductible ---- (3a) Outpatient - Office Visits, In-Network (OP-OV INN) | AL70: =AL74&" ---- "&AM$32 -> Deductible ---- (3b) Outpatient - All Other, In-Network (OP-AO INN) | AU70: =AU74&" ---- "&AV$32 -> Deductible ---- (4) Outpatient, Out-of-Network (OP OON) | BD70: =BD74&" ---- "&BE$32 -> Deductible ---- (4a) Outpatient - Office Visits, Out-of-Network (OP-OV OON) | BM70: =BM74&" ---- "&BN$32 -> Deductible ---- (4b) Outpatient - All Other, Out-of-Network (OP-AO OON) | BV70: =BV74&" ---- "&BW$32 -> Deductible ---- (5) Emergency Care, (ER ) | CE70: =CE74&" ---- "&CF$32 -> Deductible ---- (6) Prescription Drugs, (RX )
B71: =IF(INDEX(D$63:D$66,MATCH(B74,B$63:B$66,0))="","If testing is required for this benefit classification: Please ensure each different cost-share combination is entered above in PART 1.",IF(INDEX(D$63:D$66,MATCH(B74,B$63:B$66,0))>=(2/3),"Applies to substantially all medical/surgical benefits in this classification. ENTER different "&LOWER(B74)&" amounts from smallest to largest.","Does not apply to substantially all medical/surgical benefits in this classification. DELETE any values in the left-hand column below.")) -> Applies to substantially all medical/surgical benefits in this classification. ENTER different deductible amounts from smallest to largest. | K71: =IF(INDEX(M$63:M$66,MATCH(K74,K$63:K$66,0))="","If testing is required for this benefit classification: Please ensure each different cost-share combination is entered above in PART 1.",IF(INDEX(M$63:M$66,MATCH(K74,K$63:K$66,0))>=(2/3),"Applies to substantially all medical/surgical benefits in this classification. ENTER different "&LOWER(K74)&" amounts from smallest to largest.","Does not apply to substantially all medical/surgical benefits in this classification. DELETE any values in the left-hand column below.")) -> If testing is required for this benefit classification: Please ensure each different cost-share combination is entered above in PART 1. | T71: =IF(INDEX(V$63:V$66,MATCH(T74,T$63:T$66,0))="","If testing is required for this benefit classification: Please ensure each different cost-share combination is entered above in PART 1.",IF(INDEX(V$63:V$66,MATCH(T74,T$63:T$66,0))>=(2/3),"Applies to substantially all medical/surgical benefits in this classification. ENTER different "&LOWER(T74)&" amounts from smallest to largest.","Does not apply to substantially all medical/surgical benefits in this classification. DELETE any values in the left-hand column below.")) -> If testing is required for this benefit classification: Please ensure each different cost-share combination is entered above in PART 1. | AC71: =IF(INDEX(AE$63:AE$66,MATCH(AC74,AC$63:AC$66,0))="","If testing is required for this benefit classification: Please ensure each different cost-share combination is entered above in PART 1.",IF(INDEX(AE$63:AE$66,MATCH(AC74,AC$63:AC$66,0))>=(2/3),"Applies to substantially all medical/surgical benefits in this classification. ENTER different "&LOWER(AC74)&" amounts from smallest to largest.","Does not apply to substantially all medical/surgical benefits in this classification. DELETE any values in the left-hand column below.")) -> Applies to substantially all medical/surgical benefits in this classification. ENTER different deductible amounts from smallest to largest. | AL71: =IF(INDEX(AN$63:AN$66,MATCH(AL74,AL$63:AL$66,0))="","If testing is required for this benefit classification: Please ensure each different cost-share combination is entered above in PART 1.",IF(INDEX(AN$63:AN$66,MATCH(AL74,AL$63:AL$66,0))>=(2/3),"Applies to substantially all medical/surgical benefits in this classification. ENTER different "&LOWER(AL74)&" amounts from smallest to largest.","Does not apply to substantially all medical/surgical benefits in this classification. DELETE any values in the left-hand column below.")) -> Applies to substantially all medical/surgical benefits in this classification. ENTER different deductible amounts from smallest to largest. | AU71: =IF(INDEX(AW$63:AW$66,MATCH(AU74,AU$63:AU$66,0))="","If testing is required for this benefit classification: Please ensure each different cost-share combination is entered above in PART 1.",IF(INDEX(AW$63:AW$66,MATCH(AU74,AU$63:AU$66,0))>=(2/3),"Applies to substantially all medical/surgical benefits in this classification. ENTER different "&LOWER(AU74)&" amounts from smallest to largest.","Does not apply to substantially all medical/surgical benefits in this classification. DELETE any values in the left-hand column below.")) -> If testing is required for this benefit classification: Please ensure each different cost-share combination is entered above in PART 1. | BD71: =IF(INDEX(BF$63:BF$66,MATCH(BD74,BD$63:BD$66,0))="","If testing is required for this benefit classification: Please ensure each different cost-share combination is entered above in PART 1.",IF(INDEX(BF$63:BF$66,MATCH(BD74,BD$63:BD$66,0))>=(2/3),"Applies to substantially all medical/surgical benefits in this classification. ENTER different "&LOWER(BD74)&" amounts from smallest to largest.","Does not apply to substantially all medical/surgical benefits in this classification. DELETE any values in the left-hand column below.")) -> If testing is required for this benefit classification: Please ensure each different cost-share combination is entered above in PART 1. | BM71: =IF(INDEX(BO$63:BO$66,MATCH(BM74,BM$63:BM$66,0))="","If testing is required for this benefit classification: Please ensure each different cost-share combination is entered above in PART 1.",IF(INDEX(BO$63:BO$66,MATCH(BM74,BM$63:BM$66,0))>=(2/3),"Applies to substantially all medical/surgical benefits in this classification. ENTER different "&LOWER(BM74)&" amounts from smallest to largest.","Does not apply to substantially all medical/surgical benefits in this classification. DELETE any values in the left-hand column below.")) -> If testing is required for this benefit classification: Please ensure each different cost-share combination is entered above in PART 1. | BV71: =IF(INDEX(BX$63:BX$66,MATCH(BV74,BV$63:BV$66,0))="","If testing is required for this benefit classification: Please ensure each different cost-share combination is entered above in PART 1.",IF(INDEX(BX$63:BX$66,MATCH(BV74,BV$63:BV$66,0))>=(2/3),"Applies to substantially all medical/surgical benefits in this classification. ENTER different "&LOWER(BV74)&" amounts from smallest to largest.","Does not apply to substantially all medical/surgical benefits in this classification. DELETE any values in the left-hand column below.")) -> If testing is required for this benefit classification: Please ensure each different cost-share combination is entered above in PART 1. | CE71: =IF(INDEX(CG$63:CG$66,MATCH(CE74,CE$63:CE$66,0))="","If testing is required for this benefit classification: Please ensure each different cost-share combination is entered above in PART 1.",IF(INDEX(CG$63:CG$66,MATCH(CE74,CE$63:CE$66,0))>=(2/3),"Applies to substantially all medical/surgical benefits in this classification. ENTER different "&LOWER(CE74)&" amounts from smallest to largest.","Does not apply to substantially all medical/surgical benefits in this classification. DELETE any values in the left-hand column below.")) -> If testing is required for this benefit classification: Please ensure each different cost-share combination is entered above in PART 1.
B74: Deductible | C74: Allowed Claims | D74: Portion | E74: Predominant & Smaller | F74: Error Checking | K74: Deductible | L74: Allowed Claims | M74: Portion | N74: Predominant & Smaller | O74: Error Checking | T74: Deductible | U74: Allowed Claims | V74: Portion | W74: Predominant & Smaller | X74: Error Checking | AC74: Deductible | AD74: Allowed Claims | AE74: Portion | AF74: Predominant & Smaller | AG74: Error Checking | AL74: Deductible | AM74: Allowed Claims | AN74: Portion | AO74: Predominant & Smaller | AP74: Error Checking | AU74: Deductible | AV74: Allowed Claims | AW74: Portion | AX74: Predominant & Smaller | AY74: Error Checking | BD74: Deductible | BE74: Allowed Claims | BF74: Portion | BG74: Predominant & Smaller | BH74: Error Checking | BM74: Deductible | BN74: Allowed Claims | BO74: Portion | BP74: Predominant & Smaller | BQ74: Error Checking | BV74: Deductible | BW74: Allowed Claims | BX74: Portion | BY74: Predominant & Smaller | BZ74: Error Checking | CE74: Deductible | CF74: Allowed Claims | CG74: Portion | CH74: Predominant & Smaller | CI74: Error Checking
B75: 0 | C75: =SUMIF(tbl_IPINN_P14103154[Deductible],B75,tbl_IPINN_P14103154[Plan Projected Allowed Amount]) -> 123 | D75: =IF(OR(C75=0,C75=""),"",C75/tbl_IPINN_P2Ded14104155[[#Totals],[Allowed Claims]]) -> 0.1428571429 | E75: =IF(D75="","",IF(SUMIF(tbl_IPINN_P2Ded14104155[Deductible],">="&B75,tbl_IPINN_P2Ded14104155[Portion])>0.5,B75,"")) -> 0 | F75: =IF(COUNTIF(tbl_IPINN_P2Ded14104155[Deductible],tbl_IPINN_P2Ded14104155[[#This Row],[Deductible]])>1,"Remove Duplicate Entry.",IF(AND(tbl_IPINN_P2Ded14104155[[#This Row],[Deductible]]<>"",tbl_IPINN_P2Ded14104155[[#This Row],[Allowed Claims]]=0),"Entry not found in Part 1 Table",IF(AND(OFFSET(tbl_IPINN_P2Ded14104155[[#This Row],[Deductible]],1,0)<>"Total",OFFSET(tbl_IPINN_P2Ded14104155[[#This Row],[Deductible]],1,0)<>"",OFFSET(tbl_IPINN_P2Ded14104155[[#This Row],[Deductible]],1,0)<tbl_IPINN_P2Ded14104155[[#This Row],[Deductible]]),"Sort Entries from lowest to highest",""))) ->  | L75: =SUMIF(tbl_IPOON_P143108159[Deductible],K75,tbl_IPOON_P143108159[Plan Projected Allowed Amount]) -> 0 | M75: =IF(OR(L75=0,L75=""),"",L75/tbl_IPOON_P2Ded44109160[[#Totals],[Allowed Claims]]) ->  | N75: =IF(M75="","",IF(SUMIF(tbl_IPOON_P2Ded44109160[Deductible],">="&K75,tbl_IPOON_P2Ded44109160[Portion])>0.5,K75,"")) ->  | O75: =IF(COUNTIF(tbl_IPOON_P2Ded44109160[Deductible],tbl_IPOON_P2Ded44109160[[#This Row],[Deductible]])>1,"Remove Duplicate Entry.",IF(AND(tbl_IPOON_P2Ded44109160[[#This Row],[Deductible]]<>"",tbl_IPOON_P2Ded44109160[[#This Row],[Allowed Claims]]=0),"Entry not found in Part 1 Table",IF(AND(OFFSET(tbl_IPOON_P2Ded44109160[[#This Row],[Deductible]],1,0)<>"Total",OFFSET(tbl_IPOON_P2Ded44109160[[#This Row],[Deductible]],1,0)<>"",OFFSET(tbl_IPOON_P2Ded44109160[[#This Row],[Deductible]],1,0)<tbl_IPOON_P2Ded44109160[[#This Row],[Deductible]]),"Sort Entries from lowest to highest",""))) ->  | U75: =SUMIF(tbl_OPINN_P163113164[Deductible],T75,tbl_OPINN_P163113164[Plan Projected Allowed Amount]) -> 0 | V75: =IF(OR(U75=0,U75=""),"",U75/tbl_OPINN_P2Ded64114165[[#Totals],[Allowed Claims]]) ->  | W75: =IF(V75="","",IF(SUMIF(tbl_OPINN_P2Ded64114165[Deductible],">="&T75,tbl_OPINN_P2Ded64114165[Portion])>0.5,T75,"")) ->  | X75: =IF(COUNTIF(tbl_OPINN_P2Ded64114165[Deductible],tbl_OPINN_P2Ded64114165[[#This Row],[Deductible]])>1,"Remove Duplicate Entry.",IF(AND(tbl_OPINN_P2Ded64114165[[#This Row],[Deductible]]<>"",tbl_OPINN_P2Ded64114165[[#This Row],[Allowed Claims]]=0),"Entry not found in Part 1 Table",IF(AND(OFFSET(tbl_OPINN_P2Ded64114165[[#This Row],[Deductible]],1,0)<>"Total",OFFSET(tbl_OPINN_P2Ded64114165[[#This Row],[Deductible]],1,0)<>"",OFFSET(tbl_OPINN_P2Ded64114165[[#This Row],[Deductible]],1,0)<tbl_OPINN_P2Ded64114165[[#This Row],[Deductible]]),"Sort Entries from lowest to highest",""))) ->  | AC75: 500 | AD75: =SUMIF(tbl_OPOVINN_P168118169[Deductible],AC75,tbl_OPOVINN_P168118169[Plan Projected Allowed Amount]) -> 359 | AE75: =IF(OR(AD75=0,AD75=""),"",AD75/tbl_OPOVINN_P2Ded69119170[[#Totals],[Allowed Claims]]) -> 0.5447647951 | AF75: =IF(AE75="","",IF(SUMIF(tbl_OPOVINN_P2Ded69119170[Deductible],">="&AC75,tbl_OPOVINN_P2Ded69119170[Portion])>0.5,AC75,"")) -> 500 | AG75: =IF(COUNTIF(tbl_OPOVINN_P2Ded69119170[Deductible],tbl_OPOVINN_P2Ded69119170[[#This Row],[Deductible]])>1,"Remove Duplicate Entry.",IF(AND(tbl_OPOVINN_P2Ded69119170[[#This Row],[Deductible]]<>"",tbl_OPOVINN_P2Ded69119170[[#This Row],[Allowed Claims]]=0),"Entry not found in Part 1 Table",IF(AND(OFFSET(tbl_OPOVINN_P2Ded69119170[[#This Row],[Deductible]],1,0)<>"Total",OFFSET(tbl_OPOVINN_P2Ded69119170[[#This Row],[Deductible]],1,0)<>"",OFFSET(tbl_OPOVINN_P2Ded69119170[[#This Row],[Deductible]],1,0)<tbl_OPOVINN_P2Ded69119170[[#This Row],[Deductible]]),"Sort Entries from lowest to highest",""))) ->  | AL75: 500 | AM75: =SUMIF(tbl_OPAOINN_P173123174[Deductible],AL75,tbl_OPAOINN_P173123174[Plan Projected Allowed Amount]) -> 5040.67 | AN75: =IF(OR(AM75=0,AM75=""),"",AM75/tbl_OPAOINN_P2Ded74124175[[#Totals],[Allowed Claims]]) -> 1 | AO75: =IF(AN75="","",IF(SUMIF(tbl_OPAOINN_P2Ded74124175[Deductible],">="&AL75,tbl_OPAOINN_P2Ded74124175[Portion])>0.5,AL75,"")) -> 500 | AP75: =IF(COUNTIF(tbl_OPAOINN_P2Ded74124175[Deductible],tbl_OPAOINN_P2Ded74124175[[#This Row],[Deductible]])>1,"Remove Duplicate Entry.",IF(AND(tbl_OPAOINN_P2Ded74124175[[#This Row],[Deductible]]<>"",tbl_OPAOINN_P2Ded74124175[[#This Row],[Allowed Claims]]=0),"Entry not found in Part 1 Table",IF(AND(OFFSET(tbl_OPAOINN_P2Ded74124175[[#This Row],[Deductible]],1,0)<>"Total",OFFSET(tbl_OPAOINN_P2Ded74124175[[#This Row],[Deductible]],1,0)<>"",OFFSET(tbl_OPAOINN_P2Ded74124175[[#This Row],[Deductible]],1,0)<tbl_OPAOINN_P2Ded74124175[[#This Row],[Deductible]]),"Sort Entries from lowest to highest",""))) ->  | AV75: =SUMIF(tbl_OPOON_P178128179[Deductible],AU75,tbl_OPOON_P178128179[Plan Projected Allowed Amount]) -> 0 | AW75: =IF(OR(AV75=0,AV75=""),"",AV75/tbl_OPOON_P2Ded79129180[[#Totals],[Allowed Claims]]) ->  | AX75: =IF(AW75="","",IF(SUMIF(tbl_OPOON_P2Ded79129180[Deductible],">="&AU75,tbl_OPOON_P2Ded79129180[Portion])>0.5,AU75,"")) ->  | AY75: =IF(COUNTIF(tbl_OPOON_P2Ded79129180[Deductible],tbl_OPOON_P2Ded79129180[[#This Row],[Deductible]])>1,"Remove Duplicate Entry.",IF(AND(tbl_OPOON_P2Ded79129180[[#This Row],[Deductible]]<>"",tbl_OPOON_P2Ded79129180[[#This Row],[Allowed Claims]]=0),"Entry not found in Part 1 Table",IF(AND(OFFSET(tbl_OPOON_P2Ded79129180[[#This Row],[Deductible]],1,0)<>"Total",OFFSET(tbl_OPOON_P2Ded79129180[[#This Row],[Deductible]],1,0)<>"",OFFSET(tbl_OPOON_P2Ded79129180[[#This Row],[Deductible]],1,0)<tbl_OPOON_P2Ded79129180[[#This Row],[Deductible]]),"Sort Entries from lowest to highest",""))) ->  | BE75: =SUMIF(tbl_OPOVOON_P183133184[Deductible],BD75,tbl_OPOVOON_P183133184[Plan Projected Allowed Amount]) -> 0 | BF75: =IF(OR(BE75=0,BE75=""),"",BE75/tbl_OPOVOON_P2Ded84134185[[#Totals],[Allowed Claims]]) ->  | BG75: =IF(BF75="","",IF(SUMIF(tbl_OPOVOON_P2Ded84134185[Deductible],">="&BD75,tbl_OPOVOON_P2Ded84134185[Portion])>0.5,BD75,"")) ->  | BH75: =IF(COUNTIF(tbl_OPOVOON_P2Ded84134185[Deductible],tbl_OPOVOON_P2Ded84134185[[#This Row],[Deductible]])>1,"Remove Duplicate Entry.",IF(AND(tbl_OPOVOON_P2Ded84134185[[#This Row],[Deductible]]<>"",tbl_OPOVOON_P2Ded84134185[[#This Row],[Allowed Claims]]=0),"Entry not found in Part 1 Table",IF(AND(OFFSET(tbl_OPOVOON_P2Ded84134185[[#This Row],[Deductible]],1,0)<>"Total",OFFSET(tbl_OPOVOON_P2Ded84134185[[#This Row],[Deductible]],1,0)<>"",OFFSET(tbl_OPOVOON_P2Ded84134185[[#This Row],[Deductible]],1,0)<tbl_OPOVOON_P2Ded84134185[[#This Row],[Deductible]]),"Sort Entries from lowest to highest",""))) ->  | BN75: =SUMIF(tbl_OPAOOON_P188138189[Deductible],BM75,tbl_OPAOOON_P188138189[Plan Projected Allowed Amount]) -> 0 | BO75: =IF(OR(BN75=0,BN75=""),"",BN75/tbl_OPAOOON_P2Ded89139190[[#Totals],[Allowed Claims]]) ->  | BP75: =IF(BO75="","",IF(SUMIF(tbl_OPAOOON_P2Ded89139190[Deductible],">="&BM75,tbl_OPAOOON_P2Ded89139190[Portion])>0.5,BM75,"")) ->  | BQ75: =IF(COUNTIF(tbl_OPAOOON_P2Ded89139190[Deductible],tbl_OPAOOON_P2Ded89139190[[#This Row],[Deductible]])>1,"Remove Duplicate Entry.",IF(AND(tbl_OPAOOON_P2Ded89139190[[#This Row],[Deductible]]<>"",tbl_OPAOOON_P2Ded89139190[[#This Row],[Allowed Claims]]=0),"Entry not found in Part 1 Table",IF(AND(OFFSET(tbl_OPAOOON_P2Ded89139190[[#This Row],[Deductible]],1,0)<>"Total",OFFSET(tbl_OPAOOON_P2Ded89139190[[#This Row],[Deductible]],1,0)<>"",OFFSET(tbl_OPAOOON_P2Ded89139190[[#This Row],[Deductible]],1,0)<tbl_OPAOOON_P2Ded89139190[[#This Row],[Deductible]]),"Sort Entries from lowest to highest",""))) ->  | BW75: =SUMIF(tbl_ER_P193143194[Deductible],BV75,tbl_ER_P193143194[Plan Projected Allowed Amount]) -> 0 | BX75: =IF(OR(BW75=0,BW75=""),"",BW75/tbl_ER_P2Ded102152203[[#Totals],[Allowed Claims]]) ->  | BY75: =IF(BX75="","",IF(SUMIF(tbl_ER_P2Ded102152203[Deductible],">="&BV75,tbl_ER_P2Ded102152203[Portion])>0.5,BV75,"")) ->  | BZ75: =IF(COUNTIF(tbl_ER_P2Ded102152203[Deductible],tbl_ER_P2Ded102152203[[#This Row],[Deductible]])>1,"Remove Duplicate Entry.",IF(AND(tbl_ER_P2Ded102152203[[#This Row],[Deductible]]<>"",tbl_ER_P2Ded102152203[[#This Row],[Allowed Claims]]=0),"Entry not found in Part 1 Table",IF(AND(OFFSET(tbl_ER_P2Ded102152203[[#This Row],[Deductible]],1,0)<>"Total",OFFSET(tbl_ER_P2Ded102152203[[#This Row],[Deductible]],1,0)<>"",OFFSET(tbl_ER_P2Ded102152203[[#This Row],[Deductible]],1,0)<tbl_ER_P2Ded102152203[[#This Row],[Deductible]]),"Sort Entries from lowest to highest",""))) ->  | CF75: =SUMIF(tbl_RX_P197147198[Deductible],CE75,tbl_RX_P197147198[Plan Projected Allowed Amount]) -> 0 | CG75: =IF(OR(CF75=0,CF75=""),"",CF75/tbl_RX_P2Ded98148199[[#Totals],[Allowed Claims]]) ->  | CH75: =IF(CG75="","",IF(SUMIF(tbl_RX_P2Ded98148199[Deductible],">="&CE75,tbl_RX_P2Ded98148199[Portion])>0.5,CE75,"")) ->  | CI75: =IF(COUNTIF(tbl_RX_P2Ded98148199[Deductible],tbl_RX_P2Ded98148199[[#This Row],[Deductible]])>1,"Remove Duplicate Entry.",IF(AND(tbl_RX_P2Ded98148199[[#This Row],[Deductible]]<>"",tbl_RX_P2Ded98148199[[#This Row],[Allowed Claims]]=0),"Entry not found in Part 1 Table",IF(AND(OFFSET(tbl_RX_P2Ded98148199[[#This Row],[Deductible]],1,0)<>"Total",OFFSET(tbl_RX_P2Ded98148199[[#This Row],[Deductible]],1,0)<>"",OFFSET(tbl_RX_P2Ded98148199[[#This Row],[Deductible]],1,0)<tbl_RX_P2Ded98148199[[#This Row],[Deductible]]),"Sort Entries from lowest to highest",""))) -> 
